{"text_format":"1","workbook":"xlsx","n_sheets":4,"sheets":["Config","Fiche_Client","Statistique","Stat_Nuitée"],"not_rendered":{"charts":0,"images":0,"macros":0,"external_links":0,"defined_names":38,"comments":0,"pivot_tables":0},"unopened":[],"bounds":{"document_bytes":16777216,"sheet_cells":100000,"rows_first":2000,"rows_last":500,"rows_between":2000,"halvings":0,"cell_chars":16384,"cell_head_chars":4096},"cells_cut":0,"cells_raw":0,"read":"whole","date_system":"1900"}

{"sheet":"Config","index":0,"n_rows":31,"n_cols":2,"rows_kept":31,"cut":false,"hidden":true,"merged":[]}
["Nat","Pays"]
["MA","MAROC"]
["ES","Espagne"]
["FR","France"]
["BE","Belgique"]
["IT","Italie"]
["DE","Allemagne"]
["NL","Holland"]
["POR","Portugal"]
["UK","Grande_Bretagne"]
["DK","DANEMARK"]
["NOR","NORVEGE"]
["POL","POLOGNE"]
["RU","RUSSIE"]
["CH","SUISSE"]
["SU","SUEDE"]
["TU","TURQUIE"]
["DZ","ALGERIE"]
["TN","TUNISIE"]
["LY","LYBIE"]
["EG","EGYPTE"]
["SAU","Arabie_Saoudite"]
["UA","Arabie_Emirate"]
["JOR","JORDANIE"]
["US","Etats_Unis"]
["CA","CANADA"]
["JP","JAPON"]
["CN","CHINE"]
["AF","AFRIQUE"]
["BR","BRESIL"]
["MX","Mexique"]

{"sheet":"Fiche_Client","index":1,"n_rows":10,"n_cols":14,"rows_kept":10,"cut":false,"hidden":false,"merged":[]}
[]
[null,"C_Id","Titre","Nat","Chb","Nom","Prénom","Naissance","Adresse","Pays","CNI","Date Arrivée","Date Départ","Durée"]
[null,{"$f":"IF(E3<>\"\",ROW()-2,\"\")","v":1},"M","FR",205,"BELBACHIR","SAMIR","1982-04-09","OUJDA","France","F510044","2019-05-01","2019-05-04",{"$f":"Tableau1[[#This Row],[Date Départ]]-Tableau1[[#This Row],[Date Arrivée]]","v":3}]
[null,2,"Mme","ES",501,"JEAN ","PIERRE","2012-07-09","PARIS","Espagne","666025HT","2019-05-01","2019-05-06",{"$f":"Tableau1[[#This Row],[Date Départ]]-Tableau1[[#This Row],[Date Arrivée]]","v":5}]
[null,3,"M","BR",301,"TAOUFIK","ELMORABIT","1962-05-03","ORAN","BRESIL","246321HB","2019-05-03","2019-05-10",{"$f":"Tableau1[[#This Row],[Date Départ]]-Tableau1[[#This Row],[Date Arrivée]]","v":7}]
[null,4,"M","US",210,"HOLCOMB","PETER","1975-08-06","NEW YORK","Etats_Unis","BD6387501","2019-05-03","2019-05-08",{"$f":"Tableau1[[#This Row],[Date Départ]]-Tableau1[[#This Row],[Date Arrivée]]","v":5}]
[null,5,"M","MA",210,"REDA ","HMAMI","1979-05-08","NADOR","MAROC","R61054","2019-05-03","2019-05-14",{"$f":"Tableau1[[#This Row],[Date Départ]]-Tableau1[[#This Row],[Date Arrivée]]","v":11}]
[null,6,"M","NL",604,"MICHELLE","FRANCOIS","1975-09-09","PARIS","Holland","625745BY","2019-05-24","2019-05-28",{"$f":"Tableau1[[#This Row],[Date Départ]]-Tableau1[[#This Row],[Date Arrivée]]","v":4}]
[null,{"$f":"IF(E9<>\"\",ROW()-2,\"\")","v":7},"Mme","IT",302,"PATRICIA","RAMAZOTTI","1989-06-17","ROME","Italie","3215400KB","2019-05-05","2019-05-11",{"$f":"Tableau1[[#This Row],[Date Départ]]-Tableau1[[#This Row],[Date Arrivée]]","v":6}]
[null,{"$f":"IF(E10<>\"\",ROW()-2,\"\")","v":8},"M","MA",208,"MAKHTOUM","MOHAMMED","1967-12-13","TAZA","MAROC","Z310541","2019-05-11","2019-05-19",{"$f":"Tableau1[[#This Row],[Date Départ]]-Tableau1[[#This Row],[Date Arrivée]]","v":8}]

{"sheet":"Statistique","index":2,"n_rows":43,"n_cols":86,"rows_kept":43,"cut":false,"hidden":false,"merged":[[41,1,41,2],[42,1,42,2],[0,11,0,21],[0,4,0,6]]}
[5,null,1,null,{"$f":"DATE(C1+2018,A1,1)","v":"2019-05-01"},null,null,null,null,null,null,null,null,null,null,null,null,null,null,null,null,null,null,null,null,null,null,null,null,null,null,null,null,null,null,null,null,null,null,null,null,null,null,null,null,null,null,null,null,null,null,null,null,null,null,null,null,{"$f":"INDEX(BB2:BB13,C1)","v":2019}]
[null,null,null,{"$f":"E1","v":"2019-05-01"},{"$f":"D2+1","v":"2019-05-02"},"2019-05-03","2019-05-04","2019-05-05","2019-05-06","2019-05-07","2019-05-08","2019-05-09","2019-05-10","2019-05-11","2019-05-12","2019-05-13","2019-05-14","2019-05-15","2019-05-16","2019-05-17","2019-05-18","2019-05-19","2019-05-20","2019-05-21","2019-05-22","2019-05-23","2019-05-24","2019-05-25","2019-05-26","2019-05-27","2019-05-28","2019-05-29","2019-05-30","2019-05-31",null,null,null,null,null,null,null,null,null,null,null,null,null,null,null,null,null,null,null,2019,"Janvier",null,"Premier de l'An",null,{"$f":"DATE(BF1,1,1)","v":"2019-01-01"},null,null,null,null,null,null,null,null,null,null,null,null,null,null,null,null,null,null,null,null,null,null,null,null,null,null,"2021-08-01"]
[null,"France","FR",{"$f":"COUNTIFS(Tableau1[Date Arrivée],Statistique!$D$2,Tableau1[Nat],Statistique!C3)","v":1},{"$f":"COUNTIFS(Tableau1[Date Arrivée],Statistique!$E$2,Tableau1[Nat],Statistique!C3)","v":0},{"$f":"COUNTIFS(Tableau1[Date Arrivée],Statistique!$F$2,Tableau1[Nat],Statistique!C3)","v":0},{"$f":"COUNTIFS(Tableau1[Date Arrivée],Statistique!$G$2,Tableau1[Nat],Statistique!C3)","v":0},{"$f":"COUNTIFS(Tableau1[Date Arrivée],Statistique!$H$2,Tableau1[Nat],Statistique!C3)","v":0},{"$f":"COUNTIFS(Tableau1[Date Arrivée],Statistique!$I$2,Tableau1[Nat],Statistique!C3)","v":0},{"$f":"COUNTIFS(Tableau1[Date Arrivée],Statistique!$J$2,Tableau1[Nat],Statistique!C3)","v":0},{"$f":"COUNTIFS(Tableau1[Date Arrivée],Statistique!$K$2,Tableau1[Nat],Statistique!C3)","v":0},{"$f":"COUNTIFS(Tableau1[Date Arrivée],Statistique!$L$2,Tableau1[Nat],Statistique!C3)","v":0},{"$f":"COUNTIFS(Tableau1[Date Arrivée],Statistique!$M$2,Tableau1[Nat],Statistique!C3)","v":0},{"$f":"COUNTIFS(Tableau1[Date Arrivée],Statistique!$N$2,Tableau1[Nat],Statistique!C3)","v":0},{"$f":"COUNTIFS(Tableau1[Date Arrivée],Statistique!$O$2,Tableau1[Nat],Statistique!C3)","v":0},{"$f":"COUNTIFS(Tableau1[Date Arrivée],Statistique!$P$2,Tableau1[Nat],Statistique!C3)","v":0},{"$f":"COUNTIFS(Tableau1[Date Arrivée],Statistique!$Q$2,Tableau1[Nat],Statistique!C3)","v":0},{"$f":"COUNTIFS(Tableau1[Date Arrivée],Statistique!$R$2,Tableau1[Nat],Statistique!C3)","v":0},{"$f":"COUNTIFS(Tableau1[Date Arrivée],Statistique!$S$2,Tableau1[Nat],Statistique!C3)","v":0},{"$f":"COUNTIFS(Tableau1[Date Arrivée],Statistique!$T$2,Tableau1[Nat],Statistique!C3)","v":0},{"$f":"COUNTIFS(Tableau1[Date Arrivée],Statistique!$U$2,Tableau1[Nat],Statistique!C3)","v":0},{"$f":"COUNTIFS(Tableau1[Date Arrivée],Statistique!$V$2,Tableau1[Nat],Statistique!C3)","v":0},{"$f":"COUNTIFS(Tableau1[Date Arrivée],Statistique!$W$2,Tableau1[Nat],Statistique!C3)","v":0},{"$f":"COUNTIFS(Tableau1[Date Arrivée],Statistique!$X$2,Tableau1[Nat],Statistique!C3)","v":0},{"$f":"COUNTIFS(Tableau1[Date Arrivée],Statistique!$Y$2,Tableau1[Nat],Statistique!C3)","v":0},{"$f":"COUNTIFS(Tableau1[Date Arrivée],Statistique!$Z$2,Tableau1[Nat],Statistique!C3)","v":0},{"$f":"COUNTIFS(Tableau1[Date Arrivée],Statistique!$AA$2,Tableau1[Nat],Statistique!C3)","v":0},{"$f":"COUNTIFS(Tableau1[Date Arrivée],Statistique!$AB$2,Tableau1[Nat],Statistique!C3)","v":0},{"$f":"COUNTIFS(Tableau1[Date Arrivée],Statistique!$AC$2,Tableau1[Nat],Statistique!C3)","v":0},{"$f":"COUNTIFS(Tableau1[Date Arrivée],Statistique!$AD$2,Tableau1[Nat],Statistique!C3)","v":0},{"$f":"COUNTIFS(Tableau1[Date Arrivée],Statistique!$AE$2,Tableau1[Nat],Statistique!C3)","v":0},{"$f":"COUNTIFS(Tableau1[Date Arrivée],Statistique!$AF$2,Tableau1[Nat],Statistique!C3)","v":0},{"$f":"COUNTIFS(Tableau1[Date Arrivée],Statistique!$AG$2,Tableau1[Nat],Statistique!C3)","v":0},{"$f":"COUNTIFS(Tableau1[Date Arrivée],Statistique!$AH$2,Tableau1[Nat],Statistique!C3)","v":0},null,null,null,null,null,null,null,null,null,null,null,null,null,null,null,null,null,null,null,2020,"Février",null,"Manifeste de l'indépendance",null,{"$f":"DATE(BF1,1,11)","v":"2019-01-11"}]
[null,"Espagne","ES",{"$f":"COUNTIFS(Tableau1[Date Arrivée],Statistique!$D$2,Tableau1[Nat],Statistique!C4)","v":1},{"$f":"COUNTIFS(Tableau1[Date Arrivée],Statistique!$E$2,Tableau1[Nat],Statistique!C4)","v":0},{"$f":"COUNTIFS(Tableau1[Date Arrivée],Statistique!$F$2,Tableau1[Nat],Statistique!C4)","v":0},{"$f":"COUNTIFS(Tableau1[Date Arrivée],Statistique!$G$2,Tableau1[Nat],Statistique!C4)","v":0},{"$f":"COUNTIFS(Tableau1[Date Arrivée],Statistique!$H$2,Tableau1[Nat],Statistique!C4)","v":0},{"$f":"COUNTIFS(Tableau1[Date Arrivée],Statistique!$I$2,Tableau1[Nat],Statistique!C4)","v":0},{"$f":"COUNTIFS(Tableau1[Date Arrivée],Statistique!$J$2,Tableau1[Nat],Statistique!C4)","v":0},{"$f":"COUNTIFS(Tableau1[Date Arrivée],Statistique!$K$2,Tableau1[Nat],Statistique!C4)","v":0},{"$f":"COUNTIFS(Tableau1[Date Arrivée],Statistique!$L$2,Tableau1[Nat],Statistique!C4)","v":0},{"$f":"COUNTIFS(Tableau1[Date Arrivée],Statistique!$M$2,Tableau1[Nat],Statistique!C4)","v":0},{"$f":"COUNTIFS(Tableau1[Date Arrivée],Statistique!$N$2,Tableau1[Nat],Statistique!C4)","v":0},{"$f":"COUNTIFS(Tableau1[Date Arrivée],Statistique!$O$2,Tableau1[Nat],Statistique!C4)","v":0},{"$f":"COUNTIFS(Tableau1[Date Arrivée],Statistique!$P$2,Tableau1[Nat],Statistique!C4)","v":0},{"$f":"COUNTIFS(Tableau1[Date Arrivée],Statistique!$Q$2,Tableau1[Nat],Statistique!C4)","v":0},{"$f":"COUNTIFS(Tableau1[Date Arrivée],Statistique!$R$2,Tableau1[Nat],Statistique!C4)","v":0},{"$f":"COUNTIFS(Tableau1[Date Arrivée],Statistique!$S$2,Tableau1[Nat],Statistique!C4)","v":0},{"$f":"COUNTIFS(Tableau1[Date Arrivée],Statistique!$T$2,Tableau1[Nat],Statistique!C4)","v":0},{"$f":"COUNTIFS(Tableau1[Date Arrivée],Statistique!$U$2,Tableau1[Nat],Statistique!C4)","v":0},{"$f":"COUNTIFS(Tableau1[Date Arrivée],Statistique!$V$2,Tableau1[Nat],Statistique!C4)","v":0},{"$f":"COUNTIFS(Tableau1[Date Arrivée],Statistique!$W$2,Tableau1[Nat],Statistique!C4)","v":0},{"$f":"COUNTIFS(Tableau1[Date Arrivée],Statistique!$X$2,Tableau1[Nat],Statistique!C4)","v":0},{"$f":"COUNTIFS(Tableau1[Date Arrivée],Statistique!$Y$2,Tableau1[Nat],Statistique!C4)","v":0},{"$f":"COUNTIFS(Tableau1[Date Arrivée],Statistique!$Z$2,Tableau1[Nat],Statistique!C4)","v":0},{"$f":"COUNTIFS(Tableau1[Date Arrivée],Statistique!$AA$2,Tableau1[Nat],Statistique!C4)","v":0},{"$f":"COUNTIFS(Tableau1[Date Arrivée],Statistique!$AB$2,Tableau1[Nat],Statistique!C4)","v":0},{"$f":"COUNTIFS(Tableau1[Date Arrivée],Statistique!$AC$2,Tableau1[Nat],Statistique!C4)","v":0},{"$f":"COUNTIFS(Tableau1[Date Arrivée],Statistique!$AD$2,Tableau1[Nat],Statistique!C4)","v":0},{"$f":"COUNTIFS(Tableau1[Date Arrivée],Statistique!$AE$2,Tableau1[Nat],Statistique!C4)","v":0},{"$f":"COUNTIFS(Tableau1[Date Arrivée],Statistique!$AF$2,Tableau1[Nat],Statistique!C4)","v":0},{"$f":"COUNTIFS(Tableau1[Date Arrivée],Statistique!$AG$2,Tableau1[Nat],Statistique!C4)","v":0},{"$f":"COUNTIFS(Tableau1[Date Arrivée],Statistique!$AH$2,Tableau1[Nat],Statistique!C4)","v":0},null,null,null,null,null,null,null,null,null,null,null,null,null,null,null,null,null,null,null,2021,"Mars",null,"Fête du Travail",null,{"$f":"DATE(BF1,5,1)","v":"2019-05-01"}]
[null,"Royaume Unis","UK",{"$f":"COUNTIFS(Tableau1[Date Arrivée],Statistique!$D$2,Tableau1[Nat],Statistique!C5)","v":0},{"$f":"COUNTIFS(Tableau1[Date Arrivée],Statistique!$E$2,Tableau1[Nat],Statistique!C5)","v":0},{"$f":"COUNTIFS(Tableau1[Date Arrivée],Statistique!$F$2,Tableau1[Nat],Statistique!C5)","v":0},{"$f":"COUNTIFS(Tableau1[Date Arrivée],Statistique!$G$2,Tableau1[Nat],Statistique!C5)","v":0},{"$f":"COUNTIFS(Tableau1[Date Arrivée],Statistique!$H$2,Tableau1[Nat],Statistique!C5)","v":0},{"$f":"COUNTIFS(Tableau1[Date Arrivée],Statistique!$I$2,Tableau1[Nat],Statistique!C5)","v":0},{"$f":"COUNTIFS(Tableau1[Date Arrivée],Statistique!$J$2,Tableau1[Nat],Statistique!C5)","v":0},{"$f":"COUNTIFS(Tableau1[Date Arrivée],Statistique!$K$2,Tableau1[Nat],Statistique!C5)","v":0},{"$f":"COUNTIFS(Tableau1[Date Arrivée],Statistique!$L$2,Tableau1[Nat],Statistique!C5)","v":0},{"$f":"COUNTIFS(Tableau1[Date Arrivée],Statistique!$M$2,Tableau1[Nat],Statistique!C5)","v":0},{"$f":"COUNTIFS(Tableau1[Date Arrivée],Statistique!$N$2,Tableau1[Nat],Statistique!C5)","v":0},{"$f":"COUNTIFS(Tableau1[Date Arrivée],Statistique!$O$2,Tableau1[Nat],Statistique!C5)","v":0},{"$f":"COUNTIFS(Tableau1[Date Arrivée],Statistique!$P$2,Tableau1[Nat],Statistique!C5)","v":0},{"$f":"COUNTIFS(Tableau1[Date Arrivée],Statistique!$Q$2,Tableau1[Nat],Statistique!C5)","v":0},{"$f":"COUNTIFS(Tableau1[Date Arrivée],Statistique!$R$2,Tableau1[Nat],Statistique!C5)","v":0},{"$f":"COUNTIFS(Tableau1[Date Arrivée],Statistique!$S$2,Tableau1[Nat],Statistique!C5)","v":0},{"$f":"COUNTIFS(Tableau1[Date Arrivée],Statistique!$T$2,Tableau1[Nat],Statistique!C5)","v":0},{"$f":"COUNTIFS(Tableau1[Date Arrivée],Statistique!$U$2,Tableau1[Nat],Statistique!C5)","v":0},{"$f":"COUNTIFS(Tableau1[Date Arrivée],Statistique!$V$2,Tableau1[Nat],Statistique!C5)","v":0},{"$f":"COUNTIFS(Tableau1[Date Arrivée],Statistique!$W$2,Tableau1[Nat],Statistique!C5)","v":0},{"$f":"COUNTIFS(Tableau1[Date Arrivée],Statistique!$X$2,Tableau1[Nat],Statistique!C5)","v":0},{"$f":"COUNTIFS(Tableau1[Date Arrivée],Statistique!$Y$2,Tableau1[Nat],Statistique!C5)","v":0},{"$f":"COUNTIFS(Tableau1[Date Arrivée],Statistique!$Z$2,Tableau1[Nat],Statistique!C5)","v":0},{"$f":"COUNTIFS(Tableau1[Date Arrivée],Statistique!$AA$2,Tableau1[Nat],Statistique!C5)","v":0},{"$f":"COUNTIFS(Tableau1[Date Arrivée],Statistique!$AB$2,Tableau1[Nat],Statistique!C5)","v":0},{"$f":"COUNTIFS(Tableau1[Date Arrivée],Statistique!$AC$2,Tableau1[Nat],Statistique!C5)","v":0},{"$f":"COUNTIFS(Tableau1[Date Arrivée],Statistique!$AD$2,Tableau1[Nat],Statistique!C5)","v":0},{"$f":"COUNTIFS(Tableau1[Date Arrivée],Statistique!$AE$2,Tableau1[Nat],Statistique!C5)","v":0},{"$f":"COUNTIFS(Tableau1[Date Arrivée],Statistique!$AF$2,Tableau1[Nat],Statistique!C5)","v":0},{"$f":"COUNTIFS(Tableau1[Date Arrivée],Statistique!$AG$2,Tableau1[Nat],Statistique!C5)","v":0},{"$f":"COUNTIFS(Tableau1[Date Arrivée],Statistique!$AH$2,Tableau1[Nat],Statistique!C5)","v":0},null,null,null,null,null,null,null,null,null,null,null,null,null,null,null,null,null,null,null,2022,"Avril",null,"Fête du Trône",null,{"$f":"DATE(BF1,7,30)","v":"2019-07-30"}]
[null,"Allemagne","DE",{"$f":"COUNTIFS(Tableau1[Date Arrivée],Statistique!$D$2,Tableau1[Nat],Statistique!C6)","v":0},{"$f":"COUNTIFS(Tableau1[Date Arrivée],Statistique!$E$2,Tableau1[Nat],Statistique!C6)","v":0},{"$f":"COUNTIFS(Tableau1[Date Arrivée],Statistique!$F$2,Tableau1[Nat],Statistique!C6)","v":0},{"$f":"COUNTIFS(Tableau1[Date Arrivée],Statistique!$G$2,Tableau1[Nat],Statistique!C6)","v":0},{"$f":"COUNTIFS(Tableau1[Date Arrivée],Statistique!$H$2,Tableau1[Nat],Statistique!C6)","v":0},{"$f":"COUNTIFS(Tableau1[Date Arrivée],Statistique!$I$2,Tableau1[Nat],Statistique!C6)","v":0},{"$f":"COUNTIFS(Tableau1[Date Arrivée],Statistique!$J$2,Tableau1[Nat],Statistique!C6)","v":0},{"$f":"COUNTIFS(Tableau1[Date Arrivée],Statistique!$K$2,Tableau1[Nat],Statistique!C6)","v":0},{"$f":"COUNTIFS(Tableau1[Date Arrivée],Statistique!$L$2,Tableau1[Nat],Statistique!C6)","v":0},{"$f":"COUNTIFS(Tableau1[Date Arrivée],Statistique!$M$2,Tableau1[Nat],Statistique!C6)","v":0},{"$f":"COUNTIFS(Tableau1[Date Arrivée],Statistique!$N$2,Tableau1[Nat],Statistique!C6)","v":0},{"$f":"COUNTIFS(Tableau1[Date Arrivée],Statistique!$O$2,Tableau1[Nat],Statistique!C6)","v":0},{"$f":"COUNTIFS(Tableau1[Date Arrivée],Statistique!$P$2,Tableau1[Nat],Statistique!C6)","v":0},{"$f":"COUNTIFS(Tableau1[Date Arrivée],Statistique!$Q$2,Tableau1[Nat],Statistique!C6)","v":0},{"$f":"COUNTIFS(Tableau1[Date Arrivée],Statistique!$R$2,Tableau1[Nat],Statistique!C6)","v":0},{"$f":"COUNTIFS(Tableau1[Date Arrivée],Statistique!$S$2,Tableau1[Nat],Statistique!C6)","v":0},{"$f":"COUNTIFS(Tableau1[Date Arrivée],Statistique!$T$2,Tableau1[Nat],Statistique!C6)","v":0},{"$f":"COUNTIFS(Tableau1[Date Arrivée],Statistique!$U$2,Tableau1[Nat],Statistique!C6)","v":0},{"$f":"COUNTIFS(Tableau1[Date Arrivée],Statistique!$V$2,Tableau1[Nat],Statistique!C6)","v":0},{"$f":"COUNTIFS(Tableau1[Date Arrivée],Statistique!$W$2,Tableau1[Nat],Statistique!C6)","v":0},{"$f":"COUNTIFS(Tableau1[Date Arrivée],Statistique!$X$2,Tableau1[Nat],Statistique!C6)","v":0},{"$f":"COUNTIFS(Tableau1[Date Arrivée],Statistique!$Y$2,Tableau1[Nat],Statistique!C6)","v":0},{"$f":"COUNTIFS(Tableau1[Date Arrivée],Statistique!$Z$2,Tableau1[Nat],Statistique!C6)","v":0},{"$f":"COUNTIFS(Tableau1[Date Arrivée],Statistique!$AA$2,Tableau1[Nat],Statistique!C6)","v":0},{"$f":"COUNTIFS(Tableau1[Date Arrivée],Statistique!$AB$2,Tableau1[Nat],Statistique!C6)","v":0},{"$f":"COUNTIFS(Tableau1[Date Arrivée],Statistique!$AC$2,Tableau1[Nat],Statistique!C6)","v":0},{"$f":"COUNTIFS(Tableau1[Date Arrivée],Statistique!$AD$2,Tableau1[Nat],Statistique!C6)","v":0},{"$f":"COUNTIFS(Tableau1[Date Arrivée],Statistique!$AE$2,Tableau1[Nat],Statistique!C6)","v":0},{"$f":"COUNTIFS(Tableau1[Date Arrivée],Statistique!$AF$2,Tableau1[Nat],Statistique!C6)","v":0},{"$f":"COUNTIFS(Tableau1[Date Arrivée],Statistique!$AG$2,Tableau1[Nat],Statistique!C6)","v":0},{"$f":"COUNTIFS(Tableau1[Date Arrivée],Statistique!$AH$2,Tableau1[Nat],Statistique!C6)","v":0},null,null,null,null,null,null,null,null,null,null,null,null,null,null,null,null,null,null,null,2023,"Mai",null,"Allengeance Oued Eddahab",null,{"$f":"DATE(BF1,8,14)","v":"2019-08-14"}]
[null,"Italie","IT",{"$f":"COUNTIFS(Tableau1[Date Arrivée],Statistique!$D$2,Tableau1[Nat],Statistique!C7)","v":0},{"$f":"COUNTIFS(Tableau1[Date Arrivée],Statistique!$E$2,Tableau1[Nat],Statistique!C7)","v":0},{"$f":"COUNTIFS(Tableau1[Date Arrivée],Statistique!$F$2,Tableau1[Nat],Statistique!C7)","v":0},{"$f":"COUNTIFS(Tableau1[Date Arrivée],Statistique!$G$2,Tableau1[Nat],Statistique!C7)","v":0},{"$f":"COUNTIFS(Tableau1[Date Arrivée],Statistique!$H$2,Tableau1[Nat],Statistique!C7)","v":1},{"$f":"COUNTIFS(Tableau1[Date Arrivée],Statistique!$I$2,Tableau1[Nat],Statistique!C7)","v":0},{"$f":"COUNTIFS(Tableau1[Date Arrivée],Statistique!$J$2,Tableau1[Nat],Statistique!C7)","v":0},{"$f":"COUNTIFS(Tableau1[Date Arrivée],Statistique!$K$2,Tableau1[Nat],Statistique!C7)","v":0},{"$f":"COUNTIFS(Tableau1[Date Arrivée],Statistique!$L$2,Tableau1[Nat],Statistique!C7)","v":0},{"$f":"COUNTIFS(Tableau1[Date Arrivée],Statistique!$M$2,Tableau1[Nat],Statistique!C7)","v":0},{"$f":"COUNTIFS(Tableau1[Date Arrivée],Statistique!$N$2,Tableau1[Nat],Statistique!C7)","v":0},{"$f":"COUNTIFS(Tableau1[Date Arrivée],Statistique!$O$2,Tableau1[Nat],Statistique!C7)","v":0},{"$f":"COUNTIFS(Tableau1[Date Arrivée],Statistique!$P$2,Tableau1[Nat],Statistique!C7)","v":0},{"$f":"COUNTIFS(Tableau1[Date Arrivée],Statistique!$Q$2,Tableau1[Nat],Statistique!C7)","v":0},{"$f":"COUNTIFS(Tableau1[Date Arrivée],Statistique!$R$2,Tableau1[Nat],Statistique!C7)","v":0},{"$f":"COUNTIFS(Tableau1[Date Arrivée],Statistique!$S$2,Tableau1[Nat],Statistique!C7)","v":0},{"$f":"COUNTIFS(Tableau1[Date Arrivée],Statistique!$T$2,Tableau1[Nat],Statistique!C7)","v":0},{"$f":"COUNTIFS(Tableau1[Date Arrivée],Statistique!$U$2,Tableau1[Nat],Statistique!C7)","v":0},{"$f":"COUNTIFS(Tableau1[Date Arrivée],Statistique!$V$2,Tableau1[Nat],Statistique!C7)","v":0},{"$f":"COUNTIFS(Tableau1[Date Arrivée],Statistique!$W$2,Tableau1[Nat],Statistique!C7)","v":0},{"$f":"COUNTIFS(Tableau1[Date Arrivée],Statistique!$X$2,Tableau1[Nat],Statistique!C7)","v":0},{"$f":"COUNTIFS(Tableau1[Date Arrivée],Statistique!$Y$2,Tableau1[Nat],Statistique!C7)","v":0},{"$f":"COUNTIFS(Tableau1[Date Arrivée],Statistique!$Z$2,Tableau1[Nat],Statistique!C7)","v":0},{"$f":"COUNTIFS(Tableau1[Date Arrivée],Statistique!$AA$2,Tableau1[Nat],Statistique!C7)","v":0},{"$f":"COUNTIFS(Tableau1[Date Arrivée],Statistique!$AB$2,Tableau1[Nat],Statistique!C7)","v":0},{"$f":"COUNTIFS(Tableau1[Date Arrivée],Statistique!$AC$2,Tableau1[Nat],Statistique!C7)","v":0},{"$f":"COUNTIFS(Tableau1[Date Arrivée],Statistique!$AD$2,Tableau1[Nat],Statistique!C7)","v":0},{"$f":"COUNTIFS(Tableau1[Date Arrivée],Statistique!$AE$2,Tableau1[Nat],Statistique!C7)","v":0},{"$f":"COUNTIFS(Tableau1[Date Arrivée],Statistique!$AF$2,Tableau1[Nat],Statistique!C7)","v":0},{"$f":"COUNTIFS(Tableau1[Date Arrivée],Statistique!$AG$2,Tableau1[Nat],Statistique!C7)","v":0},{"$f":"COUNTIFS(Tableau1[Date Arrivée],Statistique!$AH$2,Tableau1[Nat],Statistique!C7)","v":0},null,null,null,null,null,null,null,null,null,null,null,null,null,null,null,null,null,null,null,2024,"Juin",null,"Révolution du Roi et du Peuple",null,{"$f":"DATE(BF1,8,20)","v":"2019-08-20"}]
[null,"Suede ","SU",{"$f":"COUNTIFS(Tableau1[Date Arrivée],Statistique!$D$2,Tableau1[Nat],Statistique!C8)","v":0},{"$f":"COUNTIFS(Tableau1[Date Arrivée],Statistique!$E$2,Tableau1[Nat],Statistique!C8)","v":0},{"$f":"COUNTIFS(Tableau1[Date Arrivée],Statistique!$F$2,Tableau1[Nat],Statistique!C8)","v":0},{"$f":"COUNTIFS(Tableau1[Date Arrivée],Statistique!$G$2,Tableau1[Nat],Statistique!C8)","v":0},{"$f":"COUNTIFS(Tableau1[Date Arrivée],Statistique!$H$2,Tableau1[Nat],Statistique!C8)","v":0},{"$f":"COUNTIFS(Tableau1[Date Arrivée],Statistique!$I$2,Tableau1[Nat],Statistique!C8)","v":0},{"$f":"COUNTIFS(Tableau1[Date Arrivée],Statistique!$J$2,Tableau1[Nat],Statistique!C8)","v":0},{"$f":"COUNTIFS(Tableau1[Date Arrivée],Statistique!$K$2,Tableau1[Nat],Statistique!C8)","v":0},{"$f":"COUNTIFS(Tableau1[Date Arrivée],Statistique!$L$2,Tableau1[Nat],Statistique!C8)","v":0},{"$f":"COUNTIFS(Tableau1[Date Arrivée],Statistique!$M$2,Tableau1[Nat],Statistique!C8)","v":0},{"$f":"COUNTIFS(Tableau1[Date Arrivée],Statistique!$N$2,Tableau1[Nat],Statistique!C8)","v":0},{"$f":"COUNTIFS(Tableau1[Date Arrivée],Statistique!$O$2,Tableau1[Nat],Statistique!C8)","v":0},{"$f":"COUNTIFS(Tableau1[Date Arrivée],Statistique!$P$2,Tableau1[Nat],Statistique!C8)","v":0},{"$f":"COUNTIFS(Tableau1[Date Arrivée],Statistique!$Q$2,Tableau1[Nat],Statistique!C8)","v":0},{"$f":"COUNTIFS(Tableau1[Date Arrivée],Statistique!$R$2,Tableau1[Nat],Statistique!C8)","v":0},{"$f":"COUNTIFS(Tableau1[Date Arrivée],Statistique!$S$2,Tableau1[Nat],Statistique!C8)","v":0},{"$f":"COUNTIFS(Tableau1[Date Arrivée],Statistique!$T$2,Tableau1[Nat],Statistique!C8)","v":0},{"$f":"COUNTIFS(Tableau1[Date Arrivée],Statistique!$U$2,Tableau1[Nat],Statistique!C8)","v":0},{"$f":"COUNTIFS(Tableau1[Date Arrivée],Statistique!$V$2,Tableau1[Nat],Statistique!C8)","v":0},{"$f":"COUNTIFS(Tableau1[Date Arrivée],Statistique!$W$2,Tableau1[Nat],Statistique!C8)","v":0},{"$f":"COUNTIFS(Tableau1[Date Arrivée],Statistique!$X$2,Tableau1[Nat],Statistique!C8)","v":0},{"$f":"COUNTIFS(Tableau1[Date Arrivée],Statistique!$Y$2,Tableau1[Nat],Statistique!C8)","v":0},{"$f":"COUNTIFS(Tableau1[Date Arrivée],Statistique!$Z$2,Tableau1[Nat],Statistique!C8)","v":0},{"$f":"COUNTIFS(Tableau1[Date Arrivée],Statistique!$AA$2,Tableau1[Nat],Statistique!C8)","v":0},{"$f":"COUNTIFS(Tableau1[Date Arrivée],Statistique!$AB$2,Tableau1[Nat],Statistique!C8)","v":0},{"$f":"COUNTIFS(Tableau1[Date Arrivée],Statistique!$AC$2,Tableau1[Nat],Statistique!C8)","v":0},{"$f":"COUNTIFS(Tableau1[Date Arrivée],Statistique!$AD$2,Tableau1[Nat],Statistique!C8)","v":0},{"$f":"COUNTIFS(Tableau1[Date Arrivée],Statistique!$AE$2,Tableau1[Nat],Statistique!C8)","v":0},{"$f":"COUNTIFS(Tableau1[Date Arrivée],Statistique!$AF$2,Tableau1[Nat],Statistique!C8)","v":0},{"$f":"COUNTIFS(Tableau1[Date Arrivée],Statistique!$AG$2,Tableau1[Nat],Statistique!C8)","v":0},{"$f":"COUNTIFS(Tableau1[Date Arrivée],Statistique!$AH$2,Tableau1[Nat],Statistique!C8)","v":0},null,null,null,null,null,null,null,null,null,null,null,null,null,null,null,null,null,null,null,2025,"Juillet",null,"Fête de la Jeunsse",null,{"$f":"DATE(BF1,8,21)","v":"2019-08-21"}]
[null,"Danemark","DK",{"$f":"COUNTIFS(Tableau1[Date Arrivée],Statistique!$D$2,Tableau1[Nat],Statistique!C9)","v":0},{"$f":"COUNTIFS(Tableau1[Date Arrivée],Statistique!$E$2,Tableau1[Nat],Statistique!C9)","v":0},{"$f":"COUNTIFS(Tableau1[Date Arrivée],Statistique!$F$2,Tableau1[Nat],Statistique!C9)","v":0},{"$f":"COUNTIFS(Tableau1[Date Arrivée],Statistique!$G$2,Tableau1[Nat],Statistique!C9)","v":0},{"$f":"COUNTIFS(Tableau1[Date Arrivée],Statistique!$H$2,Tableau1[Nat],Statistique!C9)","v":0},{"$f":"COUNTIFS(Tableau1[Date Arrivée],Statistique!$I$2,Tableau1[Nat],Statistique!C9)","v":0},{"$f":"COUNTIFS(Tableau1[Date Arrivée],Statistique!$J$2,Tableau1[Nat],Statistique!C9)","v":0},{"$f":"COUNTIFS(Tableau1[Date Arrivée],Statistique!$K$2,Tableau1[Nat],Statistique!C9)","v":0},{"$f":"COUNTIFS(Tableau1[Date Arrivée],Statistique!$L$2,Tableau1[Nat],Statistique!C9)","v":0},{"$f":"COUNTIFS(Tableau1[Date Arrivée],Statistique!$M$2,Tableau1[Nat],Statistique!C9)","v":0},{"$f":"COUNTIFS(Tableau1[Date Arrivée],Statistique!$N$2,Tableau1[Nat],Statistique!C9)","v":0},{"$f":"COUNTIFS(Tableau1[Date Arrivée],Statistique!$O$2,Tableau1[Nat],Statistique!C9)","v":0},{"$f":"COUNTIFS(Tableau1[Date Arrivée],Statistique!$P$2,Tableau1[Nat],Statistique!C9)","v":0},{"$f":"COUNTIFS(Tableau1[Date Arrivée],Statistique!$Q$2,Tableau1[Nat],Statistique!C9)","v":0},{"$f":"COUNTIFS(Tableau1[Date Arrivée],Statistique!$R$2,Tableau1[Nat],Statistique!C9)","v":0},{"$f":"COUNTIFS(Tableau1[Date Arrivée],Statistique!$S$2,Tableau1[Nat],Statistique!C9)","v":0},{"$f":"COUNTIFS(Tableau1[Date Arrivée],Statistique!$T$2,Tableau1[Nat],Statistique!C9)","v":0},{"$f":"COUNTIFS(Tableau1[Date Arrivée],Statistique!$U$2,Tableau1[Nat],Statistique!C9)","v":0},{"$f":"COUNTIFS(Tableau1[Date Arrivée],Statistique!$V$2,Tableau1[Nat],Statistique!C9)","v":0},{"$f":"COUNTIFS(Tableau1[Date Arrivée],Statistique!$W$2,Tableau1[Nat],Statistique!C9)","v":0},{"$f":"COUNTIFS(Tableau1[Date Arrivée],Statistique!$X$2,Tableau1[Nat],Statistique!C9)","v":0},{"$f":"COUNTIFS(Tableau1[Date Arrivée],Statistique!$Y$2,Tableau1[Nat],Statistique!C9)","v":0},{"$f":"COUNTIFS(Tableau1[Date Arrivée],Statistique!$Z$2,Tableau1[Nat],Statistique!C9)","v":0},{"$f":"COUNTIFS(Tableau1[Date Arrivée],Statistique!$AA$2,Tableau1[Nat],Statistique!C9)","v":0},{"$f":"COUNTIFS(Tableau1[Date Arrivée],Statistique!$AB$2,Tableau1[Nat],Statistique!C9)","v":0},{"$f":"COUNTIFS(Tableau1[Date Arrivée],Statistique!$AC$2,Tableau1[Nat],Statistique!C9)","v":0},{"$f":"COUNTIFS(Tableau1[Date Arrivée],Statistique!$AD$2,Tableau1[Nat],Statistique!C9)","v":0},{"$f":"COUNTIFS(Tableau1[Date Arrivée],Statistique!$AE$2,Tableau1[Nat],Statistique!C9)","v":0},{"$f":"COUNTIFS(Tableau1[Date Arrivée],Statistique!$AF$2,Tableau1[Nat],Statistique!C9)","v":0},{"$f":"COUNTIFS(Tableau1[Date Arrivée],Statistique!$AG$2,Tableau1[Nat],Statistique!C9)","v":0},{"$f":"COUNTIFS(Tableau1[Date Arrivée],Statistique!$AH$2,Tableau1[Nat],Statistique!C9)","v":0},null,null,null,null,null,null,null,null,null,null,null,null,null,null,null,null,null,null,null,2026,"Août",null,"La Marche Verte",null,{"$f":"DATE(BF1,11,6)","v":"2019-11-06"}]
[null,"Finlande","FN",{"$f":"COUNTIFS(Tableau1[Date Arrivée],Statistique!$D$2,Tableau1[Nat],Statistique!C10)","v":0},{"$f":"COUNTIFS(Tableau1[Date Arrivée],Statistique!$E$2,Tableau1[Nat],Statistique!C10)","v":0},{"$f":"COUNTIFS(Tableau1[Date Arrivée],Statistique!$F$2,Tableau1[Nat],Statistique!C10)","v":0},{"$f":"COUNTIFS(Tableau1[Date Arrivée],Statistique!$G$2,Tableau1[Nat],Statistique!C10)","v":0},{"$f":"COUNTIFS(Tableau1[Date Arrivée],Statistique!$H$2,Tableau1[Nat],Statistique!C10)","v":0},{"$f":"COUNTIFS(Tableau1[Date Arrivée],Statistique!$I$2,Tableau1[Nat],Statistique!C10)","v":0},{"$f":"COUNTIFS(Tableau1[Date Arrivée],Statistique!$J$2,Tableau1[Nat],Statistique!C10)","v":0},{"$f":"COUNTIFS(Tableau1[Date Arrivée],Statistique!$K$2,Tableau1[Nat],Statistique!C10)","v":0},{"$f":"COUNTIFS(Tableau1[Date Arrivée],Statistique!$L$2,Tableau1[Nat],Statistique!C10)","v":0},{"$f":"COUNTIFS(Tableau1[Date Arrivée],Statistique!$M$2,Tableau1[Nat],Statistique!C10)","v":0},{"$f":"COUNTIFS(Tableau1[Date Arrivée],Statistique!$N$2,Tableau1[Nat],Statistique!C10)","v":0},{"$f":"COUNTIFS(Tableau1[Date Arrivée],Statistique!$O$2,Tableau1[Nat],Statistique!C10)","v":0},{"$f":"COUNTIFS(Tableau1[Date Arrivée],Statistique!$P$2,Tableau1[Nat],Statistique!C10)","v":0},{"$f":"COUNTIFS(Tableau1[Date Arrivée],Statistique!$Q$2,Tableau1[Nat],Statistique!C10)","v":0},{"$f":"COUNTIFS(Tableau1[Date Arrivée],Statistique!$R$2,Tableau1[Nat],Statistique!C10)","v":0},{"$f":"COUNTIFS(Tableau1[Date Arrivée],Statistique!$S$2,Tableau1[Nat],Statistique!C10)","v":0},{"$f":"COUNTIFS(Tableau1[Date Arrivée],Statistique!$T$2,Tableau1[Nat],Statistique!C10)","v":0},{"$f":"COUNTIFS(Tableau1[Date Arrivée],Statistique!$U$2,Tableau1[Nat],Statistique!C10)","v":0},{"$f":"COUNTIFS(Tableau1[Date Arrivée],Statistique!$V$2,Tableau1[Nat],Statistique!C10)","v":0},{"$f":"COUNTIFS(Tableau1[Date Arrivée],Statistique!$W$2,Tableau1[Nat],Statistique!C10)","v":0},{"$f":"COUNTIFS(Tableau1[Date Arrivée],Statistique!$X$2,Tableau1[Nat],Statistique!C10)","v":0},{"$f":"COUNTIFS(Tableau1[Date Arrivée],Statistique!$Y$2,Tableau1[Nat],Statistique!C10)","v":0},{"$f":"COUNTIFS(Tableau1[Date Arrivée],Statistique!$Z$2,Tableau1[Nat],Statistique!C10)","v":0},{"$f":"COUNTIFS(Tableau1[Date Arrivée],Statistique!$AA$2,Tableau1[Nat],Statistique!C10)","v":0},{"$f":"COUNTIFS(Tableau1[Date Arrivée],Statistique!$AB$2,Tableau1[Nat],Statistique!C10)","v":0},{"$f":"COUNTIFS(Tableau1[Date Arrivée],Statistique!$AC$2,Tableau1[Nat],Statistique!C10)","v":0},{"$f":"COUNTIFS(Tableau1[Date Arrivée],Statistique!$AD$2,Tableau1[Nat],Statistique!C10)","v":0},{"$f":"COUNTIFS(Tableau1[Date Arrivée],Statistique!$AE$2,Tableau1[Nat],Statistique!C10)","v":0},{"$f":"COUNTIFS(Tableau1[Date Arrivée],Statistique!$AF$2,Tableau1[Nat],Statistique!C10)","v":0},{"$f":"COUNTIFS(Tableau1[Date Arrivée],Statistique!$AG$2,Tableau1[Nat],Statistique!C10)","v":0},{"$f":"COUNTIFS(Tableau1[Date Arrivée],Statistique!$AH$2,Tableau1[Nat],Statistique!C10)","v":0},null,null,null,null,null,null,null,null,null,null,null,null,null,null,null,null,null,null,null,2027,"Septembre",null,"Fête de l'indépendance",null,{"$f":"DATE(BF1,11,18)","v":"2019-11-18"}]
[null,"Norvège","NO",{"$f":"COUNTIFS(Tableau1[Date Arrivée],Statistique!$D$2,Tableau1[Nat],Statistique!C11)","v":0},{"$f":"COUNTIFS(Tableau1[Date Arrivée],Statistique!$E$2,Tableau1[Nat],Statistique!C11)","v":0},{"$f":"COUNTIFS(Tableau1[Date Arrivée],Statistique!$F$2,Tableau1[Nat],Statistique!C11)","v":0},{"$f":"COUNTIFS(Tableau1[Date Arrivée],Statistique!$G$2,Tableau1[Nat],Statistique!C11)","v":0},{"$f":"COUNTIFS(Tableau1[Date Arrivée],Statistique!$H$2,Tableau1[Nat],Statistique!C11)","v":0},{"$f":"COUNTIFS(Tableau1[Date Arrivée],Statistique!$I$2,Tableau1[Nat],Statistique!C11)","v":0},{"$f":"COUNTIFS(Tableau1[Date Arrivée],Statistique!$J$2,Tableau1[Nat],Statistique!C11)","v":0},{"$f":"COUNTIFS(Tableau1[Date Arrivée],Statistique!$K$2,Tableau1[Nat],Statistique!C11)","v":0},{"$f":"COUNTIFS(Tableau1[Date Arrivée],Statistique!$L$2,Tableau1[Nat],Statistique!C11)","v":0},{"$f":"COUNTIFS(Tableau1[Date Arrivée],Statistique!$M$2,Tableau1[Nat],Statistique!C11)","v":0},{"$f":"COUNTIFS(Tableau1[Date Arrivée],Statistique!$N$2,Tableau1[Nat],Statistique!C11)","v":0},{"$f":"COUNTIFS(Tableau1[Date Arrivée],Statistique!$O$2,Tableau1[Nat],Statistique!C11)","v":0},{"$f":"COUNTIFS(Tableau1[Date Arrivée],Statistique!$P$2,Tableau1[Nat],Statistique!C11)","v":0},{"$f":"COUNTIFS(Tableau1[Date Arrivée],Statistique!$Q$2,Tableau1[Nat],Statistique!C11)","v":0},{"$f":"COUNTIFS(Tableau1[Date Arrivée],Statistique!$R$2,Tableau1[Nat],Statistique!C11)","v":0},{"$f":"COUNTIFS(Tableau1[Date Arrivée],Statistique!$S$2,Tableau1[Nat],Statistique!C11)","v":0},{"$f":"COUNTIFS(Tableau1[Date Arrivée],Statistique!$T$2,Tableau1[Nat],Statistique!C11)","v":0},{"$f":"COUNTIFS(Tableau1[Date Arrivée],Statistique!$U$2,Tableau1[Nat],Statistique!C11)","v":0},{"$f":"COUNTIFS(Tableau1[Date Arrivée],Statistique!$V$2,Tableau1[Nat],Statistique!C11)","v":0},{"$f":"COUNTIFS(Tableau1[Date Arrivée],Statistique!$W$2,Tableau1[Nat],Statistique!C11)","v":0},{"$f":"COUNTIFS(Tableau1[Date Arrivée],Statistique!$X$2,Tableau1[Nat],Statistique!C11)","v":0},{"$f":"COUNTIFS(Tableau1[Date Arrivée],Statistique!$Y$2,Tableau1[Nat],Statistique!C11)","v":0},{"$f":"COUNTIFS(Tableau1[Date Arrivée],Statistique!$Z$2,Tableau1[Nat],Statistique!C11)","v":0},{"$f":"COUNTIFS(Tableau1[Date Arrivée],Statistique!$AA$2,Tableau1[Nat],Statistique!C11)","v":0},{"$f":"COUNTIFS(Tableau1[Date Arrivée],Statistique!$AB$2,Tableau1[Nat],Statistique!C11)","v":0},{"$f":"COUNTIFS(Tableau1[Date Arrivée],Statistique!$AC$2,Tableau1[Nat],Statistique!C11)","v":0},{"$f":"COUNTIFS(Tableau1[Date Arrivée],Statistique!$AD$2,Tableau1[Nat],Statistique!C11)","v":0},{"$f":"COUNTIFS(Tableau1[Date Arrivée],Statistique!$AE$2,Tableau1[Nat],Statistique!C11)","v":0},{"$f":"COUNTIFS(Tableau1[Date Arrivée],Statistique!$AF$2,Tableau1[Nat],Statistique!C11)","v":0},{"$f":"COUNTIFS(Tableau1[Date Arrivée],Statistique!$AG$2,Tableau1[Nat],Statistique!C11)","v":0},{"$f":"COUNTIFS(Tableau1[Date Arrivée],Statistique!$AH$2,Tableau1[Nat],Statistique!C11)","v":0},null,null,null,null,null,null,null,null,null,null,null,null,null,null,null,null,null,null,null,2028,"Octobre"]
[null,"Autriche","AT",{"$f":"COUNTIFS(Tableau1[Date Arrivée],Statistique!$D$2,Tableau1[Nat],Statistique!C12)","v":0},{"$f":"COUNTIFS(Tableau1[Date Arrivée],Statistique!$E$2,Tableau1[Nat],Statistique!C12)","v":0},{"$f":"COUNTIFS(Tableau1[Date Arrivée],Statistique!$F$2,Tableau1[Nat],Statistique!C12)","v":0},{"$f":"COUNTIFS(Tableau1[Date Arrivée],Statistique!$G$2,Tableau1[Nat],Statistique!C12)","v":0},{"$f":"COUNTIFS(Tableau1[Date Arrivée],Statistique!$H$2,Tableau1[Nat],Statistique!C12)","v":0},{"$f":"COUNTIFS(Tableau1[Date Arrivée],Statistique!$I$2,Tableau1[Nat],Statistique!C12)","v":0},{"$f":"COUNTIFS(Tableau1[Date Arrivée],Statistique!$J$2,Tableau1[Nat],Statistique!C12)","v":0},{"$f":"COUNTIFS(Tableau1[Date Arrivée],Statistique!$K$2,Tableau1[Nat],Statistique!C12)","v":0},{"$f":"COUNTIFS(Tableau1[Date Arrivée],Statistique!$L$2,Tableau1[Nat],Statistique!C12)","v":0},{"$f":"COUNTIFS(Tableau1[Date Arrivée],Statistique!$M$2,Tableau1[Nat],Statistique!C12)","v":0},{"$f":"COUNTIFS(Tableau1[Date Arrivée],Statistique!$N$2,Tableau1[Nat],Statistique!C12)","v":0},{"$f":"COUNTIFS(Tableau1[Date Arrivée],Statistique!$O$2,Tableau1[Nat],Statistique!C12)","v":0},{"$f":"COUNTIFS(Tableau1[Date Arrivée],Statistique!$P$2,Tableau1[Nat],Statistique!C12)","v":0},{"$f":"COUNTIFS(Tableau1[Date Arrivée],Statistique!$Q$2,Tableau1[Nat],Statistique!C12)","v":0},{"$f":"COUNTIFS(Tableau1[Date Arrivée],Statistique!$R$2,Tableau1[Nat],Statistique!C12)","v":0},{"$f":"COUNTIFS(Tableau1[Date Arrivée],Statistique!$S$2,Tableau1[Nat],Statistique!C12)","v":0},{"$f":"COUNTIFS(Tableau1[Date Arrivée],Statistique!$T$2,Tableau1[Nat],Statistique!C12)","v":0},{"$f":"COUNTIFS(Tableau1[Date Arrivée],Statistique!$U$2,Tableau1[Nat],Statistique!C12)","v":0},{"$f":"COUNTIFS(Tableau1[Date Arrivée],Statistique!$V$2,Tableau1[Nat],Statistique!C12)","v":0},{"$f":"COUNTIFS(Tableau1[Date Arrivée],Statistique!$W$2,Tableau1[Nat],Statistique!C12)","v":0},{"$f":"COUNTIFS(Tableau1[Date Arrivée],Statistique!$X$2,Tableau1[Nat],Statistique!C12)","v":0},{"$f":"COUNTIFS(Tableau1[Date Arrivée],Statistique!$Y$2,Tableau1[Nat],Statistique!C12)","v":0},{"$f":"COUNTIFS(Tableau1[Date Arrivée],Statistique!$Z$2,Tableau1[Nat],Statistique!C12)","v":0},{"$f":"COUNTIFS(Tableau1[Date Arrivée],Statistique!$AA$2,Tableau1[Nat],Statistique!C12)","v":0},{"$f":"COUNTIFS(Tableau1[Date Arrivée],Statistique!$AB$2,Tableau1[Nat],Statistique!C12)","v":0},{"$f":"COUNTIFS(Tableau1[Date Arrivée],Statistique!$AC$2,Tableau1[Nat],Statistique!C12)","v":0},{"$f":"COUNTIFS(Tableau1[Date Arrivée],Statistique!$AD$2,Tableau1[Nat],Statistique!C12)","v":0},{"$f":"COUNTIFS(Tableau1[Date Arrivée],Statistique!$AE$2,Tableau1[Nat],Statistique!C12)","v":0},{"$f":"COUNTIFS(Tableau1[Date Arrivée],Statistique!$AF$2,Tableau1[Nat],Statistique!C12)","v":0},{"$f":"COUNTIFS(Tableau1[Date Arrivée],Statistique!$AG$2,Tableau1[Nat],Statistique!C12)","v":0},{"$f":"COUNTIFS(Tableau1[Date Arrivée],Statistique!$AH$2,Tableau1[Nat],Statistique!C12)","v":0},null,null,null,null,null,null,null,null,null,null,null,null,null,null,null,null,null,null,null,2029,"Novembre"]
[null,"Portugal","PT",{"$f":"COUNTIFS(Tableau1[Date Arrivée],Statistique!$D$2,Tableau1[Nat],Statistique!C13)","v":0},{"$f":"COUNTIFS(Tableau1[Date Arrivée],Statistique!$E$2,Tableau1[Nat],Statistique!C13)","v":0},{"$f":"COUNTIFS(Tableau1[Date Arrivée],Statistique!$F$2,Tableau1[Nat],Statistique!C13)","v":0},{"$f":"COUNTIFS(Tableau1[Date Arrivée],Statistique!$G$2,Tableau1[Nat],Statistique!C13)","v":0},{"$f":"COUNTIFS(Tableau1[Date Arrivée],Statistique!$H$2,Tableau1[Nat],Statistique!C13)","v":0},{"$f":"COUNTIFS(Tableau1[Date Arrivée],Statistique!$I$2,Tableau1[Nat],Statistique!C13)","v":0},{"$f":"COUNTIFS(Tableau1[Date Arrivée],Statistique!$J$2,Tableau1[Nat],Statistique!C13)","v":0},{"$f":"COUNTIFS(Tableau1[Date Arrivée],Statistique!$K$2,Tableau1[Nat],Statistique!C13)","v":0},{"$f":"COUNTIFS(Tableau1[Date Arrivée],Statistique!$L$2,Tableau1[Nat],Statistique!C13)","v":0},{"$f":"COUNTIFS(Tableau1[Date Arrivée],Statistique!$M$2,Tableau1[Nat],Statistique!C13)","v":0},{"$f":"COUNTIFS(Tableau1[Date Arrivée],Statistique!$N$2,Tableau1[Nat],Statistique!C13)","v":0},{"$f":"COUNTIFS(Tableau1[Date Arrivée],Statistique!$O$2,Tableau1[Nat],Statistique!C13)","v":0},{"$f":"COUNTIFS(Tableau1[Date Arrivée],Statistique!$P$2,Tableau1[Nat],Statistique!C13)","v":0},{"$f":"COUNTIFS(Tableau1[Date Arrivée],Statistique!$Q$2,Tableau1[Nat],Statistique!C13)","v":0},{"$f":"COUNTIFS(Tableau1[Date Arrivée],Statistique!$R$2,Tableau1[Nat],Statistique!C13)","v":0},{"$f":"COUNTIFS(Tableau1[Date Arrivée],Statistique!$S$2,Tableau1[Nat],Statistique!C13)","v":0},{"$f":"COUNTIFS(Tableau1[Date Arrivée],Statistique!$T$2,Tableau1[Nat],Statistique!C13)","v":0},{"$f":"COUNTIFS(Tableau1[Date Arrivée],Statistique!$U$2,Tableau1[Nat],Statistique!C13)","v":0},{"$f":"COUNTIFS(Tableau1[Date Arrivée],Statistique!$V$2,Tableau1[Nat],Statistique!C13)","v":0},{"$f":"COUNTIFS(Tableau1[Date Arrivée],Statistique!$W$2,Tableau1[Nat],Statistique!C13)","v":0},{"$f":"COUNTIFS(Tableau1[Date Arrivée],Statistique!$X$2,Tableau1[Nat],Statistique!C13)","v":0},{"$f":"COUNTIFS(Tableau1[Date Arrivée],Statistique!$Y$2,Tableau1[Nat],Statistique!C13)","v":0},{"$f":"COUNTIFS(Tableau1[Date Arrivée],Statistique!$Z$2,Tableau1[Nat],Statistique!C13)","v":0},{"$f":"COUNTIFS(Tableau1[Date Arrivée],Statistique!$AA$2,Tableau1[Nat],Statistique!C13)","v":0},{"$f":"COUNTIFS(Tableau1[Date Arrivée],Statistique!$AB$2,Tableau1[Nat],Statistique!C13)","v":0},{"$f":"COUNTIFS(Tableau1[Date Arrivée],Statistique!$AC$2,Tableau1[Nat],Statistique!C13)","v":0},{"$f":"COUNTIFS(Tableau1[Date Arrivée],Statistique!$AD$2,Tableau1[Nat],Statistique!C13)","v":0},{"$f":"COUNTIFS(Tableau1[Date Arrivée],Statistique!$AE$2,Tableau1[Nat],Statistique!C13)","v":0},{"$f":"COUNTIFS(Tableau1[Date Arrivée],Statistique!$AF$2,Tableau1[Nat],Statistique!C13)","v":0},{"$f":"COUNTIFS(Tableau1[Date Arrivée],Statistique!$AG$2,Tableau1[Nat],Statistique!C13)","v":0},{"$f":"COUNTIFS(Tableau1[Date Arrivée],Statistique!$AH$2,Tableau1[Nat],Statistique!C13)","v":0},null,null,null,null,null,null,null,null,null,null,null,null,null,null,null,null,null,null,null,2030,"Décembre"]
[null,"Hollande","NL",{"$f":"COUNTIFS(Tableau1[Date Arrivée],Statistique!$D$2,Tableau1[Nat],Statistique!C14)","v":0},{"$f":"COUNTIFS(Tableau1[Date Arrivée],Statistique!$E$2,Tableau1[Nat],Statistique!C14)","v":0},{"$f":"COUNTIFS(Tableau1[Date Arrivée],Statistique!$F$2,Tableau1[Nat],Statistique!C14)","v":0},{"$f":"COUNTIFS(Tableau1[Date Arrivée],Statistique!$G$2,Tableau1[Nat],Statistique!C14)","v":0},{"$f":"COUNTIFS(Tableau1[Date Arrivée],Statistique!$H$2,Tableau1[Nat],Statistique!C14)","v":0},{"$f":"COUNTIFS(Tableau1[Date Arrivée],Statistique!$I$2,Tableau1[Nat],Statistique!C14)","v":0},{"$f":"COUNTIFS(Tableau1[Date Arrivée],Statistique!$J$2,Tableau1[Nat],Statistique!C14)","v":0},{"$f":"COUNTIFS(Tableau1[Date Arrivée],Statistique!$K$2,Tableau1[Nat],Statistique!C14)","v":0},{"$f":"COUNTIFS(Tableau1[Date Arrivée],Statistique!$L$2,Tableau1[Nat],Statistique!C14)","v":0},{"$f":"COUNTIFS(Tableau1[Date Arrivée],Statistique!$M$2,Tableau1[Nat],Statistique!C14)","v":0},{"$f":"COUNTIFS(Tableau1[Date Arrivée],Statistique!$N$2,Tableau1[Nat],Statistique!C14)","v":0},{"$f":"COUNTIFS(Tableau1[Date Arrivée],Statistique!$O$2,Tableau1[Nat],Statistique!C14)","v":0},{"$f":"COUNTIFS(Tableau1[Date Arrivée],Statistique!$P$2,Tableau1[Nat],Statistique!C14)","v":0},{"$f":"COUNTIFS(Tableau1[Date Arrivée],Statistique!$Q$2,Tableau1[Nat],Statistique!C14)","v":0},{"$f":"COUNTIFS(Tableau1[Date Arrivée],Statistique!$R$2,Tableau1[Nat],Statistique!C14)","v":0},{"$f":"COUNTIFS(Tableau1[Date Arrivée],Statistique!$S$2,Tableau1[Nat],Statistique!C14)","v":0},{"$f":"COUNTIFS(Tableau1[Date Arrivée],Statistique!$T$2,Tableau1[Nat],Statistique!C14)","v":0},{"$f":"COUNTIFS(Tableau1[Date Arrivée],Statistique!$U$2,Tableau1[Nat],Statistique!C14)","v":0},{"$f":"COUNTIFS(Tableau1[Date Arrivée],Statistique!$V$2,Tableau1[Nat],Statistique!C14)","v":0},{"$f":"COUNTIFS(Tableau1[Date Arrivée],Statistique!$W$2,Tableau1[Nat],Statistique!C14)","v":0},{"$f":"COUNTIFS(Tableau1[Date Arrivée],Statistique!$X$2,Tableau1[Nat],Statistique!C14)","v":0},{"$f":"COUNTIFS(Tableau1[Date Arrivée],Statistique!$Y$2,Tableau1[Nat],Statistique!C14)","v":0},{"$f":"COUNTIFS(Tableau1[Date Arrivée],Statistique!$Z$2,Tableau1[Nat],Statistique!C14)","v":0},{"$f":"COUNTIFS(Tableau1[Date Arrivée],Statistique!$AA$2,Tableau1[Nat],Statistique!C14)","v":1},{"$f":"COUNTIFS(Tableau1[Date Arrivée],Statistique!$AB$2,Tableau1[Nat],Statistique!C14)","v":0},{"$f":"COUNTIFS(Tableau1[Date Arrivée],Statistique!$AC$2,Tableau1[Nat],Statistique!C14)","v":0},{"$f":"COUNTIFS(Tableau1[Date Arrivée],Statistique!$AD$2,Tableau1[Nat],Statistique!C14)","v":0},{"$f":"COUNTIFS(Tableau1[Date Arrivée],Statistique!$AE$2,Tableau1[Nat],Statistique!C14)","v":0},{"$f":"COUNTIFS(Tableau1[Date Arrivée],Statistique!$AF$2,Tableau1[Nat],Statistique!C14)","v":0},{"$f":"COUNTIFS(Tableau1[Date Arrivée],Statistique!$AG$2,Tableau1[Nat],Statistique!C14)","v":0},{"$f":"COUNTIFS(Tableau1[Date Arrivée],Statistique!$AH$2,Tableau1[Nat],Statistique!C14)","v":0}]
[null,"Belgique","BE",{"$f":"COUNTIFS(Tableau1[Date Arrivée],Statistique!$D$2,Tableau1[Nat],Statistique!C15)","v":0},{"$f":"COUNTIFS(Tableau1[Date Arrivée],Statistique!$E$2,Tableau1[Nat],Statistique!C15)","v":0},{"$f":"COUNTIFS(Tableau1[Date Arrivée],Statistique!$F$2,Tableau1[Nat],Statistique!C15)","v":0},{"$f":"COUNTIFS(Tableau1[Date Arrivée],Statistique!$G$2,Tableau1[Nat],Statistique!C15)","v":0},{"$f":"COUNTIFS(Tableau1[Date Arrivée],Statistique!$H$2,Tableau1[Nat],Statistique!C15)","v":0},{"$f":"COUNTIFS(Tableau1[Date Arrivée],Statistique!$I$2,Tableau1[Nat],Statistique!C15)","v":0},{"$f":"COUNTIFS(Tableau1[Date Arrivée],Statistique!$J$2,Tableau1[Nat],Statistique!C15)","v":0},{"$f":"COUNTIFS(Tableau1[Date Arrivée],Statistique!$K$2,Tableau1[Nat],Statistique!C15)","v":0},{"$f":"COUNTIFS(Tableau1[Date Arrivée],Statistique!$L$2,Tableau1[Nat],Statistique!C15)","v":0},{"$f":"COUNTIFS(Tableau1[Date Arrivée],Statistique!$M$2,Tableau1[Nat],Statistique!C15)","v":0},{"$f":"COUNTIFS(Tableau1[Date Arrivée],Statistique!$N$2,Tableau1[Nat],Statistique!C15)","v":0},{"$f":"COUNTIFS(Tableau1[Date Arrivée],Statistique!$O$2,Tableau1[Nat],Statistique!C15)","v":0},{"$f":"COUNTIFS(Tableau1[Date Arrivée],Statistique!$P$2,Tableau1[Nat],Statistique!C15)","v":0},{"$f":"COUNTIFS(Tableau1[Date Arrivée],Statistique!$Q$2,Tableau1[Nat],Statistique!C15)","v":0},{"$f":"COUNTIFS(Tableau1[Date Arrivée],Statistique!$R$2,Tableau1[Nat],Statistique!C15)","v":0},{"$f":"COUNTIFS(Tableau1[Date Arrivée],Statistique!$S$2,Tableau1[Nat],Statistique!C15)","v":0},{"$f":"COUNTIFS(Tableau1[Date Arrivée],Statistique!$T$2,Tableau1[Nat],Statistique!C15)","v":0},{"$f":"COUNTIFS(Tableau1[Date Arrivée],Statistique!$U$2,Tableau1[Nat],Statistique!C15)","v":0},{"$f":"COUNTIFS(Tableau1[Date Arrivée],Statistique!$V$2,Tableau1[Nat],Statistique!C15)","v":0},{"$f":"COUNTIFS(Tableau1[Date Arrivée],Statistique!$W$2,Tableau1[Nat],Statistique!C15)","v":0},{"$f":"COUNTIFS(Tableau1[Date Arrivée],Statistique!$X$2,Tableau1[Nat],Statistique!C15)","v":0},{"$f":"COUNTIFS(Tableau1[Date Arrivée],Statistique!$Y$2,Tableau1[Nat],Statistique!C15)","v":0},{"$f":"COUNTIFS(Tableau1[Date Arrivée],Statistique!$Z$2,Tableau1[Nat],Statistique!C15)","v":0},{"$f":"COUNTIFS(Tableau1[Date Arrivée],Statistique!$AA$2,Tableau1[Nat],Statistique!C15)","v":0},{"$f":"COUNTIFS(Tableau1[Date Arrivée],Statistique!$AB$2,Tableau1[Nat],Statistique!C15)","v":0},{"$f":"COUNTIFS(Tableau1[Date Arrivée],Statistique!$AC$2,Tableau1[Nat],Statistique!C15)","v":0},{"$f":"COUNTIFS(Tableau1[Date Arrivée],Statistique!$AD$2,Tableau1[Nat],Statistique!C15)","v":0},{"$f":"COUNTIFS(Tableau1[Date Arrivée],Statistique!$AE$2,Tableau1[Nat],Statistique!C15)","v":0},{"$f":"COUNTIFS(Tableau1[Date Arrivée],Statistique!$AF$2,Tableau1[Nat],Statistique!C15)","v":0},{"$f":"COUNTIFS(Tableau1[Date Arrivée],Statistique!$AG$2,Tableau1[Nat],Statistique!C15)","v":0},{"$f":"COUNTIFS(Tableau1[Date Arrivée],Statistique!$AH$2,Tableau1[Nat],Statistique!C15)","v":0}]
[null,"Suisse","CH",{"$f":"COUNTIFS(Tableau1[Date Arrivée],Statistique!$D$2,Tableau1[Nat],Statistique!C16)","v":0},{"$f":"COUNTIFS(Tableau1[Date Arrivée],Statistique!$E$2,Tableau1[Nat],Statistique!C16)","v":0},{"$f":"COUNTIFS(Tableau1[Date Arrivée],Statistique!$F$2,Tableau1[Nat],Statistique!C16)","v":0},{"$f":"COUNTIFS(Tableau1[Date Arrivée],Statistique!$G$2,Tableau1[Nat],Statistique!C16)","v":0},{"$f":"COUNTIFS(Tableau1[Date Arrivée],Statistique!$H$2,Tableau1[Nat],Statistique!C16)","v":0},{"$f":"COUNTIFS(Tableau1[Date Arrivée],Statistique!$I$2,Tableau1[Nat],Statistique!C16)","v":0},{"$f":"COUNTIFS(Tableau1[Date Arrivée],Statistique!$J$2,Tableau1[Nat],Statistique!C16)","v":0},{"$f":"COUNTIFS(Tableau1[Date Arrivée],Statistique!$K$2,Tableau1[Nat],Statistique!C16)","v":0},{"$f":"COUNTIFS(Tableau1[Date Arrivée],Statistique!$L$2,Tableau1[Nat],Statistique!C16)","v":0},{"$f":"COUNTIFS(Tableau1[Date Arrivée],Statistique!$M$2,Tableau1[Nat],Statistique!C16)","v":0},{"$f":"COUNTIFS(Tableau1[Date Arrivée],Statistique!$N$2,Tableau1[Nat],Statistique!C16)","v":0},{"$f":"COUNTIFS(Tableau1[Date Arrivée],Statistique!$O$2,Tableau1[Nat],Statistique!C16)","v":0},{"$f":"COUNTIFS(Tableau1[Date Arrivée],Statistique!$P$2,Tableau1[Nat],Statistique!C16)","v":0},{"$f":"COUNTIFS(Tableau1[Date Arrivée],Statistique!$Q$2,Tableau1[Nat],Statistique!C16)","v":0},{"$f":"COUNTIFS(Tableau1[Date Arrivée],Statistique!$R$2,Tableau1[Nat],Statistique!C16)","v":0},{"$f":"COUNTIFS(Tableau1[Date Arrivée],Statistique!$S$2,Tableau1[Nat],Statistique!C16)","v":0},{"$f":"COUNTIFS(Tableau1[Date Arrivée],Statistique!$T$2,Tableau1[Nat],Statistique!C16)","v":0},{"$f":"COUNTIFS(Tableau1[Date Arrivée],Statistique!$U$2,Tableau1[Nat],Statistique!C16)","v":0},{"$f":"COUNTIFS(Tableau1[Date Arrivée],Statistique!$V$2,Tableau1[Nat],Statistique!C16)","v":0},{"$f":"COUNTIFS(Tableau1[Date Arrivée],Statistique!$W$2,Tableau1[Nat],Statistique!C16)","v":0},{"$f":"COUNTIFS(Tableau1[Date Arrivée],Statistique!$X$2,Tableau1[Nat],Statistique!C16)","v":0},{"$f":"COUNTIFS(Tableau1[Date Arrivée],Statistique!$Y$2,Tableau1[Nat],Statistique!C16)","v":0},{"$f":"COUNTIFS(Tableau1[Date Arrivée],Statistique!$Z$2,Tableau1[Nat],Statistique!C16)","v":0},{"$f":"COUNTIFS(Tableau1[Date Arrivée],Statistique!$AA$2,Tableau1[Nat],Statistique!C16)","v":0},{"$f":"COUNTIFS(Tableau1[Date Arrivée],Statistique!$AB$2,Tableau1[Nat],Statistique!C16)","v":0},{"$f":"COUNTIFS(Tableau1[Date Arrivée],Statistique!$AC$2,Tableau1[Nat],Statistique!C16)","v":0},{"$f":"COUNTIFS(Tableau1[Date Arrivée],Statistique!$AD$2,Tableau1[Nat],Statistique!C16)","v":0},{"$f":"COUNTIFS(Tableau1[Date Arrivée],Statistique!$AE$2,Tableau1[Nat],Statistique!C16)","v":0},{"$f":"COUNTIFS(Tableau1[Date Arrivée],Statistique!$AF$2,Tableau1[Nat],Statistique!C16)","v":0},{"$f":"COUNTIFS(Tableau1[Date Arrivée],Statistique!$AG$2,Tableau1[Nat],Statistique!C16)","v":0},{"$f":"COUNTIFS(Tableau1[Date Arrivée],Statistique!$AH$2,Tableau1[Nat],Statistique!C16)","v":0}]
[null,"Hongrie","HU",{"$f":"COUNTIFS(Tableau1[Date Arrivée],Statistique!$D$2,Tableau1[Nat],Statistique!C17)","v":0},{"$f":"COUNTIFS(Tableau1[Date Arrivée],Statistique!$E$2,Tableau1[Nat],Statistique!C17)","v":0},{"$f":"COUNTIFS(Tableau1[Date Arrivée],Statistique!$F$2,Tableau1[Nat],Statistique!C17)","v":0},{"$f":"COUNTIFS(Tableau1[Date Arrivée],Statistique!$G$2,Tableau1[Nat],Statistique!C17)","v":0},{"$f":"COUNTIFS(Tableau1[Date Arrivée],Statistique!$H$2,Tableau1[Nat],Statistique!C17)","v":0},{"$f":"COUNTIFS(Tableau1[Date Arrivée],Statistique!$I$2,Tableau1[Nat],Statistique!C17)","v":0},{"$f":"COUNTIFS(Tableau1[Date Arrivée],Statistique!$J$2,Tableau1[Nat],Statistique!C17)","v":0},{"$f":"COUNTIFS(Tableau1[Date Arrivée],Statistique!$K$2,Tableau1[Nat],Statistique!C17)","v":0},{"$f":"COUNTIFS(Tableau1[Date Arrivée],Statistique!$L$2,Tableau1[Nat],Statistique!C17)","v":0},{"$f":"COUNTIFS(Tableau1[Date Arrivée],Statistique!$M$2,Tableau1[Nat],Statistique!C17)","v":0},{"$f":"COUNTIFS(Tableau1[Date Arrivée],Statistique!$N$2,Tableau1[Nat],Statistique!C17)","v":0},{"$f":"COUNTIFS(Tableau1[Date Arrivée],Statistique!$O$2,Tableau1[Nat],Statistique!C17)","v":0},{"$f":"COUNTIFS(Tableau1[Date Arrivée],Statistique!$P$2,Tableau1[Nat],Statistique!C17)","v":0},{"$f":"COUNTIFS(Tableau1[Date Arrivée],Statistique!$Q$2,Tableau1[Nat],Statistique!C17)","v":0},{"$f":"COUNTIFS(Tableau1[Date Arrivée],Statistique!$R$2,Tableau1[Nat],Statistique!C17)","v":0},{"$f":"COUNTIFS(Tableau1[Date Arrivée],Statistique!$S$2,Tableau1[Nat],Statistique!C17)","v":0},{"$f":"COUNTIFS(Tableau1[Date Arrivée],Statistique!$T$2,Tableau1[Nat],Statistique!C17)","v":0},{"$f":"COUNTIFS(Tableau1[Date Arrivée],Statistique!$U$2,Tableau1[Nat],Statistique!C17)","v":0},{"$f":"COUNTIFS(Tableau1[Date Arrivée],Statistique!$V$2,Tableau1[Nat],Statistique!C17)","v":0},{"$f":"COUNTIFS(Tableau1[Date Arrivée],Statistique!$W$2,Tableau1[Nat],Statistique!C17)","v":0},{"$f":"COUNTIFS(Tableau1[Date Arrivée],Statistique!$X$2,Tableau1[Nat],Statistique!C17)","v":0},{"$f":"COUNTIFS(Tableau1[Date Arrivée],Statistique!$Y$2,Tableau1[Nat],Statistique!C17)","v":0},{"$f":"COUNTIFS(Tableau1[Date Arrivée],Statistique!$Z$2,Tableau1[Nat],Statistique!C17)","v":0},{"$f":"COUNTIFS(Tableau1[Date Arrivée],Statistique!$AA$2,Tableau1[Nat],Statistique!C17)","v":0},{"$f":"COUNTIFS(Tableau1[Date Arrivée],Statistique!$AB$2,Tableau1[Nat],Statistique!C17)","v":0},{"$f":"COUNTIFS(Tableau1[Date Arrivée],Statistique!$AC$2,Tableau1[Nat],Statistique!C17)","v":0},{"$f":"COUNTIFS(Tableau1[Date Arrivée],Statistique!$AD$2,Tableau1[Nat],Statistique!C17)","v":0},{"$f":"COUNTIFS(Tableau1[Date Arrivée],Statistique!$AE$2,Tableau1[Nat],Statistique!C17)","v":0},{"$f":"COUNTIFS(Tableau1[Date Arrivée],Statistique!$AF$2,Tableau1[Nat],Statistique!C17)","v":0},{"$f":"COUNTIFS(Tableau1[Date Arrivée],Statistique!$AG$2,Tableau1[Nat],Statistique!C17)","v":0},{"$f":"COUNTIFS(Tableau1[Date Arrivée],Statistique!$AH$2,Tableau1[Nat],Statistique!C17)","v":0}]
[null,"Russie","RU",{"$f":"COUNTIFS(Tableau1[Date Arrivée],Statistique!$D$2,Tableau1[Nat],Statistique!C18)","v":0},{"$f":"COUNTIFS(Tableau1[Date Arrivée],Statistique!$E$2,Tableau1[Nat],Statistique!C18)","v":0},{"$f":"COUNTIFS(Tableau1[Date Arrivée],Statistique!$F$2,Tableau1[Nat],Statistique!C18)","v":0},{"$f":"COUNTIFS(Tableau1[Date Arrivée],Statistique!$G$2,Tableau1[Nat],Statistique!C18)","v":0},{"$f":"COUNTIFS(Tableau1[Date Arrivée],Statistique!$H$2,Tableau1[Nat],Statistique!C18)","v":0},{"$f":"COUNTIFS(Tableau1[Date Arrivée],Statistique!$I$2,Tableau1[Nat],Statistique!C18)","v":0},{"$f":"COUNTIFS(Tableau1[Date Arrivée],Statistique!$J$2,Tableau1[Nat],Statistique!C18)","v":0},{"$f":"COUNTIFS(Tableau1[Date Arrivée],Statistique!$K$2,Tableau1[Nat],Statistique!C18)","v":0},{"$f":"COUNTIFS(Tableau1[Date Arrivée],Statistique!$L$2,Tableau1[Nat],Statistique!C18)","v":0},{"$f":"COUNTIFS(Tableau1[Date Arrivée],Statistique!$M$2,Tableau1[Nat],Statistique!C18)","v":0},{"$f":"COUNTIFS(Tableau1[Date Arrivée],Statistique!$N$2,Tableau1[Nat],Statistique!C18)","v":0},{"$f":"COUNTIFS(Tableau1[Date Arrivée],Statistique!$O$2,Tableau1[Nat],Statistique!C18)","v":0},{"$f":"COUNTIFS(Tableau1[Date Arrivée],Statistique!$P$2,Tableau1[Nat],Statistique!C18)","v":0},{"$f":"COUNTIFS(Tableau1[Date Arrivée],Statistique!$Q$2,Tableau1[Nat],Statistique!C18)","v":0},{"$f":"COUNTIFS(Tableau1[Date Arrivée],Statistique!$R$2,Tableau1[Nat],Statistique!C18)","v":0},{"$f":"COUNTIFS(Tableau1[Date Arrivée],Statistique!$S$2,Tableau1[Nat],Statistique!C18)","v":0},{"$f":"COUNTIFS(Tableau1[Date Arrivée],Statistique!$T$2,Tableau1[Nat],Statistique!C18)","v":0},{"$f":"COUNTIFS(Tableau1[Date Arrivée],Statistique!$U$2,Tableau1[Nat],Statistique!C18)","v":0},{"$f":"COUNTIFS(Tableau1[Date Arrivée],Statistique!$V$2,Tableau1[Nat],Statistique!C18)","v":0},{"$f":"COUNTIFS(Tableau1[Date Arrivée],Statistique!$W$2,Tableau1[Nat],Statistique!C18)","v":0},{"$f":"COUNTIFS(Tableau1[Date Arrivée],Statistique!$X$2,Tableau1[Nat],Statistique!C18)","v":0},{"$f":"COUNTIFS(Tableau1[Date Arrivée],Statistique!$Y$2,Tableau1[Nat],Statistique!C18)","v":0},{"$f":"COUNTIFS(Tableau1[Date Arrivée],Statistique!$Z$2,Tableau1[Nat],Statistique!C18)","v":0},{"$f":"COUNTIFS(Tableau1[Date Arrivée],Statistique!$AA$2,Tableau1[Nat],Statistique!C18)","v":0},{"$f":"COUNTIFS(Tableau1[Date Arrivée],Statistique!$AB$2,Tableau1[Nat],Statistique!C18)","v":0},{"$f":"COUNTIFS(Tableau1[Date Arrivée],Statistique!$AC$2,Tableau1[Nat],Statistique!C18)","v":0},{"$f":"COUNTIFS(Tableau1[Date Arrivée],Statistique!$AD$2,Tableau1[Nat],Statistique!C18)","v":0},{"$f":"COUNTIFS(Tableau1[Date Arrivée],Statistique!$AE$2,Tableau1[Nat],Statistique!C18)","v":0},{"$f":"COUNTIFS(Tableau1[Date Arrivée],Statistique!$AF$2,Tableau1[Nat],Statistique!C18)","v":0},{"$f":"COUNTIFS(Tableau1[Date Arrivée],Statistique!$AG$2,Tableau1[Nat],Statistique!C18)","v":0},{"$f":"COUNTIFS(Tableau1[Date Arrivée],Statistique!$AH$2,Tableau1[Nat],Statistique!C18)","v":0}]
[null,"Pologne","PO",{"$f":"COUNTIFS(Tableau1[Date Arrivée],Statistique!$D$2,Tableau1[Nat],Statistique!C19)","v":0},{"$f":"COUNTIFS(Tableau1[Date Arrivée],Statistique!$E$2,Tableau1[Nat],Statistique!C19)","v":0},{"$f":"COUNTIFS(Tableau1[Date Arrivée],Statistique!$F$2,Tableau1[Nat],Statistique!C19)","v":0},{"$f":"COUNTIFS(Tableau1[Date Arrivée],Statistique!$G$2,Tableau1[Nat],Statistique!C19)","v":0},{"$f":"COUNTIFS(Tableau1[Date Arrivée],Statistique!$H$2,Tableau1[Nat],Statistique!C19)","v":0},{"$f":"COUNTIFS(Tableau1[Date Arrivée],Statistique!$I$2,Tableau1[Nat],Statistique!C19)","v":0},{"$f":"COUNTIFS(Tableau1[Date Arrivée],Statistique!$J$2,Tableau1[Nat],Statistique!C19)","v":0},{"$f":"COUNTIFS(Tableau1[Date Arrivée],Statistique!$K$2,Tableau1[Nat],Statistique!C19)","v":0},{"$f":"COUNTIFS(Tableau1[Date Arrivée],Statistique!$L$2,Tableau1[Nat],Statistique!C19)","v":0},{"$f":"COUNTIFS(Tableau1[Date Arrivée],Statistique!$M$2,Tableau1[Nat],Statistique!C19)","v":0},{"$f":"COUNTIFS(Tableau1[Date Arrivée],Statistique!$N$2,Tableau1[Nat],Statistique!C19)","v":0},{"$f":"COUNTIFS(Tableau1[Date Arrivée],Statistique!$O$2,Tableau1[Nat],Statistique!C19)","v":0},{"$f":"COUNTIFS(Tableau1[Date Arrivée],Statistique!$P$2,Tableau1[Nat],Statistique!C19)","v":0},{"$f":"COUNTIFS(Tableau1[Date Arrivée],Statistique!$Q$2,Tableau1[Nat],Statistique!C19)","v":0},{"$f":"COUNTIFS(Tableau1[Date Arrivée],Statistique!$R$2,Tableau1[Nat],Statistique!C19)","v":0},{"$f":"COUNTIFS(Tableau1[Date Arrivée],Statistique!$S$2,Tableau1[Nat],Statistique!C19)","v":0},{"$f":"COUNTIFS(Tableau1[Date Arrivée],Statistique!$T$2,Tableau1[Nat],Statistique!C19)","v":0},{"$f":"COUNTIFS(Tableau1[Date Arrivée],Statistique!$U$2,Tableau1[Nat],Statistique!C19)","v":0},{"$f":"COUNTIFS(Tableau1[Date Arrivée],Statistique!$V$2,Tableau1[Nat],Statistique!C19)","v":0},{"$f":"COUNTIFS(Tableau1[Date Arrivée],Statistique!$W$2,Tableau1[Nat],Statistique!C19)","v":0},{"$f":"COUNTIFS(Tableau1[Date Arrivée],Statistique!$X$2,Tableau1[Nat],Statistique!C19)","v":0},{"$f":"COUNTIFS(Tableau1[Date Arrivée],Statistique!$Y$2,Tableau1[Nat],Statistique!C19)","v":0},{"$f":"COUNTIFS(Tableau1[Date Arrivée],Statistique!$Z$2,Tableau1[Nat],Statistique!C19)","v":0},{"$f":"COUNTIFS(Tableau1[Date Arrivée],Statistique!$AA$2,Tableau1[Nat],Statistique!C19)","v":0},{"$f":"COUNTIFS(Tableau1[Date Arrivée],Statistique!$AB$2,Tableau1[Nat],Statistique!C19)","v":0},{"$f":"COUNTIFS(Tableau1[Date Arrivée],Statistique!$AC$2,Tableau1[Nat],Statistique!C19)","v":0},{"$f":"COUNTIFS(Tableau1[Date Arrivée],Statistique!$AD$2,Tableau1[Nat],Statistique!C19)","v":0},{"$f":"COUNTIFS(Tableau1[Date Arrivée],Statistique!$AE$2,Tableau1[Nat],Statistique!C19)","v":0},{"$f":"COUNTIFS(Tableau1[Date Arrivée],Statistique!$AF$2,Tableau1[Nat],Statistique!C19)","v":0},{"$f":"COUNTIFS(Tableau1[Date Arrivée],Statistique!$AG$2,Tableau1[Nat],Statistique!C19)","v":0},{"$f":"COUNTIFS(Tableau1[Date Arrivée],Statistique!$AH$2,Tableau1[Nat],Statistique!C19)","v":0}]
[null,"Grèce","PL",{"$f":"COUNTIFS(Tableau1[Date Arrivée],Statistique!$D$2,Tableau1[Nat],Statistique!C20)","v":0},{"$f":"COUNTIFS(Tableau1[Date Arrivée],Statistique!$E$2,Tableau1[Nat],Statistique!C20)","v":0},{"$f":"COUNTIFS(Tableau1[Date Arrivée],Statistique!$F$2,Tableau1[Nat],Statistique!C20)","v":0},{"$f":"COUNTIFS(Tableau1[Date Arrivée],Statistique!$G$2,Tableau1[Nat],Statistique!C20)","v":0},{"$f":"COUNTIFS(Tableau1[Date Arrivée],Statistique!$H$2,Tableau1[Nat],Statistique!C20)","v":0},{"$f":"COUNTIFS(Tableau1[Date Arrivée],Statistique!$I$2,Tableau1[Nat],Statistique!C20)","v":0},{"$f":"COUNTIFS(Tableau1[Date Arrivée],Statistique!$J$2,Tableau1[Nat],Statistique!C20)","v":0},{"$f":"COUNTIFS(Tableau1[Date Arrivée],Statistique!$K$2,Tableau1[Nat],Statistique!C20)","v":0},{"$f":"COUNTIFS(Tableau1[Date Arrivée],Statistique!$L$2,Tableau1[Nat],Statistique!C20)","v":0},{"$f":"COUNTIFS(Tableau1[Date Arrivée],Statistique!$M$2,Tableau1[Nat],Statistique!C20)","v":0},{"$f":"COUNTIFS(Tableau1[Date Arrivée],Statistique!$N$2,Tableau1[Nat],Statistique!C20)","v":0},{"$f":"COUNTIFS(Tableau1[Date Arrivée],Statistique!$O$2,Tableau1[Nat],Statistique!C20)","v":0},{"$f":"COUNTIFS(Tableau1[Date Arrivée],Statistique!$P$2,Tableau1[Nat],Statistique!C20)","v":0},{"$f":"COUNTIFS(Tableau1[Date Arrivée],Statistique!$Q$2,Tableau1[Nat],Statistique!C20)","v":0},{"$f":"COUNTIFS(Tableau1[Date Arrivée],Statistique!$R$2,Tableau1[Nat],Statistique!C20)","v":0},{"$f":"COUNTIFS(Tableau1[Date Arrivée],Statistique!$S$2,Tableau1[Nat],Statistique!C20)","v":0},{"$f":"COUNTIFS(Tableau1[Date Arrivée],Statistique!$T$2,Tableau1[Nat],Statistique!C20)","v":0},{"$f":"COUNTIFS(Tableau1[Date Arrivée],Statistique!$U$2,Tableau1[Nat],Statistique!C20)","v":0},{"$f":"COUNTIFS(Tableau1[Date Arrivée],Statistique!$V$2,Tableau1[Nat],Statistique!C20)","v":0},{"$f":"COUNTIFS(Tableau1[Date Arrivée],Statistique!$W$2,Tableau1[Nat],Statistique!C20)","v":0},{"$f":"COUNTIFS(Tableau1[Date Arrivée],Statistique!$X$2,Tableau1[Nat],Statistique!C20)","v":0},{"$f":"COUNTIFS(Tableau1[Date Arrivée],Statistique!$Y$2,Tableau1[Nat],Statistique!C20)","v":0},{"$f":"COUNTIFS(Tableau1[Date Arrivée],Statistique!$Z$2,Tableau1[Nat],Statistique!C20)","v":0},{"$f":"COUNTIFS(Tableau1[Date Arrivée],Statistique!$AA$2,Tableau1[Nat],Statistique!C20)","v":0},{"$f":"COUNTIFS(Tableau1[Date Arrivée],Statistique!$AB$2,Tableau1[Nat],Statistique!C20)","v":0},{"$f":"COUNTIFS(Tableau1[Date Arrivée],Statistique!$AC$2,Tableau1[Nat],Statistique!C20)","v":0},{"$f":"COUNTIFS(Tableau1[Date Arrivée],Statistique!$AD$2,Tableau1[Nat],Statistique!C20)","v":0},{"$f":"COUNTIFS(Tableau1[Date Arrivée],Statistique!$AE$2,Tableau1[Nat],Statistique!C20)","v":0},{"$f":"COUNTIFS(Tableau1[Date Arrivée],Statistique!$AF$2,Tableau1[Nat],Statistique!C20)","v":0},{"$f":"COUNTIFS(Tableau1[Date Arrivée],Statistique!$AG$2,Tableau1[Nat],Statistique!C20)","v":0},{"$f":"COUNTIFS(Tableau1[Date Arrivée],Statistique!$AH$2,Tableau1[Nat],Statistique!C20)","v":0}]
[null,"Etat Unis","US",{"$f":"COUNTIFS(Tableau1[Date Arrivée],Statistique!$D$2,Tableau1[Nat],Statistique!C21)","v":0},{"$f":"COUNTIFS(Tableau1[Date Arrivée],Statistique!$E$2,Tableau1[Nat],Statistique!C21)","v":0},{"$f":"COUNTIFS(Tableau1[Date Arrivée],Statistique!$F$2,Tableau1[Nat],Statistique!C21)","v":1},{"$f":"COUNTIFS(Tableau1[Date Arrivée],Statistique!$G$2,Tableau1[Nat],Statistique!C21)","v":0},{"$f":"COUNTIFS(Tableau1[Date Arrivée],Statistique!$H$2,Tableau1[Nat],Statistique!C21)","v":0},{"$f":"COUNTIFS(Tableau1[Date Arrivée],Statistique!$I$2,Tableau1[Nat],Statistique!C21)","v":0},{"$f":"COUNTIFS(Tableau1[Date Arrivée],Statistique!$J$2,Tableau1[Nat],Statistique!C21)","v":0},{"$f":"COUNTIFS(Tableau1[Date Arrivée],Statistique!$K$2,Tableau1[Nat],Statistique!C21)","v":0},{"$f":"COUNTIFS(Tableau1[Date Arrivée],Statistique!$L$2,Tableau1[Nat],Statistique!C21)","v":0},{"$f":"COUNTIFS(Tableau1[Date Arrivée],Statistique!$M$2,Tableau1[Nat],Statistique!C21)","v":0},{"$f":"COUNTIFS(Tableau1[Date Arrivée],Statistique!$N$2,Tableau1[Nat],Statistique!C21)","v":0},{"$f":"COUNTIFS(Tableau1[Date Arrivée],Statistique!$O$2,Tableau1[Nat],Statistique!C21)","v":0},{"$f":"COUNTIFS(Tableau1[Date Arrivée],Statistique!$P$2,Tableau1[Nat],Statistique!C21)","v":0},{"$f":"COUNTIFS(Tableau1[Date Arrivée],Statistique!$Q$2,Tableau1[Nat],Statistique!C21)","v":0},{"$f":"COUNTIFS(Tableau1[Date Arrivée],Statistique!$R$2,Tableau1[Nat],Statistique!C21)","v":0},{"$f":"COUNTIFS(Tableau1[Date Arrivée],Statistique!$S$2,Tableau1[Nat],Statistique!C21)","v":0},{"$f":"COUNTIFS(Tableau1[Date Arrivée],Statistique!$T$2,Tableau1[Nat],Statistique!C21)","v":0},{"$f":"COUNTIFS(Tableau1[Date Arrivée],Statistique!$U$2,Tableau1[Nat],Statistique!C21)","v":0},{"$f":"COUNTIFS(Tableau1[Date Arrivée],Statistique!$V$2,Tableau1[Nat],Statistique!C21)","v":0},{"$f":"COUNTIFS(Tableau1[Date Arrivée],Statistique!$W$2,Tableau1[Nat],Statistique!C21)","v":0},{"$f":"COUNTIFS(Tableau1[Date Arrivée],Statistique!$X$2,Tableau1[Nat],Statistique!C21)","v":0},{"$f":"COUNTIFS(Tableau1[Date Arrivée],Statistique!$Y$2,Tableau1[Nat],Statistique!C21)","v":0},{"$f":"COUNTIFS(Tableau1[Date Arrivée],Statistique!$Z$2,Tableau1[Nat],Statistique!C21)","v":0},{"$f":"COUNTIFS(Tableau1[Date Arrivée],Statistique!$AA$2,Tableau1[Nat],Statistique!C21)","v":0},{"$f":"COUNTIFS(Tableau1[Date Arrivée],Statistique!$AB$2,Tableau1[Nat],Statistique!C21)","v":0},{"$f":"COUNTIFS(Tableau1[Date Arrivée],Statistique!$AC$2,Tableau1[Nat],Statistique!C21)","v":0},{"$f":"COUNTIFS(Tableau1[Date Arrivée],Statistique!$AD$2,Tableau1[Nat],Statistique!C21)","v":0},{"$f":"COUNTIFS(Tableau1[Date Arrivée],Statistique!$AE$2,Tableau1[Nat],Statistique!C21)","v":0},{"$f":"COUNTIFS(Tableau1[Date Arrivée],Statistique!$AF$2,Tableau1[Nat],Statistique!C21)","v":0},{"$f":"COUNTIFS(Tableau1[Date Arrivée],Statistique!$AG$2,Tableau1[Nat],Statistique!C21)","v":0},{"$f":"COUNTIFS(Tableau1[Date Arrivée],Statistique!$AH$2,Tableau1[Nat],Statistique!C21)","v":0}]
[null,"Canada","CA",{"$f":"COUNTIFS(Tableau1[Date Arrivée],Statistique!$D$2,Tableau1[Nat],Statistique!C22)","v":0},{"$f":"COUNTIFS(Tableau1[Date Arrivée],Statistique!$E$2,Tableau1[Nat],Statistique!C22)","v":0},{"$f":"COUNTIFS(Tableau1[Date Arrivée],Statistique!$F$2,Tableau1[Nat],Statistique!C22)","v":0},{"$f":"COUNTIFS(Tableau1[Date Arrivée],Statistique!$G$2,Tableau1[Nat],Statistique!C22)","v":0},{"$f":"COUNTIFS(Tableau1[Date Arrivée],Statistique!$H$2,Tableau1[Nat],Statistique!C22)","v":0},{"$f":"COUNTIFS(Tableau1[Date Arrivée],Statistique!$I$2,Tableau1[Nat],Statistique!C22)","v":0},{"$f":"COUNTIFS(Tableau1[Date Arrivée],Statistique!$J$2,Tableau1[Nat],Statistique!C22)","v":0},{"$f":"COUNTIFS(Tableau1[Date Arrivée],Statistique!$K$2,Tableau1[Nat],Statistique!C22)","v":0},{"$f":"COUNTIFS(Tableau1[Date Arrivée],Statistique!$L$2,Tableau1[Nat],Statistique!C22)","v":0},{"$f":"COUNTIFS(Tableau1[Date Arrivée],Statistique!$M$2,Tableau1[Nat],Statistique!C22)","v":0},{"$f":"COUNTIFS(Tableau1[Date Arrivée],Statistique!$N$2,Tableau1[Nat],Statistique!C22)","v":0},{"$f":"COUNTIFS(Tableau1[Date Arrivée],Statistique!$O$2,Tableau1[Nat],Statistique!C22)","v":0},{"$f":"COUNTIFS(Tableau1[Date Arrivée],Statistique!$P$2,Tableau1[Nat],Statistique!C22)","v":0},{"$f":"COUNTIFS(Tableau1[Date Arrivée],Statistique!$Q$2,Tableau1[Nat],Statistique!C22)","v":0},{"$f":"COUNTIFS(Tableau1[Date Arrivée],Statistique!$R$2,Tableau1[Nat],Statistique!C22)","v":0},{"$f":"COUNTIFS(Tableau1[Date Arrivée],Statistique!$S$2,Tableau1[Nat],Statistique!C22)","v":0},{"$f":"COUNTIFS(Tableau1[Date Arrivée],Statistique!$T$2,Tableau1[Nat],Statistique!C22)","v":0},{"$f":"COUNTIFS(Tableau1[Date Arrivée],Statistique!$U$2,Tableau1[Nat],Statistique!C22)","v":0},{"$f":"COUNTIFS(Tableau1[Date Arrivée],Statistique!$V$2,Tableau1[Nat],Statistique!C22)","v":0},{"$f":"COUNTIFS(Tableau1[Date Arrivée],Statistique!$W$2,Tableau1[Nat],Statistique!C22)","v":0},{"$f":"COUNTIFS(Tableau1[Date Arrivée],Statistique!$X$2,Tableau1[Nat],Statistique!C22)","v":0},{"$f":"COUNTIFS(Tableau1[Date Arrivée],Statistique!$Y$2,Tableau1[Nat],Statistique!C22)","v":0},{"$f":"COUNTIFS(Tableau1[Date Arrivée],Statistique!$Z$2,Tableau1[Nat],Statistique!C22)","v":0},{"$f":"COUNTIFS(Tableau1[Date Arrivée],Statistique!$AA$2,Tableau1[Nat],Statistique!C22)","v":0},{"$f":"COUNTIFS(Tableau1[Date Arrivée],Statistique!$AB$2,Tableau1[Nat],Statistique!C22)","v":0},{"$f":"COUNTIFS(Tableau1[Date Arrivée],Statistique!$AC$2,Tableau1[Nat],Statistique!C22)","v":0},{"$f":"COUNTIFS(Tableau1[Date Arrivée],Statistique!$AD$2,Tableau1[Nat],Statistique!C22)","v":0},{"$f":"COUNTIFS(Tableau1[Date Arrivée],Statistique!$AE$2,Tableau1[Nat],Statistique!C22)","v":0},{"$f":"COUNTIFS(Tableau1[Date Arrivée],Statistique!$AF$2,Tableau1[Nat],Statistique!C22)","v":0},{"$f":"COUNTIFS(Tableau1[Date Arrivée],Statistique!$AG$2,Tableau1[Nat],Statistique!C22)","v":0},{"$f":"COUNTIFS(Tableau1[Date Arrivée],Statistique!$AH$2,Tableau1[Nat],Statistique!C22)","v":0}]
[null,"Chine","CN",{"$f":"COUNTIFS(Tableau1[Date Arrivée],Statistique!$D$2,Tableau1[Nat],Statistique!C23)","v":0},{"$f":"COUNTIFS(Tableau1[Date Arrivée],Statistique!$E$2,Tableau1[Nat],Statistique!C23)","v":0},{"$f":"COUNTIFS(Tableau1[Date Arrivée],Statistique!$F$2,Tableau1[Nat],Statistique!C23)","v":0},{"$f":"COUNTIFS(Tableau1[Date Arrivée],Statistique!$G$2,Tableau1[Nat],Statistique!C23)","v":0},{"$f":"COUNTIFS(Tableau1[Date Arrivée],Statistique!$H$2,Tableau1[Nat],Statistique!C23)","v":0},{"$f":"COUNTIFS(Tableau1[Date Arrivée],Statistique!$I$2,Tableau1[Nat],Statistique!C23)","v":0},{"$f":"COUNTIFS(Tableau1[Date Arrivée],Statistique!$J$2,Tableau1[Nat],Statistique!C23)","v":0},{"$f":"COUNTIFS(Tableau1[Date Arrivée],Statistique!$K$2,Tableau1[Nat],Statistique!C23)","v":0},{"$f":"COUNTIFS(Tableau1[Date Arrivée],Statistique!$L$2,Tableau1[Nat],Statistique!C23)","v":0},{"$f":"COUNTIFS(Tableau1[Date Arrivée],Statistique!$M$2,Tableau1[Nat],Statistique!C23)","v":0},{"$f":"COUNTIFS(Tableau1[Date Arrivée],Statistique!$N$2,Tableau1[Nat],Statistique!C23)","v":0},{"$f":"COUNTIFS(Tableau1[Date Arrivée],Statistique!$O$2,Tableau1[Nat],Statistique!C23)","v":0},{"$f":"COUNTIFS(Tableau1[Date Arrivée],Statistique!$P$2,Tableau1[Nat],Statistique!C23)","v":0},{"$f":"COUNTIFS(Tableau1[Date Arrivée],Statistique!$Q$2,Tableau1[Nat],Statistique!C23)","v":0},{"$f":"COUNTIFS(Tableau1[Date Arrivée],Statistique!$R$2,Tableau1[Nat],Statistique!C23)","v":0},{"$f":"COUNTIFS(Tableau1[Date Arrivée],Statistique!$S$2,Tableau1[Nat],Statistique!C23)","v":0},{"$f":"COUNTIFS(Tableau1[Date Arrivée],Statistique!$T$2,Tableau1[Nat],Statistique!C23)","v":0},{"$f":"COUNTIFS(Tableau1[Date Arrivée],Statistique!$U$2,Tableau1[Nat],Statistique!C23)","v":0},{"$f":"COUNTIFS(Tableau1[Date Arrivée],Statistique!$V$2,Tableau1[Nat],Statistique!C23)","v":0},{"$f":"COUNTIFS(Tableau1[Date Arrivée],Statistique!$W$2,Tableau1[Nat],Statistique!C23)","v":0},{"$f":"COUNTIFS(Tableau1[Date Arrivée],Statistique!$X$2,Tableau1[Nat],Statistique!C23)","v":0},{"$f":"COUNTIFS(Tableau1[Date Arrivée],Statistique!$Y$2,Tableau1[Nat],Statistique!C23)","v":0},{"$f":"COUNTIFS(Tableau1[Date Arrivée],Statistique!$Z$2,Tableau1[Nat],Statistique!C23)","v":0},{"$f":"COUNTIFS(Tableau1[Date Arrivée],Statistique!$AA$2,Tableau1[Nat],Statistique!C23)","v":0},{"$f":"COUNTIFS(Tableau1[Date Arrivée],Statistique!$AB$2,Tableau1[Nat],Statistique!C23)","v":0},{"$f":"COUNTIFS(Tableau1[Date Arrivée],Statistique!$AC$2,Tableau1[Nat],Statistique!C23)","v":0},{"$f":"COUNTIFS(Tableau1[Date Arrivée],Statistique!$AD$2,Tableau1[Nat],Statistique!C23)","v":0},{"$f":"COUNTIFS(Tableau1[Date Arrivée],Statistique!$AE$2,Tableau1[Nat],Statistique!C23)","v":0},{"$f":"COUNTIFS(Tableau1[Date Arrivée],Statistique!$AF$2,Tableau1[Nat],Statistique!C23)","v":0},{"$f":"COUNTIFS(Tableau1[Date Arrivée],Statistique!$AG$2,Tableau1[Nat],Statistique!C23)","v":0},{"$f":"COUNTIFS(Tableau1[Date Arrivée],Statistique!$AH$2,Tableau1[Nat],Statistique!C23)","v":0}]
[null,"Japon","JP",{"$f":"COUNTIFS(Tableau1[Date Arrivée],Statistique!$D$2,Tableau1[Nat],Statistique!C24)","v":0},{"$f":"COUNTIFS(Tableau1[Date Arrivée],Statistique!$E$2,Tableau1[Nat],Statistique!C24)","v":0},{"$f":"COUNTIFS(Tableau1[Date Arrivée],Statistique!$F$2,Tableau1[Nat],Statistique!C24)","v":0},{"$f":"COUNTIFS(Tableau1[Date Arrivée],Statistique!$G$2,Tableau1[Nat],Statistique!C24)","v":0},{"$f":"COUNTIFS(Tableau1[Date Arrivée],Statistique!$H$2,Tableau1[Nat],Statistique!C24)","v":0},{"$f":"COUNTIFS(Tableau1[Date Arrivée],Statistique!$I$2,Tableau1[Nat],Statistique!C24)","v":0},{"$f":"COUNTIFS(Tableau1[Date Arrivée],Statistique!$J$2,Tableau1[Nat],Statistique!C24)","v":0},{"$f":"COUNTIFS(Tableau1[Date Arrivée],Statistique!$K$2,Tableau1[Nat],Statistique!C24)","v":0},{"$f":"COUNTIFS(Tableau1[Date Arrivée],Statistique!$L$2,Tableau1[Nat],Statistique!C24)","v":0},{"$f":"COUNTIFS(Tableau1[Date Arrivée],Statistique!$M$2,Tableau1[Nat],Statistique!C24)","v":0},{"$f":"COUNTIFS(Tableau1[Date Arrivée],Statistique!$N$2,Tableau1[Nat],Statistique!C24)","v":0},{"$f":"COUNTIFS(Tableau1[Date Arrivée],Statistique!$O$2,Tableau1[Nat],Statistique!C24)","v":0},{"$f":"COUNTIFS(Tableau1[Date Arrivée],Statistique!$P$2,Tableau1[Nat],Statistique!C24)","v":0},{"$f":"COUNTIFS(Tableau1[Date Arrivée],Statistique!$Q$2,Tableau1[Nat],Statistique!C24)","v":0},{"$f":"COUNTIFS(Tableau1[Date Arrivée],Statistique!$R$2,Tableau1[Nat],Statistique!C24)","v":0},{"$f":"COUNTIFS(Tableau1[Date Arrivée],Statistique!$S$2,Tableau1[Nat],Statistique!C24)","v":0},{"$f":"COUNTIFS(Tableau1[Date Arrivée],Statistique!$T$2,Tableau1[Nat],Statistique!C24)","v":0},{"$f":"COUNTIFS(Tableau1[Date Arrivée],Statistique!$U$2,Tableau1[Nat],Statistique!C24)","v":0},{"$f":"COUNTIFS(Tableau1[Date Arrivée],Statistique!$V$2,Tableau1[Nat],Statistique!C24)","v":0},{"$f":"COUNTIFS(Tableau1[Date Arrivée],Statistique!$W$2,Tableau1[Nat],Statistique!C24)","v":0},{"$f":"COUNTIFS(Tableau1[Date Arrivée],Statistique!$X$2,Tableau1[Nat],Statistique!C24)","v":0},{"$f":"COUNTIFS(Tableau1[Date Arrivée],Statistique!$Y$2,Tableau1[Nat],Statistique!C24)","v":0},{"$f":"COUNTIFS(Tableau1[Date Arrivée],Statistique!$Z$2,Tableau1[Nat],Statistique!C24)","v":0},{"$f":"COUNTIFS(Tableau1[Date Arrivée],Statistique!$AA$2,Tableau1[Nat],Statistique!C24)","v":0},{"$f":"COUNTIFS(Tableau1[Date Arrivée],Statistique!$AB$2,Tableau1[Nat],Statistique!C24)","v":0},{"$f":"COUNTIFS(Tableau1[Date Arrivée],Statistique!$AC$2,Tableau1[Nat],Statistique!C24)","v":0},{"$f":"COUNTIFS(Tableau1[Date Arrivée],Statistique!$AD$2,Tableau1[Nat],Statistique!C24)","v":0},{"$f":"COUNTIFS(Tableau1[Date Arrivée],Statistique!$AE$2,Tableau1[Nat],Statistique!C24)","v":0},{"$f":"COUNTIFS(Tableau1[Date Arrivée],Statistique!$AF$2,Tableau1[Nat],Statistique!C24)","v":0},{"$f":"COUNTIFS(Tableau1[Date Arrivée],Statistique!$AG$2,Tableau1[Nat],Statistique!C24)","v":0},{"$f":"COUNTIFS(Tableau1[Date Arrivée],Statistique!$AH$2,Tableau1[Nat],Statistique!C24)","v":0}]
[null,"Inde","IN",{"$f":"COUNTIFS(Tableau1[Date Arrivée],Statistique!$D$2,Tableau1[Nat],Statistique!C25)","v":0},{"$f":"COUNTIFS(Tableau1[Date Arrivée],Statistique!$E$2,Tableau1[Nat],Statistique!C25)","v":0},{"$f":"COUNTIFS(Tableau1[Date Arrivée],Statistique!$F$2,Tableau1[Nat],Statistique!C25)","v":0},{"$f":"COUNTIFS(Tableau1[Date Arrivée],Statistique!$G$2,Tableau1[Nat],Statistique!C25)","v":0},{"$f":"COUNTIFS(Tableau1[Date Arrivée],Statistique!$H$2,Tableau1[Nat],Statistique!C25)","v":0},{"$f":"COUNTIFS(Tableau1[Date Arrivée],Statistique!$I$2,Tableau1[Nat],Statistique!C25)","v":0},{"$f":"COUNTIFS(Tableau1[Date Arrivée],Statistique!$J$2,Tableau1[Nat],Statistique!C25)","v":0},{"$f":"COUNTIFS(Tableau1[Date Arrivée],Statistique!$K$2,Tableau1[Nat],Statistique!C25)","v":0},{"$f":"COUNTIFS(Tableau1[Date Arrivée],Statistique!$L$2,Tableau1[Nat],Statistique!C25)","v":0},{"$f":"COUNTIFS(Tableau1[Date Arrivée],Statistique!$M$2,Tableau1[Nat],Statistique!C25)","v":0},{"$f":"COUNTIFS(Tableau1[Date Arrivée],Statistique!$N$2,Tableau1[Nat],Statistique!C25)","v":0},{"$f":"COUNTIFS(Tableau1[Date Arrivée],Statistique!$O$2,Tableau1[Nat],Statistique!C25)","v":0},{"$f":"COUNTIFS(Tableau1[Date Arrivée],Statistique!$P$2,Tableau1[Nat],Statistique!C25)","v":0},{"$f":"COUNTIFS(Tableau1[Date Arrivée],Statistique!$Q$2,Tableau1[Nat],Statistique!C25)","v":0},{"$f":"COUNTIFS(Tableau1[Date Arrivée],Statistique!$R$2,Tableau1[Nat],Statistique!C25)","v":0},{"$f":"COUNTIFS(Tableau1[Date Arrivée],Statistique!$S$2,Tableau1[Nat],Statistique!C25)","v":0},{"$f":"COUNTIFS(Tableau1[Date Arrivée],Statistique!$T$2,Tableau1[Nat],Statistique!C25)","v":0},{"$f":"COUNTIFS(Tableau1[Date Arrivée],Statistique!$U$2,Tableau1[Nat],Statistique!C25)","v":0},{"$f":"COUNTIFS(Tableau1[Date Arrivée],Statistique!$V$2,Tableau1[Nat],Statistique!C25)","v":0},{"$f":"COUNTIFS(Tableau1[Date Arrivée],Statistique!$W$2,Tableau1[Nat],Statistique!C25)","v":0},{"$f":"COUNTIFS(Tableau1[Date Arrivée],Statistique!$X$2,Tableau1[Nat],Statistique!C25)","v":0},{"$f":"COUNTIFS(Tableau1[Date Arrivée],Statistique!$Y$2,Tableau1[Nat],Statistique!C25)","v":0},{"$f":"COUNTIFS(Tableau1[Date Arrivée],Statistique!$Z$2,Tableau1[Nat],Statistique!C25)","v":0},{"$f":"COUNTIFS(Tableau1[Date Arrivée],Statistique!$AA$2,Tableau1[Nat],Statistique!C25)","v":0},{"$f":"COUNTIFS(Tableau1[Date Arrivée],Statistique!$AB$2,Tableau1[Nat],Statistique!C25)","v":0},{"$f":"COUNTIFS(Tableau1[Date Arrivée],Statistique!$AC$2,Tableau1[Nat],Statistique!C25)","v":0},{"$f":"COUNTIFS(Tableau1[Date Arrivée],Statistique!$AD$2,Tableau1[Nat],Statistique!C25)","v":0},{"$f":"COUNTIFS(Tableau1[Date Arrivée],Statistique!$AE$2,Tableau1[Nat],Statistique!C25)","v":0},{"$f":"COUNTIFS(Tableau1[Date Arrivée],Statistique!$AF$2,Tableau1[Nat],Statistique!C25)","v":0},{"$f":"COUNTIFS(Tableau1[Date Arrivée],Statistique!$AG$2,Tableau1[Nat],Statistique!C25)","v":0},{"$f":"COUNTIFS(Tableau1[Date Arrivée],Statistique!$AH$2,Tableau1[Nat],Statistique!C25)","v":0}]
[null,"Maroc","MA",{"$f":"COUNTIFS(Tableau1[Date Arrivée],Statistique!$D$2,Tableau1[Nat],Statistique!C26)","v":0},{"$f":"COUNTIFS(Tableau1[Date Arrivée],Statistique!$E$2,Tableau1[Nat],Statistique!C26)","v":0},{"$f":"COUNTIFS(Tableau1[Date Arrivée],Statistique!$F$2,Tableau1[Nat],Statistique!C26)","v":1},{"$f":"COUNTIFS(Tableau1[Date Arrivée],Statistique!$G$2,Tableau1[Nat],Statistique!C26)","v":0},{"$f":"COUNTIFS(Tableau1[Date Arrivée],Statistique!$H$2,Tableau1[Nat],Statistique!C26)","v":0},{"$f":"COUNTIFS(Tableau1[Date Arrivée],Statistique!$I$2,Tableau1[Nat],Statistique!C26)","v":0},{"$f":"COUNTIFS(Tableau1[Date Arrivée],Statistique!$J$2,Tableau1[Nat],Statistique!C26)","v":0},{"$f":"COUNTIFS(Tableau1[Date Arrivée],Statistique!$K$2,Tableau1[Nat],Statistique!C26)","v":0},{"$f":"COUNTIFS(Tableau1[Date Arrivée],Statistique!$L$2,Tableau1[Nat],Statistique!C26)","v":0},{"$f":"COUNTIFS(Tableau1[Date Arrivée],Statistique!$M$2,Tableau1[Nat],Statistique!C26)","v":0},{"$f":"COUNTIFS(Tableau1[Date Arrivée],Statistique!$N$2,Tableau1[Nat],Statistique!C26)","v":1},{"$f":"COUNTIFS(Tableau1[Date Arrivée],Statistique!$O$2,Tableau1[Nat],Statistique!C26)","v":0},{"$f":"COUNTIFS(Tableau1[Date Arrivée],Statistique!$P$2,Tableau1[Nat],Statistique!C26)","v":0},{"$f":"COUNTIFS(Tableau1[Date Arrivée],Statistique!$Q$2,Tableau1[Nat],Statistique!C26)","v":0},{"$f":"COUNTIFS(Tableau1[Date Arrivée],Statistique!$R$2,Tableau1[Nat],Statistique!C26)","v":0},{"$f":"COUNTIFS(Tableau1[Date Arrivée],Statistique!$S$2,Tableau1[Nat],Statistique!C26)","v":0},{"$f":"COUNTIFS(Tableau1[Date Arrivée],Statistique!$T$2,Tableau1[Nat],Statistique!C26)","v":0},{"$f":"COUNTIFS(Tableau1[Date Arrivée],Statistique!$U$2,Tableau1[Nat],Statistique!C26)","v":0},{"$f":"COUNTIFS(Tableau1[Date Arrivée],Statistique!$V$2,Tableau1[Nat],Statistique!C26)","v":0},{"$f":"COUNTIFS(Tableau1[Date Arrivée],Statistique!$W$2,Tableau1[Nat],Statistique!C26)","v":0},{"$f":"COUNTIFS(Tableau1[Date Arrivée],Statistique!$X$2,Tableau1[Nat],Statistique!C26)","v":0},{"$f":"COUNTIFS(Tableau1[Date Arrivée],Statistique!$Y$2,Tableau1[Nat],Statistique!C26)","v":0},{"$f":"COUNTIFS(Tableau1[Date Arrivée],Statistique!$Z$2,Tableau1[Nat],Statistique!C26)","v":0},{"$f":"COUNTIFS(Tableau1[Date Arrivée],Statistique!$AA$2,Tableau1[Nat],Statistique!C26)","v":0},{"$f":"COUNTIFS(Tableau1[Date Arrivée],Statistique!$AB$2,Tableau1[Nat],Statistique!C26)","v":0},{"$f":"COUNTIFS(Tableau1[Date Arrivée],Statistique!$AC$2,Tableau1[Nat],Statistique!C26)","v":0},{"$f":"COUNTIFS(Tableau1[Date Arrivée],Statistique!$AD$2,Tableau1[Nat],Statistique!C26)","v":0},{"$f":"COUNTIFS(Tableau1[Date Arrivée],Statistique!$AE$2,Tableau1[Nat],Statistique!C26)","v":0},{"$f":"COUNTIFS(Tableau1[Date Arrivée],Statistique!$AF$2,Tableau1[Nat],Statistique!C26)","v":0},{"$f":"COUNTIFS(Tableau1[Date Arrivée],Statistique!$AG$2,Tableau1[Nat],Statistique!C26)","v":0},{"$f":"COUNTIFS(Tableau1[Date Arrivée],Statistique!$AH$2,Tableau1[Nat],Statistique!C26)","v":0}]
[null,"Algérie","DZ",{"$f":"COUNTIFS(Tableau1[Date Arrivée],Statistique!$D$2,Tableau1[Nat],Statistique!C27)","v":0},{"$f":"COUNTIFS(Tableau1[Date Arrivée],Statistique!$E$2,Tableau1[Nat],Statistique!C27)","v":0},{"$f":"COUNTIFS(Tableau1[Date Arrivée],Statistique!$F$2,Tableau1[Nat],Statistique!C27)","v":0},{"$f":"COUNTIFS(Tableau1[Date Arrivée],Statistique!$G$2,Tableau1[Nat],Statistique!C27)","v":0},{"$f":"COUNTIFS(Tableau1[Date Arrivée],Statistique!$H$2,Tableau1[Nat],Statistique!C27)","v":0},{"$f":"COUNTIFS(Tableau1[Date Arrivée],Statistique!$I$2,Tableau1[Nat],Statistique!C27)","v":0},{"$f":"COUNTIFS(Tableau1[Date Arrivée],Statistique!$J$2,Tableau1[Nat],Statistique!C27)","v":0},{"$f":"COUNTIFS(Tableau1[Date Arrivée],Statistique!$K$2,Tableau1[Nat],Statistique!C27)","v":0},{"$f":"COUNTIFS(Tableau1[Date Arrivée],Statistique!$L$2,Tableau1[Nat],Statistique!C27)","v":0},{"$f":"COUNTIFS(Tableau1[Date Arrivée],Statistique!$M$2,Tableau1[Nat],Statistique!C27)","v":0},{"$f":"COUNTIFS(Tableau1[Date Arrivée],Statistique!$N$2,Tableau1[Nat],Statistique!C27)","v":0},{"$f":"COUNTIFS(Tableau1[Date Arrivée],Statistique!$O$2,Tableau1[Nat],Statistique!C27)","v":0},{"$f":"COUNTIFS(Tableau1[Date Arrivée],Statistique!$P$2,Tableau1[Nat],Statistique!C27)","v":0},{"$f":"COUNTIFS(Tableau1[Date Arrivée],Statistique!$Q$2,Tableau1[Nat],Statistique!C27)","v":0},{"$f":"COUNTIFS(Tableau1[Date Arrivée],Statistique!$R$2,Tableau1[Nat],Statistique!C27)","v":0},{"$f":"COUNTIFS(Tableau1[Date Arrivée],Statistique!$S$2,Tableau1[Nat],Statistique!C27)","v":0},{"$f":"COUNTIFS(Tableau1[Date Arrivée],Statistique!$T$2,Tableau1[Nat],Statistique!C27)","v":0},{"$f":"COUNTIFS(Tableau1[Date Arrivée],Statistique!$U$2,Tableau1[Nat],Statistique!C27)","v":0},{"$f":"COUNTIFS(Tableau1[Date Arrivée],Statistique!$V$2,Tableau1[Nat],Statistique!C27)","v":0},{"$f":"COUNTIFS(Tableau1[Date Arrivée],Statistique!$W$2,Tableau1[Nat],Statistique!C27)","v":0},{"$f":"COUNTIFS(Tableau1[Date Arrivée],Statistique!$X$2,Tableau1[Nat],Statistique!C27)","v":0},{"$f":"COUNTIFS(Tableau1[Date Arrivée],Statistique!$Y$2,Tableau1[Nat],Statistique!C27)","v":0},{"$f":"COUNTIFS(Tableau1[Date Arrivée],Statistique!$Z$2,Tableau1[Nat],Statistique!C27)","v":0},{"$f":"COUNTIFS(Tableau1[Date Arrivée],Statistique!$AA$2,Tableau1[Nat],Statistique!C27)","v":0},{"$f":"COUNTIFS(Tableau1[Date Arrivée],Statistique!$AB$2,Tableau1[Nat],Statistique!C27)","v":0},{"$f":"COUNTIFS(Tableau1[Date Arrivée],Statistique!$AC$2,Tableau1[Nat],Statistique!C27)","v":0},{"$f":"COUNTIFS(Tableau1[Date Arrivée],Statistique!$AD$2,Tableau1[Nat],Statistique!C27)","v":0},{"$f":"COUNTIFS(Tableau1[Date Arrivée],Statistique!$AE$2,Tableau1[Nat],Statistique!C27)","v":0},{"$f":"COUNTIFS(Tableau1[Date Arrivée],Statistique!$AF$2,Tableau1[Nat],Statistique!C27)","v":0},{"$f":"COUNTIFS(Tableau1[Date Arrivée],Statistique!$AG$2,Tableau1[Nat],Statistique!C27)","v":0},{"$f":"COUNTIFS(Tableau1[Date Arrivée],Statistique!$AH$2,Tableau1[Nat],Statistique!C27)","v":0}]
[null,"Tunisie","TN",{"$f":"COUNTIFS(Tableau1[Date Arrivée],Statistique!$D$2,Tableau1[Nat],Statistique!C28)","v":0},{"$f":"COUNTIFS(Tableau1[Date Arrivée],Statistique!$E$2,Tableau1[Nat],Statistique!C28)","v":0},{"$f":"COUNTIFS(Tableau1[Date Arrivée],Statistique!$F$2,Tableau1[Nat],Statistique!C28)","v":0},{"$f":"COUNTIFS(Tableau1[Date Arrivée],Statistique!$G$2,Tableau1[Nat],Statistique!C28)","v":0},{"$f":"COUNTIFS(Tableau1[Date Arrivée],Statistique!$H$2,Tableau1[Nat],Statistique!C28)","v":0},{"$f":"COUNTIFS(Tableau1[Date Arrivée],Statistique!$I$2,Tableau1[Nat],Statistique!C28)","v":0},{"$f":"COUNTIFS(Tableau1[Date Arrivée],Statistique!$J$2,Tableau1[Nat],Statistique!C28)","v":0},{"$f":"COUNTIFS(Tableau1[Date Arrivée],Statistique!$K$2,Tableau1[Nat],Statistique!C28)","v":0},{"$f":"COUNTIFS(Tableau1[Date Arrivée],Statistique!$L$2,Tableau1[Nat],Statistique!C28)","v":0},{"$f":"COUNTIFS(Tableau1[Date Arrivée],Statistique!$M$2,Tableau1[Nat],Statistique!C28)","v":0},{"$f":"COUNTIFS(Tableau1[Date Arrivée],Statistique!$N$2,Tableau1[Nat],Statistique!C28)","v":0},{"$f":"COUNTIFS(Tableau1[Date Arrivée],Statistique!$O$2,Tableau1[Nat],Statistique!C28)","v":0},{"$f":"COUNTIFS(Tableau1[Date Arrivée],Statistique!$P$2,Tableau1[Nat],Statistique!C28)","v":0},{"$f":"COUNTIFS(Tableau1[Date Arrivée],Statistique!$Q$2,Tableau1[Nat],Statistique!C28)","v":0},{"$f":"COUNTIFS(Tableau1[Date Arrivée],Statistique!$R$2,Tableau1[Nat],Statistique!C28)","v":0},{"$f":"COUNTIFS(Tableau1[Date Arrivée],Statistique!$S$2,Tableau1[Nat],Statistique!C28)","v":0},{"$f":"COUNTIFS(Tableau1[Date Arrivée],Statistique!$T$2,Tableau1[Nat],Statistique!C28)","v":0},{"$f":"COUNTIFS(Tableau1[Date Arrivée],Statistique!$U$2,Tableau1[Nat],Statistique!C28)","v":0},{"$f":"COUNTIFS(Tableau1[Date Arrivée],Statistique!$V$2,Tableau1[Nat],Statistique!C28)","v":0},{"$f":"COUNTIFS(Tableau1[Date Arrivée],Statistique!$W$2,Tableau1[Nat],Statistique!C28)","v":0},{"$f":"COUNTIFS(Tableau1[Date Arrivée],Statistique!$X$2,Tableau1[Nat],Statistique!C28)","v":0},{"$f":"COUNTIFS(Tableau1[Date Arrivée],Statistique!$Y$2,Tableau1[Nat],Statistique!C28)","v":0},{"$f":"COUNTIFS(Tableau1[Date Arrivée],Statistique!$Z$2,Tableau1[Nat],Statistique!C28)","v":0},{"$f":"COUNTIFS(Tableau1[Date Arrivée],Statistique!$AA$2,Tableau1[Nat],Statistique!C28)","v":0},{"$f":"COUNTIFS(Tableau1[Date Arrivée],Statistique!$AB$2,Tableau1[Nat],Statistique!C28)","v":0},{"$f":"COUNTIFS(Tableau1[Date Arrivée],Statistique!$AC$2,Tableau1[Nat],Statistique!C28)","v":0},{"$f":"COUNTIFS(Tableau1[Date Arrivée],Statistique!$AD$2,Tableau1[Nat],Statistique!C28)","v":0},{"$f":"COUNTIFS(Tableau1[Date Arrivée],Statistique!$AE$2,Tableau1[Nat],Statistique!C28)","v":0},{"$f":"COUNTIFS(Tableau1[Date Arrivée],Statistique!$AF$2,Tableau1[Nat],Statistique!C28)","v":0},{"$f":"COUNTIFS(Tableau1[Date Arrivée],Statistique!$AG$2,Tableau1[Nat],Statistique!C28)","v":0},{"$f":"COUNTIFS(Tableau1[Date Arrivée],Statistique!$AH$2,Tableau1[Nat],Statistique!C28)","v":0}]
[null,"Libye","LY",{"$f":"COUNTIFS(Tableau1[Date Arrivée],Statistique!$D$2,Tableau1[Nat],Statistique!C29)","v":0},{"$f":"COUNTIFS(Tableau1[Date Arrivée],Statistique!$E$2,Tableau1[Nat],Statistique!C29)","v":0},{"$f":"COUNTIFS(Tableau1[Date Arrivée],Statistique!$F$2,Tableau1[Nat],Statistique!C29)","v":0},{"$f":"COUNTIFS(Tableau1[Date Arrivée],Statistique!$G$2,Tableau1[Nat],Statistique!C29)","v":0},{"$f":"COUNTIFS(Tableau1[Date Arrivée],Statistique!$H$2,Tableau1[Nat],Statistique!C29)","v":0},{"$f":"COUNTIFS(Tableau1[Date Arrivée],Statistique!$I$2,Tableau1[Nat],Statistique!C29)","v":0},{"$f":"COUNTIFS(Tableau1[Date Arrivée],Statistique!$J$2,Tableau1[Nat],Statistique!C29)","v":0},{"$f":"COUNTIFS(Tableau1[Date Arrivée],Statistique!$K$2,Tableau1[Nat],Statistique!C29)","v":0},{"$f":"COUNTIFS(Tableau1[Date Arrivée],Statistique!$L$2,Tableau1[Nat],Statistique!C29)","v":0},{"$f":"COUNTIFS(Tableau1[Date Arrivée],Statistique!$M$2,Tableau1[Nat],Statistique!C29)","v":0},{"$f":"COUNTIFS(Tableau1[Date Arrivée],Statistique!$N$2,Tableau1[Nat],Statistique!C29)","v":0},{"$f":"COUNTIFS(Tableau1[Date Arrivée],Statistique!$O$2,Tableau1[Nat],Statistique!C29)","v":0},{"$f":"COUNTIFS(Tableau1[Date Arrivée],Statistique!$P$2,Tableau1[Nat],Statistique!C29)","v":0},{"$f":"COUNTIFS(Tableau1[Date Arrivée],Statistique!$Q$2,Tableau1[Nat],Statistique!C29)","v":0},{"$f":"COUNTIFS(Tableau1[Date Arrivée],Statistique!$R$2,Tableau1[Nat],Statistique!C29)","v":0},{"$f":"COUNTIFS(Tableau1[Date Arrivée],Statistique!$S$2,Tableau1[Nat],Statistique!C29)","v":0},{"$f":"COUNTIFS(Tableau1[Date Arrivée],Statistique!$T$2,Tableau1[Nat],Statistique!C29)","v":0},{"$f":"COUNTIFS(Tableau1[Date Arrivée],Statistique!$U$2,Tableau1[Nat],Statistique!C29)","v":0},{"$f":"COUNTIFS(Tableau1[Date Arrivée],Statistique!$V$2,Tableau1[Nat],Statistique!C29)","v":0},{"$f":"COUNTIFS(Tableau1[Date Arrivée],Statistique!$W$2,Tableau1[Nat],Statistique!C29)","v":0},{"$f":"COUNTIFS(Tableau1[Date Arrivée],Statistique!$X$2,Tableau1[Nat],Statistique!C29)","v":0},{"$f":"COUNTIFS(Tableau1[Date Arrivée],Statistique!$Y$2,Tableau1[Nat],Statistique!C29)","v":0},{"$f":"COUNTIFS(Tableau1[Date Arrivée],Statistique!$Z$2,Tableau1[Nat],Statistique!C29)","v":0},{"$f":"COUNTIFS(Tableau1[Date Arrivée],Statistique!$AA$2,Tableau1[Nat],Statistique!C29)","v":0},{"$f":"COUNTIFS(Tableau1[Date Arrivée],Statistique!$AB$2,Tableau1[Nat],Statistique!C29)","v":0},{"$f":"COUNTIFS(Tableau1[Date Arrivée],Statistique!$AC$2,Tableau1[Nat],Statistique!C29)","v":0},{"$f":"COUNTIFS(Tableau1[Date Arrivée],Statistique!$AD$2,Tableau1[Nat],Statistique!C29)","v":0},{"$f":"COUNTIFS(Tableau1[Date Arrivée],Statistique!$AE$2,Tableau1[Nat],Statistique!C29)","v":0},{"$f":"COUNTIFS(Tableau1[Date Arrivée],Statistique!$AF$2,Tableau1[Nat],Statistique!C29)","v":0},{"$f":"COUNTIFS(Tableau1[Date Arrivée],Statistique!$AG$2,Tableau1[Nat],Statistique!C29)","v":0},{"$f":"COUNTIFS(Tableau1[Date Arrivée],Statistique!$AH$2,Tableau1[Nat],Statistique!C29)","v":0}]
[null,"Mauritanie","MR",{"$f":"COUNTIFS(Tableau1[Date Arrivée],Statistique!$D$2,Tableau1[Nat],Statistique!C30)","v":0},{"$f":"COUNTIFS(Tableau1[Date Arrivée],Statistique!$E$2,Tableau1[Nat],Statistique!C30)","v":0},{"$f":"COUNTIFS(Tableau1[Date Arrivée],Statistique!$F$2,Tableau1[Nat],Statistique!C30)","v":0},{"$f":"COUNTIFS(Tableau1[Date Arrivée],Statistique!$G$2,Tableau1[Nat],Statistique!C30)","v":0},{"$f":"COUNTIFS(Tableau1[Date Arrivée],Statistique!$H$2,Tableau1[Nat],Statistique!C30)","v":0},{"$f":"COUNTIFS(Tableau1[Date Arrivée],Statistique!$I$2,Tableau1[Nat],Statistique!C30)","v":0},{"$f":"COUNTIFS(Tableau1[Date Arrivée],Statistique!$J$2,Tableau1[Nat],Statistique!C30)","v":0},{"$f":"COUNTIFS(Tableau1[Date Arrivée],Statistique!$K$2,Tableau1[Nat],Statistique!C30)","v":0},{"$f":"COUNTIFS(Tableau1[Date Arrivée],Statistique!$L$2,Tableau1[Nat],Statistique!C30)","v":0},{"$f":"COUNTIFS(Tableau1[Date Arrivée],Statistique!$M$2,Tableau1[Nat],Statistique!C30)","v":0},{"$f":"COUNTIFS(Tableau1[Date Arrivée],Statistique!$N$2,Tableau1[Nat],Statistique!C30)","v":0},{"$f":"COUNTIFS(Tableau1[Date Arrivée],Statistique!$O$2,Tableau1[Nat],Statistique!C30)","v":0},{"$f":"COUNTIFS(Tableau1[Date Arrivée],Statistique!$P$2,Tableau1[Nat],Statistique!C30)","v":0},{"$f":"COUNTIFS(Tableau1[Date Arrivée],Statistique!$Q$2,Tableau1[Nat],Statistique!C30)","v":0},{"$f":"COUNTIFS(Tableau1[Date Arrivée],Statistique!$R$2,Tableau1[Nat],Statistique!C30)","v":0},{"$f":"COUNTIFS(Tableau1[Date Arrivée],Statistique!$S$2,Tableau1[Nat],Statistique!C30)","v":0},{"$f":"COUNTIFS(Tableau1[Date Arrivée],Statistique!$T$2,Tableau1[Nat],Statistique!C30)","v":0},{"$f":"COUNTIFS(Tableau1[Date Arrivée],Statistique!$U$2,Tableau1[Nat],Statistique!C30)","v":0},{"$f":"COUNTIFS(Tableau1[Date Arrivée],Statistique!$V$2,Tableau1[Nat],Statistique!C30)","v":0},{"$f":"COUNTIFS(Tableau1[Date Arrivée],Statistique!$W$2,Tableau1[Nat],Statistique!C30)","v":0},{"$f":"COUNTIFS(Tableau1[Date Arrivée],Statistique!$X$2,Tableau1[Nat],Statistique!C30)","v":0},{"$f":"COUNTIFS(Tableau1[Date Arrivée],Statistique!$Y$2,Tableau1[Nat],Statistique!C30)","v":0},{"$f":"COUNTIFS(Tableau1[Date Arrivée],Statistique!$Z$2,Tableau1[Nat],Statistique!C30)","v":0},{"$f":"COUNTIFS(Tableau1[Date Arrivée],Statistique!$AA$2,Tableau1[Nat],Statistique!C30)","v":0},{"$f":"COUNTIFS(Tableau1[Date Arrivée],Statistique!$AB$2,Tableau1[Nat],Statistique!C30)","v":0},{"$f":"COUNTIFS(Tableau1[Date Arrivée],Statistique!$AC$2,Tableau1[Nat],Statistique!C30)","v":0},{"$f":"COUNTIFS(Tableau1[Date Arrivée],Statistique!$AD$2,Tableau1[Nat],Statistique!C30)","v":0},{"$f":"COUNTIFS(Tableau1[Date Arrivée],Statistique!$AE$2,Tableau1[Nat],Statistique!C30)","v":0},{"$f":"COUNTIFS(Tableau1[Date Arrivée],Statistique!$AF$2,Tableau1[Nat],Statistique!C30)","v":0},{"$f":"COUNTIFS(Tableau1[Date Arrivée],Statistique!$AG$2,Tableau1[Nat],Statistique!C30)","v":0},{"$f":"COUNTIFS(Tableau1[Date Arrivée],Statistique!$AH$2,Tableau1[Nat],Statistique!C30)","v":0}]
[null,"Arabie Saoudite","SA",{"$f":"COUNTIFS(Tableau1[Date Arrivée],Statistique!$D$2,Tableau1[Nat],Statistique!C31)","v":0},{"$f":"COUNTIFS(Tableau1[Date Arrivée],Statistique!$E$2,Tableau1[Nat],Statistique!C31)","v":0},{"$f":"COUNTIFS(Tableau1[Date Arrivée],Statistique!$F$2,Tableau1[Nat],Statistique!C31)","v":0},{"$f":"COUNTIFS(Tableau1[Date Arrivée],Statistique!$G$2,Tableau1[Nat],Statistique!C31)","v":0},{"$f":"COUNTIFS(Tableau1[Date Arrivée],Statistique!$H$2,Tableau1[Nat],Statistique!C31)","v":0},{"$f":"COUNTIFS(Tableau1[Date Arrivée],Statistique!$I$2,Tableau1[Nat],Statistique!C31)","v":0},{"$f":"COUNTIFS(Tableau1[Date Arrivée],Statistique!$J$2,Tableau1[Nat],Statistique!C31)","v":0},{"$f":"COUNTIFS(Tableau1[Date Arrivée],Statistique!$K$2,Tableau1[Nat],Statistique!C31)","v":0},{"$f":"COUNTIFS(Tableau1[Date Arrivée],Statistique!$L$2,Tableau1[Nat],Statistique!C31)","v":0},{"$f":"COUNTIFS(Tableau1[Date Arrivée],Statistique!$M$2,Tableau1[Nat],Statistique!C31)","v":0},{"$f":"COUNTIFS(Tableau1[Date Arrivée],Statistique!$N$2,Tableau1[Nat],Statistique!C31)","v":0},{"$f":"COUNTIFS(Tableau1[Date Arrivée],Statistique!$O$2,Tableau1[Nat],Statistique!C31)","v":0},{"$f":"COUNTIFS(Tableau1[Date Arrivée],Statistique!$P$2,Tableau1[Nat],Statistique!C31)","v":0},{"$f":"COUNTIFS(Tableau1[Date Arrivée],Statistique!$Q$2,Tableau1[Nat],Statistique!C31)","v":0},{"$f":"COUNTIFS(Tableau1[Date Arrivée],Statistique!$R$2,Tableau1[Nat],Statistique!C31)","v":0},{"$f":"COUNTIFS(Tableau1[Date Arrivée],Statistique!$S$2,Tableau1[Nat],Statistique!C31)","v":0},{"$f":"COUNTIFS(Tableau1[Date Arrivée],Statistique!$T$2,Tableau1[Nat],Statistique!C31)","v":0},{"$f":"COUNTIFS(Tableau1[Date Arrivée],Statistique!$U$2,Tableau1[Nat],Statistique!C31)","v":0},{"$f":"COUNTIFS(Tableau1[Date Arrivée],Statistique!$V$2,Tableau1[Nat],Statistique!C31)","v":0},{"$f":"COUNTIFS(Tableau1[Date Arrivée],Statistique!$W$2,Tableau1[Nat],Statistique!C31)","v":0},{"$f":"COUNTIFS(Tableau1[Date Arrivée],Statistique!$X$2,Tableau1[Nat],Statistique!C31)","v":0},{"$f":"COUNTIFS(Tableau1[Date Arrivée],Statistique!$Y$2,Tableau1[Nat],Statistique!C31)","v":0},{"$f":"COUNTIFS(Tableau1[Date Arrivée],Statistique!$Z$2,Tableau1[Nat],Statistique!C31)","v":0},{"$f":"COUNTIFS(Tableau1[Date Arrivée],Statistique!$AA$2,Tableau1[Nat],Statistique!C31)","v":0},{"$f":"COUNTIFS(Tableau1[Date Arrivée],Statistique!$AB$2,Tableau1[Nat],Statistique!C31)","v":0},{"$f":"COUNTIFS(Tableau1[Date Arrivée],Statistique!$AC$2,Tableau1[Nat],Statistique!C31)","v":0},{"$f":"COUNTIFS(Tableau1[Date Arrivée],Statistique!$AD$2,Tableau1[Nat],Statistique!C31)","v":0},{"$f":"COUNTIFS(Tableau1[Date Arrivée],Statistique!$AE$2,Tableau1[Nat],Statistique!C31)","v":0},{"$f":"COUNTIFS(Tableau1[Date Arrivée],Statistique!$AF$2,Tableau1[Nat],Statistique!C31)","v":0},{"$f":"COUNTIFS(Tableau1[Date Arrivée],Statistique!$AG$2,Tableau1[Nat],Statistique!C31)","v":0},{"$f":"COUNTIFS(Tableau1[Date Arrivée],Statistique!$AH$2,Tableau1[Nat],Statistique!C31)","v":0}]
[null,"Egypte","EG",{"$f":"COUNTIFS(Tableau1[Date Arrivée],Statistique!$D$2,Tableau1[Nat],Statistique!C32)","v":0},{"$f":"COUNTIFS(Tableau1[Date Arrivée],Statistique!$E$2,Tableau1[Nat],Statistique!C32)","v":0},{"$f":"COUNTIFS(Tableau1[Date Arrivée],Statistique!$F$2,Tableau1[Nat],Statistique!C32)","v":0},{"$f":"COUNTIFS(Tableau1[Date Arrivée],Statistique!$G$2,Tableau1[Nat],Statistique!C32)","v":0},{"$f":"COUNTIFS(Tableau1[Date Arrivée],Statistique!$H$2,Tableau1[Nat],Statistique!C32)","v":0},{"$f":"COUNTIFS(Tableau1[Date Arrivée],Statistique!$I$2,Tableau1[Nat],Statistique!C32)","v":0},{"$f":"COUNTIFS(Tableau1[Date Arrivée],Statistique!$J$2,Tableau1[Nat],Statistique!C32)","v":0},{"$f":"COUNTIFS(Tableau1[Date Arrivée],Statistique!$K$2,Tableau1[Nat],Statistique!C32)","v":0},{"$f":"COUNTIFS(Tableau1[Date Arrivée],Statistique!$L$2,Tableau1[Nat],Statistique!C32)","v":0},{"$f":"COUNTIFS(Tableau1[Date Arrivée],Statistique!$M$2,Tableau1[Nat],Statistique!C32)","v":0},{"$f":"COUNTIFS(Tableau1[Date Arrivée],Statistique!$N$2,Tableau1[Nat],Statistique!C32)","v":0},{"$f":"COUNTIFS(Tableau1[Date Arrivée],Statistique!$O$2,Tableau1[Nat],Statistique!C32)","v":0},{"$f":"COUNTIFS(Tableau1[Date Arrivée],Statistique!$P$2,Tableau1[Nat],Statistique!C32)","v":0},{"$f":"COUNTIFS(Tableau1[Date Arrivée],Statistique!$Q$2,Tableau1[Nat],Statistique!C32)","v":0},{"$f":"COUNTIFS(Tableau1[Date Arrivée],Statistique!$R$2,Tableau1[Nat],Statistique!C32)","v":0},{"$f":"COUNTIFS(Tableau1[Date Arrivée],Statistique!$S$2,Tableau1[Nat],Statistique!C32)","v":0},{"$f":"COUNTIFS(Tableau1[Date Arrivée],Statistique!$T$2,Tableau1[Nat],Statistique!C32)","v":0},{"$f":"COUNTIFS(Tableau1[Date Arrivée],Statistique!$U$2,Tableau1[Nat],Statistique!C32)","v":0},{"$f":"COUNTIFS(Tableau1[Date Arrivée],Statistique!$V$2,Tableau1[Nat],Statistique!C32)","v":0},{"$f":"COUNTIFS(Tableau1[Date Arrivée],Statistique!$W$2,Tableau1[Nat],Statistique!C32)","v":0},{"$f":"COUNTIFS(Tableau1[Date Arrivée],Statistique!$X$2,Tableau1[Nat],Statistique!C32)","v":0},{"$f":"COUNTIFS(Tableau1[Date Arrivée],Statistique!$Y$2,Tableau1[Nat],Statistique!C32)","v":0},{"$f":"COUNTIFS(Tableau1[Date Arrivée],Statistique!$Z$2,Tableau1[Nat],Statistique!C32)","v":0},{"$f":"COUNTIFS(Tableau1[Date Arrivée],Statistique!$AA$2,Tableau1[Nat],Statistique!C32)","v":0},{"$f":"COUNTIFS(Tableau1[Date Arrivée],Statistique!$AB$2,Tableau1[Nat],Statistique!C32)","v":0},{"$f":"COUNTIFS(Tableau1[Date Arrivée],Statistique!$AC$2,Tableau1[Nat],Statistique!C32)","v":0},{"$f":"COUNTIFS(Tableau1[Date Arrivée],Statistique!$AD$2,Tableau1[Nat],Statistique!C32)","v":0},{"$f":"COUNTIFS(Tableau1[Date Arrivée],Statistique!$AE$2,Tableau1[Nat],Statistique!C32)","v":0},{"$f":"COUNTIFS(Tableau1[Date Arrivée],Statistique!$AF$2,Tableau1[Nat],Statistique!C32)","v":0},{"$f":"COUNTIFS(Tableau1[Date Arrivée],Statistique!$AG$2,Tableau1[Nat],Statistique!C32)","v":0},{"$f":"COUNTIFS(Tableau1[Date Arrivée],Statistique!$AH$2,Tableau1[Nat],Statistique!C32)","v":0}]
[null,"Syrie","SY",{"$f":"COUNTIFS(Tableau1[Date Arrivée],Statistique!$D$2,Tableau1[Nat],Statistique!C33)","v":0},{"$f":"COUNTIFS(Tableau1[Date Arrivée],Statistique!$E$2,Tableau1[Nat],Statistique!C33)","v":0},{"$f":"COUNTIFS(Tableau1[Date Arrivée],Statistique!$F$2,Tableau1[Nat],Statistique!C33)","v":0},{"$f":"COUNTIFS(Tableau1[Date Arrivée],Statistique!$G$2,Tableau1[Nat],Statistique!C33)","v":0},{"$f":"COUNTIFS(Tableau1[Date Arrivée],Statistique!$H$2,Tableau1[Nat],Statistique!C33)","v":0},{"$f":"COUNTIFS(Tableau1[Date Arrivée],Statistique!$I$2,Tableau1[Nat],Statistique!C33)","v":0},{"$f":"COUNTIFS(Tableau1[Date Arrivée],Statistique!$J$2,Tableau1[Nat],Statistique!C33)","v":0},{"$f":"COUNTIFS(Tableau1[Date Arrivée],Statistique!$K$2,Tableau1[Nat],Statistique!C33)","v":0},{"$f":"COUNTIFS(Tableau1[Date Arrivée],Statistique!$L$2,Tableau1[Nat],Statistique!C33)","v":0},{"$f":"COUNTIFS(Tableau1[Date Arrivée],Statistique!$M$2,Tableau1[Nat],Statistique!C33)","v":0},{"$f":"COUNTIFS(Tableau1[Date Arrivée],Statistique!$N$2,Tableau1[Nat],Statistique!C33)","v":0},{"$f":"COUNTIFS(Tableau1[Date Arrivée],Statistique!$O$2,Tableau1[Nat],Statistique!C33)","v":0},{"$f":"COUNTIFS(Tableau1[Date Arrivée],Statistique!$P$2,Tableau1[Nat],Statistique!C33)","v":0},{"$f":"COUNTIFS(Tableau1[Date Arrivée],Statistique!$Q$2,Tableau1[Nat],Statistique!C33)","v":0},{"$f":"COUNTIFS(Tableau1[Date Arrivée],Statistique!$R$2,Tableau1[Nat],Statistique!C33)","v":0},{"$f":"COUNTIFS(Tableau1[Date Arrivée],Statistique!$S$2,Tableau1[Nat],Statistique!C33)","v":0},{"$f":"COUNTIFS(Tableau1[Date Arrivée],Statistique!$T$2,Tableau1[Nat],Statistique!C33)","v":0},{"$f":"COUNTIFS(Tableau1[Date Arrivée],Statistique!$U$2,Tableau1[Nat],Statistique!C33)","v":0},{"$f":"COUNTIFS(Tableau1[Date Arrivée],Statistique!$V$2,Tableau1[Nat],Statistique!C33)","v":0},{"$f":"COUNTIFS(Tableau1[Date Arrivée],Statistique!$W$2,Tableau1[Nat],Statistique!C33)","v":0},{"$f":"COUNTIFS(Tableau1[Date Arrivée],Statistique!$X$2,Tableau1[Nat],Statistique!C33)","v":0},{"$f":"COUNTIFS(Tableau1[Date Arrivée],Statistique!$Y$2,Tableau1[Nat],Statistique!C33)","v":0},{"$f":"COUNTIFS(Tableau1[Date Arrivée],Statistique!$Z$2,Tableau1[Nat],Statistique!C33)","v":0},{"$f":"COUNTIFS(Tableau1[Date Arrivée],Statistique!$AA$2,Tableau1[Nat],Statistique!C33)","v":0},{"$f":"COUNTIFS(Tableau1[Date Arrivée],Statistique!$AB$2,Tableau1[Nat],Statistique!C33)","v":0},{"$f":"COUNTIFS(Tableau1[Date Arrivée],Statistique!$AC$2,Tableau1[Nat],Statistique!C33)","v":0},{"$f":"COUNTIFS(Tableau1[Date Arrivée],Statistique!$AD$2,Tableau1[Nat],Statistique!C33)","v":0},{"$f":"COUNTIFS(Tableau1[Date Arrivée],Statistique!$AE$2,Tableau1[Nat],Statistique!C33)","v":0},{"$f":"COUNTIFS(Tableau1[Date Arrivée],Statistique!$AF$2,Tableau1[Nat],Statistique!C33)","v":0},{"$f":"COUNTIFS(Tableau1[Date Arrivée],Statistique!$AG$2,Tableau1[Nat],Statistique!C33)","v":0},{"$f":"COUNTIFS(Tableau1[Date Arrivée],Statistique!$AH$2,Tableau1[Nat],Statistique!C33)","v":0}]
[null,"Emirates Arabe","AE",{"$f":"COUNTIFS(Tableau1[Date Arrivée],Statistique!$D$2,Tableau1[Nat],Statistique!C34)","v":0},{"$f":"COUNTIFS(Tableau1[Date Arrivée],Statistique!$E$2,Tableau1[Nat],Statistique!C34)","v":0},{"$f":"COUNTIFS(Tableau1[Date Arrivée],Statistique!$F$2,Tableau1[Nat],Statistique!C34)","v":0},{"$f":"COUNTIFS(Tableau1[Date Arrivée],Statistique!$G$2,Tableau1[Nat],Statistique!C34)","v":0},{"$f":"COUNTIFS(Tableau1[Date Arrivée],Statistique!$H$2,Tableau1[Nat],Statistique!C34)","v":0},{"$f":"COUNTIFS(Tableau1[Date Arrivée],Statistique!$I$2,Tableau1[Nat],Statistique!C34)","v":0},{"$f":"COUNTIFS(Tableau1[Date Arrivée],Statistique!$J$2,Tableau1[Nat],Statistique!C34)","v":0},{"$f":"COUNTIFS(Tableau1[Date Arrivée],Statistique!$K$2,Tableau1[Nat],Statistique!C34)","v":0},{"$f":"COUNTIFS(Tableau1[Date Arrivée],Statistique!$L$2,Tableau1[Nat],Statistique!C34)","v":0},{"$f":"COUNTIFS(Tableau1[Date Arrivée],Statistique!$M$2,Tableau1[Nat],Statistique!C34)","v":0},{"$f":"COUNTIFS(Tableau1[Date Arrivée],Statistique!$N$2,Tableau1[Nat],Statistique!C34)","v":0},{"$f":"COUNTIFS(Tableau1[Date Arrivée],Statistique!$O$2,Tableau1[Nat],Statistique!C34)","v":0},{"$f":"COUNTIFS(Tableau1[Date Arrivée],Statistique!$P$2,Tableau1[Nat],Statistique!C34)","v":0},{"$f":"COUNTIFS(Tableau1[Date Arrivée],Statistique!$Q$2,Tableau1[Nat],Statistique!C34)","v":0},{"$f":"COUNTIFS(Tableau1[Date Arrivée],Statistique!$R$2,Tableau1[Nat],Statistique!C34)","v":0},{"$f":"COUNTIFS(Tableau1[Date Arrivée],Statistique!$S$2,Tableau1[Nat],Statistique!C34)","v":0},{"$f":"COUNTIFS(Tableau1[Date Arrivée],Statistique!$T$2,Tableau1[Nat],Statistique!C34)","v":0},{"$f":"COUNTIFS(Tableau1[Date Arrivée],Statistique!$U$2,Tableau1[Nat],Statistique!C34)","v":0},{"$f":"COUNTIFS(Tableau1[Date Arrivée],Statistique!$V$2,Tableau1[Nat],Statistique!C34)","v":0},{"$f":"COUNTIFS(Tableau1[Date Arrivée],Statistique!$W$2,Tableau1[Nat],Statistique!C34)","v":0},{"$f":"COUNTIFS(Tableau1[Date Arrivée],Statistique!$X$2,Tableau1[Nat],Statistique!C34)","v":0},{"$f":"COUNTIFS(Tableau1[Date Arrivée],Statistique!$Y$2,Tableau1[Nat],Statistique!C34)","v":0},{"$f":"COUNTIFS(Tableau1[Date Arrivée],Statistique!$Z$2,Tableau1[Nat],Statistique!C34)","v":0},{"$f":"COUNTIFS(Tableau1[Date Arrivée],Statistique!$AA$2,Tableau1[Nat],Statistique!C34)","v":0},{"$f":"COUNTIFS(Tableau1[Date Arrivée],Statistique!$AB$2,Tableau1[Nat],Statistique!C34)","v":0},{"$f":"COUNTIFS(Tableau1[Date Arrivée],Statistique!$AC$2,Tableau1[Nat],Statistique!C34)","v":0},{"$f":"COUNTIFS(Tableau1[Date Arrivée],Statistique!$AD$2,Tableau1[Nat],Statistique!C34)","v":0},{"$f":"COUNTIFS(Tableau1[Date Arrivée],Statistique!$AE$2,Tableau1[Nat],Statistique!C34)","v":0},{"$f":"COUNTIFS(Tableau1[Date Arrivée],Statistique!$AF$2,Tableau1[Nat],Statistique!C34)","v":0},{"$f":"COUNTIFS(Tableau1[Date Arrivée],Statistique!$AG$2,Tableau1[Nat],Statistique!C34)","v":0},{"$f":"COUNTIFS(Tableau1[Date Arrivée],Statistique!$AH$2,Tableau1[Nat],Statistique!C34)","v":0}]
[null,"Liban","LB",{"$f":"COUNTIFS(Tableau1[Date Arrivée],Statistique!$D$2,Tableau1[Nat],Statistique!C35)","v":0},{"$f":"COUNTIFS(Tableau1[Date Arrivée],Statistique!$E$2,Tableau1[Nat],Statistique!C35)","v":0},{"$f":"COUNTIFS(Tableau1[Date Arrivée],Statistique!$F$2,Tableau1[Nat],Statistique!C35)","v":0},{"$f":"COUNTIFS(Tableau1[Date Arrivée],Statistique!$G$2,Tableau1[Nat],Statistique!C35)","v":0},{"$f":"COUNTIFS(Tableau1[Date Arrivée],Statistique!$H$2,Tableau1[Nat],Statistique!C35)","v":0},{"$f":"COUNTIFS(Tableau1[Date Arrivée],Statistique!$I$2,Tableau1[Nat],Statistique!C35)","v":0},{"$f":"COUNTIFS(Tableau1[Date Arrivée],Statistique!$J$2,Tableau1[Nat],Statistique!C35)","v":0},{"$f":"COUNTIFS(Tableau1[Date Arrivée],Statistique!$K$2,Tableau1[Nat],Statistique!C35)","v":0},{"$f":"COUNTIFS(Tableau1[Date Arrivée],Statistique!$L$2,Tableau1[Nat],Statistique!C35)","v":0},{"$f":"COUNTIFS(Tableau1[Date Arrivée],Statistique!$M$2,Tableau1[Nat],Statistique!C35)","v":0},{"$f":"COUNTIFS(Tableau1[Date Arrivée],Statistique!$N$2,Tableau1[Nat],Statistique!C35)","v":0},{"$f":"COUNTIFS(Tableau1[Date Arrivée],Statistique!$O$2,Tableau1[Nat],Statistique!C35)","v":0},{"$f":"COUNTIFS(Tableau1[Date Arrivée],Statistique!$P$2,Tableau1[Nat],Statistique!C35)","v":0},{"$f":"COUNTIFS(Tableau1[Date Arrivée],Statistique!$Q$2,Tableau1[Nat],Statistique!C35)","v":0},{"$f":"COUNTIFS(Tableau1[Date Arrivée],Statistique!$R$2,Tableau1[Nat],Statistique!C35)","v":0},{"$f":"COUNTIFS(Tableau1[Date Arrivée],Statistique!$S$2,Tableau1[Nat],Statistique!C35)","v":0},{"$f":"COUNTIFS(Tableau1[Date Arrivée],Statistique!$T$2,Tableau1[Nat],Statistique!C35)","v":0},{"$f":"COUNTIFS(Tableau1[Date Arrivée],Statistique!$U$2,Tableau1[Nat],Statistique!C35)","v":0},{"$f":"COUNTIFS(Tableau1[Date Arrivée],Statistique!$V$2,Tableau1[Nat],Statistique!C35)","v":0},{"$f":"COUNTIFS(Tableau1[Date Arrivée],Statistique!$W$2,Tableau1[Nat],Statistique!C35)","v":0},{"$f":"COUNTIFS(Tableau1[Date Arrivée],Statistique!$X$2,Tableau1[Nat],Statistique!C35)","v":0},{"$f":"COUNTIFS(Tableau1[Date Arrivée],Statistique!$Y$2,Tableau1[Nat],Statistique!C35)","v":0},{"$f":"COUNTIFS(Tableau1[Date Arrivée],Statistique!$Z$2,Tableau1[Nat],Statistique!C35)","v":0},{"$f":"COUNTIFS(Tableau1[Date Arrivée],Statistique!$AA$2,Tableau1[Nat],Statistique!C35)","v":0},{"$f":"COUNTIFS(Tableau1[Date Arrivée],Statistique!$AB$2,Tableau1[Nat],Statistique!C35)","v":0},{"$f":"COUNTIFS(Tableau1[Date Arrivée],Statistique!$AC$2,Tableau1[Nat],Statistique!C35)","v":0},{"$f":"COUNTIFS(Tableau1[Date Arrivée],Statistique!$AD$2,Tableau1[Nat],Statistique!C35)","v":0},{"$f":"COUNTIFS(Tableau1[Date Arrivée],Statistique!$AE$2,Tableau1[Nat],Statistique!C35)","v":0},{"$f":"COUNTIFS(Tableau1[Date Arrivée],Statistique!$AF$2,Tableau1[Nat],Statistique!C35)","v":0},{"$f":"COUNTIFS(Tableau1[Date Arrivée],Statistique!$AG$2,Tableau1[Nat],Statistique!C35)","v":0},{"$f":"COUNTIFS(Tableau1[Date Arrivée],Statistique!$AH$2,Tableau1[Nat],Statistique!C35)","v":0}]
[null,"Kuweit","KW",{"$f":"COUNTIFS(Tableau1[Date Arrivée],Statistique!$D$2,Tableau1[Nat],Statistique!C36)","v":0},{"$f":"COUNTIFS(Tableau1[Date Arrivée],Statistique!$E$2,Tableau1[Nat],Statistique!C36)","v":0},{"$f":"COUNTIFS(Tableau1[Date Arrivée],Statistique!$F$2,Tableau1[Nat],Statistique!C36)","v":0},{"$f":"COUNTIFS(Tableau1[Date Arrivée],Statistique!$G$2,Tableau1[Nat],Statistique!C36)","v":0},{"$f":"COUNTIFS(Tableau1[Date Arrivée],Statistique!$H$2,Tableau1[Nat],Statistique!C36)","v":0},{"$f":"COUNTIFS(Tableau1[Date Arrivée],Statistique!$I$2,Tableau1[Nat],Statistique!C36)","v":0},{"$f":"COUNTIFS(Tableau1[Date Arrivée],Statistique!$J$2,Tableau1[Nat],Statistique!C36)","v":0},{"$f":"COUNTIFS(Tableau1[Date Arrivée],Statistique!$K$2,Tableau1[Nat],Statistique!C36)","v":0},{"$f":"COUNTIFS(Tableau1[Date Arrivée],Statistique!$L$2,Tableau1[Nat],Statistique!C36)","v":0},{"$f":"COUNTIFS(Tableau1[Date Arrivée],Statistique!$M$2,Tableau1[Nat],Statistique!C36)","v":0},{"$f":"COUNTIFS(Tableau1[Date Arrivée],Statistique!$N$2,Tableau1[Nat],Statistique!C36)","v":0},{"$f":"COUNTIFS(Tableau1[Date Arrivée],Statistique!$O$2,Tableau1[Nat],Statistique!C36)","v":0},{"$f":"COUNTIFS(Tableau1[Date Arrivée],Statistique!$P$2,Tableau1[Nat],Statistique!C36)","v":0},{"$f":"COUNTIFS(Tableau1[Date Arrivée],Statistique!$Q$2,Tableau1[Nat],Statistique!C36)","v":0},{"$f":"COUNTIFS(Tableau1[Date Arrivée],Statistique!$R$2,Tableau1[Nat],Statistique!C36)","v":0},{"$f":"COUNTIFS(Tableau1[Date Arrivée],Statistique!$S$2,Tableau1[Nat],Statistique!C36)","v":0},{"$f":"COUNTIFS(Tableau1[Date Arrivée],Statistique!$T$2,Tableau1[Nat],Statistique!C36)","v":0},{"$f":"COUNTIFS(Tableau1[Date Arrivée],Statistique!$U$2,Tableau1[Nat],Statistique!C36)","v":0},{"$f":"COUNTIFS(Tableau1[Date Arrivée],Statistique!$V$2,Tableau1[Nat],Statistique!C36)","v":0},{"$f":"COUNTIFS(Tableau1[Date Arrivée],Statistique!$W$2,Tableau1[Nat],Statistique!C36)","v":0},{"$f":"COUNTIFS(Tableau1[Date Arrivée],Statistique!$X$2,Tableau1[Nat],Statistique!C36)","v":0},{"$f":"COUNTIFS(Tableau1[Date Arrivée],Statistique!$Y$2,Tableau1[Nat],Statistique!C36)","v":0},{"$f":"COUNTIFS(Tableau1[Date Arrivée],Statistique!$Z$2,Tableau1[Nat],Statistique!C36)","v":0},{"$f":"COUNTIFS(Tableau1[Date Arrivée],Statistique!$AA$2,Tableau1[Nat],Statistique!C36)","v":0},{"$f":"COUNTIFS(Tableau1[Date Arrivée],Statistique!$AB$2,Tableau1[Nat],Statistique!C36)","v":0},{"$f":"COUNTIFS(Tableau1[Date Arrivée],Statistique!$AC$2,Tableau1[Nat],Statistique!C36)","v":0},{"$f":"COUNTIFS(Tableau1[Date Arrivée],Statistique!$AD$2,Tableau1[Nat],Statistique!C36)","v":0},{"$f":"COUNTIFS(Tableau1[Date Arrivée],Statistique!$AE$2,Tableau1[Nat],Statistique!C36)","v":0},{"$f":"COUNTIFS(Tableau1[Date Arrivée],Statistique!$AF$2,Tableau1[Nat],Statistique!C36)","v":0},{"$f":"COUNTIFS(Tableau1[Date Arrivée],Statistique!$AG$2,Tableau1[Nat],Statistique!C36)","v":0},{"$f":"COUNTIFS(Tableau1[Date Arrivée],Statistique!$AH$2,Tableau1[Nat],Statistique!C36)","v":0}]
[null,"Cameroun","CM",{"$f":"COUNTIFS(Tableau1[Date Arrivée],Statistique!$D$2,Tableau1[Nat],Statistique!C37)","v":0},{"$f":"COUNTIFS(Tableau1[Date Arrivée],Statistique!$E$2,Tableau1[Nat],Statistique!C37)","v":0},{"$f":"COUNTIFS(Tableau1[Date Arrivée],Statistique!$F$2,Tableau1[Nat],Statistique!C37)","v":0},{"$f":"COUNTIFS(Tableau1[Date Arrivée],Statistique!$G$2,Tableau1[Nat],Statistique!C37)","v":0},{"$f":"COUNTIFS(Tableau1[Date Arrivée],Statistique!$H$2,Tableau1[Nat],Statistique!C37)","v":0},{"$f":"COUNTIFS(Tableau1[Date Arrivée],Statistique!$I$2,Tableau1[Nat],Statistique!C37)","v":0},{"$f":"COUNTIFS(Tableau1[Date Arrivée],Statistique!$J$2,Tableau1[Nat],Statistique!C37)","v":0},{"$f":"COUNTIFS(Tableau1[Date Arrivée],Statistique!$K$2,Tableau1[Nat],Statistique!C37)","v":0},{"$f":"COUNTIFS(Tableau1[Date Arrivée],Statistique!$L$2,Tableau1[Nat],Statistique!C37)","v":0},{"$f":"COUNTIFS(Tableau1[Date Arrivée],Statistique!$M$2,Tableau1[Nat],Statistique!C37)","v":0},{"$f":"COUNTIFS(Tableau1[Date Arrivée],Statistique!$N$2,Tableau1[Nat],Statistique!C37)","v":0},{"$f":"COUNTIFS(Tableau1[Date Arrivée],Statistique!$O$2,Tableau1[Nat],Statistique!C37)","v":0},{"$f":"COUNTIFS(Tableau1[Date Arrivée],Statistique!$P$2,Tableau1[Nat],Statistique!C37)","v":0},{"$f":"COUNTIFS(Tableau1[Date Arrivée],Statistique!$Q$2,Tableau1[Nat],Statistique!C37)","v":0},{"$f":"COUNTIFS(Tableau1[Date Arrivée],Statistique!$R$2,Tableau1[Nat],Statistique!C37)","v":0},{"$f":"COUNTIFS(Tableau1[Date Arrivée],Statistique!$S$2,Tableau1[Nat],Statistique!C37)","v":0},{"$f":"COUNTIFS(Tableau1[Date Arrivée],Statistique!$T$2,Tableau1[Nat],Statistique!C37)","v":0},{"$f":"COUNTIFS(Tableau1[Date Arrivée],Statistique!$U$2,Tableau1[Nat],Statistique!C37)","v":0},{"$f":"COUNTIFS(Tableau1[Date Arrivée],Statistique!$V$2,Tableau1[Nat],Statistique!C37)","v":0},{"$f":"COUNTIFS(Tableau1[Date Arrivée],Statistique!$W$2,Tableau1[Nat],Statistique!C37)","v":0},{"$f":"COUNTIFS(Tableau1[Date Arrivée],Statistique!$X$2,Tableau1[Nat],Statistique!C37)","v":0},{"$f":"COUNTIFS(Tableau1[Date Arrivée],Statistique!$Y$2,Tableau1[Nat],Statistique!C37)","v":0},{"$f":"COUNTIFS(Tableau1[Date Arrivée],Statistique!$Z$2,Tableau1[Nat],Statistique!C37)","v":0},{"$f":"COUNTIFS(Tableau1[Date Arrivée],Statistique!$AA$2,Tableau1[Nat],Statistique!C37)","v":0},{"$f":"COUNTIFS(Tableau1[Date Arrivée],Statistique!$AB$2,Tableau1[Nat],Statistique!C37)","v":0},{"$f":"COUNTIFS(Tableau1[Date Arrivée],Statistique!$AC$2,Tableau1[Nat],Statistique!C37)","v":0},{"$f":"COUNTIFS(Tableau1[Date Arrivée],Statistique!$AD$2,Tableau1[Nat],Statistique!C37)","v":0},{"$f":"COUNTIFS(Tableau1[Date Arrivée],Statistique!$AE$2,Tableau1[Nat],Statistique!C37)","v":0},{"$f":"COUNTIFS(Tableau1[Date Arrivée],Statistique!$AF$2,Tableau1[Nat],Statistique!C37)","v":0},{"$f":"COUNTIFS(Tableau1[Date Arrivée],Statistique!$AG$2,Tableau1[Nat],Statistique!C37)","v":0},{"$f":"COUNTIFS(Tableau1[Date Arrivée],Statistique!$AH$2,Tableau1[Nat],Statistique!C37)","v":0}]
[null,"Sénégal","SN",{"$f":"COUNTIFS(Tableau1[Date Arrivée],Statistique!$D$2,Tableau1[Nat],Statistique!C38)","v":0},{"$f":"COUNTIFS(Tableau1[Date Arrivée],Statistique!$E$2,Tableau1[Nat],Statistique!C38)","v":0},{"$f":"COUNTIFS(Tableau1[Date Arrivée],Statistique!$F$2,Tableau1[Nat],Statistique!C38)","v":0},{"$f":"COUNTIFS(Tableau1[Date Arrivée],Statistique!$G$2,Tableau1[Nat],Statistique!C38)","v":0},{"$f":"COUNTIFS(Tableau1[Date Arrivée],Statistique!$H$2,Tableau1[Nat],Statistique!C38)","v":0},{"$f":"COUNTIFS(Tableau1[Date Arrivée],Statistique!$I$2,Tableau1[Nat],Statistique!C38)","v":0},{"$f":"COUNTIFS(Tableau1[Date Arrivée],Statistique!$J$2,Tableau1[Nat],Statistique!C38)","v":0},{"$f":"COUNTIFS(Tableau1[Date Arrivée],Statistique!$K$2,Tableau1[Nat],Statistique!C38)","v":0},{"$f":"COUNTIFS(Tableau1[Date Arrivée],Statistique!$L$2,Tableau1[Nat],Statistique!C38)","v":0},{"$f":"COUNTIFS(Tableau1[Date Arrivée],Statistique!$M$2,Tableau1[Nat],Statistique!C38)","v":0},{"$f":"COUNTIFS(Tableau1[Date Arrivée],Statistique!$N$2,Tableau1[Nat],Statistique!C38)","v":0},{"$f":"COUNTIFS(Tableau1[Date Arrivée],Statistique!$O$2,Tableau1[Nat],Statistique!C38)","v":0},{"$f":"COUNTIFS(Tableau1[Date Arrivée],Statistique!$P$2,Tableau1[Nat],Statistique!C38)","v":0},{"$f":"COUNTIFS(Tableau1[Date Arrivée],Statistique!$Q$2,Tableau1[Nat],Statistique!C38)","v":0},{"$f":"COUNTIFS(Tableau1[Date Arrivée],Statistique!$R$2,Tableau1[Nat],Statistique!C38)","v":0},{"$f":"COUNTIFS(Tableau1[Date Arrivée],Statistique!$S$2,Tableau1[Nat],Statistique!C38)","v":0},{"$f":"COUNTIFS(Tableau1[Date Arrivée],Statistique!$T$2,Tableau1[Nat],Statistique!C38)","v":0},{"$f":"COUNTIFS(Tableau1[Date Arrivée],Statistique!$U$2,Tableau1[Nat],Statistique!C38)","v":0},{"$f":"COUNTIFS(Tableau1[Date Arrivée],Statistique!$V$2,Tableau1[Nat],Statistique!C38)","v":0},{"$f":"COUNTIFS(Tableau1[Date Arrivée],Statistique!$W$2,Tableau1[Nat],Statistique!C38)","v":0},{"$f":"COUNTIFS(Tableau1[Date Arrivée],Statistique!$X$2,Tableau1[Nat],Statistique!C38)","v":0},{"$f":"COUNTIFS(Tableau1[Date Arrivée],Statistique!$Y$2,Tableau1[Nat],Statistique!C38)","v":0},{"$f":"COUNTIFS(Tableau1[Date Arrivée],Statistique!$Z$2,Tableau1[Nat],Statistique!C38)","v":0},{"$f":"COUNTIFS(Tableau1[Date Arrivée],Statistique!$AA$2,Tableau1[Nat],Statistique!C38)","v":0},{"$f":"COUNTIFS(Tableau1[Date Arrivée],Statistique!$AB$2,Tableau1[Nat],Statistique!C38)","v":0},{"$f":"COUNTIFS(Tableau1[Date Arrivée],Statistique!$AC$2,Tableau1[Nat],Statistique!C38)","v":0},{"$f":"COUNTIFS(Tableau1[Date Arrivée],Statistique!$AD$2,Tableau1[Nat],Statistique!C38)","v":0},{"$f":"COUNTIFS(Tableau1[Date Arrivée],Statistique!$AE$2,Tableau1[Nat],Statistique!C38)","v":0},{"$f":"COUNTIFS(Tableau1[Date Arrivée],Statistique!$AF$2,Tableau1[Nat],Statistique!C38)","v":0},{"$f":"COUNTIFS(Tableau1[Date Arrivée],Statistique!$AG$2,Tableau1[Nat],Statistique!C38)","v":0},{"$f":"COUNTIFS(Tableau1[Date Arrivée],Statistique!$AH$2,Tableau1[Nat],Statistique!C38)","v":0}]
[null,"Côte d'ivoire","CI",{"$f":"COUNTIFS(Tableau1[Date Arrivée],Statistique!$D$2,Tableau1[Nat],Statistique!C39)","v":0},{"$f":"COUNTIFS(Tableau1[Date Arrivée],Statistique!$E$2,Tableau1[Nat],Statistique!C39)","v":0},{"$f":"COUNTIFS(Tableau1[Date Arrivée],Statistique!$F$2,Tableau1[Nat],Statistique!C39)","v":0},{"$f":"COUNTIFS(Tableau1[Date Arrivée],Statistique!$G$2,Tableau1[Nat],Statistique!C39)","v":0},{"$f":"COUNTIFS(Tableau1[Date Arrivée],Statistique!$H$2,Tableau1[Nat],Statistique!C39)","v":0},{"$f":"COUNTIFS(Tableau1[Date Arrivée],Statistique!$I$2,Tableau1[Nat],Statistique!C39)","v":0},{"$f":"COUNTIFS(Tableau1[Date Arrivée],Statistique!$J$2,Tableau1[Nat],Statistique!C39)","v":0},{"$f":"COUNTIFS(Tableau1[Date Arrivée],Statistique!$K$2,Tableau1[Nat],Statistique!C39)","v":0},{"$f":"COUNTIFS(Tableau1[Date Arrivée],Statistique!$L$2,Tableau1[Nat],Statistique!C39)","v":0},{"$f":"COUNTIFS(Tableau1[Date Arrivée],Statistique!$M$2,Tableau1[Nat],Statistique!C39)","v":0},{"$f":"COUNTIFS(Tableau1[Date Arrivée],Statistique!$N$2,Tableau1[Nat],Statistique!C39)","v":0},{"$f":"COUNTIFS(Tableau1[Date Arrivée],Statistique!$O$2,Tableau1[Nat],Statistique!C39)","v":0},{"$f":"COUNTIFS(Tableau1[Date Arrivée],Statistique!$P$2,Tableau1[Nat],Statistique!C39)","v":0},{"$f":"COUNTIFS(Tableau1[Date Arrivée],Statistique!$Q$2,Tableau1[Nat],Statistique!C39)","v":0},{"$f":"COUNTIFS(Tableau1[Date Arrivée],Statistique!$R$2,Tableau1[Nat],Statistique!C39)","v":0},{"$f":"COUNTIFS(Tableau1[Date Arrivée],Statistique!$S$2,Tableau1[Nat],Statistique!C39)","v":0},{"$f":"COUNTIFS(Tableau1[Date Arrivée],Statistique!$T$2,Tableau1[Nat],Statistique!C39)","v":0},{"$f":"COUNTIFS(Tableau1[Date Arrivée],Statistique!$U$2,Tableau1[Nat],Statistique!C39)","v":0},{"$f":"COUNTIFS(Tableau1[Date Arrivée],Statistique!$V$2,Tableau1[Nat],Statistique!C39)","v":0},{"$f":"COUNTIFS(Tableau1[Date Arrivée],Statistique!$W$2,Tableau1[Nat],Statistique!C39)","v":0},{"$f":"COUNTIFS(Tableau1[Date Arrivée],Statistique!$X$2,Tableau1[Nat],Statistique!C39)","v":0},{"$f":"COUNTIFS(Tableau1[Date Arrivée],Statistique!$Y$2,Tableau1[Nat],Statistique!C39)","v":0},{"$f":"COUNTIFS(Tableau1[Date Arrivée],Statistique!$Z$2,Tableau1[Nat],Statistique!C39)","v":0},{"$f":"COUNTIFS(Tableau1[Date Arrivée],Statistique!$AA$2,Tableau1[Nat],Statistique!C39)","v":0},{"$f":"COUNTIFS(Tableau1[Date Arrivée],Statistique!$AB$2,Tableau1[Nat],Statistique!C39)","v":0},{"$f":"COUNTIFS(Tableau1[Date Arrivée],Statistique!$AC$2,Tableau1[Nat],Statistique!C39)","v":0},{"$f":"COUNTIFS(Tableau1[Date Arrivée],Statistique!$AD$2,Tableau1[Nat],Statistique!C39)","v":0},{"$f":"COUNTIFS(Tableau1[Date Arrivée],Statistique!$AE$2,Tableau1[Nat],Statistique!C39)","v":0},{"$f":"COUNTIFS(Tableau1[Date Arrivée],Statistique!$AF$2,Tableau1[Nat],Statistique!C39)","v":0},{"$f":"COUNTIFS(Tableau1[Date Arrivée],Statistique!$AG$2,Tableau1[Nat],Statistique!C39)","v":0},{"$f":"COUNTIFS(Tableau1[Date Arrivée],Statistique!$AH$2,Tableau1[Nat],Statistique!C39)","v":0}]
[null,"Afrique","AF",{"$f":"COUNTIFS(Tableau1[Date Arrivée],Statistique!$D$2,Tableau1[Nat],Statistique!C40)","v":0},{"$f":"COUNTIFS(Tableau1[Date Arrivée],Statistique!$E$2,Tableau1[Nat],Statistique!C40)","v":0},{"$f":"COUNTIFS(Tableau1[Date Arrivée],Statistique!$F$2,Tableau1[Nat],Statistique!C40)","v":0},{"$f":"COUNTIFS(Tableau1[Date Arrivée],Statistique!$G$2,Tableau1[Nat],Statistique!C40)","v":0},{"$f":"COUNTIFS(Tableau1[Date Arrivée],Statistique!$H$2,Tableau1[Nat],Statistique!C40)","v":0},{"$f":"COUNTIFS(Tableau1[Date Arrivée],Statistique!$I$2,Tableau1[Nat],Statistique!C40)","v":0},{"$f":"COUNTIFS(Tableau1[Date Arrivée],Statistique!$J$2,Tableau1[Nat],Statistique!C40)","v":0},{"$f":"COUNTIFS(Tableau1[Date Arrivée],Statistique!$K$2,Tableau1[Nat],Statistique!C40)","v":0},{"$f":"COUNTIFS(Tableau1[Date Arrivée],Statistique!$L$2,Tableau1[Nat],Statistique!C40)","v":0},{"$f":"COUNTIFS(Tableau1[Date Arrivée],Statistique!$M$2,Tableau1[Nat],Statistique!C40)","v":0},{"$f":"COUNTIFS(Tableau1[Date Arrivée],Statistique!$N$2,Tableau1[Nat],Statistique!C40)","v":0},{"$f":"COUNTIFS(Tableau1[Date Arrivée],Statistique!$O$2,Tableau1[Nat],Statistique!C40)","v":0},{"$f":"COUNTIFS(Tableau1[Date Arrivée],Statistique!$P$2,Tableau1[Nat],Statistique!C40)","v":0},{"$f":"COUNTIFS(Tableau1[Date Arrivée],Statistique!$Q$2,Tableau1[Nat],Statistique!C40)","v":0},{"$f":"COUNTIFS(Tableau1[Date Arrivée],Statistique!$R$2,Tableau1[Nat],Statistique!C40)","v":0},{"$f":"COUNTIFS(Tableau1[Date Arrivée],Statistique!$S$2,Tableau1[Nat],Statistique!C40)","v":0},{"$f":"COUNTIFS(Tableau1[Date Arrivée],Statistique!$T$2,Tableau1[Nat],Statistique!C40)","v":0},{"$f":"COUNTIFS(Tableau1[Date Arrivée],Statistique!$U$2,Tableau1[Nat],Statistique!C40)","v":0},{"$f":"COUNTIFS(Tableau1[Date Arrivée],Statistique!$V$2,Tableau1[Nat],Statistique!C40)","v":0},{"$f":"COUNTIFS(Tableau1[Date Arrivée],Statistique!$W$2,Tableau1[Nat],Statistique!C40)","v":0},{"$f":"COUNTIFS(Tableau1[Date Arrivée],Statistique!$X$2,Tableau1[Nat],Statistique!C40)","v":0},{"$f":"COUNTIFS(Tableau1[Date Arrivée],Statistique!$Y$2,Tableau1[Nat],Statistique!C40)","v":0},{"$f":"COUNTIFS(Tableau1[Date Arrivée],Statistique!$Z$2,Tableau1[Nat],Statistique!C40)","v":0},{"$f":"COUNTIFS(Tableau1[Date Arrivée],Statistique!$AA$2,Tableau1[Nat],Statistique!C40)","v":0},{"$f":"COUNTIFS(Tableau1[Date Arrivée],Statistique!$AB$2,Tableau1[Nat],Statistique!C40)","v":0},{"$f":"COUNTIFS(Tableau1[Date Arrivée],Statistique!$AC$2,Tableau1[Nat],Statistique!C40)","v":0},{"$f":"COUNTIFS(Tableau1[Date Arrivée],Statistique!$AD$2,Tableau1[Nat],Statistique!C40)","v":0},{"$f":"COUNTIFS(Tableau1[Date Arrivée],Statistique!$AE$2,Tableau1[Nat],Statistique!C40)","v":0},{"$f":"COUNTIFS(Tableau1[Date Arrivée],Statistique!$AF$2,Tableau1[Nat],Statistique!C40)","v":0},{"$f":"COUNTIFS(Tableau1[Date Arrivée],Statistique!$AG$2,Tableau1[Nat],Statistique!C40)","v":0},{"$f":"COUNTIFS(Tableau1[Date Arrivée],Statistique!$AH$2,Tableau1[Nat],Statistique!C40)","v":0}]
[null,"Brésil","BR",{"$f":"COUNTIFS(Tableau1[Date Arrivée],Statistique!$D$2,Tableau1[Nat],Statistique!C41)","v":0},{"$f":"COUNTIFS(Tableau1[Date Arrivée],Statistique!$E$2,Tableau1[Nat],Statistique!C41)","v":0},{"$f":"COUNTIFS(Tableau1[Date Arrivée],Statistique!$F$2,Tableau1[Nat],Statistique!C41)","v":1},{"$f":"COUNTIFS(Tableau1[Date Arrivée],Statistique!$G$2,Tableau1[Nat],Statistique!C41)","v":0},{"$f":"COUNTIFS(Tableau1[Date Arrivée],Statistique!$H$2,Tableau1[Nat],Statistique!C41)","v":0},{"$f":"COUNTIFS(Tableau1[Date Arrivée],Statistique!$I$2,Tableau1[Nat],Statistique!C41)","v":0},{"$f":"COUNTIFS(Tableau1[Date Arrivée],Statistique!$J$2,Tableau1[Nat],Statistique!C41)","v":0},{"$f":"COUNTIFS(Tableau1[Date Arrivée],Statistique!$K$2,Tableau1[Nat],Statistique!C41)","v":0},{"$f":"COUNTIFS(Tableau1[Date Arrivée],Statistique!$L$2,Tableau1[Nat],Statistique!C41)","v":0},{"$f":"COUNTIFS(Tableau1[Date Arrivée],Statistique!$M$2,Tableau1[Nat],Statistique!C41)","v":0},{"$f":"COUNTIFS(Tableau1[Date Arrivée],Statistique!$N$2,Tableau1[Nat],Statistique!C41)","v":0},{"$f":"COUNTIFS(Tableau1[Date Arrivée],Statistique!$O$2,Tableau1[Nat],Statistique!C41)","v":0},{"$f":"COUNTIFS(Tableau1[Date Arrivée],Statistique!$P$2,Tableau1[Nat],Statistique!C41)","v":0},{"$f":"COUNTIFS(Tableau1[Date Arrivée],Statistique!$Q$2,Tableau1[Nat],Statistique!C41)","v":0},{"$f":"COUNTIFS(Tableau1[Date Arrivée],Statistique!$R$2,Tableau1[Nat],Statistique!C41)","v":0},{"$f":"COUNTIFS(Tableau1[Date Arrivée],Statistique!$S$2,Tableau1[Nat],Statistique!C41)","v":0},{"$f":"COUNTIFS(Tableau1[Date Arrivée],Statistique!$T$2,Tableau1[Nat],Statistique!C41)","v":0},{"$f":"COUNTIFS(Tableau1[Date Arrivée],Statistique!$U$2,Tableau1[Nat],Statistique!C41)","v":0},{"$f":"COUNTIFS(Tableau1[Date Arrivée],Statistique!$V$2,Tableau1[Nat],Statistique!C41)","v":0},{"$f":"COUNTIFS(Tableau1[Date Arrivée],Statistique!$W$2,Tableau1[Nat],Statistique!C41)","v":0},{"$f":"COUNTIFS(Tableau1[Date Arrivée],Statistique!$X$2,Tableau1[Nat],Statistique!C41)","v":0},{"$f":"COUNTIFS(Tableau1[Date Arrivée],Statistique!$Y$2,Tableau1[Nat],Statistique!C41)","v":0},{"$f":"COUNTIFS(Tableau1[Date Arrivée],Statistique!$Z$2,Tableau1[Nat],Statistique!C41)","v":0},{"$f":"COUNTIFS(Tableau1[Date Arrivée],Statistique!$AA$2,Tableau1[Nat],Statistique!C41)","v":0},{"$f":"COUNTIFS(Tableau1[Date Arrivée],Statistique!$AB$2,Tableau1[Nat],Statistique!C41)","v":0},{"$f":"COUNTIFS(Tableau1[Date Arrivée],Statistique!$AC$2,Tableau1[Nat],Statistique!C41)","v":0},{"$f":"COUNTIFS(Tableau1[Date Arrivée],Statistique!$AD$2,Tableau1[Nat],Statistique!C41)","v":0},{"$f":"COUNTIFS(Tableau1[Date Arrivée],Statistique!$AE$2,Tableau1[Nat],Statistique!C41)","v":0},{"$f":"COUNTIFS(Tableau1[Date Arrivée],Statistique!$AF$2,Tableau1[Nat],Statistique!C41)","v":0},{"$f":"COUNTIFS(Tableau1[Date Arrivée],Statistique!$AG$2,Tableau1[Nat],Statistique!C41)","v":0},{"$f":"COUNTIFS(Tableau1[Date Arrivée],Statistique!$AH$2,Tableau1[Nat],Statistique!C41)","v":0}]
[null,"Total Arrivée Mensuel",null,{"$f":"IFERROR(SUM(D3:D41),\"\")","v":2},{"$f":"IFERROR(SUM(E3:E41),\"\")","v":0},{"$f":"IFERROR(SUM(F3:F41),\"\")","v":3},0,1,0,0,0,0,0,1,0,0,0,0,0,0,0,0,0,0,0,0,1,0,0,0,0,0,0,0]
[null,"Chambre Occupées",null,{"$f":"IFERROR(SUM(IF(Liste<>\"\",1/COUNTIF(Liste,Liste))),\"\")","v":2},{"$f":"IFERROR(SUM(IF(Liste<>\"\",1/COUNTIF(Liste,Liste))),\"\")","v":""},{"$f":"IFERROR(SUM(IF(Liste<>\"\",1/COUNTIF(Liste,Liste))),\"\")","v":2},{"$f":"IFERROR(SUM(IF(Liste<>\"\",1/COUNTIF(Liste,Liste))),\"\")","v":""},{"$f":"IFERROR(SUM(IF(Liste<>\"\",1/COUNTIF(Liste,Liste))),\"\")","v":1},{"$f":"IFERROR(SUM(IF(Liste<>\"\",1/COUNTIF(Liste,Liste))),\"\")","v":""},{"$f":"IFERROR(SUM(IF(Liste<>\"\",1/COUNTIF(Liste,Liste))),\"\")","v":""},{"$f":"IFERROR(SUM(IF(Liste<>\"\",1/COUNTIF(Liste,Liste))),\"\")","v":""},{"$f":"IFERROR(SUM(IF(Liste<>\"\",1/COUNTIF(Liste,Liste))),\"\")","v":""},{"$f":"IFERROR(SUM(IF(Liste<>\"\",1/COUNTIF(Liste,Liste))),\"\")","v":""},{"$f":"IFERROR(SUM(IF(Liste<>\"\",1/COUNTIF(Liste,Liste))),\"\")","v":1},{"$f":"IFERROR(SUM(IF(Liste<>\"\",1/COUNTIF(Liste,Liste))),\"\")","v":""},{"$f":"IFERROR(SUM(IF(Liste<>\"\",1/COUNTIF(Liste,Liste))),\"\")","v":""},{"$f":"IFERROR(SUM(IF(Liste<>\"\",1/COUNTIF(Liste,Liste))),\"\")","v":""},{"$f":"IFERROR(SUM(IF(Liste<>\"\",1/COUNTIF(Liste,Liste))),\"\")","v":""},{"$f":"IFERROR(SUM(IF(Liste<>\"\",1/COUNTIF(Liste,Liste))),\"\")","v":""},{"$f":"IFERROR(SUM(IF(Liste<>\"\",1/COUNTIF(Liste,Liste))),\"\")","v":""},{"$f":"IFERROR(SUM(IF(Liste<>\"\",1/COUNTIF(Liste,Liste))),\"\")","v":""},{"$f":"IFERROR(SUM(IF(Liste<>\"\",1/COUNTIF(Liste,Liste))),\"\")","v":""},{"$f":"IFERROR(SUM(IF(Liste<>\"\",1/COUNTIF(Liste,Liste))),\"\")","v":""},{"$f":"IFERROR(SUM(IF(Liste<>\"\",1/COUNTIF(Liste,Liste))),\"\")","v":""},{"$f":"IFERROR(SUM(IF(Liste<>\"\",1/COUNTIF(Liste,Liste))),\"\")","v":""},{"$f":"IFERROR(SUM(IF(Liste<>\"\",1/COUNTIF(Liste,Liste))),\"\")","v":""},{"$f":"IFERROR(SUM(IF(Liste<>\"\",1/COUNTIF(Liste,Liste))),\"\")","v":1},{"$f":"IFERROR(SUM(IF(Liste<>\"\",1/COUNTIF(Liste,Liste))),\"\")","v":""},{"$f":"IFERROR(SUM(IF(Liste<>\"\",1/COUNTIF(Liste,Liste))),\"\")","v":""},{"$f":"IFERROR(SUM(IF(Liste<>\"\",1/COUNTIF(Liste,Liste))),\"\")","v":""},{"$f":"IFERROR(SUM(IF(Liste<>\"\",1/COUNTIF(Liste,Liste))),\"\")","v":""},{"$f":"IFERROR(SUM(IF(Liste<>\"\",1/COUNTIF(Liste,Liste))),\"\")","v":""},{"$f":"IFERROR(SUM(IF(Liste<>\"\",1/COUNTIF(Liste,Liste))),\"\")","v":""},{"$f":"IFERROR(SUM(IF(Liste<>\"\",1/COUNTIF(Liste,Liste))),\"\")","v":""}]

{"sheet":"Stat_Nuitée","index":3,"n_rows":43,"n_cols":86,"rows_kept":43,"cut":false,"hidden":false,"merged":[[0,11,0,21],[41,1,41,2],[42,1,42,2],[0,3,0,5]]}
[5,null,1,{"$f":"DATE(C1+2018,A1,1)","v":"2019-05-01"},null,null,null,null,null,null,null,null,null,null,null,null,null,null,null,null,null,null,null,null,null,null,null,null,null,null,null,null,null,null,null,null,null,null,null,null,null,null,null,null,null,null,null,null,null,null,null,null,null,null,null,null,null,{"$f":"INDEX(BB2:BB13,C1)","v":2019}]
[null,null,null,{"$f":"D1","v":"2019-05-01"},{"$f":"D2+1","v":"2019-05-02"},"2019-05-03","2019-05-04","2019-05-05","2019-05-06","2019-05-07","2019-05-08","2019-05-09","2019-05-10","2019-05-11","2019-05-12","2019-05-13","2019-05-14","2019-05-15","2019-05-16","2019-05-17","2019-05-18","2019-05-19","2019-05-20","2019-05-21","2019-05-22","2019-05-23","2019-05-24","2019-05-25","2019-05-26","2019-05-27","2019-05-28","2019-05-29","2019-05-30","2019-05-31",null,null,null,null,null,null,null,null,null,null,null,null,null,null,null,null,null,null,null,2019,"Janvier",null,"Premier de l'An",null,{"$f":"DATE(BF1,1,1)","v":"2019-01-01"},null,null,null,null,null,null,null,null,null,null,null,null,null,null,null,null,null,null,null,null,null,null,null,null,null,null,"2021-08-01"]
[null,"France","FR",{"$f":"COUNTIFS(Tableau1[Date Arrivée],\"<=D2\",Tableau1[Date Départ],\">=Stat_Nuitée!$D$2\",Tableau1[Nat],Stat_Nuitée!C3)","v":0},{"$f":"COUNTIFS(Tableau1[Date Arrivée],Stat_Nuitée!$D$2:$AH$2,Tableau1[Nat],Stat_Nuitée!C3)","v":0},{"$f":"COUNTIFS(Tableau1[Date Départ],Stat_Nuitée!$D$2:$AH$2,Tableau1[Chb],Stat_Nuitée!D3)","v":0},{"$f":"COUNTIFS(Tableau1[Durée],Stat_Nuitée!$D$2:$AH$2,Tableau1[Nom],Stat_Nuitée!E3)","v":0},{"$f":"COUNTIFS(Tableau1[C_Id],Stat_Nuitée!$D$2:$AH$2,Tableau1[Prénom],Stat_Nuitée!F3)","v":0},{"$f":"COUNTIFS(Tableau1[Titre],Stat_Nuitée!$D$2:$AH$2,Tableau1[Naissance],Stat_Nuitée!G3)","v":0},{"$f":"COUNTIFS(Tableau1[Nat],Stat_Nuitée!$D$2:$AH$2,Tableau1[Adresse],Stat_Nuitée!H3)","v":0},{"$f":"COUNTIFS(Tableau1[Chb],Stat_Nuitée!$D$2:$AH$2,Tableau1[Pays],Stat_Nuitée!I3)","v":0},{"$f":"COUNTIFS(Tableau1[Nom],Stat_Nuitée!$D$2:$AH$2,Tableau1[CNI],Stat_Nuitée!J3)","v":0},{"$f":"COUNTIFS(Tableau1[Date Arrivée],Stat_Nuitée!$M$2,Tableau1[Nat],Stat_Nuitée!C3)","v":0},{"$f":"COUNTIFS(Tableau1[Date Arrivée],Stat_Nuitée!$N$2,Tableau1[Nat],Stat_Nuitée!C3)","v":0},{"$f":"COUNTIFS(Tableau1[Date Arrivée],Stat_Nuitée!$O$2,Tableau1[Nat],Stat_Nuitée!C3)","v":0},{"$f":"COUNTIFS(Tableau1[Date Arrivée],Stat_Nuitée!$P$2,Tableau1[Nat],Stat_Nuitée!C3)","v":0},{"$f":"COUNTIFS(Tableau1[Date Arrivée],Stat_Nuitée!$Q$2,Tableau1[Nat],Stat_Nuitée!C3)","v":0},{"$f":"COUNTIFS(Tableau1[Date Arrivée],Stat_Nuitée!$R$2,Tableau1[Nat],Stat_Nuitée!C3)","v":0},{"$f":"COUNTIFS(Tableau1[Date Arrivée],Stat_Nuitée!$S$2,Tableau1[Nat],Stat_Nuitée!C3)","v":0},{"$f":"COUNTIFS(Tableau1[Date Arrivée],Stat_Nuitée!$T$2,Tableau1[Nat],Stat_Nuitée!C3)","v":0},{"$f":"COUNTIFS(Tableau1[Date Arrivée],Stat_Nuitée!$U$2,Tableau1[Nat],Stat_Nuitée!C3)","v":0},{"$f":"COUNTIFS(Tableau1[Date Arrivée],Stat_Nuitée!$V$2,Tableau1[Nat],Stat_Nuitée!C3)","v":0},{"$f":"COUNTIFS(Tableau1[Date Arrivée],Stat_Nuitée!$W$2,Tableau1[Nat],Stat_Nuitée!C3)","v":0},{"$f":"COUNTIFS(Tableau1[Date Arrivée],Stat_Nuitée!$X$2,Tableau1[Nat],Stat_Nuitée!C3)","v":0},{"$f":"COUNTIFS(Tableau1[Date Arrivée],Stat_Nuitée!$Y$2,Tableau1[Nat],Stat_Nuitée!C3)","v":0},{"$f":"COUNTIFS(Tableau1[Date Arrivée],Stat_Nuitée!$Z$2,Tableau1[Nat],Stat_Nuitée!C3)","v":0},{"$f":"COUNTIFS(Tableau1[Date Arrivée],Stat_Nuitée!$AA$2,Tableau1[Nat],Stat_Nuitée!C3)","v":0},{"$f":"COUNTIFS(Tableau1[Date Arrivée],Stat_Nuitée!$AB$2,Tableau1[Nat],Stat_Nuitée!C3)","v":0},{"$f":"COUNTIFS(Tableau1[Date Arrivée],Stat_Nuitée!$AC$2,Tableau1[Nat],Stat_Nuitée!C3)","v":0},{"$f":"COUNTIFS(Tableau1[Date Arrivée],Stat_Nuitée!$AD$2,Tableau1[Nat],Stat_Nuitée!C3)","v":0},{"$f":"COUNTIFS(Tableau1[Date Arrivée],Stat_Nuitée!$AE$2,Tableau1[Nat],Stat_Nuitée!C3)","v":0},{"$f":"COUNTIFS(Tableau1[Date Arrivée],Stat_Nuitée!$AF$2,Tableau1[Nat],Stat_Nuitée!C3)","v":0},{"$f":"COUNTIFS(Tableau1[Date Arrivée],Stat_Nuitée!$AG$2,Tableau1[Nat],Stat_Nuitée!C3)","v":0},{"$f":"COUNTIFS(Tableau1[Date Arrivée],Stat_Nuitée!$AH$2,Tableau1[Nat],Stat_Nuitée!C3)","v":0},null,null,null,null,null,null,null,null,null,null,null,null,null,null,null,null,null,null,null,2020,"Février",null,"Manifeste de l'indépendance",null,{"$f":"DATE(BF1,1,11)","v":"2019-01-11"}]
[null,"Espagne","ES",{"$f":"COUNTIFS(Tableau1[Date Arrivée],Stat_Nuitée!$D$2,Tableau1[Nat],Stat_Nuitée!C4)","v":1},{"$f":"COUNTIFS(Tableau1[Date Arrivée],Stat_Nuitée!$E$2,Tableau1[Nat],Stat_Nuitée!C4)","v":0},{"$f":"COUNTIFS(Tableau1[Date Arrivée],Stat_Nuitée!$F$2,Tableau1[Nat],Stat_Nuitée!C4)","v":0},{"$f":"COUNTIFS(Tableau1[Date Arrivée],Stat_Nuitée!$G$2,Tableau1[Nat],Stat_Nuitée!C4)","v":0},{"$f":"COUNTIFS(Tableau1[Date Arrivée],Stat_Nuitée!$H$2,Tableau1[Nat],Stat_Nuitée!C4)","v":0},{"$f":"COUNTIFS(Tableau1[Date Arrivée],Stat_Nuitée!$I$2,Tableau1[Nat],Stat_Nuitée!C4)","v":0},{"$f":"COUNTIFS(Tableau1[Date Arrivée],Stat_Nuitée!$J$2,Tableau1[Nat],Stat_Nuitée!C4)","v":0},{"$f":"COUNTIFS(Tableau1[Date Arrivée],Stat_Nuitée!$K$2,Tableau1[Nat],Stat_Nuitée!C4)","v":0},{"$f":"COUNTIFS(Tableau1[Date Arrivée],Stat_Nuitée!$L$2,Tableau1[Nat],Stat_Nuitée!C4)","v":0},{"$f":"COUNTIFS(Tableau1[Date Arrivée],Stat_Nuitée!$M$2,Tableau1[Nat],Stat_Nuitée!C4)","v":0},{"$f":"COUNTIFS(Tableau1[Date Arrivée],Stat_Nuitée!$N$2,Tableau1[Nat],Stat_Nuitée!C4)","v":0},{"$f":"COUNTIFS(Tableau1[Date Arrivée],Stat_Nuitée!$O$2,Tableau1[Nat],Stat_Nuitée!C4)","v":0},{"$f":"COUNTIFS(Tableau1[Date Arrivée],Stat_Nuitée!$P$2,Tableau1[Nat],Stat_Nuitée!C4)","v":0},{"$f":"COUNTIFS(Tableau1[Date Arrivée],Stat_Nuitée!$Q$2,Tableau1[Nat],Stat_Nuitée!C4)","v":0},{"$f":"COUNTIFS(Tableau1[Date Arrivée],Stat_Nuitée!$R$2,Tableau1[Nat],Stat_Nuitée!C4)","v":0},{"$f":"COUNTIFS(Tableau1[Date Arrivée],Stat_Nuitée!$S$2,Tableau1[Nat],Stat_Nuitée!C4)","v":0},{"$f":"COUNTIFS(Tableau1[Date Arrivée],Stat_Nuitée!$T$2,Tableau1[Nat],Stat_Nuitée!C4)","v":0},{"$f":"COUNTIFS(Tableau1[Date Arrivée],Stat_Nuitée!$U$2,Tableau1[Nat],Stat_Nuitée!C4)","v":0},{"$f":"COUNTIFS(Tableau1[Date Arrivée],Stat_Nuitée!$V$2,Tableau1[Nat],Stat_Nuitée!C4)","v":0},{"$f":"COUNTIFS(Tableau1[Date Arrivée],Stat_Nuitée!$W$2,Tableau1[Nat],Stat_Nuitée!C4)","v":0},{"$f":"COUNTIFS(Tableau1[Date Arrivée],Stat_Nuitée!$X$2,Tableau1[Nat],Stat_Nuitée!C4)","v":0},{"$f":"COUNTIFS(Tableau1[Date Arrivée],Stat_Nuitée!$Y$2,Tableau1[Nat],Stat_Nuitée!C4)","v":0},{"$f":"COUNTIFS(Tableau1[Date Arrivée],Stat_Nuitée!$Z$2,Tableau1[Nat],Stat_Nuitée!C4)","v":0},{"$f":"COUNTIFS(Tableau1[Date Arrivée],Stat_Nuitée!$AA$2,Tableau1[Nat],Stat_Nuitée!C4)","v":0},{"$f":"COUNTIFS(Tableau1[Date Arrivée],Stat_Nuitée!$AB$2,Tableau1[Nat],Stat_Nuitée!C4)","v":0},{"$f":"COUNTIFS(Tableau1[Date Arrivée],Stat_Nuitée!$AC$2,Tableau1[Nat],Stat_Nuitée!C4)","v":0},{"$f":"COUNTIFS(Tableau1[Date Arrivée],Stat_Nuitée!$AD$2,Tableau1[Nat],Stat_Nuitée!C4)","v":0},{"$f":"COUNTIFS(Tableau1[Date Arrivée],Stat_Nuitée!$AE$2,Tableau1[Nat],Stat_Nuitée!C4)","v":0},{"$f":"COUNTIFS(Tableau1[Date Arrivée],Stat_Nuitée!$AF$2,Tableau1[Nat],Stat_Nuitée!C4)","v":0},{"$f":"COUNTIFS(Tableau1[Date Arrivée],Stat_Nuitée!$AG$2,Tableau1[Nat],Stat_Nuitée!C4)","v":0},{"$f":"COUNTIFS(Tableau1[Date Arrivée],Stat_Nuitée!$AH$2,Tableau1[Nat],Stat_Nuitée!C4)","v":0},null,null,null,null,null,null,null,null,null,null,null,null,null,null,null,null,null,null,null,2021,"Mars",null,"Fête du Travail",null,{"$f":"DATE(BF1,5,1)","v":"2019-05-01"}]
[null,"Royaume Unis","UK",{"$f":"COUNTIFS(Tableau1[Date Arrivée],Stat_Nuitée!$D$2,Tableau1[Nat],Stat_Nuitée!C5)","v":0},{"$f":"COUNTIFS(Tableau1[Date Arrivée],Stat_Nuitée!$E$2,Tableau1[Nat],Stat_Nuitée!C5)","v":0},{"$f":"COUNTIFS(Tableau1[Date Arrivée],Stat_Nuitée!$F$2,Tableau1[Nat],Stat_Nuitée!C5)","v":0},{"$f":"COUNTIFS(Tableau1[Date Arrivée],Stat_Nuitée!$G$2,Tableau1[Nat],Stat_Nuitée!C5)","v":0},{"$f":"COUNTIFS(Tableau1[Date Arrivée],Stat_Nuitée!$H$2,Tableau1[Nat],Stat_Nuitée!C5)","v":0},{"$f":"COUNTIFS(Tableau1[Date Arrivée],Stat_Nuitée!$I$2,Tableau1[Nat],Stat_Nuitée!C5)","v":0},{"$f":"COUNTIFS(Tableau1[Date Arrivée],Stat_Nuitée!$J$2,Tableau1[Nat],Stat_Nuitée!C5)","v":0},{"$f":"COUNTIFS(Tableau1[Date Arrivée],Stat_Nuitée!$K$2,Tableau1[Nat],Stat_Nuitée!C5)","v":0},{"$f":"COUNTIFS(Tableau1[Date Arrivée],Stat_Nuitée!$L$2,Tableau1[Nat],Stat_Nuitée!C5)","v":0},{"$f":"COUNTIFS(Tableau1[Date Arrivée],Stat_Nuitée!$M$2,Tableau1[Nat],Stat_Nuitée!C5)","v":0},{"$f":"COUNTIFS(Tableau1[Date Arrivée],Stat_Nuitée!$N$2,Tableau1[Nat],Stat_Nuitée!C5)","v":0},{"$f":"COUNTIFS(Tableau1[Date Arrivée],Stat_Nuitée!$O$2,Tableau1[Nat],Stat_Nuitée!C5)","v":0},{"$f":"COUNTIFS(Tableau1[Date Arrivée],Stat_Nuitée!$P$2,Tableau1[Nat],Stat_Nuitée!C5)","v":0},{"$f":"COUNTIFS(Tableau1[Date Arrivée],Stat_Nuitée!$Q$2,Tableau1[Nat],Stat_Nuitée!C5)","v":0},{"$f":"COUNTIFS(Tableau1[Date Arrivée],Stat_Nuitée!$R$2,Tableau1[Nat],Stat_Nuitée!C5)","v":0},{"$f":"COUNTIFS(Tableau1[Date Arrivée],Stat_Nuitée!$S$2,Tableau1[Nat],Stat_Nuitée!C5)","v":0},{"$f":"COUNTIFS(Tableau1[Date Arrivée],Stat_Nuitée!$T$2,Tableau1[Nat],Stat_Nuitée!C5)","v":0},{"$f":"COUNTIFS(Tableau1[Date Arrivée],Stat_Nuitée!$U$2,Tableau1[Nat],Stat_Nuitée!C5)","v":0},{"$f":"COUNTIFS(Tableau1[Date Arrivée],Stat_Nuitée!$V$2,Tableau1[Nat],Stat_Nuitée!C5)","v":0},{"$f":"COUNTIFS(Tableau1[Date Arrivée],Stat_Nuitée!$W$2,Tableau1[Nat],Stat_Nuitée!C5)","v":0},{"$f":"COUNTIFS(Tableau1[Date Arrivée],Stat_Nuitée!$X$2,Tableau1[Nat],Stat_Nuitée!C5)","v":0},{"$f":"COUNTIFS(Tableau1[Date Arrivée],Stat_Nuitée!$Y$2,Tableau1[Nat],Stat_Nuitée!C5)","v":0},{"$f":"COUNTIFS(Tableau1[Date Arrivée],Stat_Nuitée!$Z$2,Tableau1[Nat],Stat_Nuitée!C5)","v":0},{"$f":"COUNTIFS(Tableau1[Date Arrivée],Stat_Nuitée!$AA$2,Tableau1[Nat],Stat_Nuitée!C5)","v":0},{"$f":"COUNTIFS(Tableau1[Date Arrivée],Stat_Nuitée!$AB$2,Tableau1[Nat],Stat_Nuitée!C5)","v":0},{"$f":"COUNTIFS(Tableau1[Date Arrivée],Stat_Nuitée!$AC$2,Tableau1[Nat],Stat_Nuitée!C5)","v":0},{"$f":"COUNTIFS(Tableau1[Date Arrivée],Stat_Nuitée!$AD$2,Tableau1[Nat],Stat_Nuitée!C5)","v":0},{"$f":"COUNTIFS(Tableau1[Date Arrivée],Stat_Nuitée!$AE$2,Tableau1[Nat],Stat_Nuitée!C5)","v":0},{"$f":"COUNTIFS(Tableau1[Date Arrivée],Stat_Nuitée!$AF$2,Tableau1[Nat],Stat_Nuitée!C5)","v":0},{"$f":"COUNTIFS(Tableau1[Date Arrivée],Stat_Nuitée!$AG$2,Tableau1[Nat],Stat_Nuitée!C5)","v":0},{"$f":"COUNTIFS(Tableau1[Date Arrivée],Stat_Nuitée!$AH$2,Tableau1[Nat],Stat_Nuitée!C5)","v":0},null,null,null,null,null,null,null,null,null,null,null,null,null,null,null,null,null,null,null,2022,"Avril",null,"Fête du Trône",null,{"$f":"DATE(BF1,7,30)","v":"2019-07-30"}]
[null,"Allemagne","DE",{"$f":"COUNTIFS(Tableau1[Date Arrivée],Stat_Nuitée!$D$2,Tableau1[Nat],Stat_Nuitée!C6)","v":0},{"$f":"COUNTIFS(Tableau1[Date Arrivée],Stat_Nuitée!$E$2,Tableau1[Nat],Stat_Nuitée!C6)","v":0},{"$f":"COUNTIFS(Tableau1[Date Arrivée],Stat_Nuitée!$F$2,Tableau1[Nat],Stat_Nuitée!C6)","v":0},{"$f":"COUNTIFS(Tableau1[Date Arrivée],Stat_Nuitée!$G$2,Tableau1[Nat],Stat_Nuitée!C6)","v":0},{"$f":"COUNTIFS(Tableau1[Date Arrivée],Stat_Nuitée!$H$2,Tableau1[Nat],Stat_Nuitée!C6)","v":0},{"$f":"COUNTIFS(Tableau1[Date Arrivée],Stat_Nuitée!$I$2,Tableau1[Nat],Stat_Nuitée!C6)","v":0},{"$f":"COUNTIFS(Tableau1[Date Arrivée],Stat_Nuitée!$J$2,Tableau1[Nat],Stat_Nuitée!C6)","v":0},{"$f":"COUNTIFS(Tableau1[Date Arrivée],Stat_Nuitée!$K$2,Tableau1[Nat],Stat_Nuitée!C6)","v":0},{"$f":"COUNTIFS(Tableau1[Date Arrivée],Stat_Nuitée!$L$2,Tableau1[Nat],Stat_Nuitée!C6)","v":0},{"$f":"COUNTIFS(Tableau1[Date Arrivée],Stat_Nuitée!$M$2,Tableau1[Nat],Stat_Nuitée!C6)","v":0},{"$f":"COUNTIFS(Tableau1[Date Arrivée],Stat_Nuitée!$N$2,Tableau1[Nat],Stat_Nuitée!C6)","v":0},{"$f":"COUNTIFS(Tableau1[Date Arrivée],Stat_Nuitée!$O$2,Tableau1[Nat],Stat_Nuitée!C6)","v":0},{"$f":"COUNTIFS(Tableau1[Date Arrivée],Stat_Nuitée!$P$2,Tableau1[Nat],Stat_Nuitée!C6)","v":0},{"$f":"COUNTIFS(Tableau1[Date Arrivée],Stat_Nuitée!$Q$2,Tableau1[Nat],Stat_Nuitée!C6)","v":0},{"$f":"COUNTIFS(Tableau1[Date Arrivée],Stat_Nuitée!$R$2,Tableau1[Nat],Stat_Nuitée!C6)","v":0},{"$f":"COUNTIFS(Tableau1[Date Arrivée],Stat_Nuitée!$S$2,Tableau1[Nat],Stat_Nuitée!C6)","v":0},{"$f":"COUNTIFS(Tableau1[Date Arrivée],Stat_Nuitée!$T$2,Tableau1[Nat],Stat_Nuitée!C6)","v":0},{"$f":"COUNTIFS(Tableau1[Date Arrivée],Stat_Nuitée!$U$2,Tableau1[Nat],Stat_Nuitée!C6)","v":0},{"$f":"COUNTIFS(Tableau1[Date Arrivée],Stat_Nuitée!$V$2,Tableau1[Nat],Stat_Nuitée!C6)","v":0},{"$f":"COUNTIFS(Tableau1[Date Arrivée],Stat_Nuitée!$W$2,Tableau1[Nat],Stat_Nuitée!C6)","v":0},{"$f":"COUNTIFS(Tableau1[Date Arrivée],Stat_Nuitée!$X$2,Tableau1[Nat],Stat_Nuitée!C6)","v":0},{"$f":"COUNTIFS(Tableau1[Date Arrivée],Stat_Nuitée!$Y$2,Tableau1[Nat],Stat_Nuitée!C6)","v":0},{"$f":"COUNTIFS(Tableau1[Date Arrivée],Stat_Nuitée!$Z$2,Tableau1[Nat],Stat_Nuitée!C6)","v":0},{"$f":"COUNTIFS(Tableau1[Date Arrivée],Stat_Nuitée!$AA$2,Tableau1[Nat],Stat_Nuitée!C6)","v":0},{"$f":"COUNTIFS(Tableau1[Date Arrivée],Stat_Nuitée!$AB$2,Tableau1[Nat],Stat_Nuitée!C6)","v":0},{"$f":"COUNTIFS(Tableau1[Date Arrivée],Stat_Nuitée!$AC$2,Tableau1[Nat],Stat_Nuitée!C6)","v":0},{"$f":"COUNTIFS(Tableau1[Date Arrivée],Stat_Nuitée!$AD$2,Tableau1[Nat],Stat_Nuitée!C6)","v":0},{"$f":"COUNTIFS(Tableau1[Date Arrivée],Stat_Nuitée!$AE$2,Tableau1[Nat],Stat_Nuitée!C6)","v":0},{"$f":"COUNTIFS(Tableau1[Date Arrivée],Stat_Nuitée!$AF$2,Tableau1[Nat],Stat_Nuitée!C6)","v":0},{"$f":"COUNTIFS(Tableau1[Date Arrivée],Stat_Nuitée!$AG$2,Tableau1[Nat],Stat_Nuitée!C6)","v":0},{"$f":"COUNTIFS(Tableau1[Date Arrivée],Stat_Nuitée!$AH$2,Tableau1[Nat],Stat_Nuitée!C6)","v":0},null,null,null,null,null,null,null,null,null,null,null,null,null,null,null,null,null,null,null,2023,"Mai",null,"Allengeance Oued Eddahab",null,{"$f":"DATE(BF1,8,14)","v":"2019-08-14"}]
[null,"Italie","IT",{"$f":"COUNTIFS(Tableau1[Date Arrivée],Stat_Nuitée!$D$2,Tableau1[Nat],Stat_Nuitée!C7)","v":0},{"$f":"COUNTIFS(Tableau1[Date Arrivée],Stat_Nuitée!$E$2,Tableau1[Nat],Stat_Nuitée!C7)","v":0},{"$f":"COUNTIFS(Tableau1[Date Arrivée],Stat_Nuitée!$F$2,Tableau1[Nat],Stat_Nuitée!C7)","v":0},{"$f":"COUNTIFS(Tableau1[Date Arrivée],Stat_Nuitée!$G$2,Tableau1[Nat],Stat_Nuitée!C7)","v":0},{"$f":"COUNTIFS(Tableau1[Date Arrivée],Stat_Nuitée!$H$2,Tableau1[Nat],Stat_Nuitée!C7)","v":1},{"$f":"COUNTIFS(Tableau1[Date Arrivée],Stat_Nuitée!$I$2,Tableau1[Nat],Stat_Nuitée!C7)","v":0},{"$f":"COUNTIFS(Tableau1[Date Arrivée],Stat_Nuitée!$J$2,Tableau1[Nat],Stat_Nuitée!C7)","v":0},{"$f":"COUNTIFS(Tableau1[Date Arrivée],Stat_Nuitée!$K$2,Tableau1[Nat],Stat_Nuitée!C7)","v":0},{"$f":"COUNTIFS(Tableau1[Date Arrivée],Stat_Nuitée!$L$2,Tableau1[Nat],Stat_Nuitée!C7)","v":0},{"$f":"COUNTIFS(Tableau1[Date Arrivée],Stat_Nuitée!$M$2,Tableau1[Nat],Stat_Nuitée!C7)","v":0},{"$f":"COUNTIFS(Tableau1[Date Arrivée],Stat_Nuitée!$N$2,Tableau1[Nat],Stat_Nuitée!C7)","v":0},{"$f":"COUNTIFS(Tableau1[Date Arrivée],Stat_Nuitée!$O$2,Tableau1[Nat],Stat_Nuitée!C7)","v":0},{"$f":"COUNTIFS(Tableau1[Date Arrivée],Stat_Nuitée!$P$2,Tableau1[Nat],Stat_Nuitée!C7)","v":0},{"$f":"COUNTIFS(Tableau1[Date Arrivée],Stat_Nuitée!$Q$2,Tableau1[Nat],Stat_Nuitée!C7)","v":0},{"$f":"COUNTIFS(Tableau1[Date Arrivée],Stat_Nuitée!$R$2,Tableau1[Nat],Stat_Nuitée!C7)","v":0},{"$f":"COUNTIFS(Tableau1[Date Arrivée],Stat_Nuitée!$S$2,Tableau1[Nat],Stat_Nuitée!C7)","v":0},{"$f":"COUNTIFS(Tableau1[Date Arrivée],Stat_Nuitée!$T$2,Tableau1[Nat],Stat_Nuitée!C7)","v":0},{"$f":"COUNTIFS(Tableau1[Date Arrivée],Stat_Nuitée!$U$2,Tableau1[Nat],Stat_Nuitée!C7)","v":0},{"$f":"COUNTIFS(Tableau1[Date Arrivée],Stat_Nuitée!$V$2,Tableau1[Nat],Stat_Nuitée!C7)","v":0},{"$f":"COUNTIFS(Tableau1[Date Arrivée],Stat_Nuitée!$W$2,Tableau1[Nat],Stat_Nuitée!C7)","v":0},{"$f":"COUNTIFS(Tableau1[Date Arrivée],Stat_Nuitée!$X$2,Tableau1[Nat],Stat_Nuitée!C7)","v":0},{"$f":"COUNTIFS(Tableau1[Date Arrivée],Stat_Nuitée!$Y$2,Tableau1[Nat],Stat_Nuitée!C7)","v":0},{"$f":"COUNTIFS(Tableau1[Date Arrivée],Stat_Nuitée!$Z$2,Tableau1[Nat],Stat_Nuitée!C7)","v":0},{"$f":"COUNTIFS(Tableau1[Date Arrivée],Stat_Nuitée!$AA$2,Tableau1[Nat],Stat_Nuitée!C7)","v":0},{"$f":"COUNTIFS(Tableau1[Date Arrivée],Stat_Nuitée!$AB$2,Tableau1[Nat],Stat_Nuitée!C7)","v":0},{"$f":"COUNTIFS(Tableau1[Date Arrivée],Stat_Nuitée!$AC$2,Tableau1[Nat],Stat_Nuitée!C7)","v":0},{"$f":"COUNTIFS(Tableau1[Date Arrivée],Stat_Nuitée!$AD$2,Tableau1[Nat],Stat_Nuitée!C7)","v":0},{"$f":"COUNTIFS(Tableau1[Date Arrivée],Stat_Nuitée!$AE$2,Tableau1[Nat],Stat_Nuitée!C7)","v":0},{"$f":"COUNTIFS(Tableau1[Date Arrivée],Stat_Nuitée!$AF$2,Tableau1[Nat],Stat_Nuitée!C7)","v":0},{"$f":"COUNTIFS(Tableau1[Date Arrivée],Stat_Nuitée!$AG$2,Tableau1[Nat],Stat_Nuitée!C7)","v":0},{"$f":"COUNTIFS(Tableau1[Date Arrivée],Stat_Nuitée!$AH$2,Tableau1[Nat],Stat_Nuitée!C7)","v":0},null,null,null,null,null,null,null,null,null,null,null,null,null,null,null,null,null,null,null,2024,"Juin",null,"Révolution du Roi et du Peuple",null,{"$f":"DATE(BF1,8,20)","v":"2019-08-20"}]
[null,"Suede ","SU",{"$f":"COUNTIFS(Tableau1[Date Arrivée],Stat_Nuitée!$D$2,Tableau1[Nat],Stat_Nuitée!C8)","v":0},{"$f":"COUNTIFS(Tableau1[Date Arrivée],Stat_Nuitée!$E$2,Tableau1[Nat],Stat_Nuitée!C8)","v":0},{"$f":"COUNTIFS(Tableau1[Date Arrivée],Stat_Nuitée!$F$2,Tableau1[Nat],Stat_Nuitée!C8)","v":0},{"$f":"COUNTIFS(Tableau1[Date Arrivée],Stat_Nuitée!$G$2,Tableau1[Nat],Stat_Nuitée!C8)","v":0},{"$f":"COUNTIFS(Tableau1[Date Arrivée],Stat_Nuitée!$H$2,Tableau1[Nat],Stat_Nuitée!C8)","v":0},{"$f":"COUNTIFS(Tableau1[Date Arrivée],Stat_Nuitée!$I$2,Tableau1[Nat],Stat_Nuitée!C8)","v":0},{"$f":"COUNTIFS(Tableau1[Date Arrivée],Stat_Nuitée!$J$2,Tableau1[Nat],Stat_Nuitée!C8)","v":0},{"$f":"COUNTIFS(Tableau1[Date Arrivée],Stat_Nuitée!$K$2,Tableau1[Nat],Stat_Nuitée!C8)","v":0},{"$f":"COUNTIFS(Tableau1[Date Arrivée],Stat_Nuitée!$L$2,Tableau1[Nat],Stat_Nuitée!C8)","v":0},{"$f":"COUNTIFS(Tableau1[Date Arrivée],Stat_Nuitée!$M$2,Tableau1[Nat],Stat_Nuitée!C8)","v":0},{"$f":"COUNTIFS(Tableau1[Date Arrivée],Stat_Nuitée!$N$2,Tableau1[Nat],Stat_Nuitée!C8)","v":0},{"$f":"COUNTIFS(Tableau1[Date Arrivée],Stat_Nuitée!$O$2,Tableau1[Nat],Stat_Nuitée!C8)","v":0},{"$f":"COUNTIFS(Tableau1[Date Arrivée],Stat_Nuitée!$P$2,Tableau1[Nat],Stat_Nuitée!C8)","v":0},{"$f":"COUNTIFS(Tableau1[Date Arrivée],Stat_Nuitée!$Q$2,Tableau1[Nat],Stat_Nuitée!C8)","v":0},{"$f":"COUNTIFS(Tableau1[Date Arrivée],Stat_Nuitée!$R$2,Tableau1[Nat],Stat_Nuitée!C8)","v":0},{"$f":"COUNTIFS(Tableau1[Date Arrivée],Stat_Nuitée!$S$2,Tableau1[Nat],Stat_Nuitée!C8)","v":0},{"$f":"COUNTIFS(Tableau1[Date Arrivée],Stat_Nuitée!$T$2,Tableau1[Nat],Stat_Nuitée!C8)","v":0},{"$f":"COUNTIFS(Tableau1[Date Arrivée],Stat_Nuitée!$U$2,Tableau1[Nat],Stat_Nuitée!C8)","v":0},{"$f":"COUNTIFS(Tableau1[Date Arrivée],Stat_Nuitée!$V$2,Tableau1[Nat],Stat_Nuitée!C8)","v":0},{"$f":"COUNTIFS(Tableau1[Date Arrivée],Stat_Nuitée!$W$2,Tableau1[Nat],Stat_Nuitée!C8)","v":0},{"$f":"COUNTIFS(Tableau1[Date Arrivée],Stat_Nuitée!$X$2,Tableau1[Nat],Stat_Nuitée!C8)","v":0},{"$f":"COUNTIFS(Tableau1[Date Arrivée],Stat_Nuitée!$Y$2,Tableau1[Nat],Stat_Nuitée!C8)","v":0},{"$f":"COUNTIFS(Tableau1[Date Arrivée],Stat_Nuitée!$Z$2,Tableau1[Nat],Stat_Nuitée!C8)","v":0},{"$f":"COUNTIFS(Tableau1[Date Arrivée],Stat_Nuitée!$AA$2,Tableau1[Nat],Stat_Nuitée!C8)","v":0},{"$f":"COUNTIFS(Tableau1[Date Arrivée],Stat_Nuitée!$AB$2,Tableau1[Nat],Stat_Nuitée!C8)","v":0},{"$f":"COUNTIFS(Tableau1[Date Arrivée],Stat_Nuitée!$AC$2,Tableau1[Nat],Stat_Nuitée!C8)","v":0},{"$f":"COUNTIFS(Tableau1[Date Arrivée],Stat_Nuitée!$AD$2,Tableau1[Nat],Stat_Nuitée!C8)","v":0},{"$f":"COUNTIFS(Tableau1[Date Arrivée],Stat_Nuitée!$AE$2,Tableau1[Nat],Stat_Nuitée!C8)","v":0},{"$f":"COUNTIFS(Tableau1[Date Arrivée],Stat_Nuitée!$AF$2,Tableau1[Nat],Stat_Nuitée!C8)","v":0},{"$f":"COUNTIFS(Tableau1[Date Arrivée],Stat_Nuitée!$AG$2,Tableau1[Nat],Stat_Nuitée!C8)","v":0},{"$f":"COUNTIFS(Tableau1[Date Arrivée],Stat_Nuitée!$AH$2,Tableau1[Nat],Stat_Nuitée!C8)","v":0},null,null,null,null,null,null,null,null,null,null,null,null,null,null,null,null,null,null,null,2025,"Juillet",null,"Fête de la Jeunsse",null,{"$f":"DATE(BF1,8,21)","v":"2019-08-21"}]
[null,"Danemark","DK",{"$f":"COUNTIFS(Tableau1[Date Arrivée],Stat_Nuitée!$D$2,Tableau1[Nat],Stat_Nuitée!C9)","v":0},{"$f":"COUNTIFS(Tableau1[Date Arrivée],Stat_Nuitée!$E$2,Tableau1[Nat],Stat_Nuitée!C9)","v":0},{"$f":"COUNTIFS(Tableau1[Date Arrivée],Stat_Nuitée!$F$2,Tableau1[Nat],Stat_Nuitée!C9)","v":0},{"$f":"COUNTIFS(Tableau1[Date Arrivée],Stat_Nuitée!$G$2,Tableau1[Nat],Stat_Nuitée!C9)","v":0},{"$f":"COUNTIFS(Tableau1[Date Arrivée],Stat_Nuitée!$H$2,Tableau1[Nat],Stat_Nuitée!C9)","v":0},{"$f":"COUNTIFS(Tableau1[Date Arrivée],Stat_Nuitée!$I$2,Tableau1[Nat],Stat_Nuitée!C9)","v":0},{"$f":"COUNTIFS(Tableau1[Date Arrivée],Stat_Nuitée!$J$2,Tableau1[Nat],Stat_Nuitée!C9)","v":0},{"$f":"COUNTIFS(Tableau1[Date Arrivée],Stat_Nuitée!$K$2,Tableau1[Nat],Stat_Nuitée!C9)","v":0},{"$f":"COUNTIFS(Tableau1[Date Arrivée],Stat_Nuitée!$L$2,Tableau1[Nat],Stat_Nuitée!C9)","v":0},{"$f":"COUNTIFS(Tableau1[Date Arrivée],Stat_Nuitée!$M$2,Tableau1[Nat],Stat_Nuitée!C9)","v":0},{"$f":"COUNTIFS(Tableau1[Date Arrivée],Stat_Nuitée!$N$2,Tableau1[Nat],Stat_Nuitée!C9)","v":0},{"$f":"COUNTIFS(Tableau1[Date Arrivée],Stat_Nuitée!$O$2,Tableau1[Nat],Stat_Nuitée!C9)","v":0},{"$f":"COUNTIFS(Tableau1[Date Arrivée],Stat_Nuitée!$P$2,Tableau1[Nat],Stat_Nuitée!C9)","v":0},{"$f":"COUNTIFS(Tableau1[Date Arrivée],Stat_Nuitée!$Q$2,Tableau1[Nat],Stat_Nuitée!C9)","v":0},{"$f":"COUNTIFS(Tableau1[Date Arrivée],Stat_Nuitée!$R$2,Tableau1[Nat],Stat_Nuitée!C9)","v":0},{"$f":"COUNTIFS(Tableau1[Date Arrivée],Stat_Nuitée!$S$2,Tableau1[Nat],Stat_Nuitée!C9)","v":0},{"$f":"COUNTIFS(Tableau1[Date Arrivée],Stat_Nuitée!$T$2,Tableau1[Nat],Stat_Nuitée!C9)","v":0},{"$f":"COUNTIFS(Tableau1[Date Arrivée],Stat_Nuitée!$U$2,Tableau1[Nat],Stat_Nuitée!C9)","v":0},{"$f":"COUNTIFS(Tableau1[Date Arrivée],Stat_Nuitée!$V$2,Tableau1[Nat],Stat_Nuitée!C9)","v":0},{"$f":"COUNTIFS(Tableau1[Date Arrivée],Stat_Nuitée!$W$2,Tableau1[Nat],Stat_Nuitée!C9)","v":0},{"$f":"COUNTIFS(Tableau1[Date Arrivée],Stat_Nuitée!$X$2,Tableau1[Nat],Stat_Nuitée!C9)","v":0},{"$f":"COUNTIFS(Tableau1[Date Arrivée],Stat_Nuitée!$Y$2,Tableau1[Nat],Stat_Nuitée!C9)","v":0},{"$f":"COUNTIFS(Tableau1[Date Arrivée],Stat_Nuitée!$Z$2,Tableau1[Nat],Stat_Nuitée!C9)","v":0},{"$f":"COUNTIFS(Tableau1[Date Arrivée],Stat_Nuitée!$AA$2,Tableau1[Nat],Stat_Nuitée!C9)","v":0},{"$f":"COUNTIFS(Tableau1[Date Arrivée],Stat_Nuitée!$AB$2,Tableau1[Nat],Stat_Nuitée!C9)","v":0},{"$f":"COUNTIFS(Tableau1[Date Arrivée],Stat_Nuitée!$AC$2,Tableau1[Nat],Stat_Nuitée!C9)","v":0},{"$f":"COUNTIFS(Tableau1[Date Arrivée],Stat_Nuitée!$AD$2,Tableau1[Nat],Stat_Nuitée!C9)","v":0},{"$f":"COUNTIFS(Tableau1[Date Arrivée],Stat_Nuitée!$AE$2,Tableau1[Nat],Stat_Nuitée!C9)","v":0},{"$f":"COUNTIFS(Tableau1[Date Arrivée],Stat_Nuitée!$AF$2,Tableau1[Nat],Stat_Nuitée!C9)","v":0},{"$f":"COUNTIFS(Tableau1[Date Arrivée],Stat_Nuitée!$AG$2,Tableau1[Nat],Stat_Nuitée!C9)","v":0},{"$f":"COUNTIFS(Tableau1[Date Arrivée],Stat_Nuitée!$AH$2,Tableau1[Nat],Stat_Nuitée!C9)","v":0},null,null,null,null,null,null,null,null,null,null,null,null,null,null,null,null,null,null,null,2026,"Août",null,"La Marche Verte",null,{"$f":"DATE(BF1,11,6)","v":"2019-11-06"}]
[null,"Finlande","FN",{"$f":"COUNTIFS(Tableau1[Date Arrivée],Stat_Nuitée!$D$2,Tableau1[Nat],Stat_Nuitée!C10)","v":0},{"$f":"COUNTIFS(Tableau1[Date Arrivée],Stat_Nuitée!$E$2,Tableau1[Nat],Stat_Nuitée!C10)","v":0},{"$f":"COUNTIFS(Tableau1[Date Arrivée],Stat_Nuitée!$F$2,Tableau1[Nat],Stat_Nuitée!C10)","v":0},{"$f":"COUNTIFS(Tableau1[Date Arrivée],Stat_Nuitée!$G$2,Tableau1[Nat],Stat_Nuitée!C10)","v":0},{"$f":"COUNTIFS(Tableau1[Date Arrivée],Stat_Nuitée!$H$2,Tableau1[Nat],Stat_Nuitée!C10)","v":0},{"$f":"COUNTIFS(Tableau1[Date Arrivée],Stat_Nuitée!$I$2,Tableau1[Nat],Stat_Nuitée!C10)","v":0},{"$f":"COUNTIFS(Tableau1[Date Arrivée],Stat_Nuitée!$J$2,Tableau1[Nat],Stat_Nuitée!C10)","v":0},{"$f":"COUNTIFS(Tableau1[Date Arrivée],Stat_Nuitée!$K$2,Tableau1[Nat],Stat_Nuitée!C10)","v":0},{"$f":"COUNTIFS(Tableau1[Date Arrivée],Stat_Nuitée!$L$2,Tableau1[Nat],Stat_Nuitée!C10)","v":0},{"$f":"COUNTIFS(Tableau1[Date Arrivée],Stat_Nuitée!$M$2,Tableau1[Nat],Stat_Nuitée!C10)","v":0},{"$f":"COUNTIFS(Tableau1[Date Arrivée],Stat_Nuitée!$N$2,Tableau1[Nat],Stat_Nuitée!C10)","v":0},{"$f":"COUNTIFS(Tableau1[Date Arrivée],Stat_Nuitée!$O$2,Tableau1[Nat],Stat_Nuitée!C10)","v":0},{"$f":"COUNTIFS(Tableau1[Date Arrivée],Stat_Nuitée!$P$2,Tableau1[Nat],Stat_Nuitée!C10)","v":0},{"$f":"COUNTIFS(Tableau1[Date Arrivée],Stat_Nuitée!$Q$2,Tableau1[Nat],Stat_Nuitée!C10)","v":0},{"$f":"COUNTIFS(Tableau1[Date Arrivée],Stat_Nuitée!$R$2,Tableau1[Nat],Stat_Nuitée!C10)","v":0},{"$f":"COUNTIFS(Tableau1[Date Arrivée],Stat_Nuitée!$S$2,Tableau1[Nat],Stat_Nuitée!C10)","v":0},{"$f":"COUNTIFS(Tableau1[Date Arrivée],Stat_Nuitée!$T$2,Tableau1[Nat],Stat_Nuitée!C10)","v":0},{"$f":"COUNTIFS(Tableau1[Date Arrivée],Stat_Nuitée!$U$2,Tableau1[Nat],Stat_Nuitée!C10)","v":0},{"$f":"COUNTIFS(Tableau1[Date Arrivée],Stat_Nuitée!$V$2,Tableau1[Nat],Stat_Nuitée!C10)","v":0},{"$f":"COUNTIFS(Tableau1[Date Arrivée],Stat_Nuitée!$W$2,Tableau1[Nat],Stat_Nuitée!C10)","v":0},{"$f":"COUNTIFS(Tableau1[Date Arrivée],Stat_Nuitée!$X$2,Tableau1[Nat],Stat_Nuitée!C10)","v":0},{"$f":"COUNTIFS(Tableau1[Date Arrivée],Stat_Nuitée!$Y$2,Tableau1[Nat],Stat_Nuitée!C10)","v":0},{"$f":"COUNTIFS(Tableau1[Date Arrivée],Stat_Nuitée!$Z$2,Tableau1[Nat],Stat_Nuitée!C10)","v":0},{"$f":"COUNTIFS(Tableau1[Date Arrivée],Stat_Nuitée!$AA$2,Tableau1[Nat],Stat_Nuitée!C10)","v":0},{"$f":"COUNTIFS(Tableau1[Date Arrivée],Stat_Nuitée!$AB$2,Tableau1[Nat],Stat_Nuitée!C10)","v":0},{"$f":"COUNTIFS(Tableau1[Date Arrivée],Stat_Nuitée!$AC$2,Tableau1[Nat],Stat_Nuitée!C10)","v":0},{"$f":"COUNTIFS(Tableau1[Date Arrivée],Stat_Nuitée!$AD$2,Tableau1[Nat],Stat_Nuitée!C10)","v":0},{"$f":"COUNTIFS(Tableau1[Date Arrivée],Stat_Nuitée!$AE$2,Tableau1[Nat],Stat_Nuitée!C10)","v":0},{"$f":"COUNTIFS(Tableau1[Date Arrivée],Stat_Nuitée!$AF$2,Tableau1[Nat],Stat_Nuitée!C10)","v":0},{"$f":"COUNTIFS(Tableau1[Date Arrivée],Stat_Nuitée!$AG$2,Tableau1[Nat],Stat_Nuitée!C10)","v":0},{"$f":"COUNTIFS(Tableau1[Date Arrivée],Stat_Nuitée!$AH$2,Tableau1[Nat],Stat_Nuitée!C10)","v":0},null,null,null,null,null,null,null,null,null,null,null,null,null,null,null,null,null,null,null,2027,"Septembre",null,"Fête de l'indépendance",null,{"$f":"DATE(BF1,11,18)","v":"2019-11-18"}]
[null,"Norvège","NO",{"$f":"COUNTIFS(Tableau1[Date Arrivée],Stat_Nuitée!$D$2,Tableau1[Nat],Stat_Nuitée!C11)","v":0},{"$f":"COUNTIFS(Tableau1[Date Arrivée],Stat_Nuitée!$E$2,Tableau1[Nat],Stat_Nuitée!C11)","v":0},{"$f":"COUNTIFS(Tableau1[Date Arrivée],Stat_Nuitée!$F$2,Tableau1[Nat],Stat_Nuitée!C11)","v":0},{"$f":"COUNTIFS(Tableau1[Date Arrivée],Stat_Nuitée!$G$2,Tableau1[Nat],Stat_Nuitée!C11)","v":0},{"$f":"COUNTIFS(Tableau1[Date Arrivée],Stat_Nuitée!$H$2,Tableau1[Nat],Stat_Nuitée!C11)","v":0},{"$f":"COUNTIFS(Tableau1[Date Arrivée],Stat_Nuitée!$I$2,Tableau1[Nat],Stat_Nuitée!C11)","v":0},{"$f":"COUNTIFS(Tableau1[Date Arrivée],Stat_Nuitée!$J$2,Tableau1[Nat],Stat_Nuitée!C11)","v":0},{"$f":"COUNTIFS(Tableau1[Date Arrivée],Stat_Nuitée!$K$2,Tableau1[Nat],Stat_Nuitée!C11)","v":0},{"$f":"COUNTIFS(Tableau1[Date Arrivée],Stat_Nuitée!$L$2,Tableau1[Nat],Stat_Nuitée!C11)","v":0},{"$f":"COUNTIFS(Tableau1[Date Arrivée],Stat_Nuitée!$M$2,Tableau1[Nat],Stat_Nuitée!C11)","v":0},{"$f":"COUNTIFS(Tableau1[Date Arrivée],Stat_Nuitée!$N$2,Tableau1[Nat],Stat_Nuitée!C11)","v":0},{"$f":"COUNTIFS(Tableau1[Date Arrivée],Stat_Nuitée!$O$2,Tableau1[Nat],Stat_Nuitée!C11)","v":0},{"$f":"COUNTIFS(Tableau1[Date Arrivée],Stat_Nuitée!$P$2,Tableau1[Nat],Stat_Nuitée!C11)","v":0},{"$f":"COUNTIFS(Tableau1[Date Arrivée],Stat_Nuitée!$Q$2,Tableau1[Nat],Stat_Nuitée!C11)","v":0},{"$f":"COUNTIFS(Tableau1[Date Arrivée],Stat_Nuitée!$R$2,Tableau1[Nat],Stat_Nuitée!C11)","v":0},{"$f":"COUNTIFS(Tableau1[Date Arrivée],Stat_Nuitée!$S$2,Tableau1[Nat],Stat_Nuitée!C11)","v":0},{"$f":"COUNTIFS(Tableau1[Date Arrivée],Stat_Nuitée!$T$2,Tableau1[Nat],Stat_Nuitée!C11)","v":0},{"$f":"COUNTIFS(Tableau1[Date Arrivée],Stat_Nuitée!$U$2,Tableau1[Nat],Stat_Nuitée!C11)","v":0},{"$f":"COUNTIFS(Tableau1[Date Arrivée],Stat_Nuitée!$V$2,Tableau1[Nat],Stat_Nuitée!C11)","v":0},{"$f":"COUNTIFS(Tableau1[Date Arrivée],Stat_Nuitée!$W$2,Tableau1[Nat],Stat_Nuitée!C11)","v":0},{"$f":"COUNTIFS(Tableau1[Date Arrivée],Stat_Nuitée!$X$2,Tableau1[Nat],Stat_Nuitée!C11)","v":0},{"$f":"COUNTIFS(Tableau1[Date Arrivée],Stat_Nuitée!$Y$2,Tableau1[Nat],Stat_Nuitée!C11)","v":0},{"$f":"COUNTIFS(Tableau1[Date Arrivée],Stat_Nuitée!$Z$2,Tableau1[Nat],Stat_Nuitée!C11)","v":0},{"$f":"COUNTIFS(Tableau1[Date Arrivée],Stat_Nuitée!$AA$2,Tableau1[Nat],Stat_Nuitée!C11)","v":0},{"$f":"COUNTIFS(Tableau1[Date Arrivée],Stat_Nuitée!$AB$2,Tableau1[Nat],Stat_Nuitée!C11)","v":0},{"$f":"COUNTIFS(Tableau1[Date Arrivée],Stat_Nuitée!$AC$2,Tableau1[Nat],Stat_Nuitée!C11)","v":0},{"$f":"COUNTIFS(Tableau1[Date Arrivée],Stat_Nuitée!$AD$2,Tableau1[Nat],Stat_Nuitée!C11)","v":0},{"$f":"COUNTIFS(Tableau1[Date Arrivée],Stat_Nuitée!$AE$2,Tableau1[Nat],Stat_Nuitée!C11)","v":0},{"$f":"COUNTIFS(Tableau1[Date Arrivée],Stat_Nuitée!$AF$2,Tableau1[Nat],Stat_Nuitée!C11)","v":0},{"$f":"COUNTIFS(Tableau1[Date Arrivée],Stat_Nuitée!$AG$2,Tableau1[Nat],Stat_Nuitée!C11)","v":0},{"$f":"COUNTIFS(Tableau1[Date Arrivée],Stat_Nuitée!$AH$2,Tableau1[Nat],Stat_Nuitée!C11)","v":0},null,null,null,null,null,null,null,null,null,null,null,null,null,null,null,null,null,null,null,2028,"Octobre"]
[null,"Autriche","AT",{"$f":"COUNTIFS(Tableau1[Date Arrivée],Stat_Nuitée!$D$2,Tableau1[Nat],Stat_Nuitée!C12)","v":0},{"$f":"COUNTIFS(Tableau1[Date Arrivée],Stat_Nuitée!$E$2,Tableau1[Nat],Stat_Nuitée!C12)","v":0},{"$f":"COUNTIFS(Tableau1[Date Arrivée],Stat_Nuitée!$F$2,Tableau1[Nat],Stat_Nuitée!C12)","v":0},{"$f":"COUNTIFS(Tableau1[Date Arrivée],Stat_Nuitée!$G$2,Tableau1[Nat],Stat_Nuitée!C12)","v":0},{"$f":"COUNTIFS(Tableau1[Date Arrivée],Stat_Nuitée!$H$2,Tableau1[Nat],Stat_Nuitée!C12)","v":0},{"$f":"COUNTIFS(Tableau1[Date Arrivée],Stat_Nuitée!$I$2,Tableau1[Nat],Stat_Nuitée!C12)","v":0},{"$f":"COUNTIFS(Tableau1[Date Arrivée],Stat_Nuitée!$J$2,Tableau1[Nat],Stat_Nuitée!C12)","v":0},{"$f":"COUNTIFS(Tableau1[Date Arrivée],Stat_Nuitée!$K$2,Tableau1[Nat],Stat_Nuitée!C12)","v":0},{"$f":"COUNTIFS(Tableau1[Date Arrivée],Stat_Nuitée!$L$2,Tableau1[Nat],Stat_Nuitée!C12)","v":0},{"$f":"COUNTIFS(Tableau1[Date Arrivée],Stat_Nuitée!$M$2,Tableau1[Nat],Stat_Nuitée!C12)","v":0},{"$f":"COUNTIFS(Tableau1[Date Arrivée],Stat_Nuitée!$N$2,Tableau1[Nat],Stat_Nuitée!C12)","v":0},{"$f":"COUNTIFS(Tableau1[Date Arrivée],Stat_Nuitée!$O$2,Tableau1[Nat],Stat_Nuitée!C12)","v":0},{"$f":"COUNTIFS(Tableau1[Date Arrivée],Stat_Nuitée!$P$2,Tableau1[Nat],Stat_Nuitée!C12)","v":0},{"$f":"COUNTIFS(Tableau1[Date Arrivée],Stat_Nuitée!$Q$2,Tableau1[Nat],Stat_Nuitée!C12)","v":0},{"$f":"COUNTIFS(Tableau1[Date Arrivée],Stat_Nuitée!$R$2,Tableau1[Nat],Stat_Nuitée!C12)","v":0},{"$f":"COUNTIFS(Tableau1[Date Arrivée],Stat_Nuitée!$S$2,Tableau1[Nat],Stat_Nuitée!C12)","v":0},{"$f":"COUNTIFS(Tableau1[Date Arrivée],Stat_Nuitée!$T$2,Tableau1[Nat],Stat_Nuitée!C12)","v":0},{"$f":"COUNTIFS(Tableau1[Date Arrivée],Stat_Nuitée!$U$2,Tableau1[Nat],Stat_Nuitée!C12)","v":0},{"$f":"COUNTIFS(Tableau1[Date Arrivée],Stat_Nuitée!$V$2,Tableau1[Nat],Stat_Nuitée!C12)","v":0},{"$f":"COUNTIFS(Tableau1[Date Arrivée],Stat_Nuitée!$W$2,Tableau1[Nat],Stat_Nuitée!C12)","v":0},{"$f":"COUNTIFS(Tableau1[Date Arrivée],Stat_Nuitée!$X$2,Tableau1[Nat],Stat_Nuitée!C12)","v":0},{"$f":"COUNTIFS(Tableau1[Date Arrivée],Stat_Nuitée!$Y$2,Tableau1[Nat],Stat_Nuitée!C12)","v":0},{"$f":"COUNTIFS(Tableau1[Date Arrivée],Stat_Nuitée!$Z$2,Tableau1[Nat],Stat_Nuitée!C12)","v":0},{"$f":"COUNTIFS(Tableau1[Date Arrivée],Stat_Nuitée!$AA$2,Tableau1[Nat],Stat_Nuitée!C12)","v":0},{"$f":"COUNTIFS(Tableau1[Date Arrivée],Stat_Nuitée!$AB$2,Tableau1[Nat],Stat_Nuitée!C12)","v":0},{"$f":"COUNTIFS(Tableau1[Date Arrivée],Stat_Nuitée!$AC$2,Tableau1[Nat],Stat_Nuitée!C12)","v":0},{"$f":"COUNTIFS(Tableau1[Date Arrivée],Stat_Nuitée!$AD$2,Tableau1[Nat],Stat_Nuitée!C12)","v":0},{"$f":"COUNTIFS(Tableau1[Date Arrivée],Stat_Nuitée!$AE$2,Tableau1[Nat],Stat_Nuitée!C12)","v":0},{"$f":"COUNTIFS(Tableau1[Date Arrivée],Stat_Nuitée!$AF$2,Tableau1[Nat],Stat_Nuitée!C12)","v":0},{"$f":"COUNTIFS(Tableau1[Date Arrivée],Stat_Nuitée!$AG$2,Tableau1[Nat],Stat_Nuitée!C12)","v":0},{"$f":"COUNTIFS(Tableau1[Date Arrivée],Stat_Nuitée!$AH$2,Tableau1[Nat],Stat_Nuitée!C12)","v":0},null,null,null,null,null,null,null,null,null,null,null,null,null,null,null,null,null,null,null,2029,"Novembre"]
[null,"Portugal","PT",{"$f":"COUNTIFS(Tableau1[Date Arrivée],Stat_Nuitée!$D$2,Tableau1[Nat],Stat_Nuitée!C13)","v":0},{"$f":"COUNTIFS(Tableau1[Date Arrivée],Stat_Nuitée!$E$2,Tableau1[Nat],Stat_Nuitée!C13)","v":0},{"$f":"COUNTIFS(Tableau1[Date Arrivée],Stat_Nuitée!$F$2,Tableau1[Nat],Stat_Nuitée!C13)","v":0},{"$f":"COUNTIFS(Tableau1[Date Arrivée],Stat_Nuitée!$G$2,Tableau1[Nat],Stat_Nuitée!C13)","v":0},{"$f":"COUNTIFS(Tableau1[Date Arrivée],Stat_Nuitée!$H$2,Tableau1[Nat],Stat_Nuitée!C13)","v":0},{"$f":"COUNTIFS(Tableau1[Date Arrivée],Stat_Nuitée!$I$2,Tableau1[Nat],Stat_Nuitée!C13)","v":0},{"$f":"COUNTIFS(Tableau1[Date Arrivée],Stat_Nuitée!$J$2,Tableau1[Nat],Stat_Nuitée!C13)","v":0},{"$f":"COUNTIFS(Tableau1[Date Arrivée],Stat_Nuitée!$K$2,Tableau1[Nat],Stat_Nuitée!C13)","v":0},{"$f":"COUNTIFS(Tableau1[Date Arrivée],Stat_Nuitée!$L$2,Tableau1[Nat],Stat_Nuitée!C13)","v":0},{"$f":"COUNTIFS(Tableau1[Date Arrivée],Stat_Nuitée!$M$2,Tableau1[Nat],Stat_Nuitée!C13)","v":0},{"$f":"COUNTIFS(Tableau1[Date Arrivée],Stat_Nuitée!$N$2,Tableau1[Nat],Stat_Nuitée!C13)","v":0},{"$f":"COUNTIFS(Tableau1[Date Arrivée],Stat_Nuitée!$O$2,Tableau1[Nat],Stat_Nuitée!C13)","v":0},{"$f":"COUNTIFS(Tableau1[Date Arrivée],Stat_Nuitée!$P$2,Tableau1[Nat],Stat_Nuitée!C13)","v":0},{"$f":"COUNTIFS(Tableau1[Date Arrivée],Stat_Nuitée!$Q$2,Tableau1[Nat],Stat_Nuitée!C13)","v":0},{"$f":"COUNTIFS(Tableau1[Date Arrivée],Stat_Nuitée!$R$2,Tableau1[Nat],Stat_Nuitée!C13)","v":0},{"$f":"COUNTIFS(Tableau1[Date Arrivée],Stat_Nuitée!$S$2,Tableau1[Nat],Stat_Nuitée!C13)","v":0},{"$f":"COUNTIFS(Tableau1[Date Arrivée],Stat_Nuitée!$T$2,Tableau1[Nat],Stat_Nuitée!C13)","v":0},{"$f":"COUNTIFS(Tableau1[Date Arrivée],Stat_Nuitée!$U$2,Tableau1[Nat],Stat_Nuitée!C13)","v":0},{"$f":"COUNTIFS(Tableau1[Date Arrivée],Stat_Nuitée!$V$2,Tableau1[Nat],Stat_Nuitée!C13)","v":0},{"$f":"COUNTIFS(Tableau1[Date Arrivée],Stat_Nuitée!$W$2,Tableau1[Nat],Stat_Nuitée!C13)","v":0},{"$f":"COUNTIFS(Tableau1[Date Arrivée],Stat_Nuitée!$X$2,Tableau1[Nat],Stat_Nuitée!C13)","v":0},{"$f":"COUNTIFS(Tableau1[Date Arrivée],Stat_Nuitée!$Y$2,Tableau1[Nat],Stat_Nuitée!C13)","v":0},{"$f":"COUNTIFS(Tableau1[Date Arrivée],Stat_Nuitée!$Z$2,Tableau1[Nat],Stat_Nuitée!C13)","v":0},{"$f":"COUNTIFS(Tableau1[Date Arrivée],Stat_Nuitée!$AA$2,Tableau1[Nat],Stat_Nuitée!C13)","v":0},{"$f":"COUNTIFS(Tableau1[Date Arrivée],Stat_Nuitée!$AB$2,Tableau1[Nat],Stat_Nuitée!C13)","v":0},{"$f":"COUNTIFS(Tableau1[Date Arrivée],Stat_Nuitée!$AC$2,Tableau1[Nat],Stat_Nuitée!C13)","v":0},{"$f":"COUNTIFS(Tableau1[Date Arrivée],Stat_Nuitée!$AD$2,Tableau1[Nat],Stat_Nuitée!C13)","v":0},{"$f":"COUNTIFS(Tableau1[Date Arrivée],Stat_Nuitée!$AE$2,Tableau1[Nat],Stat_Nuitée!C13)","v":0},{"$f":"COUNTIFS(Tableau1[Date Arrivée],Stat_Nuitée!$AF$2,Tableau1[Nat],Stat_Nuitée!C13)","v":0},{"$f":"COUNTIFS(Tableau1[Date Arrivée],Stat_Nuitée!$AG$2,Tableau1[Nat],Stat_Nuitée!C13)","v":0},{"$f":"COUNTIFS(Tableau1[Date Arrivée],Stat_Nuitée!$AH$2,Tableau1[Nat],Stat_Nuitée!C13)","v":0},null,null,null,null,null,null,null,null,null,null,null,null,null,null,null,null,null,null,null,2030,"Décembre"]
[null,"Hollande","NL",{"$f":"COUNTIFS(Tableau1[Date Arrivée],Stat_Nuitée!$D$2,Tableau1[Nat],Stat_Nuitée!C14)","v":0},{"$f":"COUNTIFS(Tableau1[Date Arrivée],Stat_Nuitée!$E$2,Tableau1[Nat],Stat_Nuitée!C14)","v":0},{"$f":"COUNTIFS(Tableau1[Date Arrivée],Stat_Nuitée!$F$2,Tableau1[Nat],Stat_Nuitée!C14)","v":0},{"$f":"COUNTIFS(Tableau1[Date Arrivée],Stat_Nuitée!$G$2,Tableau1[Nat],Stat_Nuitée!C14)","v":0},{"$f":"COUNTIFS(Tableau1[Date Arrivée],Stat_Nuitée!$H$2,Tableau1[Nat],Stat_Nuitée!C14)","v":0},{"$f":"COUNTIFS(Tableau1[Date Arrivée],Stat_Nuitée!$I$2,Tableau1[Nat],Stat_Nuitée!C14)","v":0},{"$f":"COUNTIFS(Tableau1[Date Arrivée],Stat_Nuitée!$J$2,Tableau1[Nat],Stat_Nuitée!C14)","v":0},{"$f":"COUNTIFS(Tableau1[Date Arrivée],Stat_Nuitée!$K$2,Tableau1[Nat],Stat_Nuitée!C14)","v":0},{"$f":"COUNTIFS(Tableau1[Date Arrivée],Stat_Nuitée!$L$2,Tableau1[Nat],Stat_Nuitée!C14)","v":0},{"$f":"COUNTIFS(Tableau1[Date Arrivée],Stat_Nuitée!$M$2,Tableau1[Nat],Stat_Nuitée!C14)","v":0},{"$f":"COUNTIFS(Tableau1[Date Arrivée],Stat_Nuitée!$N$2,Tableau1[Nat],Stat_Nuitée!C14)","v":0},{"$f":"COUNTIFS(Tableau1[Date Arrivée],Stat_Nuitée!$O$2,Tableau1[Nat],Stat_Nuitée!C14)","v":0},{"$f":"COUNTIFS(Tableau1[Date Arrivée],Stat_Nuitée!$P$2,Tableau1[Nat],Stat_Nuitée!C14)","v":0},{"$f":"COUNTIFS(Tableau1[Date Arrivée],Stat_Nuitée!$Q$2,Tableau1[Nat],Stat_Nuitée!C14)","v":0},{"$f":"COUNTIFS(Tableau1[Date Arrivée],Stat_Nuitée!$R$2,Tableau1[Nat],Stat_Nuitée!C14)","v":0},{"$f":"COUNTIFS(Tableau1[Date Arrivée],Stat_Nuitée!$S$2,Tableau1[Nat],Stat_Nuitée!C14)","v":0},{"$f":"COUNTIFS(Tableau1[Date Arrivée],Stat_Nuitée!$T$2,Tableau1[Nat],Stat_Nuitée!C14)","v":0},{"$f":"COUNTIFS(Tableau1[Date Arrivée],Stat_Nuitée!$U$2,Tableau1[Nat],Stat_Nuitée!C14)","v":0},{"$f":"COUNTIFS(Tableau1[Date Arrivée],Stat_Nuitée!$V$2,Tableau1[Nat],Stat_Nuitée!C14)","v":0},{"$f":"COUNTIFS(Tableau1[Date Arrivée],Stat_Nuitée!$W$2,Tableau1[Nat],Stat_Nuitée!C14)","v":0},{"$f":"COUNTIFS(Tableau1[Date Arrivée],Stat_Nuitée!$X$2,Tableau1[Nat],Stat_Nuitée!C14)","v":0},{"$f":"COUNTIFS(Tableau1[Date Arrivée],Stat_Nuitée!$Y$2,Tableau1[Nat],Stat_Nuitée!C14)","v":0},{"$f":"COUNTIFS(Tableau1[Date Arrivée],Stat_Nuitée!$Z$2,Tableau1[Nat],Stat_Nuitée!C14)","v":0},{"$f":"COUNTIFS(Tableau1[Date Arrivée],Stat_Nuitée!$AA$2,Tableau1[Nat],Stat_Nuitée!C14)","v":1},{"$f":"COUNTIFS(Tableau1[Date Arrivée],Stat_Nuitée!$AB$2,Tableau1[Nat],Stat_Nuitée!C14)","v":0},{"$f":"COUNTIFS(Tableau1[Date Arrivée],Stat_Nuitée!$AC$2,Tableau1[Nat],Stat_Nuitée!C14)","v":0},{"$f":"COUNTIFS(Tableau1[Date Arrivée],Stat_Nuitée!$AD$2,Tableau1[Nat],Stat_Nuitée!C14)","v":0},{"$f":"COUNTIFS(Tableau1[Date Arrivée],Stat_Nuitée!$AE$2,Tableau1[Nat],Stat_Nuitée!C14)","v":0},{"$f":"COUNTIFS(Tableau1[Date Arrivée],Stat_Nuitée!$AF$2,Tableau1[Nat],Stat_Nuitée!C14)","v":0},{"$f":"COUNTIFS(Tableau1[Date Arrivée],Stat_Nuitée!$AG$2,Tableau1[Nat],Stat_Nuitée!C14)","v":0},{"$f":"COUNTIFS(Tableau1[Date Arrivée],Stat_Nuitée!$AH$2,Tableau1[Nat],Stat_Nuitée!C14)","v":0}]
[null,"Belgique","BE",{"$f":"COUNTIFS(Tableau1[Date Arrivée],Stat_Nuitée!$D$2,Tableau1[Nat],Stat_Nuitée!C15)","v":0},{"$f":"COUNTIFS(Tableau1[Date Arrivée],Stat_Nuitée!$E$2,Tableau1[Nat],Stat_Nuitée!C15)","v":0},{"$f":"COUNTIFS(Tableau1[Date Arrivée],Stat_Nuitée!$F$2,Tableau1[Nat],Stat_Nuitée!C15)","v":0},{"$f":"COUNTIFS(Tableau1[Date Arrivée],Stat_Nuitée!$G$2,Tableau1[Nat],Stat_Nuitée!C15)","v":0},{"$f":"COUNTIFS(Tableau1[Date Arrivée],Stat_Nuitée!$H$2,Tableau1[Nat],Stat_Nuitée!C15)","v":0},{"$f":"COUNTIFS(Tableau1[Date Arrivée],Stat_Nuitée!$I$2,Tableau1[Nat],Stat_Nuitée!C15)","v":0},{"$f":"COUNTIFS(Tableau1[Date Arrivée],Stat_Nuitée!$J$2,Tableau1[Nat],Stat_Nuitée!C15)","v":0},{"$f":"COUNTIFS(Tableau1[Date Arrivée],Stat_Nuitée!$K$2,Tableau1[Nat],Stat_Nuitée!C15)","v":0},{"$f":"COUNTIFS(Tableau1[Date Arrivée],Stat_Nuitée!$L$2,Tableau1[Nat],Stat_Nuitée!C15)","v":0},{"$f":"COUNTIFS(Tableau1[Date Arrivée],Stat_Nuitée!$M$2,Tableau1[Nat],Stat_Nuitée!C15)","v":0},{"$f":"COUNTIFS(Tableau1[Date Arrivée],Stat_Nuitée!$N$2,Tableau1[Nat],Stat_Nuitée!C15)","v":0},{"$f":"COUNTIFS(Tableau1[Date Arrivée],Stat_Nuitée!$O$2,Tableau1[Nat],Stat_Nuitée!C15)","v":0},{"$f":"COUNTIFS(Tableau1[Date Arrivée],Stat_Nuitée!$P$2,Tableau1[Nat],Stat_Nuitée!C15)","v":0},{"$f":"COUNTIFS(Tableau1[Date Arrivée],Stat_Nuitée!$Q$2,Tableau1[Nat],Stat_Nuitée!C15)","v":0},{"$f":"COUNTIFS(Tableau1[Date Arrivée],Stat_Nuitée!$R$2,Tableau1[Nat],Stat_Nuitée!C15)","v":0},{"$f":"COUNTIFS(Tableau1[Date Arrivée],Stat_Nuitée!$S$2,Tableau1[Nat],Stat_Nuitée!C15)","v":0},{"$f":"COUNTIFS(Tableau1[Date Arrivée],Stat_Nuitée!$T$2,Tableau1[Nat],Stat_Nuitée!C15)","v":0},{"$f":"COUNTIFS(Tableau1[Date Arrivée],Stat_Nuitée!$U$2,Tableau1[Nat],Stat_Nuitée!C15)","v":0},{"$f":"COUNTIFS(Tableau1[Date Arrivée],Stat_Nuitée!$V$2,Tableau1[Nat],Stat_Nuitée!C15)","v":0},{"$f":"COUNTIFS(Tableau1[Date Arrivée],Stat_Nuitée!$W$2,Tableau1[Nat],Stat_Nuitée!C15)","v":0},{"$f":"COUNTIFS(Tableau1[Date Arrivée],Stat_Nuitée!$X$2,Tableau1[Nat],Stat_Nuitée!C15)","v":0},{"$f":"COUNTIFS(Tableau1[Date Arrivée],Stat_Nuitée!$Y$2,Tableau1[Nat],Stat_Nuitée!C15)","v":0},{"$f":"COUNTIFS(Tableau1[Date Arrivée],Stat_Nuitée!$Z$2,Tableau1[Nat],Stat_Nuitée!C15)","v":0},{"$f":"COUNTIFS(Tableau1[Date Arrivée],Stat_Nuitée!$AA$2,Tableau1[Nat],Stat_Nuitée!C15)","v":0},{"$f":"COUNTIFS(Tableau1[Date Arrivée],Stat_Nuitée!$AB$2,Tableau1[Nat],Stat_Nuitée!C15)","v":0},{"$f":"COUNTIFS(Tableau1[Date Arrivée],Stat_Nuitée!$AC$2,Tableau1[Nat],Stat_Nuitée!C15)","v":0},{"$f":"COUNTIFS(Tableau1[Date Arrivée],Stat_Nuitée!$AD$2,Tableau1[Nat],Stat_Nuitée!C15)","v":0},{"$f":"COUNTIFS(Tableau1[Date Arrivée],Stat_Nuitée!$AE$2,Tableau1[Nat],Stat_Nuitée!C15)","v":0},{"$f":"COUNTIFS(Tableau1[Date Arrivée],Stat_Nuitée!$AF$2,Tableau1[Nat],Stat_Nuitée!C15)","v":0},{"$f":"COUNTIFS(Tableau1[Date Arrivée],Stat_Nuitée!$AG$2,Tableau1[Nat],Stat_Nuitée!C15)","v":0},{"$f":"COUNTIFS(Tableau1[Date Arrivée],Stat_Nuitée!$AH$2,Tableau1[Nat],Stat_Nuitée!C15)","v":0}]
[null,"Suisse","CH",{"$f":"COUNTIFS(Tableau1[Date Arrivée],Stat_Nuitée!$D$2,Tableau1[Nat],Stat_Nuitée!C16)","v":0},{"$f":"COUNTIFS(Tableau1[Date Arrivée],Stat_Nuitée!$E$2,Tableau1[Nat],Stat_Nuitée!C16)","v":0},{"$f":"COUNTIFS(Tableau1[Date Arrivée],Stat_Nuitée!$F$2,Tableau1[Nat],Stat_Nuitée!C16)","v":0},{"$f":"COUNTIFS(Tableau1[Date Arrivée],Stat_Nuitée!$G$2,Tableau1[Nat],Stat_Nuitée!C16)","v":0},{"$f":"COUNTIFS(Tableau1[Date Arrivée],Stat_Nuitée!$H$2,Tableau1[Nat],Stat_Nuitée!C16)","v":0},{"$f":"COUNTIFS(Tableau1[Date Arrivée],Stat_Nuitée!$I$2,Tableau1[Nat],Stat_Nuitée!C16)","v":0},{"$f":"COUNTIFS(Tableau1[Date Arrivée],Stat_Nuitée!$J$2,Tableau1[Nat],Stat_Nuitée!C16)","v":0},{"$f":"COUNTIFS(Tableau1[Date Arrivée],Stat_Nuitée!$K$2,Tableau1[Nat],Stat_Nuitée!C16)","v":0},{"$f":"COUNTIFS(Tableau1[Date Arrivée],Stat_Nuitée!$L$2,Tableau1[Nat],Stat_Nuitée!C16)","v":0},{"$f":"COUNTIFS(Tableau1[Date Arrivée],Stat_Nuitée!$M$2,Tableau1[Nat],Stat_Nuitée!C16)","v":0},{"$f":"COUNTIFS(Tableau1[Date Arrivée],Stat_Nuitée!$N$2,Tableau1[Nat],Stat_Nuitée!C16)","v":0},{"$f":"COUNTIFS(Tableau1[Date Arrivée],Stat_Nuitée!$O$2,Tableau1[Nat],Stat_Nuitée!C16)","v":0},{"$f":"COUNTIFS(Tableau1[Date Arrivée],Stat_Nuitée!$P$2,Tableau1[Nat],Stat_Nuitée!C16)","v":0},{"$f":"COUNTIFS(Tableau1[Date Arrivée],Stat_Nuitée!$Q$2,Tableau1[Nat],Stat_Nuitée!C16)","v":0},{"$f":"COUNTIFS(Tableau1[Date Arrivée],Stat_Nuitée!$R$2,Tableau1[Nat],Stat_Nuitée!C16)","v":0},{"$f":"COUNTIFS(Tableau1[Date Arrivée],Stat_Nuitée!$S$2,Tableau1[Nat],Stat_Nuitée!C16)","v":0},{"$f":"COUNTIFS(Tableau1[Date Arrivée],Stat_Nuitée!$T$2,Tableau1[Nat],Stat_Nuitée!C16)","v":0},{"$f":"COUNTIFS(Tableau1[Date Arrivée],Stat_Nuitée!$U$2,Tableau1[Nat],Stat_Nuitée!C16)","v":0},{"$f":"COUNTIFS(Tableau1[Date Arrivée],Stat_Nuitée!$V$2,Tableau1[Nat],Stat_Nuitée!C16)","v":0},{"$f":"COUNTIFS(Tableau1[Date Arrivée],Stat_Nuitée!$W$2,Tableau1[Nat],Stat_Nuitée!C16)","v":0},{"$f":"COUNTIFS(Tableau1[Date Arrivée],Stat_Nuitée!$X$2,Tableau1[Nat],Stat_Nuitée!C16)","v":0},{"$f":"COUNTIFS(Tableau1[Date Arrivée],Stat_Nuitée!$Y$2,Tableau1[Nat],Stat_Nuitée!C16)","v":0},{"$f":"COUNTIFS(Tableau1[Date Arrivée],Stat_Nuitée!$Z$2,Tableau1[Nat],Stat_Nuitée!C16)","v":0},{"$f":"COUNTIFS(Tableau1[Date Arrivée],Stat_Nuitée!$AA$2,Tableau1[Nat],Stat_Nuitée!C16)","v":0},{"$f":"COUNTIFS(Tableau1[Date Arrivée],Stat_Nuitée!$AB$2,Tableau1[Nat],Stat_Nuitée!C16)","v":0},{"$f":"COUNTIFS(Tableau1[Date Arrivée],Stat_Nuitée!$AC$2,Tableau1[Nat],Stat_Nuitée!C16)","v":0},{"$f":"COUNTIFS(Tableau1[Date Arrivée],Stat_Nuitée!$AD$2,Tableau1[Nat],Stat_Nuitée!C16)","v":0},{"$f":"COUNTIFS(Tableau1[Date Arrivée],Stat_Nuitée!$AE$2,Tableau1[Nat],Stat_Nuitée!C16)","v":0},{"$f":"COUNTIFS(Tableau1[Date Arrivée],Stat_Nuitée!$AF$2,Tableau1[Nat],Stat_Nuitée!C16)","v":0},{"$f":"COUNTIFS(Tableau1[Date Arrivée],Stat_Nuitée!$AG$2,Tableau1[Nat],Stat_Nuitée!C16)","v":0},{"$f":"COUNTIFS(Tableau1[Date Arrivée],Stat_Nuitée!$AH$2,Tableau1[Nat],Stat_Nuitée!C16)","v":0}]
[null,"Hongrie","HU",{"$f":"COUNTIFS(Tableau1[Date Arrivée],Stat_Nuitée!$D$2,Tableau1[Nat],Stat_Nuitée!C17)","v":0},{"$f":"COUNTIFS(Tableau1[Date Arrivée],Stat_Nuitée!$E$2,Tableau1[Nat],Stat_Nuitée!C17)","v":0},{"$f":"COUNTIFS(Tableau1[Date Arrivée],Stat_Nuitée!$F$2,Tableau1[Nat],Stat_Nuitée!C17)","v":0},{"$f":"COUNTIFS(Tableau1[Date Arrivée],Stat_Nuitée!$G$2,Tableau1[Nat],Stat_Nuitée!C17)","v":0},{"$f":"COUNTIFS(Tableau1[Date Arrivée],Stat_Nuitée!$H$2,Tableau1[Nat],Stat_Nuitée!C17)","v":0},{"$f":"COUNTIFS(Tableau1[Date Arrivée],Stat_Nuitée!$I$2,Tableau1[Nat],Stat_Nuitée!C17)","v":0},{"$f":"COUNTIFS(Tableau1[Date Arrivée],Stat_Nuitée!$J$2,Tableau1[Nat],Stat_Nuitée!C17)","v":0},{"$f":"COUNTIFS(Tableau1[Date Arrivée],Stat_Nuitée!$K$2,Tableau1[Nat],Stat_Nuitée!C17)","v":0},{"$f":"COUNTIFS(Tableau1[Date Arrivée],Stat_Nuitée!$L$2,Tableau1[Nat],Stat_Nuitée!C17)","v":0},{"$f":"COUNTIFS(Tableau1[Date Arrivée],Stat_Nuitée!$M$2,Tableau1[Nat],Stat_Nuitée!C17)","v":0},{"$f":"COUNTIFS(Tableau1[Date Arrivée],Stat_Nuitée!$N$2,Tableau1[Nat],Stat_Nuitée!C17)","v":0},{"$f":"COUNTIFS(Tableau1[Date Arrivée],Stat_Nuitée!$O$2,Tableau1[Nat],Stat_Nuitée!C17)","v":0},{"$f":"COUNTIFS(Tableau1[Date Arrivée],Stat_Nuitée!$P$2,Tableau1[Nat],Stat_Nuitée!C17)","v":0},{"$f":"COUNTIFS(Tableau1[Date Arrivée],Stat_Nuitée!$Q$2,Tableau1[Nat],Stat_Nuitée!C17)","v":0},{"$f":"COUNTIFS(Tableau1[Date Arrivée],Stat_Nuitée!$R$2,Tableau1[Nat],Stat_Nuitée!C17)","v":0},{"$f":"COUNTIFS(Tableau1[Date Arrivée],Stat_Nuitée!$S$2,Tableau1[Nat],Stat_Nuitée!C17)","v":0},{"$f":"COUNTIFS(Tableau1[Date Arrivée],Stat_Nuitée!$T$2,Tableau1[Nat],Stat_Nuitée!C17)","v":0},{"$f":"COUNTIFS(Tableau1[Date Arrivée],Stat_Nuitée!$U$2,Tableau1[Nat],Stat_Nuitée!C17)","v":0},{"$f":"COUNTIFS(Tableau1[Date Arrivée],Stat_Nuitée!$V$2,Tableau1[Nat],Stat_Nuitée!C17)","v":0},{"$f":"COUNTIFS(Tableau1[Date Arrivée],Stat_Nuitée!$W$2,Tableau1[Nat],Stat_Nuitée!C17)","v":0},{"$f":"COUNTIFS(Tableau1[Date Arrivée],Stat_Nuitée!$X$2,Tableau1[Nat],Stat_Nuitée!C17)","v":0},{"$f":"COUNTIFS(Tableau1[Date Arrivée],Stat_Nuitée!$Y$2,Tableau1[Nat],Stat_Nuitée!C17)","v":0},{"$f":"COUNTIFS(Tableau1[Date Arrivée],Stat_Nuitée!$Z$2,Tableau1[Nat],Stat_Nuitée!C17)","v":0},{"$f":"COUNTIFS(Tableau1[Date Arrivée],Stat_Nuitée!$AA$2,Tableau1[Nat],Stat_Nuitée!C17)","v":0},{"$f":"COUNTIFS(Tableau1[Date Arrivée],Stat_Nuitée!$AB$2,Tableau1[Nat],Stat_Nuitée!C17)","v":0},{"$f":"COUNTIFS(Tableau1[Date Arrivée],Stat_Nuitée!$AC$2,Tableau1[Nat],Stat_Nuitée!C17)","v":0},{"$f":"COUNTIFS(Tableau1[Date Arrivée],Stat_Nuitée!$AD$2,Tableau1[Nat],Stat_Nuitée!C17)","v":0},{"$f":"COUNTIFS(Tableau1[Date Arrivée],Stat_Nuitée!$AE$2,Tableau1[Nat],Stat_Nuitée!C17)","v":0},{"$f":"COUNTIFS(Tableau1[Date Arrivée],Stat_Nuitée!$AF$2,Tableau1[Nat],Stat_Nuitée!C17)","v":0},{"$f":"COUNTIFS(Tableau1[Date Arrivée],Stat_Nuitée!$AG$2,Tableau1[Nat],Stat_Nuitée!C17)","v":0},{"$f":"COUNTIFS(Tableau1[Date Arrivée],Stat_Nuitée!$AH$2,Tableau1[Nat],Stat_Nuitée!C17)","v":0}]
[null,"Russie","RU",{"$f":"COUNTIFS(Tableau1[Date Arrivée],Stat_Nuitée!$D$2,Tableau1[Nat],Stat_Nuitée!C18)","v":0},{"$f":"COUNTIFS(Tableau1[Date Arrivée],Stat_Nuitée!$E$2,Tableau1[Nat],Stat_Nuitée!C18)","v":0},{"$f":"COUNTIFS(Tableau1[Date Arrivée],Stat_Nuitée!$F$2,Tableau1[Nat],Stat_Nuitée!C18)","v":0},{"$f":"COUNTIFS(Tableau1[Date Arrivée],Stat_Nuitée!$G$2,Tableau1[Nat],Stat_Nuitée!C18)","v":0},{"$f":"COUNTIFS(Tableau1[Date Arrivée],Stat_Nuitée!$H$2,Tableau1[Nat],Stat_Nuitée!C18)","v":0},{"$f":"COUNTIFS(Tableau1[Date Arrivée],Stat_Nuitée!$I$2,Tableau1[Nat],Stat_Nuitée!C18)","v":0},{"$f":"COUNTIFS(Tableau1[Date Arrivée],Stat_Nuitée!$J$2,Tableau1[Nat],Stat_Nuitée!C18)","v":0},{"$f":"COUNTIFS(Tableau1[Date Arrivée],Stat_Nuitée!$K$2,Tableau1[Nat],Stat_Nuitée!C18)","v":0},{"$f":"COUNTIFS(Tableau1[Date Arrivée],Stat_Nuitée!$L$2,Tableau1[Nat],Stat_Nuitée!C18)","v":0},{"$f":"COUNTIFS(Tableau1[Date Arrivée],Stat_Nuitée!$M$2,Tableau1[Nat],Stat_Nuitée!C18)","v":0},{"$f":"COUNTIFS(Tableau1[Date Arrivée],Stat_Nuitée!$N$2,Tableau1[Nat],Stat_Nuitée!C18)","v":0},{"$f":"COUNTIFS(Tableau1[Date Arrivée],Stat_Nuitée!$O$2,Tableau1[Nat],Stat_Nuitée!C18)","v":0},{"$f":"COUNTIFS(Tableau1[Date Arrivée],Stat_Nuitée!$P$2,Tableau1[Nat],Stat_Nuitée!C18)","v":0},{"$f":"COUNTIFS(Tableau1[Date Arrivée],Stat_Nuitée!$Q$2,Tableau1[Nat],Stat_Nuitée!C18)","v":0},{"$f":"COUNTIFS(Tableau1[Date Arrivée],Stat_Nuitée!$R$2,Tableau1[Nat],Stat_Nuitée!C18)","v":0},{"$f":"COUNTIFS(Tableau1[Date Arrivée],Stat_Nuitée!$S$2,Tableau1[Nat],Stat_Nuitée!C18)","v":0},{"$f":"COUNTIFS(Tableau1[Date Arrivée],Stat_Nuitée!$T$2,Tableau1[Nat],Stat_Nuitée!C18)","v":0},{"$f":"COUNTIFS(Tableau1[Date Arrivée],Stat_Nuitée!$U$2,Tableau1[Nat],Stat_Nuitée!C18)","v":0},{"$f":"COUNTIFS(Tableau1[Date Arrivée],Stat_Nuitée!$V$2,Tableau1[Nat],Stat_Nuitée!C18)","v":0},{"$f":"COUNTIFS(Tableau1[Date Arrivée],Stat_Nuitée!$W$2,Tableau1[Nat],Stat_Nuitée!C18)","v":0},{"$f":"COUNTIFS(Tableau1[Date Arrivée],Stat_Nuitée!$X$2,Tableau1[Nat],Stat_Nuitée!C18)","v":0},{"$f":"COUNTIFS(Tableau1[Date Arrivée],Stat_Nuitée!$Y$2,Tableau1[Nat],Stat_Nuitée!C18)","v":0},{"$f":"COUNTIFS(Tableau1[Date Arrivée],Stat_Nuitée!$Z$2,Tableau1[Nat],Stat_Nuitée!C18)","v":0},{"$f":"COUNTIFS(Tableau1[Date Arrivée],Stat_Nuitée!$AA$2,Tableau1[Nat],Stat_Nuitée!C18)","v":0},{"$f":"COUNTIFS(Tableau1[Date Arrivée],Stat_Nuitée!$AB$2,Tableau1[Nat],Stat_Nuitée!C18)","v":0},{"$f":"COUNTIFS(Tableau1[Date Arrivée],Stat_Nuitée!$AC$2,Tableau1[Nat],Stat_Nuitée!C18)","v":0},{"$f":"COUNTIFS(Tableau1[Date Arrivée],Stat_Nuitée!$AD$2,Tableau1[Nat],Stat_Nuitée!C18)","v":0},{"$f":"COUNTIFS(Tableau1[Date Arrivée],Stat_Nuitée!$AE$2,Tableau1[Nat],Stat_Nuitée!C18)","v":0},{"$f":"COUNTIFS(Tableau1[Date Arrivée],Stat_Nuitée!$AF$2,Tableau1[Nat],Stat_Nuitée!C18)","v":0},{"$f":"COUNTIFS(Tableau1[Date Arrivée],Stat_Nuitée!$AG$2,Tableau1[Nat],Stat_Nuitée!C18)","v":0},{"$f":"COUNTIFS(Tableau1[Date Arrivée],Stat_Nuitée!$AH$2,Tableau1[Nat],Stat_Nuitée!C18)","v":0}]
[null,"Pologne","PO",{"$f":"COUNTIFS(Tableau1[Date Arrivée],Stat_Nuitée!$D$2,Tableau1[Nat],Stat_Nuitée!C19)","v":0},{"$f":"COUNTIFS(Tableau1[Date Arrivée],Stat_Nuitée!$E$2,Tableau1[Nat],Stat_Nuitée!C19)","v":0},{"$f":"COUNTIFS(Tableau1[Date Arrivée],Stat_Nuitée!$F$2,Tableau1[Nat],Stat_Nuitée!C19)","v":0},{"$f":"COUNTIFS(Tableau1[Date Arrivée],Stat_Nuitée!$G$2,Tableau1[Nat],Stat_Nuitée!C19)","v":0},{"$f":"COUNTIFS(Tableau1[Date Arrivée],Stat_Nuitée!$H$2,Tableau1[Nat],Stat_Nuitée!C19)","v":0},{"$f":"COUNTIFS(Tableau1[Date Arrivée],Stat_Nuitée!$I$2,Tableau1[Nat],Stat_Nuitée!C19)","v":0},{"$f":"COUNTIFS(Tableau1[Date Arrivée],Stat_Nuitée!$J$2,Tableau1[Nat],Stat_Nuitée!C19)","v":0},{"$f":"COUNTIFS(Tableau1[Date Arrivée],Stat_Nuitée!$K$2,Tableau1[Nat],Stat_Nuitée!C19)","v":0},{"$f":"COUNTIFS(Tableau1[Date Arrivée],Stat_Nuitée!$L$2,Tableau1[Nat],Stat_Nuitée!C19)","v":0},{"$f":"COUNTIFS(Tableau1[Date Arrivée],Stat_Nuitée!$M$2,Tableau1[Nat],Stat_Nuitée!C19)","v":0},{"$f":"COUNTIFS(Tableau1[Date Arrivée],Stat_Nuitée!$N$2,Tableau1[Nat],Stat_Nuitée!C19)","v":0},{"$f":"COUNTIFS(Tableau1[Date Arrivée],Stat_Nuitée!$O$2,Tableau1[Nat],Stat_Nuitée!C19)","v":0},{"$f":"COUNTIFS(Tableau1[Date Arrivée],Stat_Nuitée!$P$2,Tableau1[Nat],Stat_Nuitée!C19)","v":0},{"$f":"COUNTIFS(Tableau1[Date Arrivée],Stat_Nuitée!$Q$2,Tableau1[Nat],Stat_Nuitée!C19)","v":0},{"$f":"COUNTIFS(Tableau1[Date Arrivée],Stat_Nuitée!$R$2,Tableau1[Nat],Stat_Nuitée!C19)","v":0},{"$f":"COUNTIFS(Tableau1[Date Arrivée],Stat_Nuitée!$S$2,Tableau1[Nat],Stat_Nuitée!C19)","v":0},{"$f":"COUNTIFS(Tableau1[Date Arrivée],Stat_Nuitée!$T$2,Tableau1[Nat],Stat_Nuitée!C19)","v":0},{"$f":"COUNTIFS(Tableau1[Date Arrivée],Stat_Nuitée!$U$2,Tableau1[Nat],Stat_Nuitée!C19)","v":0},{"$f":"COUNTIFS(Tableau1[Date Arrivée],Stat_Nuitée!$V$2,Tableau1[Nat],Stat_Nuitée!C19)","v":0},{"$f":"COUNTIFS(Tableau1[Date Arrivée],Stat_Nuitée!$W$2,Tableau1[Nat],Stat_Nuitée!C19)","v":0},{"$f":"COUNTIFS(Tableau1[Date Arrivée],Stat_Nuitée!$X$2,Tableau1[Nat],Stat_Nuitée!C19)","v":0},{"$f":"COUNTIFS(Tableau1[Date Arrivée],Stat_Nuitée!$Y$2,Tableau1[Nat],Stat_Nuitée!C19)","v":0},{"$f":"COUNTIFS(Tableau1[Date Arrivée],Stat_Nuitée!$Z$2,Tableau1[Nat],Stat_Nuitée!C19)","v":0},{"$f":"COUNTIFS(Tableau1[Date Arrivée],Stat_Nuitée!$AA$2,Tableau1[Nat],Stat_Nuitée!C19)","v":0},{"$f":"COUNTIFS(Tableau1[Date Arrivée],Stat_Nuitée!$AB$2,Tableau1[Nat],Stat_Nuitée!C19)","v":0},{"$f":"COUNTIFS(Tableau1[Date Arrivée],Stat_Nuitée!$AC$2,Tableau1[Nat],Stat_Nuitée!C19)","v":0},{"$f":"COUNTIFS(Tableau1[Date Arrivée],Stat_Nuitée!$AD$2,Tableau1[Nat],Stat_Nuitée!C19)","v":0},{"$f":"COUNTIFS(Tableau1[Date Arrivée],Stat_Nuitée!$AE$2,Tableau1[Nat],Stat_Nuitée!C19)","v":0},{"$f":"COUNTIFS(Tableau1[Date Arrivée],Stat_Nuitée!$AF$2,Tableau1[Nat],Stat_Nuitée!C19)","v":0},{"$f":"COUNTIFS(Tableau1[Date Arrivée],Stat_Nuitée!$AG$2,Tableau1[Nat],Stat_Nuitée!C19)","v":0},{"$f":"COUNTIFS(Tableau1[Date Arrivée],Stat_Nuitée!$AH$2,Tableau1[Nat],Stat_Nuitée!C19)","v":0}]
[null,"Grèce","PL",{"$f":"COUNTIFS(Tableau1[Date Arrivée],Stat_Nuitée!$D$2,Tableau1[Nat],Stat_Nuitée!C20)","v":0},{"$f":"COUNTIFS(Tableau1[Date Arrivée],Stat_Nuitée!$E$2,Tableau1[Nat],Stat_Nuitée!C20)","v":0},{"$f":"COUNTIFS(Tableau1[Date Arrivée],Stat_Nuitée!$F$2,Tableau1[Nat],Stat_Nuitée!C20)","v":0},{"$f":"COUNTIFS(Tableau1[Date Arrivée],Stat_Nuitée!$G$2,Tableau1[Nat],Stat_Nuitée!C20)","v":0},{"$f":"COUNTIFS(Tableau1[Date Arrivée],Stat_Nuitée!$H$2,Tableau1[Nat],Stat_Nuitée!C20)","v":0},{"$f":"COUNTIFS(Tableau1[Date Arrivée],Stat_Nuitée!$I$2,Tableau1[Nat],Stat_Nuitée!C20)","v":0},{"$f":"COUNTIFS(Tableau1[Date Arrivée],Stat_Nuitée!$J$2,Tableau1[Nat],Stat_Nuitée!C20)","v":0},{"$f":"COUNTIFS(Tableau1[Date Arrivée],Stat_Nuitée!$K$2,Tableau1[Nat],Stat_Nuitée!C20)","v":0},{"$f":"COUNTIFS(Tableau1[Date Arrivée],Stat_Nuitée!$L$2,Tableau1[Nat],Stat_Nuitée!C20)","v":0},{"$f":"COUNTIFS(Tableau1[Date Arrivée],Stat_Nuitée!$M$2,Tableau1[Nat],Stat_Nuitée!C20)","v":0},{"$f":"COUNTIFS(Tableau1[Date Arrivée],Stat_Nuitée!$N$2,Tableau1[Nat],Stat_Nuitée!C20)","v":0},{"$f":"COUNTIFS(Tableau1[Date Arrivée],Stat_Nuitée!$O$2,Tableau1[Nat],Stat_Nuitée!C20)","v":0},{"$f":"COUNTIFS(Tableau1[Date Arrivée],Stat_Nuitée!$P$2,Tableau1[Nat],Stat_Nuitée!C20)","v":0},{"$f":"COUNTIFS(Tableau1[Date Arrivée],Stat_Nuitée!$Q$2,Tableau1[Nat],Stat_Nuitée!C20)","v":0},{"$f":"COUNTIFS(Tableau1[Date Arrivée],Stat_Nuitée!$R$2,Tableau1[Nat],Stat_Nuitée!C20)","v":0},{"$f":"COUNTIFS(Tableau1[Date Arrivée],Stat_Nuitée!$S$2,Tableau1[Nat],Stat_Nuitée!C20)","v":0},{"$f":"COUNTIFS(Tableau1[Date Arrivée],Stat_Nuitée!$T$2,Tableau1[Nat],Stat_Nuitée!C20)","v":0},{"$f":"COUNTIFS(Tableau1[Date Arrivée],Stat_Nuitée!$U$2,Tableau1[Nat],Stat_Nuitée!C20)","v":0},{"$f":"COUNTIFS(Tableau1[Date Arrivée],Stat_Nuitée!$V$2,Tableau1[Nat],Stat_Nuitée!C20)","v":0},{"$f":"COUNTIFS(Tableau1[Date Arrivée],Stat_Nuitée!$W$2,Tableau1[Nat],Stat_Nuitée!C20)","v":0},{"$f":"COUNTIFS(Tableau1[Date Arrivée],Stat_Nuitée!$X$2,Tableau1[Nat],Stat_Nuitée!C20)","v":0},{"$f":"COUNTIFS(Tableau1[Date Arrivée],Stat_Nuitée!$Y$2,Tableau1[Nat],Stat_Nuitée!C20)","v":0},{"$f":"COUNTIFS(Tableau1[Date Arrivée],Stat_Nuitée!$Z$2,Tableau1[Nat],Stat_Nuitée!C20)","v":0},{"$f":"COUNTIFS(Tableau1[Date Arrivée],Stat_Nuitée!$AA$2,Tableau1[Nat],Stat_Nuitée!C20)","v":0},{"$f":"COUNTIFS(Tableau1[Date Arrivée],Stat_Nuitée!$AB$2,Tableau1[Nat],Stat_Nuitée!C20)","v":0},{"$f":"COUNTIFS(Tableau1[Date Arrivée],Stat_Nuitée!$AC$2,Tableau1[Nat],Stat_Nuitée!C20)","v":0},{"$f":"COUNTIFS(Tableau1[Date Arrivée],Stat_Nuitée!$AD$2,Tableau1[Nat],Stat_Nuitée!C20)","v":0},{"$f":"COUNTIFS(Tableau1[Date Arrivée],Stat_Nuitée!$AE$2,Tableau1[Nat],Stat_Nuitée!C20)","v":0},{"$f":"COUNTIFS(Tableau1[Date Arrivée],Stat_Nuitée!$AF$2,Tableau1[Nat],Stat_Nuitée!C20)","v":0},{"$f":"COUNTIFS(Tableau1[Date Arrivée],Stat_Nuitée!$AG$2,Tableau1[Nat],Stat_Nuitée!C20)","v":0},{"$f":"COUNTIFS(Tableau1[Date Arrivée],Stat_Nuitée!$AH$2,Tableau1[Nat],Stat_Nuitée!C20)","v":0}]
[null,"Etat Unis","US",{"$f":"COUNTIFS(Tableau1[Date Arrivée],Stat_Nuitée!$D$2,Tableau1[Nat],Stat_Nuitée!C21)","v":0},{"$f":"COUNTIFS(Tableau1[Date Arrivée],Stat_Nuitée!$E$2,Tableau1[Nat],Stat_Nuitée!C21)","v":0},{"$f":"COUNTIFS(Tableau1[Date Arrivée],Stat_Nuitée!$F$2,Tableau1[Nat],Stat_Nuitée!C21)","v":1},{"$f":"COUNTIFS(Tableau1[Date Arrivée],Stat_Nuitée!$G$2,Tableau1[Nat],Stat_Nuitée!C21)","v":0},{"$f":"COUNTIFS(Tableau1[Date Arrivée],Stat_Nuitée!$H$2,Tableau1[Nat],Stat_Nuitée!C21)","v":0},{"$f":"COUNTIFS(Tableau1[Date Arrivée],Stat_Nuitée!$I$2,Tableau1[Nat],Stat_Nuitée!C21)","v":0},{"$f":"COUNTIFS(Tableau1[Date Arrivée],Stat_Nuitée!$J$2,Tableau1[Nat],Stat_Nuitée!C21)","v":0},{"$f":"COUNTIFS(Tableau1[Date Arrivée],Stat_Nuitée!$K$2,Tableau1[Nat],Stat_Nuitée!C21)","v":0},{"$f":"COUNTIFS(Tableau1[Date Arrivée],Stat_Nuitée!$L$2,Tableau1[Nat],Stat_Nuitée!C21)","v":0},{"$f":"COUNTIFS(Tableau1[Date Arrivée],Stat_Nuitée!$M$2,Tableau1[Nat],Stat_Nuitée!C21)","v":0},{"$f":"COUNTIFS(Tableau1[Date Arrivée],Stat_Nuitée!$N$2,Tableau1[Nat],Stat_Nuitée!C21)","v":0},{"$f":"COUNTIFS(Tableau1[Date Arrivée],Stat_Nuitée!$O$2,Tableau1[Nat],Stat_Nuitée!C21)","v":0},{"$f":"COUNTIFS(Tableau1[Date Arrivée],Stat_Nuitée!$P$2,Tableau1[Nat],Stat_Nuitée!C21)","v":0},{"$f":"COUNTIFS(Tableau1[Date Arrivée],Stat_Nuitée!$Q$2,Tableau1[Nat],Stat_Nuitée!C21)","v":0},{"$f":"COUNTIFS(Tableau1[Date Arrivée],Stat_Nuitée!$R$2,Tableau1[Nat],Stat_Nuitée!C21)","v":0},{"$f":"COUNTIFS(Tableau1[Date Arrivée],Stat_Nuitée!$S$2,Tableau1[Nat],Stat_Nuitée!C21)","v":0},{"$f":"COUNTIFS(Tableau1[Date Arrivée],Stat_Nuitée!$T$2,Tableau1[Nat],Stat_Nuitée!C21)","v":0},{"$f":"COUNTIFS(Tableau1[Date Arrivée],Stat_Nuitée!$U$2,Tableau1[Nat],Stat_Nuitée!C21)","v":0},{"$f":"COUNTIFS(Tableau1[Date Arrivée],Stat_Nuitée!$V$2,Tableau1[Nat],Stat_Nuitée!C21)","v":0},{"$f":"COUNTIFS(Tableau1[Date Arrivée],Stat_Nuitée!$W$2,Tableau1[Nat],Stat_Nuitée!C21)","v":0},{"$f":"COUNTIFS(Tableau1[Date Arrivée],Stat_Nuitée!$X$2,Tableau1[Nat],Stat_Nuitée!C21)","v":0},{"$f":"COUNTIFS(Tableau1[Date Arrivée],Stat_Nuitée!$Y$2,Tableau1[Nat],Stat_Nuitée!C21)","v":0},{"$f":"COUNTIFS(Tableau1[Date Arrivée],Stat_Nuitée!$Z$2,Tableau1[Nat],Stat_Nuitée!C21)","v":0},{"$f":"COUNTIFS(Tableau1[Date Arrivée],Stat_Nuitée!$AA$2,Tableau1[Nat],Stat_Nuitée!C21)","v":0},{"$f":"COUNTIFS(Tableau1[Date Arrivée],Stat_Nuitée!$AB$2,Tableau1[Nat],Stat_Nuitée!C21)","v":0},{"$f":"COUNTIFS(Tableau1[Date Arrivée],Stat_Nuitée!$AC$2,Tableau1[Nat],Stat_Nuitée!C21)","v":0},{"$f":"COUNTIFS(Tableau1[Date Arrivée],Stat_Nuitée!$AD$2,Tableau1[Nat],Stat_Nuitée!C21)","v":0},{"$f":"COUNTIFS(Tableau1[Date Arrivée],Stat_Nuitée!$AE$2,Tableau1[Nat],Stat_Nuitée!C21)","v":0},{"$f":"COUNTIFS(Tableau1[Date Arrivée],Stat_Nuitée!$AF$2,Tableau1[Nat],Stat_Nuitée!C21)","v":0},{"$f":"COUNTIFS(Tableau1[Date Arrivée],Stat_Nuitée!$AG$2,Tableau1[Nat],Stat_Nuitée!C21)","v":0},{"$f":"COUNTIFS(Tableau1[Date Arrivée],Stat_Nuitée!$AH$2,Tableau1[Nat],Stat_Nuitée!C21)","v":0}]
[null,"Canada","CA",{"$f":"COUNTIFS(Tableau1[Date Arrivée],Stat_Nuitée!$D$2,Tableau1[Nat],Stat_Nuitée!C22)","v":0},{"$f":"COUNTIFS(Tableau1[Date Arrivée],Stat_Nuitée!$E$2,Tableau1[Nat],Stat_Nuitée!C22)","v":0},{"$f":"COUNTIFS(Tableau1[Date Arrivée],Stat_Nuitée!$F$2,Tableau1[Nat],Stat_Nuitée!C22)","v":0},{"$f":"COUNTIFS(Tableau1[Date Arrivée],Stat_Nuitée!$G$2,Tableau1[Nat],Stat_Nuitée!C22)","v":0},{"$f":"COUNTIFS(Tableau1[Date Arrivée],Stat_Nuitée!$H$2,Tableau1[Nat],Stat_Nuitée!C22)","v":0},{"$f":"COUNTIFS(Tableau1[Date Arrivée],Stat_Nuitée!$I$2,Tableau1[Nat],Stat_Nuitée!C22)","v":0},{"$f":"COUNTIFS(Tableau1[Date Arrivée],Stat_Nuitée!$J$2,Tableau1[Nat],Stat_Nuitée!C22)","v":0},{"$f":"COUNTIFS(Tableau1[Date Arrivée],Stat_Nuitée!$K$2,Tableau1[Nat],Stat_Nuitée!C22)","v":0},{"$f":"COUNTIFS(Tableau1[Date Arrivée],Stat_Nuitée!$L$2,Tableau1[Nat],Stat_Nuitée!C22)","v":0},{"$f":"COUNTIFS(Tableau1[Date Arrivée],Stat_Nuitée!$M$2,Tableau1[Nat],Stat_Nuitée!C22)","v":0},{"$f":"COUNTIFS(Tableau1[Date Arrivée],Stat_Nuitée!$N$2,Tableau1[Nat],Stat_Nuitée!C22)","v":0},{"$f":"COUNTIFS(Tableau1[Date Arrivée],Stat_Nuitée!$O$2,Tableau1[Nat],Stat_Nuitée!C22)","v":0},{"$f":"COUNTIFS(Tableau1[Date Arrivée],Stat_Nuitée!$P$2,Tableau1[Nat],Stat_Nuitée!C22)","v":0},{"$f":"COUNTIFS(Tableau1[Date Arrivée],Stat_Nuitée!$Q$2,Tableau1[Nat],Stat_Nuitée!C22)","v":0},{"$f":"COUNTIFS(Tableau1[Date Arrivée],Stat_Nuitée!$R$2,Tableau1[Nat],Stat_Nuitée!C22)","v":0},{"$f":"COUNTIFS(Tableau1[Date Arrivée],Stat_Nuitée!$S$2,Tableau1[Nat],Stat_Nuitée!C22)","v":0},{"$f":"COUNTIFS(Tableau1[Date Arrivée],Stat_Nuitée!$T$2,Tableau1[Nat],Stat_Nuitée!C22)","v":0},{"$f":"COUNTIFS(Tableau1[Date Arrivée],Stat_Nuitée!$U$2,Tableau1[Nat],Stat_Nuitée!C22)","v":0},{"$f":"COUNTIFS(Tableau1[Date Arrivée],Stat_Nuitée!$V$2,Tableau1[Nat],Stat_Nuitée!C22)","v":0},{"$f":"COUNTIFS(Tableau1[Date Arrivée],Stat_Nuitée!$W$2,Tableau1[Nat],Stat_Nuitée!C22)","v":0},{"$f":"COUNTIFS(Tableau1[Date Arrivée],Stat_Nuitée!$X$2,Tableau1[Nat],Stat_Nuitée!C22)","v":0},{"$f":"COUNTIFS(Tableau1[Date Arrivée],Stat_Nuitée!$Y$2,Tableau1[Nat],Stat_Nuitée!C22)","v":0},{"$f":"COUNTIFS(Tableau1[Date Arrivée],Stat_Nuitée!$Z$2,Tableau1[Nat],Stat_Nuitée!C22)","v":0},{"$f":"COUNTIFS(Tableau1[Date Arrivée],Stat_Nuitée!$AA$2,Tableau1[Nat],Stat_Nuitée!C22)","v":0},{"$f":"COUNTIFS(Tableau1[Date Arrivée],Stat_Nuitée!$AB$2,Tableau1[Nat],Stat_Nuitée!C22)","v":0},{"$f":"COUNTIFS(Tableau1[Date Arrivée],Stat_Nuitée!$AC$2,Tableau1[Nat],Stat_Nuitée!C22)","v":0},{"$f":"COUNTIFS(Tableau1[Date Arrivée],Stat_Nuitée!$AD$2,Tableau1[Nat],Stat_Nuitée!C22)","v":0},{"$f":"COUNTIFS(Tableau1[Date Arrivée],Stat_Nuitée!$AE$2,Tableau1[Nat],Stat_Nuitée!C22)","v":0},{"$f":"COUNTIFS(Tableau1[Date Arrivée],Stat_Nuitée!$AF$2,Tableau1[Nat],Stat_Nuitée!C22)","v":0},{"$f":"COUNTIFS(Tableau1[Date Arrivée],Stat_Nuitée!$AG$2,Tableau1[Nat],Stat_Nuitée!C22)","v":0},{"$f":"COUNTIFS(Tableau1[Date Arrivée],Stat_Nuitée!$AH$2,Tableau1[Nat],Stat_Nuitée!C22)","v":0}]
[null,"Chine","CN",{"$f":"COUNTIFS(Tableau1[Date Arrivée],Stat_Nuitée!$D$2,Tableau1[Nat],Stat_Nuitée!C23)","v":0},{"$f":"COUNTIFS(Tableau1[Date Arrivée],Stat_Nuitée!$E$2,Tableau1[Nat],Stat_Nuitée!C23)","v":0},{"$f":"COUNTIFS(Tableau1[Date Arrivée],Stat_Nuitée!$F$2,Tableau1[Nat],Stat_Nuitée!C23)","v":0},{"$f":"COUNTIFS(Tableau1[Date Arrivée],Stat_Nuitée!$G$2,Tableau1[Nat],Stat_Nuitée!C23)","v":0},{"$f":"COUNTIFS(Tableau1[Date Arrivée],Stat_Nuitée!$H$2,Tableau1[Nat],Stat_Nuitée!C23)","v":0},{"$f":"COUNTIFS(Tableau1[Date Arrivée],Stat_Nuitée!$I$2,Tableau1[Nat],Stat_Nuitée!C23)","v":0},{"$f":"COUNTIFS(Tableau1[Date Arrivée],Stat_Nuitée!$J$2,Tableau1[Nat],Stat_Nuitée!C23)","v":0},{"$f":"COUNTIFS(Tableau1[Date Arrivée],Stat_Nuitée!$K$2,Tableau1[Nat],Stat_Nuitée!C23)","v":0},{"$f":"COUNTIFS(Tableau1[Date Arrivée],Stat_Nuitée!$L$2,Tableau1[Nat],Stat_Nuitée!C23)","v":0},{"$f":"COUNTIFS(Tableau1[Date Arrivée],Stat_Nuitée!$M$2,Tableau1[Nat],Stat_Nuitée!C23)","v":0},{"$f":"COUNTIFS(Tableau1[Date Arrivée],Stat_Nuitée!$N$2,Tableau1[Nat],Stat_Nuitée!C23)","v":0},{"$f":"COUNTIFS(Tableau1[Date Arrivée],Stat_Nuitée!$O$2,Tableau1[Nat],Stat_Nuitée!C23)","v":0},{"$f":"COUNTIFS(Tableau1[Date Arrivée],Stat_Nuitée!$P$2,Tableau1[Nat],Stat_Nuitée!C23)","v":0},{"$f":"COUNTIFS(Tableau1[Date Arrivée],Stat_Nuitée!$Q$2,Tableau1[Nat],Stat_Nuitée!C23)","v":0},{"$f":"COUNTIFS(Tableau1[Date Arrivée],Stat_Nuitée!$R$2,Tableau1[Nat],Stat_Nuitée!C23)","v":0},{"$f":"COUNTIFS(Tableau1[Date Arrivée],Stat_Nuitée!$S$2,Tableau1[Nat],Stat_Nuitée!C23)","v":0},{"$f":"COUNTIFS(Tableau1[Date Arrivée],Stat_Nuitée!$T$2,Tableau1[Nat],Stat_Nuitée!C23)","v":0},{"$f":"COUNTIFS(Tableau1[Date Arrivée],Stat_Nuitée!$U$2,Tableau1[Nat],Stat_Nuitée!C23)","v":0},{"$f":"COUNTIFS(Tableau1[Date Arrivée],Stat_Nuitée!$V$2,Tableau1[Nat],Stat_Nuitée!C23)","v":0},{"$f":"COUNTIFS(Tableau1[Date Arrivée],Stat_Nuitée!$W$2,Tableau1[Nat],Stat_Nuitée!C23)","v":0},{"$f":"COUNTIFS(Tableau1[Date Arrivée],Stat_Nuitée!$X$2,Tableau1[Nat],Stat_Nuitée!C23)","v":0},{"$f":"COUNTIFS(Tableau1[Date Arrivée],Stat_Nuitée!$Y$2,Tableau1[Nat],Stat_Nuitée!C23)","v":0},{"$f":"COUNTIFS(Tableau1[Date Arrivée],Stat_Nuitée!$Z$2,Tableau1[Nat],Stat_Nuitée!C23)","v":0},{"$f":"COUNTIFS(Tableau1[Date Arrivée],Stat_Nuitée!$AA$2,Tableau1[Nat],Stat_Nuitée!C23)","v":0},{"$f":"COUNTIFS(Tableau1[Date Arrivée],Stat_Nuitée!$AB$2,Tableau1[Nat],Stat_Nuitée!C23)","v":0},{"$f":"COUNTIFS(Tableau1[Date Arrivée],Stat_Nuitée!$AC$2,Tableau1[Nat],Stat_Nuitée!C23)","v":0},{"$f":"COUNTIFS(Tableau1[Date Arrivée],Stat_Nuitée!$AD$2,Tableau1[Nat],Stat_Nuitée!C23)","v":0},{"$f":"COUNTIFS(Tableau1[Date Arrivée],Stat_Nuitée!$AE$2,Tableau1[Nat],Stat_Nuitée!C23)","v":0},{"$f":"COUNTIFS(Tableau1[Date Arrivée],Stat_Nuitée!$AF$2,Tableau1[Nat],Stat_Nuitée!C23)","v":0},{"$f":"COUNTIFS(Tableau1[Date Arrivée],Stat_Nuitée!$AG$2,Tableau1[Nat],Stat_Nuitée!C23)","v":0},{"$f":"COUNTIFS(Tableau1[Date Arrivée],Stat_Nuitée!$AH$2,Tableau1[Nat],Stat_Nuitée!C23)","v":0}]
[null,"Japon","JP",{"$f":"COUNTIFS(Tableau1[Date Arrivée],Stat_Nuitée!$D$2,Tableau1[Nat],Stat_Nuitée!C24)","v":0},{"$f":"COUNTIFS(Tableau1[Date Arrivée],Stat_Nuitée!$E$2,Tableau1[Nat],Stat_Nuitée!C24)","v":0},{"$f":"COUNTIFS(Tableau1[Date Arrivée],Stat_Nuitée!$F$2,Tableau1[Nat],Stat_Nuitée!C24)","v":0},{"$f":"COUNTIFS(Tableau1[Date Arrivée],Stat_Nuitée!$G$2,Tableau1[Nat],Stat_Nuitée!C24)","v":0},{"$f":"COUNTIFS(Tableau1[Date Arrivée],Stat_Nuitée!$H$2,Tableau1[Nat],Stat_Nuitée!C24)","v":0},{"$f":"COUNTIFS(Tableau1[Date Arrivée],Stat_Nuitée!$I$2,Tableau1[Nat],Stat_Nuitée!C24)","v":0},{"$f":"COUNTIFS(Tableau1[Date Arrivée],Stat_Nuitée!$J$2,Tableau1[Nat],Stat_Nuitée!C24)","v":0},{"$f":"COUNTIFS(Tableau1[Date Arrivée],Stat_Nuitée!$K$2,Tableau1[Nat],Stat_Nuitée!C24)","v":0},{"$f":"COUNTIFS(Tableau1[Date Arrivée],Stat_Nuitée!$L$2,Tableau1[Nat],Stat_Nuitée!C24)","v":0},{"$f":"COUNTIFS(Tableau1[Date Arrivée],Stat_Nuitée!$M$2,Tableau1[Nat],Stat_Nuitée!C24)","v":0},{"$f":"COUNTIFS(Tableau1[Date Arrivée],Stat_Nuitée!$N$2,Tableau1[Nat],Stat_Nuitée!C24)","v":0},{"$f":"COUNTIFS(Tableau1[Date Arrivée],Stat_Nuitée!$O$2,Tableau1[Nat],Stat_Nuitée!C24)","v":0},{"$f":"COUNTIFS(Tableau1[Date Arrivée],Stat_Nuitée!$P$2,Tableau1[Nat],Stat_Nuitée!C24)","v":0},{"$f":"COUNTIFS(Tableau1[Date Arrivée],Stat_Nuitée!$Q$2,Tableau1[Nat],Stat_Nuitée!C24)","v":0},{"$f":"COUNTIFS(Tableau1[Date Arrivée],Stat_Nuitée!$R$2,Tableau1[Nat],Stat_Nuitée!C24)","v":0},{"$f":"COUNTIFS(Tableau1[Date Arrivée],Stat_Nuitée!$S$2,Tableau1[Nat],Stat_Nuitée!C24)","v":0},{"$f":"COUNTIFS(Tableau1[Date Arrivée],Stat_Nuitée!$T$2,Tableau1[Nat],Stat_Nuitée!C24)","v":0},{"$f":"COUNTIFS(Tableau1[Date Arrivée],Stat_Nuitée!$U$2,Tableau1[Nat],Stat_Nuitée!C24)","v":0},{"$f":"COUNTIFS(Tableau1[Date Arrivée],Stat_Nuitée!$V$2,Tableau1[Nat],Stat_Nuitée!C24)","v":0},{"$f":"COUNTIFS(Tableau1[Date Arrivée],Stat_Nuitée!$W$2,Tableau1[Nat],Stat_Nuitée!C24)","v":0},{"$f":"COUNTIFS(Tableau1[Date Arrivée],Stat_Nuitée!$X$2,Tableau1[Nat],Stat_Nuitée!C24)","v":0},{"$f":"COUNTIFS(Tableau1[Date Arrivée],Stat_Nuitée!$Y$2,Tableau1[Nat],Stat_Nuitée!C24)","v":0},{"$f":"COUNTIFS(Tableau1[Date Arrivée],Stat_Nuitée!$Z$2,Tableau1[Nat],Stat_Nuitée!C24)","v":0},{"$f":"COUNTIFS(Tableau1[Date Arrivée],Stat_Nuitée!$AA$2,Tableau1[Nat],Stat_Nuitée!C24)","v":0},{"$f":"COUNTIFS(Tableau1[Date Arrivée],Stat_Nuitée!$AB$2,Tableau1[Nat],Stat_Nuitée!C24)","v":0},{"$f":"COUNTIFS(Tableau1[Date Arrivée],Stat_Nuitée!$AC$2,Tableau1[Nat],Stat_Nuitée!C24)","v":0},{"$f":"COUNTIFS(Tableau1[Date Arrivée],Stat_Nuitée!$AD$2,Tableau1[Nat],Stat_Nuitée!C24)","v":0},{"$f":"COUNTIFS(Tableau1[Date Arrivée],Stat_Nuitée!$AE$2,Tableau1[Nat],Stat_Nuitée!C24)","v":0},{"$f":"COUNTIFS(Tableau1[Date Arrivée],Stat_Nuitée!$AF$2,Tableau1[Nat],Stat_Nuitée!C24)","v":0},{"$f":"COUNTIFS(Tableau1[Date Arrivée],Stat_Nuitée!$AG$2,Tableau1[Nat],Stat_Nuitée!C24)","v":0},{"$f":"COUNTIFS(Tableau1[Date Arrivée],Stat_Nuitée!$AH$2,Tableau1[Nat],Stat_Nuitée!C24)","v":0}]
[null,"Inde","IN",{"$f":"COUNTIFS(Tableau1[Date Arrivée],Stat_Nuitée!$D$2,Tableau1[Nat],Stat_Nuitée!C25)","v":0},{"$f":"COUNTIFS(Tableau1[Date Arrivée],Stat_Nuitée!$E$2,Tableau1[Nat],Stat_Nuitée!C25)","v":0},{"$f":"COUNTIFS(Tableau1[Date Arrivée],Stat_Nuitée!$F$2,Tableau1[Nat],Stat_Nuitée!C25)","v":0},{"$f":"COUNTIFS(Tableau1[Date Arrivée],Stat_Nuitée!$G$2,Tableau1[Nat],Stat_Nuitée!C25)","v":0},{"$f":"COUNTIFS(Tableau1[Date Arrivée],Stat_Nuitée!$H$2,Tableau1[Nat],Stat_Nuitée!C25)","v":0},{"$f":"COUNTIFS(Tableau1[Date Arrivée],Stat_Nuitée!$I$2,Tableau1[Nat],Stat_Nuitée!C25)","v":0},{"$f":"COUNTIFS(Tableau1[Date Arrivée],Stat_Nuitée!$J$2,Tableau1[Nat],Stat_Nuitée!C25)","v":0},{"$f":"COUNTIFS(Tableau1[Date Arrivée],Stat_Nuitée!$K$2,Tableau1[Nat],Stat_Nuitée!C25)","v":0},{"$f":"COUNTIFS(Tableau1[Date Arrivée],Stat_Nuitée!$L$2,Tableau1[Nat],Stat_Nuitée!C25)","v":0},{"$f":"COUNTIFS(Tableau1[Date Arrivée],Stat_Nuitée!$M$2,Tableau1[Nat],Stat_Nuitée!C25)","v":0},{"$f":"COUNTIFS(Tableau1[Date Arrivée],Stat_Nuitée!$N$2,Tableau1[Nat],Stat_Nuitée!C25)","v":0},{"$f":"COUNTIFS(Tableau1[Date Arrivée],Stat_Nuitée!$O$2,Tableau1[Nat],Stat_Nuitée!C25)","v":0},{"$f":"COUNTIFS(Tableau1[Date Arrivée],Stat_Nuitée!$P$2,Tableau1[Nat],Stat_Nuitée!C25)","v":0},{"$f":"COUNTIFS(Tableau1[Date Arrivée],Stat_Nuitée!$Q$2,Tableau1[Nat],Stat_Nuitée!C25)","v":0},{"$f":"COUNTIFS(Tableau1[Date Arrivée],Stat_Nuitée!$R$2,Tableau1[Nat],Stat_Nuitée!C25)","v":0},{"$f":"COUNTIFS(Tableau1[Date Arrivée],Stat_Nuitée!$S$2,Tableau1[Nat],Stat_Nuitée!C25)","v":0},{"$f":"COUNTIFS(Tableau1[Date Arrivée],Stat_Nuitée!$T$2,Tableau1[Nat],Stat_Nuitée!C25)","v":0},{"$f":"COUNTIFS(Tableau1[Date Arrivée],Stat_Nuitée!$U$2,Tableau1[Nat],Stat_Nuitée!C25)","v":0},{"$f":"COUNTIFS(Tableau1[Date Arrivée],Stat_Nuitée!$V$2,Tableau1[Nat],Stat_Nuitée!C25)","v":0},{"$f":"COUNTIFS(Tableau1[Date Arrivée],Stat_Nuitée!$W$2,Tableau1[Nat],Stat_Nuitée!C25)","v":0},{"$f":"COUNTIFS(Tableau1[Date Arrivée],Stat_Nuitée!$X$2,Tableau1[Nat],Stat_Nuitée!C25)","v":0},{"$f":"COUNTIFS(Tableau1[Date Arrivée],Stat_Nuitée!$Y$2,Tableau1[Nat],Stat_Nuitée!C25)","v":0},{"$f":"COUNTIFS(Tableau1[Date Arrivée],Stat_Nuitée!$Z$2,Tableau1[Nat],Stat_Nuitée!C25)","v":0},{"$f":"COUNTIFS(Tableau1[Date Arrivée],Stat_Nuitée!$AA$2,Tableau1[Nat],Stat_Nuitée!C25)","v":0},{"$f":"COUNTIFS(Tableau1[Date Arrivée],Stat_Nuitée!$AB$2,Tableau1[Nat],Stat_Nuitée!C25)","v":0},{"$f":"COUNTIFS(Tableau1[Date Arrivée],Stat_Nuitée!$AC$2,Tableau1[Nat],Stat_Nuitée!C25)","v":0},{"$f":"COUNTIFS(Tableau1[Date Arrivée],Stat_Nuitée!$AD$2,Tableau1[Nat],Stat_Nuitée!C25)","v":0},{"$f":"COUNTIFS(Tableau1[Date Arrivée],Stat_Nuitée!$AE$2,Tableau1[Nat],Stat_Nuitée!C25)","v":0},{"$f":"COUNTIFS(Tableau1[Date Arrivée],Stat_Nuitée!$AF$2,Tableau1[Nat],Stat_Nuitée!C25)","v":0},{"$f":"COUNTIFS(Tableau1[Date Arrivée],Stat_Nuitée!$AG$2,Tableau1[Nat],Stat_Nuitée!C25)","v":0},{"$f":"COUNTIFS(Tableau1[Date Arrivée],Stat_Nuitée!$AH$2,Tableau1[Nat],Stat_Nuitée!C25)","v":0}]
[null,"Maroc","MA",{"$f":"COUNTIFS(Tableau1[Date Arrivée],Stat_Nuitée!$D$2,Tableau1[Nat],Stat_Nuitée!C26)","v":0},{"$f":"COUNTIFS(Tableau1[Date Arrivée],Stat_Nuitée!$E$2,Tableau1[Nat],Stat_Nuitée!C26)","v":0},{"$f":"COUNTIFS(Tableau1[Date Arrivée],Stat_Nuitée!$F$2,Tableau1[Nat],Stat_Nuitée!C26)","v":1},{"$f":"COUNTIFS(Tableau1[Date Arrivée],Stat_Nuitée!$G$2,Tableau1[Nat],Stat_Nuitée!C26)","v":0},{"$f":"COUNTIFS(Tableau1[Date Arrivée],Stat_Nuitée!$H$2,Tableau1[Nat],Stat_Nuitée!C26)","v":0},{"$f":"COUNTIFS(Tableau1[Date Arrivée],Stat_Nuitée!$I$2,Tableau1[Nat],Stat_Nuitée!C26)","v":0},{"$f":"COUNTIFS(Tableau1[Date Arrivée],Stat_Nuitée!$J$2,Tableau1[Nat],Stat_Nuitée!C26)","v":0},{"$f":"COUNTIFS(Tableau1[Date Arrivée],Stat_Nuitée!$K$2,Tableau1[Nat],Stat_Nuitée!C26)","v":0},{"$f":"COUNTIFS(Tableau1[Date Arrivée],Stat_Nuitée!$L$2,Tableau1[Nat],Stat_Nuitée!C26)","v":0},{"$f":"COUNTIFS(Tableau1[Date Arrivée],Stat_Nuitée!$M$2,Tableau1[Nat],Stat_Nuitée!C26)","v":0},{"$f":"COUNTIFS(Tableau1[Date Arrivée],Stat_Nuitée!$N$2,Tableau1[Nat],Stat_Nuitée!C26)","v":1},{"$f":"COUNTIFS(Tableau1[Date Arrivée],Stat_Nuitée!$O$2,Tableau1[Nat],Stat_Nuitée!C26)","v":0},{"$f":"COUNTIFS(Tableau1[Date Arrivée],Stat_Nuitée!$P$2,Tableau1[Nat],Stat_Nuitée!C26)","v":0},{"$f":"COUNTIFS(Tableau1[Date Arrivée],Stat_Nuitée!$Q$2,Tableau1[Nat],Stat_Nuitée!C26)","v":0},{"$f":"COUNTIFS(Tableau1[Date Arrivée],Stat_Nuitée!$R$2,Tableau1[Nat],Stat_Nuitée!C26)","v":0},{"$f":"COUNTIFS(Tableau1[Date Arrivée],Stat_Nuitée!$S$2,Tableau1[Nat],Stat_Nuitée!C26)","v":0},{"$f":"COUNTIFS(Tableau1[Date Arrivée],Stat_Nuitée!$T$2,Tableau1[Nat],Stat_Nuitée!C26)","v":0},{"$f":"COUNTIFS(Tableau1[Date Arrivée],Stat_Nuitée!$U$2,Tableau1[Nat],Stat_Nuitée!C26)","v":0},{"$f":"COUNTIFS(Tableau1[Date Arrivée],Stat_Nuitée!$V$2,Tableau1[Nat],Stat_Nuitée!C26)","v":0},{"$f":"COUNTIFS(Tableau1[Date Arrivée],Stat_Nuitée!$W$2,Tableau1[Nat],Stat_Nuitée!C26)","v":0},{"$f":"COUNTIFS(Tableau1[Date Arrivée],Stat_Nuitée!$X$2,Tableau1[Nat],Stat_Nuitée!C26)","v":0},{"$f":"COUNTIFS(Tableau1[Date Arrivée],Stat_Nuitée!$Y$2,Tableau1[Nat],Stat_Nuitée!C26)","v":0},{"$f":"COUNTIFS(Tableau1[Date Arrivée],Stat_Nuitée!$Z$2,Tableau1[Nat],Stat_Nuitée!C26)","v":0},{"$f":"COUNTIFS(Tableau1[Date Arrivée],Stat_Nuitée!$AA$2,Tableau1[Nat],Stat_Nuitée!C26)","v":0},{"$f":"COUNTIFS(Tableau1[Date Arrivée],Stat_Nuitée!$AB$2,Tableau1[Nat],Stat_Nuitée!C26)","v":0},{"$f":"COUNTIFS(Tableau1[Date Arrivée],Stat_Nuitée!$AC$2,Tableau1[Nat],Stat_Nuitée!C26)","v":0},{"$f":"COUNTIFS(Tableau1[Date Arrivée],Stat_Nuitée!$AD$2,Tableau1[Nat],Stat_Nuitée!C26)","v":0},{"$f":"COUNTIFS(Tableau1[Date Arrivée],Stat_Nuitée!$AE$2,Tableau1[Nat],Stat_Nuitée!C26)","v":0},{"$f":"COUNTIFS(Tableau1[Date Arrivée],Stat_Nuitée!$AF$2,Tableau1[Nat],Stat_Nuitée!C26)","v":0},{"$f":"COUNTIFS(Tableau1[Date Arrivée],Stat_Nuitée!$AG$2,Tableau1[Nat],Stat_Nuitée!C26)","v":0},{"$f":"COUNTIFS(Tableau1[Date Arrivée],Stat_Nuitée!$AH$2,Tableau1[Nat],Stat_Nuitée!C26)","v":0}]
[null,"Algérie","DZ",{"$f":"COUNTIFS(Tableau1[Date Arrivée],Stat_Nuitée!$D$2,Tableau1[Nat],Stat_Nuitée!C27)","v":0},{"$f":"COUNTIFS(Tableau1[Date Arrivée],Stat_Nuitée!$E$2,Tableau1[Nat],Stat_Nuitée!C27)","v":0},{"$f":"COUNTIFS(Tableau1[Date Arrivée],Stat_Nuitée!$F$2,Tableau1[Nat],Stat_Nuitée!C27)","v":0},{"$f":"COUNTIFS(Tableau1[Date Arrivée],Stat_Nuitée!$G$2,Tableau1[Nat],Stat_Nuitée!C27)","v":0},{"$f":"COUNTIFS(Tableau1[Date Arrivée],Stat_Nuitée!$H$2,Tableau1[Nat],Stat_Nuitée!C27)","v":0},{"$f":"COUNTIFS(Tableau1[Date Arrivée],Stat_Nuitée!$I$2,Tableau1[Nat],Stat_Nuitée!C27)","v":0},{"$f":"COUNTIFS(Tableau1[Date Arrivée],Stat_Nuitée!$J$2,Tableau1[Nat],Stat_Nuitée!C27)","v":0},{"$f":"COUNTIFS(Tableau1[Date Arrivée],Stat_Nuitée!$K$2,Tableau1[Nat],Stat_Nuitée!C27)","v":0},{"$f":"COUNTIFS(Tableau1[Date Arrivée],Stat_Nuitée!$L$2,Tableau1[Nat],Stat_Nuitée!C27)","v":0},{"$f":"COUNTIFS(Tableau1[Date Arrivée],Stat_Nuitée!$M$2,Tableau1[Nat],Stat_Nuitée!C27)","v":0},{"$f":"COUNTIFS(Tableau1[Date Arrivée],Stat_Nuitée!$N$2,Tableau1[Nat],Stat_Nuitée!C27)","v":0},{"$f":"COUNTIFS(Tableau1[Date Arrivée],Stat_Nuitée!$O$2,Tableau1[Nat],Stat_Nuitée!C27)","v":0},{"$f":"COUNTIFS(Tableau1[Date Arrivée],Stat_Nuitée!$P$2,Tableau1[Nat],Stat_Nuitée!C27)","v":0},{"$f":"COUNTIFS(Tableau1[Date Arrivée],Stat_Nuitée!$Q$2,Tableau1[Nat],Stat_Nuitée!C27)","v":0},{"$f":"COUNTIFS(Tableau1[Date Arrivée],Stat_Nuitée!$R$2,Tableau1[Nat],Stat_Nuitée!C27)","v":0},{"$f":"COUNTIFS(Tableau1[Date Arrivée],Stat_Nuitée!$S$2,Tableau1[Nat],Stat_Nuitée!C27)","v":0},{"$f":"COUNTIFS(Tableau1[Date Arrivée],Stat_Nuitée!$T$2,Tableau1[Nat],Stat_Nuitée!C27)","v":0},{"$f":"COUNTIFS(Tableau1[Date Arrivée],Stat_Nuitée!$U$2,Tableau1[Nat],Stat_Nuitée!C27)","v":0},{"$f":"COUNTIFS(Tableau1[Date Arrivée],Stat_Nuitée!$V$2,Tableau1[Nat],Stat_Nuitée!C27)","v":0},{"$f":"COUNTIFS(Tableau1[Date Arrivée],Stat_Nuitée!$W$2,Tableau1[Nat],Stat_Nuitée!C27)","v":0},{"$f":"COUNTIFS(Tableau1[Date Arrivée],Stat_Nuitée!$X$2,Tableau1[Nat],Stat_Nuitée!C27)","v":0},{"$f":"COUNTIFS(Tableau1[Date Arrivée],Stat_Nuitée!$Y$2,Tableau1[Nat],Stat_Nuitée!C27)","v":0},{"$f":"COUNTIFS(Tableau1[Date Arrivée],Stat_Nuitée!$Z$2,Tableau1[Nat],Stat_Nuitée!C27)","v":0},{"$f":"COUNTIFS(Tableau1[Date Arrivée],Stat_Nuitée!$AA$2,Tableau1[Nat],Stat_Nuitée!C27)","v":0},{"$f":"COUNTIFS(Tableau1[Date Arrivée],Stat_Nuitée!$AB$2,Tableau1[Nat],Stat_Nuitée!C27)","v":0},{"$f":"COUNTIFS(Tableau1[Date Arrivée],Stat_Nuitée!$AC$2,Tableau1[Nat],Stat_Nuitée!C27)","v":0},{"$f":"COUNTIFS(Tableau1[Date Arrivée],Stat_Nuitée!$AD$2,Tableau1[Nat],Stat_Nuitée!C27)","v":0},{"$f":"COUNTIFS(Tableau1[Date Arrivée],Stat_Nuitée!$AE$2,Tableau1[Nat],Stat_Nuitée!C27)","v":0},{"$f":"COUNTIFS(Tableau1[Date Arrivée],Stat_Nuitée!$AF$2,Tableau1[Nat],Stat_Nuitée!C27)","v":0},{"$f":"COUNTIFS(Tableau1[Date Arrivée],Stat_Nuitée!$AG$2,Tableau1[Nat],Stat_Nuitée!C27)","v":0},{"$f":"COUNTIFS(Tableau1[Date Arrivée],Stat_Nuitée!$AH$2,Tableau1[Nat],Stat_Nuitée!C27)","v":0}]
[null,"Tunisie","TN",{"$f":"COUNTIFS(Tableau1[Date Arrivée],Stat_Nuitée!$D$2,Tableau1[Nat],Stat_Nuitée!C28)","v":0},{"$f":"COUNTIFS(Tableau1[Date Arrivée],Stat_Nuitée!$E$2,Tableau1[Nat],Stat_Nuitée!C28)","v":0},{"$f":"COUNTIFS(Tableau1[Date Arrivée],Stat_Nuitée!$F$2,Tableau1[Nat],Stat_Nuitée!C28)","v":0},{"$f":"COUNTIFS(Tableau1[Date Arrivée],Stat_Nuitée!$G$2,Tableau1[Nat],Stat_Nuitée!C28)","v":0},{"$f":"COUNTIFS(Tableau1[Date Arrivée],Stat_Nuitée!$H$2,Tableau1[Nat],Stat_Nuitée!C28)","v":0},{"$f":"COUNTIFS(Tableau1[Date Arrivée],Stat_Nuitée!$I$2,Tableau1[Nat],Stat_Nuitée!C28)","v":0},{"$f":"COUNTIFS(Tableau1[Date Arrivée],Stat_Nuitée!$J$2,Tableau1[Nat],Stat_Nuitée!C28)","v":0},{"$f":"COUNTIFS(Tableau1[Date Arrivée],Stat_Nuitée!$K$2,Tableau1[Nat],Stat_Nuitée!C28)","v":0},{"$f":"COUNTIFS(Tableau1[Date Arrivée],Stat_Nuitée!$L$2,Tableau1[Nat],Stat_Nuitée!C28)","v":0},{"$f":"COUNTIFS(Tableau1[Date Arrivée],Stat_Nuitée!$M$2,Tableau1[Nat],Stat_Nuitée!C28)","v":0},{"$f":"COUNTIFS(Tableau1[Date Arrivée],Stat_Nuitée!$N$2,Tableau1[Nat],Stat_Nuitée!C28)","v":0},{"$f":"COUNTIFS(Tableau1[Date Arrivée],Stat_Nuitée!$O$2,Tableau1[Nat],Stat_Nuitée!C28)","v":0},{"$f":"COUNTIFS(Tableau1[Date Arrivée],Stat_Nuitée!$P$2,Tableau1[Nat],Stat_Nuitée!C28)","v":0},{"$f":"COUNTIFS(Tableau1[Date Arrivée],Stat_Nuitée!$Q$2,Tableau1[Nat],Stat_Nuitée!C28)","v":0},{"$f":"COUNTIFS(Tableau1[Date Arrivée],Stat_Nuitée!$R$2,Tableau1[Nat],Stat_Nuitée!C28)","v":0},{"$f":"COUNTIFS(Tableau1[Date Arrivée],Stat_Nuitée!$S$2,Tableau1[Nat],Stat_Nuitée!C28)","v":0},{"$f":"COUNTIFS(Tableau1[Date Arrivée],Stat_Nuitée!$T$2,Tableau1[Nat],Stat_Nuitée!C28)","v":0},{"$f":"COUNTIFS(Tableau1[Date Arrivée],Stat_Nuitée!$U$2,Tableau1[Nat],Stat_Nuitée!C28)","v":0},{"$f":"COUNTIFS(Tableau1[Date Arrivée],Stat_Nuitée!$V$2,Tableau1[Nat],Stat_Nuitée!C28)","v":0},{"$f":"COUNTIFS(Tableau1[Date Arrivée],Stat_Nuitée!$W$2,Tableau1[Nat],Stat_Nuitée!C28)","v":0},{"$f":"COUNTIFS(Tableau1[Date Arrivée],Stat_Nuitée!$X$2,Tableau1[Nat],Stat_Nuitée!C28)","v":0},{"$f":"COUNTIFS(Tableau1[Date Arrivée],Stat_Nuitée!$Y$2,Tableau1[Nat],Stat_Nuitée!C28)","v":0},{"$f":"COUNTIFS(Tableau1[Date Arrivée],Stat_Nuitée!$Z$2,Tableau1[Nat],Stat_Nuitée!C28)","v":0},{"$f":"COUNTIFS(Tableau1[Date Arrivée],Stat_Nuitée!$AA$2,Tableau1[Nat],Stat_Nuitée!C28)","v":0},{"$f":"COUNTIFS(Tableau1[Date Arrivée],Stat_Nuitée!$AB$2,Tableau1[Nat],Stat_Nuitée!C28)","v":0},{"$f":"COUNTIFS(Tableau1[Date Arrivée],Stat_Nuitée!$AC$2,Tableau1[Nat],Stat_Nuitée!C28)","v":0},{"$f":"COUNTIFS(Tableau1[Date Arrivée],Stat_Nuitée!$AD$2,Tableau1[Nat],Stat_Nuitée!C28)","v":0},{"$f":"COUNTIFS(Tableau1[Date Arrivée],Stat_Nuitée!$AE$2,Tableau1[Nat],Stat_Nuitée!C28)","v":0},{"$f":"COUNTIFS(Tableau1[Date Arrivée],Stat_Nuitée!$AF$2,Tableau1[Nat],Stat_Nuitée!C28)","v":0},{"$f":"COUNTIFS(Tableau1[Date Arrivée],Stat_Nuitée!$AG$2,Tableau1[Nat],Stat_Nuitée!C28)","v":0},{"$f":"COUNTIFS(Tableau1[Date Arrivée],Stat_Nuitée!$AH$2,Tableau1[Nat],Stat_Nuitée!C28)","v":0}]
[null,"Libye","LY",{"$f":"COUNTIFS(Tableau1[Date Arrivée],Stat_Nuitée!$D$2,Tableau1[Nat],Stat_Nuitée!C29)","v":0},{"$f":"COUNTIFS(Tableau1[Date Arrivée],Stat_Nuitée!$E$2,Tableau1[Nat],Stat_Nuitée!C29)","v":0},{"$f":"COUNTIFS(Tableau1[Date Arrivée],Stat_Nuitée!$F$2,Tableau1[Nat],Stat_Nuitée!C29)","v":0},{"$f":"COUNTIFS(Tableau1[Date Arrivée],Stat_Nuitée!$G$2,Tableau1[Nat],Stat_Nuitée!C29)","v":0},{"$f":"COUNTIFS(Tableau1[Date Arrivée],Stat_Nuitée!$H$2,Tableau1[Nat],Stat_Nuitée!C29)","v":0},{"$f":"COUNTIFS(Tableau1[Date Arrivée],Stat_Nuitée!$I$2,Tableau1[Nat],Stat_Nuitée!C29)","v":0},{"$f":"COUNTIFS(Tableau1[Date Arrivée],Stat_Nuitée!$J$2,Tableau1[Nat],Stat_Nuitée!C29)","v":0},{"$f":"COUNTIFS(Tableau1[Date Arrivée],Stat_Nuitée!$K$2,Tableau1[Nat],Stat_Nuitée!C29)","v":0},{"$f":"COUNTIFS(Tableau1[Date Arrivée],Stat_Nuitée!$L$2,Tableau1[Nat],Stat_Nuitée!C29)","v":0},{"$f":"COUNTIFS(Tableau1[Date Arrivée],Stat_Nuitée!$M$2,Tableau1[Nat],Stat_Nuitée!C29)","v":0},{"$f":"COUNTIFS(Tableau1[Date Arrivée],Stat_Nuitée!$N$2,Tableau1[Nat],Stat_Nuitée!C29)","v":0},{"$f":"COUNTIFS(Tableau1[Date Arrivée],Stat_Nuitée!$O$2,Tableau1[Nat],Stat_Nuitée!C29)","v":0},{"$f":"COUNTIFS(Tableau1[Date Arrivée],Stat_Nuitée!$P$2,Tableau1[Nat],Stat_Nuitée!C29)","v":0},{"$f":"COUNTIFS(Tableau1[Date Arrivée],Stat_Nuitée!$Q$2,Tableau1[Nat],Stat_Nuitée!C29)","v":0},{"$f":"COUNTIFS(Tableau1[Date Arrivée],Stat_Nuitée!$R$2,Tableau1[Nat],Stat_Nuitée!C29)","v":0},{"$f":"COUNTIFS(Tableau1[Date Arrivée],Stat_Nuitée!$S$2,Tableau1[Nat],Stat_Nuitée!C29)","v":0},{"$f":"COUNTIFS(Tableau1[Date Arrivée],Stat_Nuitée!$T$2,Tableau1[Nat],Stat_Nuitée!C29)","v":0},{"$f":"COUNTIFS(Tableau1[Date Arrivée],Stat_Nuitée!$U$2,Tableau1[Nat],Stat_Nuitée!C29)","v":0},{"$f":"COUNTIFS(Tableau1[Date Arrivée],Stat_Nuitée!$V$2,Tableau1[Nat],Stat_Nuitée!C29)","v":0},{"$f":"COUNTIFS(Tableau1[Date Arrivée],Stat_Nuitée!$W$2,Tableau1[Nat],Stat_Nuitée!C29)","v":0},{"$f":"COUNTIFS(Tableau1[Date Arrivée],Stat_Nuitée!$X$2,Tableau1[Nat],Stat_Nuitée!C29)","v":0},{"$f":"COUNTIFS(Tableau1[Date Arrivée],Stat_Nuitée!$Y$2,Tableau1[Nat],Stat_Nuitée!C29)","v":0},{"$f":"COUNTIFS(Tableau1[Date Arrivée],Stat_Nuitée!$Z$2,Tableau1[Nat],Stat_Nuitée!C29)","v":0},{"$f":"COUNTIFS(Tableau1[Date Arrivée],Stat_Nuitée!$AA$2,Tableau1[Nat],Stat_Nuitée!C29)","v":0},{"$f":"COUNTIFS(Tableau1[Date Arrivée],Stat_Nuitée!$AB$2,Tableau1[Nat],Stat_Nuitée!C29)","v":0},{"$f":"COUNTIFS(Tableau1[Date Arrivée],Stat_Nuitée!$AC$2,Tableau1[Nat],Stat_Nuitée!C29)","v":0},{"$f":"COUNTIFS(Tableau1[Date Arrivée],Stat_Nuitée!$AD$2,Tableau1[Nat],Stat_Nuitée!C29)","v":0},{"$f":"COUNTIFS(Tableau1[Date Arrivée],Stat_Nuitée!$AE$2,Tableau1[Nat],Stat_Nuitée!C29)","v":0},{"$f":"COUNTIFS(Tableau1[Date Arrivée],Stat_Nuitée!$AF$2,Tableau1[Nat],Stat_Nuitée!C29)","v":0},{"$f":"COUNTIFS(Tableau1[Date Arrivée],Stat_Nuitée!$AG$2,Tableau1[Nat],Stat_Nuitée!C29)","v":0},{"$f":"COUNTIFS(Tableau1[Date Arrivée],Stat_Nuitée!$AH$2,Tableau1[Nat],Stat_Nuitée!C29)","v":0}]
[null,"Mauritanie","MR",{"$f":"COUNTIFS(Tableau1[Date Arrivée],Stat_Nuitée!$D$2,Tableau1[Nat],Stat_Nuitée!C30)","v":0},{"$f":"COUNTIFS(Tableau1[Date Arrivée],Stat_Nuitée!$E$2,Tableau1[Nat],Stat_Nuitée!C30)","v":0},{"$f":"COUNTIFS(Tableau1[Date Arrivée],Stat_Nuitée!$F$2,Tableau1[Nat],Stat_Nuitée!C30)","v":0},{"$f":"COUNTIFS(Tableau1[Date Arrivée],Stat_Nuitée!$G$2,Tableau1[Nat],Stat_Nuitée!C30)","v":0},{"$f":"COUNTIFS(Tableau1[Date Arrivée],Stat_Nuitée!$H$2,Tableau1[Nat],Stat_Nuitée!C30)","v":0},{"$f":"COUNTIFS(Tableau1[Date Arrivée],Stat_Nuitée!$I$2,Tableau1[Nat],Stat_Nuitée!C30)","v":0},{"$f":"COUNTIFS(Tableau1[Date Arrivée],Stat_Nuitée!$J$2,Tableau1[Nat],Stat_Nuitée!C30)","v":0},{"$f":"COUNTIFS(Tableau1[Date Arrivée],Stat_Nuitée!$K$2,Tableau1[Nat],Stat_Nuitée!C30)","v":0},{"$f":"COUNTIFS(Tableau1[Date Arrivée],Stat_Nuitée!$L$2,Tableau1[Nat],Stat_Nuitée!C30)","v":0},{"$f":"COUNTIFS(Tableau1[Date Arrivée],Stat_Nuitée!$M$2,Tableau1[Nat],Stat_Nuitée!C30)","v":0},{"$f":"COUNTIFS(Tableau1[Date Arrivée],Stat_Nuitée!$N$2,Tableau1[Nat],Stat_Nuitée!C30)","v":0},{"$f":"COUNTIFS(Tableau1[Date Arrivée],Stat_Nuitée!$O$2,Tableau1[Nat],Stat_Nuitée!C30)","v":0},{"$f":"COUNTIFS(Tableau1[Date Arrivée],Stat_Nuitée!$P$2,Tableau1[Nat],Stat_Nuitée!C30)","v":0},{"$f":"COUNTIFS(Tableau1[Date Arrivée],Stat_Nuitée!$Q$2,Tableau1[Nat],Stat_Nuitée!C30)","v":0},{"$f":"COUNTIFS(Tableau1[Date Arrivée],Stat_Nuitée!$R$2,Tableau1[Nat],Stat_Nuitée!C30)","v":0},{"$f":"COUNTIFS(Tableau1[Date Arrivée],Stat_Nuitée!$S$2,Tableau1[Nat],Stat_Nuitée!C30)","v":0},{"$f":"COUNTIFS(Tableau1[Date Arrivée],Stat_Nuitée!$T$2,Tableau1[Nat],Stat_Nuitée!C30)","v":0},{"$f":"COUNTIFS(Tableau1[Date Arrivée],Stat_Nuitée!$U$2,Tableau1[Nat],Stat_Nuitée!C30)","v":0},{"$f":"COUNTIFS(Tableau1[Date Arrivée],Stat_Nuitée!$V$2,Tableau1[Nat],Stat_Nuitée!C30)","v":0},{"$f":"COUNTIFS(Tableau1[Date Arrivée],Stat_Nuitée!$W$2,Tableau1[Nat],Stat_Nuitée!C30)","v":0},{"$f":"COUNTIFS(Tableau1[Date Arrivée],Stat_Nuitée!$X$2,Tableau1[Nat],Stat_Nuitée!C30)","v":0},{"$f":"COUNTIFS(Tableau1[Date Arrivée],Stat_Nuitée!$Y$2,Tableau1[Nat],Stat_Nuitée!C30)","v":0},{"$f":"COUNTIFS(Tableau1[Date Arrivée],Stat_Nuitée!$Z$2,Tableau1[Nat],Stat_Nuitée!C30)","v":0},{"$f":"COUNTIFS(Tableau1[Date Arrivée],Stat_Nuitée!$AA$2,Tableau1[Nat],Stat_Nuitée!C30)","v":0},{"$f":"COUNTIFS(Tableau1[Date Arrivée],Stat_Nuitée!$AB$2,Tableau1[Nat],Stat_Nuitée!C30)","v":0},{"$f":"COUNTIFS(Tableau1[Date Arrivée],Stat_Nuitée!$AC$2,Tableau1[Nat],Stat_Nuitée!C30)","v":0},{"$f":"COUNTIFS(Tableau1[Date Arrivée],Stat_Nuitée!$AD$2,Tableau1[Nat],Stat_Nuitée!C30)","v":0},{"$f":"COUNTIFS(Tableau1[Date Arrivée],Stat_Nuitée!$AE$2,Tableau1[Nat],Stat_Nuitée!C30)","v":0},{"$f":"COUNTIFS(Tableau1[Date Arrivée],Stat_Nuitée!$AF$2,Tableau1[Nat],Stat_Nuitée!C30)","v":0},{"$f":"COUNTIFS(Tableau1[Date Arrivée],Stat_Nuitée!$AG$2,Tableau1[Nat],Stat_Nuitée!C30)","v":0},{"$f":"COUNTIFS(Tableau1[Date Arrivée],Stat_Nuitée!$AH$2,Tableau1[Nat],Stat_Nuitée!C30)","v":0}]
[null,"Arabie Saoudite","SA",{"$f":"COUNTIFS(Tableau1[Date Arrivée],Stat_Nuitée!$D$2,Tableau1[Nat],Stat_Nuitée!C31)","v":0},{"$f":"COUNTIFS(Tableau1[Date Arrivée],Stat_Nuitée!$E$2,Tableau1[Nat],Stat_Nuitée!C31)","v":0},{"$f":"COUNTIFS(Tableau1[Date Arrivée],Stat_Nuitée!$F$2,Tableau1[Nat],Stat_Nuitée!C31)","v":0},{"$f":"COUNTIFS(Tableau1[Date Arrivée],Stat_Nuitée!$G$2,Tableau1[Nat],Stat_Nuitée!C31)","v":0},{"$f":"COUNTIFS(Tableau1[Date Arrivée],Stat_Nuitée!$H$2,Tableau1[Nat],Stat_Nuitée!C31)","v":0},{"$f":"COUNTIFS(Tableau1[Date Arrivée],Stat_Nuitée!$I$2,Tableau1[Nat],Stat_Nuitée!C31)","v":0},{"$f":"COUNTIFS(Tableau1[Date Arrivée],Stat_Nuitée!$J$2,Tableau1[Nat],Stat_Nuitée!C31)","v":0},{"$f":"COUNTIFS(Tableau1[Date Arrivée],Stat_Nuitée!$K$2,Tableau1[Nat],Stat_Nuitée!C31)","v":0},{"$f":"COUNTIFS(Tableau1[Date Arrivée],Stat_Nuitée!$L$2,Tableau1[Nat],Stat_Nuitée!C31)","v":0},{"$f":"COUNTIFS(Tableau1[Date Arrivée],Stat_Nuitée!$M$2,Tableau1[Nat],Stat_Nuitée!C31)","v":0},{"$f":"COUNTIFS(Tableau1[Date Arrivée],Stat_Nuitée!$N$2,Tableau1[Nat],Stat_Nuitée!C31)","v":0},{"$f":"COUNTIFS(Tableau1[Date Arrivée],Stat_Nuitée!$O$2,Tableau1[Nat],Stat_Nuitée!C31)","v":0},{"$f":"COUNTIFS(Tableau1[Date Arrivée],Stat_Nuitée!$P$2,Tableau1[Nat],Stat_Nuitée!C31)","v":0},{"$f":"COUNTIFS(Tableau1[Date Arrivée],Stat_Nuitée!$Q$2,Tableau1[Nat],Stat_Nuitée!C31)","v":0},{"$f":"COUNTIFS(Tableau1[Date Arrivée],Stat_Nuitée!$R$2,Tableau1[Nat],Stat_Nuitée!C31)","v":0},{"$f":"COUNTIFS(Tableau1[Date Arrivée],Stat_Nuitée!$S$2,Tableau1[Nat],Stat_Nuitée!C31)","v":0},{"$f":"COUNTIFS(Tableau1[Date Arrivée],Stat_Nuitée!$T$2,Tableau1[Nat],Stat_Nuitée!C31)","v":0},{"$f":"COUNTIFS(Tableau1[Date Arrivée],Stat_Nuitée!$U$2,Tableau1[Nat],Stat_Nuitée!C31)","v":0},{"$f":"COUNTIFS(Tableau1[Date Arrivée],Stat_Nuitée!$V$2,Tableau1[Nat],Stat_Nuitée!C31)","v":0},{"$f":"COUNTIFS(Tableau1[Date Arrivée],Stat_Nuitée!$W$2,Tableau1[Nat],Stat_Nuitée!C31)","v":0},{"$f":"COUNTIFS(Tableau1[Date Arrivée],Stat_Nuitée!$X$2,Tableau1[Nat],Stat_Nuitée!C31)","v":0},{"$f":"COUNTIFS(Tableau1[Date Arrivée],Stat_Nuitée!$Y$2,Tableau1[Nat],Stat_Nuitée!C31)","v":0},{"$f":"COUNTIFS(Tableau1[Date Arrivée],Stat_Nuitée!$Z$2,Tableau1[Nat],Stat_Nuitée!C31)","v":0},{"$f":"COUNTIFS(Tableau1[Date Arrivée],Stat_Nuitée!$AA$2,Tableau1[Nat],Stat_Nuitée!C31)","v":0},{"$f":"COUNTIFS(Tableau1[Date Arrivée],Stat_Nuitée!$AB$2,Tableau1[Nat],Stat_Nuitée!C31)","v":0},{"$f":"COUNTIFS(Tableau1[Date Arrivée],Stat_Nuitée!$AC$2,Tableau1[Nat],Stat_Nuitée!C31)","v":0},{"$f":"COUNTIFS(Tableau1[Date Arrivée],Stat_Nuitée!$AD$2,Tableau1[Nat],Stat_Nuitée!C31)","v":0},{"$f":"COUNTIFS(Tableau1[Date Arrivée],Stat_Nuitée!$AE$2,Tableau1[Nat],Stat_Nuitée!C31)","v":0},{"$f":"COUNTIFS(Tableau1[Date Arrivée],Stat_Nuitée!$AF$2,Tableau1[Nat],Stat_Nuitée!C31)","v":0},{"$f":"COUNTIFS(Tableau1[Date Arrivée],Stat_Nuitée!$AG$2,Tableau1[Nat],Stat_Nuitée!C31)","v":0},{"$f":"COUNTIFS(Tableau1[Date Arrivée],Stat_Nuitée!$AH$2,Tableau1[Nat],Stat_Nuitée!C31)","v":0}]
[null,"Egypte","EG",{"$f":"COUNTIFS(Tableau1[Date Arrivée],Stat_Nuitée!$D$2,Tableau1[Nat],Stat_Nuitée!C32)","v":0},{"$f":"COUNTIFS(Tableau1[Date Arrivée],Stat_Nuitée!$E$2,Tableau1[Nat],Stat_Nuitée!C32)","v":0},{"$f":"COUNTIFS(Tableau1[Date Arrivée],Stat_Nuitée!$F$2,Tableau1[Nat],Stat_Nuitée!C32)","v":0},{"$f":"COUNTIFS(Tableau1[Date Arrivée],Stat_Nuitée!$G$2,Tableau1[Nat],Stat_Nuitée!C32)","v":0},{"$f":"COUNTIFS(Tableau1[Date Arrivée],Stat_Nuitée!$H$2,Tableau1[Nat],Stat_Nuitée!C32)","v":0},{"$f":"COUNTIFS(Tableau1[Date Arrivée],Stat_Nuitée!$I$2,Tableau1[Nat],Stat_Nuitée!C32)","v":0},{"$f":"COUNTIFS(Tableau1[Date Arrivée],Stat_Nuitée!$J$2,Tableau1[Nat],Stat_Nuitée!C32)","v":0},{"$f":"COUNTIFS(Tableau1[Date Arrivée],Stat_Nuitée!$K$2,Tableau1[Nat],Stat_Nuitée!C32)","v":0},{"$f":"COUNTIFS(Tableau1[Date Arrivée],Stat_Nuitée!$L$2,Tableau1[Nat],Stat_Nuitée!C32)","v":0},{"$f":"COUNTIFS(Tableau1[Date Arrivée],Stat_Nuitée!$M$2,Tableau1[Nat],Stat_Nuitée!C32)","v":0},{"$f":"COUNTIFS(Tableau1[Date Arrivée],Stat_Nuitée!$N$2,Tableau1[Nat],Stat_Nuitée!C32)","v":0},{"$f":"COUNTIFS(Tableau1[Date Arrivée],Stat_Nuitée!$O$2,Tableau1[Nat],Stat_Nuitée!C32)","v":0},{"$f":"COUNTIFS(Tableau1[Date Arrivée],Stat_Nuitée!$P$2,Tableau1[Nat],Stat_Nuitée!C32)","v":0},{"$f":"COUNTIFS(Tableau1[Date Arrivée],Stat_Nuitée!$Q$2,Tableau1[Nat],Stat_Nuitée!C32)","v":0},{"$f":"COUNTIFS(Tableau1[Date Arrivée],Stat_Nuitée!$R$2,Tableau1[Nat],Stat_Nuitée!C32)","v":0},{"$f":"COUNTIFS(Tableau1[Date Arrivée],Stat_Nuitée!$S$2,Tableau1[Nat],Stat_Nuitée!C32)","v":0},{"$f":"COUNTIFS(Tableau1[Date Arrivée],Stat_Nuitée!$T$2,Tableau1[Nat],Stat_Nuitée!C32)","v":0},{"$f":"COUNTIFS(Tableau1[Date Arrivée],Stat_Nuitée!$U$2,Tableau1[Nat],Stat_Nuitée!C32)","v":0},{"$f":"COUNTIFS(Tableau1[Date Arrivée],Stat_Nuitée!$V$2,Tableau1[Nat],Stat_Nuitée!C32)","v":0},{"$f":"COUNTIFS(Tableau1[Date Arrivée],Stat_Nuitée!$W$2,Tableau1[Nat],Stat_Nuitée!C32)","v":0},{"$f":"COUNTIFS(Tableau1[Date Arrivée],Stat_Nuitée!$X$2,Tableau1[Nat],Stat_Nuitée!C32)","v":0},{"$f":"COUNTIFS(Tableau1[Date Arrivée],Stat_Nuitée!$Y$2,Tableau1[Nat],Stat_Nuitée!C32)","v":0},{"$f":"COUNTIFS(Tableau1[Date Arrivée],Stat_Nuitée!$Z$2,Tableau1[Nat],Stat_Nuitée!C32)","v":0},{"$f":"COUNTIFS(Tableau1[Date Arrivée],Stat_Nuitée!$AA$2,Tableau1[Nat],Stat_Nuitée!C32)","v":0},{"$f":"COUNTIFS(Tableau1[Date Arrivée],Stat_Nuitée!$AB$2,Tableau1[Nat],Stat_Nuitée!C32)","v":0},{"$f":"COUNTIFS(Tableau1[Date Arrivée],Stat_Nuitée!$AC$2,Tableau1[Nat],Stat_Nuitée!C32)","v":0},{"$f":"COUNTIFS(Tableau1[Date Arrivée],Stat_Nuitée!$AD$2,Tableau1[Nat],Stat_Nuitée!C32)","v":0},{"$f":"COUNTIFS(Tableau1[Date Arrivée],Stat_Nuitée!$AE$2,Tableau1[Nat],Stat_Nuitée!C32)","v":0},{"$f":"COUNTIFS(Tableau1[Date Arrivée],Stat_Nuitée!$AF$2,Tableau1[Nat],Stat_Nuitée!C32)","v":0},{"$f":"COUNTIFS(Tableau1[Date Arrivée],Stat_Nuitée!$AG$2,Tableau1[Nat],Stat_Nuitée!C32)","v":0},{"$f":"COUNTIFS(Tableau1[Date Arrivée],Stat_Nuitée!$AH$2,Tableau1[Nat],Stat_Nuitée!C32)","v":0}]
[null,"Syrie","SY",{"$f":"COUNTIFS(Tableau1[Date Arrivée],Stat_Nuitée!$D$2,Tableau1[Nat],Stat_Nuitée!C33)","v":0},{"$f":"COUNTIFS(Tableau1[Date Arrivée],Stat_Nuitée!$E$2,Tableau1[Nat],Stat_Nuitée!C33)","v":0},{"$f":"COUNTIFS(Tableau1[Date Arrivée],Stat_Nuitée!$F$2,Tableau1[Nat],Stat_Nuitée!C33)","v":0},{"$f":"COUNTIFS(Tableau1[Date Arrivée],Stat_Nuitée!$G$2,Tableau1[Nat],Stat_Nuitée!C33)","v":0},{"$f":"COUNTIFS(Tableau1[Date Arrivée],Stat_Nuitée!$H$2,Tableau1[Nat],Stat_Nuitée!C33)","v":0},{"$f":"COUNTIFS(Tableau1[Date Arrivée],Stat_Nuitée!$I$2,Tableau1[Nat],Stat_Nuitée!C33)","v":0},{"$f":"COUNTIFS(Tableau1[Date Arrivée],Stat_Nuitée!$J$2,Tableau1[Nat],Stat_Nuitée!C33)","v":0},{"$f":"COUNTIFS(Tableau1[Date Arrivée],Stat_Nuitée!$K$2,Tableau1[Nat],Stat_Nuitée!C33)","v":0},{"$f":"COUNTIFS(Tableau1[Date Arrivée],Stat_Nuitée!$L$2,Tableau1[Nat],Stat_Nuitée!C33)","v":0},{"$f":"COUNTIFS(Tableau1[Date Arrivée],Stat_Nuitée!$M$2,Tableau1[Nat],Stat_Nuitée!C33)","v":0},{"$f":"COUNTIFS(Tableau1[Date Arrivée],Stat_Nuitée!$N$2,Tableau1[Nat],Stat_Nuitée!C33)","v":0},{"$f":"COUNTIFS(Tableau1[Date Arrivée],Stat_Nuitée!$O$2,Tableau1[Nat],Stat_Nuitée!C33)","v":0},{"$f":"COUNTIFS(Tableau1[Date Arrivée],Stat_Nuitée!$P$2,Tableau1[Nat],Stat_Nuitée!C33)","v":0},{"$f":"COUNTIFS(Tableau1[Date Arrivée],Stat_Nuitée!$Q$2,Tableau1[Nat],Stat_Nuitée!C33)","v":0},{"$f":"COUNTIFS(Tableau1[Date Arrivée],Stat_Nuitée!$R$2,Tableau1[Nat],Stat_Nuitée!C33)","v":0},{"$f":"COUNTIFS(Tableau1[Date Arrivée],Stat_Nuitée!$S$2,Tableau1[Nat],Stat_Nuitée!C33)","v":0},{"$f":"COUNTIFS(Tableau1[Date Arrivée],Stat_Nuitée!$T$2,Tableau1[Nat],Stat_Nuitée!C33)","v":0},{"$f":"COUNTIFS(Tableau1[Date Arrivée],Stat_Nuitée!$U$2,Tableau1[Nat],Stat_Nuitée!C33)","v":0},{"$f":"COUNTIFS(Tableau1[Date Arrivée],Stat_Nuitée!$V$2,Tableau1[Nat],Stat_Nuitée!C33)","v":0},{"$f":"COUNTIFS(Tableau1[Date Arrivée],Stat_Nuitée!$W$2,Tableau1[Nat],Stat_Nuitée!C33)","v":0},{"$f":"COUNTIFS(Tableau1[Date Arrivée],Stat_Nuitée!$X$2,Tableau1[Nat],Stat_Nuitée!C33)","v":0},{"$f":"COUNTIFS(Tableau1[Date Arrivée],Stat_Nuitée!$Y$2,Tableau1[Nat],Stat_Nuitée!C33)","v":0},{"$f":"COUNTIFS(Tableau1[Date Arrivée],Stat_Nuitée!$Z$2,Tableau1[Nat],Stat_Nuitée!C33)","v":0},{"$f":"COUNTIFS(Tableau1[Date Arrivée],Stat_Nuitée!$AA$2,Tableau1[Nat],Stat_Nuitée!C33)","v":0},{"$f":"COUNTIFS(Tableau1[Date Arrivée],Stat_Nuitée!$AB$2,Tableau1[Nat],Stat_Nuitée!C33)","v":0},{"$f":"COUNTIFS(Tableau1[Date Arrivée],Stat_Nuitée!$AC$2,Tableau1[Nat],Stat_Nuitée!C33)","v":0},{"$f":"COUNTIFS(Tableau1[Date Arrivée],Stat_Nuitée!$AD$2,Tableau1[Nat],Stat_Nuitée!C33)","v":0},{"$f":"COUNTIFS(Tableau1[Date Arrivée],Stat_Nuitée!$AE$2,Tableau1[Nat],Stat_Nuitée!C33)","v":0},{"$f":"COUNTIFS(Tableau1[Date Arrivée],Stat_Nuitée!$AF$2,Tableau1[Nat],Stat_Nuitée!C33)","v":0},{"$f":"COUNTIFS(Tableau1[Date Arrivée],Stat_Nuitée!$AG$2,Tableau1[Nat],Stat_Nuitée!C33)","v":0},{"$f":"COUNTIFS(Tableau1[Date Arrivée],Stat_Nuitée!$AH$2,Tableau1[Nat],Stat_Nuitée!C33)","v":0}]
[null,"Emirates Arabe","AE",{"$f":"COUNTIFS(Tableau1[Date Arrivée],Stat_Nuitée!$D$2,Tableau1[Nat],Stat_Nuitée!C34)","v":0},{"$f":"COUNTIFS(Tableau1[Date Arrivée],Stat_Nuitée!$E$2,Tableau1[Nat],Stat_Nuitée!C34)","v":0},{"$f":"COUNTIFS(Tableau1[Date Arrivée],Stat_Nuitée!$F$2,Tableau1[Nat],Stat_Nuitée!C34)","v":0},{"$f":"COUNTIFS(Tableau1[Date Arrivée],Stat_Nuitée!$G$2,Tableau1[Nat],Stat_Nuitée!C34)","v":0},{"$f":"COUNTIFS(Tableau1[Date Arrivée],Stat_Nuitée!$H$2,Tableau1[Nat],Stat_Nuitée!C34)","v":0},{"$f":"COUNTIFS(Tableau1[Date Arrivée],Stat_Nuitée!$I$2,Tableau1[Nat],Stat_Nuitée!C34)","v":0},{"$f":"COUNTIFS(Tableau1[Date Arrivée],Stat_Nuitée!$J$2,Tableau1[Nat],Stat_Nuitée!C34)","v":0},{"$f":"COUNTIFS(Tableau1[Date Arrivée],Stat_Nuitée!$K$2,Tableau1[Nat],Stat_Nuitée!C34)","v":0},{"$f":"COUNTIFS(Tableau1[Date Arrivée],Stat_Nuitée!$L$2,Tableau1[Nat],Stat_Nuitée!C34)","v":0},{"$f":"COUNTIFS(Tableau1[Date Arrivée],Stat_Nuitée!$M$2,Tableau1[Nat],Stat_Nuitée!C34)","v":0},{"$f":"COUNTIFS(Tableau1[Date Arrivée],Stat_Nuitée!$N$2,Tableau1[Nat],Stat_Nuitée!C34)","v":0},{"$f":"COUNTIFS(Tableau1[Date Arrivée],Stat_Nuitée!$O$2,Tableau1[Nat],Stat_Nuitée!C34)","v":0},{"$f":"COUNTIFS(Tableau1[Date Arrivée],Stat_Nuitée!$P$2,Tableau1[Nat],Stat_Nuitée!C34)","v":0},{"$f":"COUNTIFS(Tableau1[Date Arrivée],Stat_Nuitée!$Q$2,Tableau1[Nat],Stat_Nuitée!C34)","v":0},{"$f":"COUNTIFS(Tableau1[Date Arrivée],Stat_Nuitée!$R$2,Tableau1[Nat],Stat_Nuitée!C34)","v":0},{"$f":"COUNTIFS(Tableau1[Date Arrivée],Stat_Nuitée!$S$2,Tableau1[Nat],Stat_Nuitée!C34)","v":0},{"$f":"COUNTIFS(Tableau1[Date Arrivée],Stat_Nuitée!$T$2,Tableau1[Nat],Stat_Nuitée!C34)","v":0},{"$f":"COUNTIFS(Tableau1[Date Arrivée],Stat_Nuitée!$U$2,Tableau1[Nat],Stat_Nuitée!C34)","v":0},{"$f":"COUNTIFS(Tableau1[Date Arrivée],Stat_Nuitée!$V$2,Tableau1[Nat],Stat_Nuitée!C34)","v":0},{"$f":"COUNTIFS(Tableau1[Date Arrivée],Stat_Nuitée!$W$2,Tableau1[Nat],Stat_Nuitée!C34)","v":0},{"$f":"COUNTIFS(Tableau1[Date Arrivée],Stat_Nuitée!$X$2,Tableau1[Nat],Stat_Nuitée!C34)","v":0},{"$f":"COUNTIFS(Tableau1[Date Arrivée],Stat_Nuitée!$Y$2,Tableau1[Nat],Stat_Nuitée!C34)","v":0},{"$f":"COUNTIFS(Tableau1[Date Arrivée],Stat_Nuitée!$Z$2,Tableau1[Nat],Stat_Nuitée!C34)","v":0},{"$f":"COUNTIFS(Tableau1[Date Arrivée],Stat_Nuitée!$AA$2,Tableau1[Nat],Stat_Nuitée!C34)","v":0},{"$f":"COUNTIFS(Tableau1[Date Arrivée],Stat_Nuitée!$AB$2,Tableau1[Nat],Stat_Nuitée!C34)","v":0},{"$f":"COUNTIFS(Tableau1[Date Arrivée],Stat_Nuitée!$AC$2,Tableau1[Nat],Stat_Nuitée!C34)","v":0},{"$f":"COUNTIFS(Tableau1[Date Arrivée],Stat_Nuitée!$AD$2,Tableau1[Nat],Stat_Nuitée!C34)","v":0},{"$f":"COUNTIFS(Tableau1[Date Arrivée],Stat_Nuitée!$AE$2,Tableau1[Nat],Stat_Nuitée!C34)","v":0},{"$f":"COUNTIFS(Tableau1[Date Arrivée],Stat_Nuitée!$AF$2,Tableau1[Nat],Stat_Nuitée!C34)","v":0},{"$f":"COUNTIFS(Tableau1[Date Arrivée],Stat_Nuitée!$AG$2,Tableau1[Nat],Stat_Nuitée!C34)","v":0},{"$f":"COUNTIFS(Tableau1[Date Arrivée],Stat_Nuitée!$AH$2,Tableau1[Nat],Stat_Nuitée!C34)","v":0}]
[null,"Liban","LB",{"$f":"COUNTIFS(Tableau1[Date Arrivée],Stat_Nuitée!$D$2,Tableau1[Nat],Stat_Nuitée!C35)","v":0},{"$f":"COUNTIFS(Tableau1[Date Arrivée],Stat_Nuitée!$E$2,Tableau1[Nat],Stat_Nuitée!C35)","v":0},{"$f":"COUNTIFS(Tableau1[Date Arrivée],Stat_Nuitée!$F$2,Tableau1[Nat],Stat_Nuitée!C35)","v":0},{"$f":"COUNTIFS(Tableau1[Date Arrivée],Stat_Nuitée!$G$2,Tableau1[Nat],Stat_Nuitée!C35)","v":0},{"$f":"COUNTIFS(Tableau1[Date Arrivée],Stat_Nuitée!$H$2,Tableau1[Nat],Stat_Nuitée!C35)","v":0},{"$f":"COUNTIFS(Tableau1[Date Arrivée],Stat_Nuitée!$I$2,Tableau1[Nat],Stat_Nuitée!C35)","v":0},{"$f":"COUNTIFS(Tableau1[Date Arrivée],Stat_Nuitée!$J$2,Tableau1[Nat],Stat_Nuitée!C35)","v":0},{"$f":"COUNTIFS(Tableau1[Date Arrivée],Stat_Nuitée!$K$2,Tableau1[Nat],Stat_Nuitée!C35)","v":0},{"$f":"COUNTIFS(Tableau1[Date Arrivée],Stat_Nuitée!$L$2,Tableau1[Nat],Stat_Nuitée!C35)","v":0},{"$f":"COUNTIFS(Tableau1[Date Arrivée],Stat_Nuitée!$M$2,Tableau1[Nat],Stat_Nuitée!C35)","v":0},{"$f":"COUNTIFS(Tableau1[Date Arrivée],Stat_Nuitée!$N$2,Tableau1[Nat],Stat_Nuitée!C35)","v":0},{"$f":"COUNTIFS(Tableau1[Date Arrivée],Stat_Nuitée!$O$2,Tableau1[Nat],Stat_Nuitée!C35)","v":0},{"$f":"COUNTIFS(Tableau1[Date Arrivée],Stat_Nuitée!$P$2,Tableau1[Nat],Stat_Nuitée!C35)","v":0},{"$f":"COUNTIFS(Tableau1[Date Arrivée],Stat_Nuitée!$Q$2,Tableau1[Nat],Stat_Nuitée!C35)","v":0},{"$f":"COUNTIFS(Tableau1[Date Arrivée],Stat_Nuitée!$R$2,Tableau1[Nat],Stat_Nuitée!C35)","v":0},{"$f":"COUNTIFS(Tableau1[Date Arrivée],Stat_Nuitée!$S$2,Tableau1[Nat],Stat_Nuitée!C35)","v":0},{"$f":"COUNTIFS(Tableau1[Date Arrivée],Stat_Nuitée!$T$2,Tableau1[Nat],Stat_Nuitée!C35)","v":0},{"$f":"COUNTIFS(Tableau1[Date Arrivée],Stat_Nuitée!$U$2,Tableau1[Nat],Stat_Nuitée!C35)","v":0},{"$f":"COUNTIFS(Tableau1[Date Arrivée],Stat_Nuitée!$V$2,Tableau1[Nat],Stat_Nuitée!C35)","v":0},{"$f":"COUNTIFS(Tableau1[Date Arrivée],Stat_Nuitée!$W$2,Tableau1[Nat],Stat_Nuitée!C35)","v":0},{"$f":"COUNTIFS(Tableau1[Date Arrivée],Stat_Nuitée!$X$2,Tableau1[Nat],Stat_Nuitée!C35)","v":0},{"$f":"COUNTIFS(Tableau1[Date Arrivée],Stat_Nuitée!$Y$2,Tableau1[Nat],Stat_Nuitée!C35)","v":0},{"$f":"COUNTIFS(Tableau1[Date Arrivée],Stat_Nuitée!$Z$2,Tableau1[Nat],Stat_Nuitée!C35)","v":0},{"$f":"COUNTIFS(Tableau1[Date Arrivée],Stat_Nuitée!$AA$2,Tableau1[Nat],Stat_Nuitée!C35)","v":0},{"$f":"COUNTIFS(Tableau1[Date Arrivée],Stat_Nuitée!$AB$2,Tableau1[Nat],Stat_Nuitée!C35)","v":0},{"$f":"COUNTIFS(Tableau1[Date Arrivée],Stat_Nuitée!$AC$2,Tableau1[Nat],Stat_Nuitée!C35)","v":0},{"$f":"COUNTIFS(Tableau1[Date Arrivée],Stat_Nuitée!$AD$2,Tableau1[Nat],Stat_Nuitée!C35)","v":0},{"$f":"COUNTIFS(Tableau1[Date Arrivée],Stat_Nuitée!$AE$2,Tableau1[Nat],Stat_Nuitée!C35)","v":0},{"$f":"COUNTIFS(Tableau1[Date Arrivée],Stat_Nuitée!$AF$2,Tableau1[Nat],Stat_Nuitée!C35)","v":0},{"$f":"COUNTIFS(Tableau1[Date Arrivée],Stat_Nuitée!$AG$2,Tableau1[Nat],Stat_Nuitée!C35)","v":0},{"$f":"COUNTIFS(Tableau1[Date Arrivée],Stat_Nuitée!$AH$2,Tableau1[Nat],Stat_Nuitée!C35)","v":0}]
[null,"Kuweit","KW",{"$f":"COUNTIFS(Tableau1[Date Arrivée],Stat_Nuitée!$D$2,Tableau1[Nat],Stat_Nuitée!C36)","v":0},{"$f":"COUNTIFS(Tableau1[Date Arrivée],Stat_Nuitée!$E$2,Tableau1[Nat],Stat_Nuitée!C36)","v":0},{"$f":"COUNTIFS(Tableau1[Date Arrivée],Stat_Nuitée!$F$2,Tableau1[Nat],Stat_Nuitée!C36)","v":0},{"$f":"COUNTIFS(Tableau1[Date Arrivée],Stat_Nuitée!$G$2,Tableau1[Nat],Stat_Nuitée!C36)","v":0},{"$f":"COUNTIFS(Tableau1[Date Arrivée],Stat_Nuitée!$H$2,Tableau1[Nat],Stat_Nuitée!C36)","v":0},{"$f":"COUNTIFS(Tableau1[Date Arrivée],Stat_Nuitée!$I$2,Tableau1[Nat],Stat_Nuitée!C36)","v":0},{"$f":"COUNTIFS(Tableau1[Date Arrivée],Stat_Nuitée!$J$2,Tableau1[Nat],Stat_Nuitée!C36)","v":0},{"$f":"COUNTIFS(Tableau1[Date Arrivée],Stat_Nuitée!$K$2,Tableau1[Nat],Stat_Nuitée!C36)","v":0},{"$f":"COUNTIFS(Tableau1[Date Arrivée],Stat_Nuitée!$L$2,Tableau1[Nat],Stat_Nuitée!C36)","v":0},{"$f":"COUNTIFS(Tableau1[Date Arrivée],Stat_Nuitée!$M$2,Tableau1[Nat],Stat_Nuitée!C36)","v":0},{"$f":"COUNTIFS(Tableau1[Date Arrivée],Stat_Nuitée!$N$2,Tableau1[Nat],Stat_Nuitée!C36)","v":0},{"$f":"COUNTIFS(Tableau1[Date Arrivée],Stat_Nuitée!$O$2,Tableau1[Nat],Stat_Nuitée!C36)","v":0},{"$f":"COUNTIFS(Tableau1[Date Arrivée],Stat_Nuitée!$P$2,Tableau1[Nat],Stat_Nuitée!C36)","v":0},{"$f":"COUNTIFS(Tableau1[Date Arrivée],Stat_Nuitée!$Q$2,Tableau1[Nat],Stat_Nuitée!C36)","v":0},{"$f":"COUNTIFS(Tableau1[Date Arrivée],Stat_Nuitée!$R$2,Tableau1[Nat],Stat_Nuitée!C36)","v":0},{"$f":"COUNTIFS(Tableau1[Date Arrivée],Stat_Nuitée!$S$2,Tableau1[Nat],Stat_Nuitée!C36)","v":0},{"$f":"COUNTIFS(Tableau1[Date Arrivée],Stat_Nuitée!$T$2,Tableau1[Nat],Stat_Nuitée!C36)","v":0},{"$f":"COUNTIFS(Tableau1[Date Arrivée],Stat_Nuitée!$U$2,Tableau1[Nat],Stat_Nuitée!C36)","v":0},{"$f":"COUNTIFS(Tableau1[Date Arrivée],Stat_Nuitée!$V$2,Tableau1[Nat],Stat_Nuitée!C36)","v":0},{"$f":"COUNTIFS(Tableau1[Date Arrivée],Stat_Nuitée!$W$2,Tableau1[Nat],Stat_Nuitée!C36)","v":0},{"$f":"COUNTIFS(Tableau1[Date Arrivée],Stat_Nuitée!$X$2,Tableau1[Nat],Stat_Nuitée!C36)","v":0},{"$f":"COUNTIFS(Tableau1[Date Arrivée],Stat_Nuitée!$Y$2,Tableau1[Nat],Stat_Nuitée!C36)","v":0},{"$f":"COUNTIFS(Tableau1[Date Arrivée],Stat_Nuitée!$Z$2,Tableau1[Nat],Stat_Nuitée!C36)","v":0},{"$f":"COUNTIFS(Tableau1[Date Arrivée],Stat_Nuitée!$AA$2,Tableau1[Nat],Stat_Nuitée!C36)","v":0},{"$f":"COUNTIFS(Tableau1[Date Arrivée],Stat_Nuitée!$AB$2,Tableau1[Nat],Stat_Nuitée!C36)","v":0},{"$f":"COUNTIFS(Tableau1[Date Arrivée],Stat_Nuitée!$AC$2,Tableau1[Nat],Stat_Nuitée!C36)","v":0},{"$f":"COUNTIFS(Tableau1[Date Arrivée],Stat_Nuitée!$AD$2,Tableau1[Nat],Stat_Nuitée!C36)","v":0},{"$f":"COUNTIFS(Tableau1[Date Arrivée],Stat_Nuitée!$AE$2,Tableau1[Nat],Stat_Nuitée!C36)","v":0},{"$f":"COUNTIFS(Tableau1[Date Arrivée],Stat_Nuitée!$AF$2,Tableau1[Nat],Stat_Nuitée!C36)","v":0},{"$f":"COUNTIFS(Tableau1[Date Arrivée],Stat_Nuitée!$AG$2,Tableau1[Nat],Stat_Nuitée!C36)","v":0},{"$f":"COUNTIFS(Tableau1[Date Arrivée],Stat_Nuitée!$AH$2,Tableau1[Nat],Stat_Nuitée!C36)","v":0}]
[null,"Cameroun","CM",{"$f":"COUNTIFS(Tableau1[Date Arrivée],Stat_Nuitée!$D$2,Tableau1[Nat],Stat_Nuitée!C37)","v":0},{"$f":"COUNTIFS(Tableau1[Date Arrivée],Stat_Nuitée!$E$2,Tableau1[Nat],Stat_Nuitée!C37)","v":0},{"$f":"COUNTIFS(Tableau1[Date Arrivée],Stat_Nuitée!$F$2,Tableau1[Nat],Stat_Nuitée!C37)","v":0},{"$f":"COUNTIFS(Tableau1[Date Arrivée],Stat_Nuitée!$G$2,Tableau1[Nat],Stat_Nuitée!C37)","v":0},{"$f":"COUNTIFS(Tableau1[Date Arrivée],Stat_Nuitée!$H$2,Tableau1[Nat],Stat_Nuitée!C37)","v":0},{"$f":"COUNTIFS(Tableau1[Date Arrivée],Stat_Nuitée!$I$2,Tableau1[Nat],Stat_Nuitée!C37)","v":0},{"$f":"COUNTIFS(Tableau1[Date Arrivée],Stat_Nuitée!$J$2,Tableau1[Nat],Stat_Nuitée!C37)","v":0},{"$f":"COUNTIFS(Tableau1[Date Arrivée],Stat_Nuitée!$K$2,Tableau1[Nat],Stat_Nuitée!C37)","v":0},{"$f":"COUNTIFS(Tableau1[Date Arrivée],Stat_Nuitée!$L$2,Tableau1[Nat],Stat_Nuitée!C37)","v":0},{"$f":"COUNTIFS(Tableau1[Date Arrivée],Stat_Nuitée!$M$2,Tableau1[Nat],Stat_Nuitée!C37)","v":0},{"$f":"COUNTIFS(Tableau1[Date Arrivée],Stat_Nuitée!$N$2,Tableau1[Nat],Stat_Nuitée!C37)","v":0},{"$f":"COUNTIFS(Tableau1[Date Arrivée],Stat_Nuitée!$O$2,Tableau1[Nat],Stat_Nuitée!C37)","v":0},{"$f":"COUNTIFS(Tableau1[Date Arrivée],Stat_Nuitée!$P$2,Tableau1[Nat],Stat_Nuitée!C37)","v":0},{"$f":"COUNTIFS(Tableau1[Date Arrivée],Stat_Nuitée!$Q$2,Tableau1[Nat],Stat_Nuitée!C37)","v":0},{"$f":"COUNTIFS(Tableau1[Date Arrivée],Stat_Nuitée!$R$2,Tableau1[Nat],Stat_Nuitée!C37)","v":0},{"$f":"COUNTIFS(Tableau1[Date Arrivée],Stat_Nuitée!$S$2,Tableau1[Nat],Stat_Nuitée!C37)","v":0},{"$f":"COUNTIFS(Tableau1[Date Arrivée],Stat_Nuitée!$T$2,Tableau1[Nat],Stat_Nuitée!C37)","v":0},{"$f":"COUNTIFS(Tableau1[Date Arrivée],Stat_Nuitée!$U$2,Tableau1[Nat],Stat_Nuitée!C37)","v":0},{"$f":"COUNTIFS(Tableau1[Date Arrivée],Stat_Nuitée!$V$2,Tableau1[Nat],Stat_Nuitée!C37)","v":0},{"$f":"COUNTIFS(Tableau1[Date Arrivée],Stat_Nuitée!$W$2,Tableau1[Nat],Stat_Nuitée!C37)","v":0},{"$f":"COUNTIFS(Tableau1[Date Arrivée],Stat_Nuitée!$X$2,Tableau1[Nat],Stat_Nuitée!C37)","v":0},{"$f":"COUNTIFS(Tableau1[Date Arrivée],Stat_Nuitée!$Y$2,Tableau1[Nat],Stat_Nuitée!C37)","v":0},{"$f":"COUNTIFS(Tableau1[Date Arrivée],Stat_Nuitée!$Z$2,Tableau1[Nat],Stat_Nuitée!C37)","v":0},{"$f":"COUNTIFS(Tableau1[Date Arrivée],Stat_Nuitée!$AA$2,Tableau1[Nat],Stat_Nuitée!C37)","v":0},{"$f":"COUNTIFS(Tableau1[Date Arrivée],Stat_Nuitée!$AB$2,Tableau1[Nat],Stat_Nuitée!C37)","v":0},{"$f":"COUNTIFS(Tableau1[Date Arrivée],Stat_Nuitée!$AC$2,Tableau1[Nat],Stat_Nuitée!C37)","v":0},{"$f":"COUNTIFS(Tableau1[Date Arrivée],Stat_Nuitée!$AD$2,Tableau1[Nat],Stat_Nuitée!C37)","v":0},{"$f":"COUNTIFS(Tableau1[Date Arrivée],Stat_Nuitée!$AE$2,Tableau1[Nat],Stat_Nuitée!C37)","v":0},{"$f":"COUNTIFS(Tableau1[Date Arrivée],Stat_Nuitée!$AF$2,Tableau1[Nat],Stat_Nuitée!C37)","v":0},{"$f":"COUNTIFS(Tableau1[Date Arrivée],Stat_Nuitée!$AG$2,Tableau1[Nat],Stat_Nuitée!C37)","v":0},{"$f":"COUNTIFS(Tableau1[Date Arrivée],Stat_Nuitée!$AH$2,Tableau1[Nat],Stat_Nuitée!C37)","v":0}]
[null,"Sénégal","SN",{"$f":"COUNTIFS(Tableau1[Date Arrivée],Stat_Nuitée!$D$2,Tableau1[Nat],Stat_Nuitée!C38)","v":0},{"$f":"COUNTIFS(Tableau1[Date Arrivée],Stat_Nuitée!$E$2,Tableau1[Nat],Stat_Nuitée!C38)","v":0},{"$f":"COUNTIFS(Tableau1[Date Arrivée],Stat_Nuitée!$F$2,Tableau1[Nat],Stat_Nuitée!C38)","v":0},{"$f":"COUNTIFS(Tableau1[Date Arrivée],Stat_Nuitée!$G$2,Tableau1[Nat],Stat_Nuitée!C38)","v":0},{"$f":"COUNTIFS(Tableau1[Date Arrivée],Stat_Nuitée!$H$2,Tableau1[Nat],Stat_Nuitée!C38)","v":0},{"$f":"COUNTIFS(Tableau1[Date Arrivée],Stat_Nuitée!$I$2,Tableau1[Nat],Stat_Nuitée!C38)","v":0},{"$f":"COUNTIFS(Tableau1[Date Arrivée],Stat_Nuitée!$J$2,Tableau1[Nat],Stat_Nuitée!C38)","v":0},{"$f":"COUNTIFS(Tableau1[Date Arrivée],Stat_Nuitée!$K$2,Tableau1[Nat],Stat_Nuitée!C38)","v":0},{"$f":"COUNTIFS(Tableau1[Date Arrivée],Stat_Nuitée!$L$2,Tableau1[Nat],Stat_Nuitée!C38)","v":0},{"$f":"COUNTIFS(Tableau1[Date Arrivée],Stat_Nuitée!$M$2,Tableau1[Nat],Stat_Nuitée!C38)","v":0},{"$f":"COUNTIFS(Tableau1[Date Arrivée],Stat_Nuitée!$N$2,Tableau1[Nat],Stat_Nuitée!C38)","v":0},{"$f":"COUNTIFS(Tableau1[Date Arrivée],Stat_Nuitée!$O$2,Tableau1[Nat],Stat_Nuitée!C38)","v":0},{"$f":"COUNTIFS(Tableau1[Date Arrivée],Stat_Nuitée!$P$2,Tableau1[Nat],Stat_Nuitée!C38)","v":0},{"$f":"COUNTIFS(Tableau1[Date Arrivée],Stat_Nuitée!$Q$2,Tableau1[Nat],Stat_Nuitée!C38)","v":0},{"$f":"COUNTIFS(Tableau1[Date Arrivée],Stat_Nuitée!$R$2,Tableau1[Nat],Stat_Nuitée!C38)","v":0},{"$f":"COUNTIFS(Tableau1[Date Arrivée],Stat_Nuitée!$S$2,Tableau1[Nat],Stat_Nuitée!C38)","v":0},{"$f":"COUNTIFS(Tableau1[Date Arrivée],Stat_Nuitée!$T$2,Tableau1[Nat],Stat_Nuitée!C38)","v":0},{"$f":"COUNTIFS(Tableau1[Date Arrivée],Stat_Nuitée!$U$2,Tableau1[Nat],Stat_Nuitée!C38)","v":0},{"$f":"COUNTIFS(Tableau1[Date Arrivée],Stat_Nuitée!$V$2,Tableau1[Nat],Stat_Nuitée!C38)","v":0},{"$f":"COUNTIFS(Tableau1[Date Arrivée],Stat_Nuitée!$W$2,Tableau1[Nat],Stat_Nuitée!C38)","v":0},{"$f":"COUNTIFS(Tableau1[Date Arrivée],Stat_Nuitée!$X$2,Tableau1[Nat],Stat_Nuitée!C38)","v":0},{"$f":"COUNTIFS(Tableau1[Date Arrivée],Stat_Nuitée!$Y$2,Tableau1[Nat],Stat_Nuitée!C38)","v":0},{"$f":"COUNTIFS(Tableau1[Date Arrivée],Stat_Nuitée!$Z$2,Tableau1[Nat],Stat_Nuitée!C38)","v":0},{"$f":"COUNTIFS(Tableau1[Date Arrivée],Stat_Nuitée!$AA$2,Tableau1[Nat],Stat_Nuitée!C38)","v":0},{"$f":"COUNTIFS(Tableau1[Date Arrivée],Stat_Nuitée!$AB$2,Tableau1[Nat],Stat_Nuitée!C38)","v":0},{"$f":"COUNTIFS(Tableau1[Date Arrivée],Stat_Nuitée!$AC$2,Tableau1[Nat],Stat_Nuitée!C38)","v":0},{"$f":"COUNTIFS(Tableau1[Date Arrivée],Stat_Nuitée!$AD$2,Tableau1[Nat],Stat_Nuitée!C38)","v":0},{"$f":"COUNTIFS(Tableau1[Date Arrivée],Stat_Nuitée!$AE$2,Tableau1[Nat],Stat_Nuitée!C38)","v":0},{"$f":"COUNTIFS(Tableau1[Date Arrivée],Stat_Nuitée!$AF$2,Tableau1[Nat],Stat_Nuitée!C38)","v":0},{"$f":"COUNTIFS(Tableau1[Date Arrivée],Stat_Nuitée!$AG$2,Tableau1[Nat],Stat_Nuitée!C38)","v":0},{"$f":"COUNTIFS(Tableau1[Date Arrivée],Stat_Nuitée!$AH$2,Tableau1[Nat],Stat_Nuitée!C38)","v":0}]
[null,"Côte d'ivoire","CI",{"$f":"COUNTIFS(Tableau1[Date Arrivée],Stat_Nuitée!$D$2,Tableau1[Nat],Stat_Nuitée!C39)","v":0},{"$f":"COUNTIFS(Tableau1[Date Arrivée],Stat_Nuitée!$E$2,Tableau1[Nat],Stat_Nuitée!C39)","v":0},{"$f":"COUNTIFS(Tableau1[Date Arrivée],Stat_Nuitée!$F$2,Tableau1[Nat],Stat_Nuitée!C39)","v":0},{"$f":"COUNTIFS(Tableau1[Date Arrivée],Stat_Nuitée!$G$2,Tableau1[Nat],Stat_Nuitée!C39)","v":0},{"$f":"COUNTIFS(Tableau1[Date Arrivée],Stat_Nuitée!$H$2,Tableau1[Nat],Stat_Nuitée!C39)","v":0},{"$f":"COUNTIFS(Tableau1[Date Arrivée],Stat_Nuitée!$I$2,Tableau1[Nat],Stat_Nuitée!C39)","v":0},{"$f":"COUNTIFS(Tableau1[Date Arrivée],Stat_Nuitée!$J$2,Tableau1[Nat],Stat_Nuitée!C39)","v":0},{"$f":"COUNTIFS(Tableau1[Date Arrivée],Stat_Nuitée!$K$2,Tableau1[Nat],Stat_Nuitée!C39)","v":0},{"$f":"COUNTIFS(Tableau1[Date Arrivée],Stat_Nuitée!$L$2,Tableau1[Nat],Stat_Nuitée!C39)","v":0},{"$f":"COUNTIFS(Tableau1[Date Arrivée],Stat_Nuitée!$M$2,Tableau1[Nat],Stat_Nuitée!C39)","v":0},{"$f":"COUNTIFS(Tableau1[Date Arrivée],Stat_Nuitée!$N$2,Tableau1[Nat],Stat_Nuitée!C39)","v":0},{"$f":"COUNTIFS(Tableau1[Date Arrivée],Stat_Nuitée!$O$2,Tableau1[Nat],Stat_Nuitée!C39)","v":0},{"$f":"COUNTIFS(Tableau1[Date Arrivée],Stat_Nuitée!$P$2,Tableau1[Nat],Stat_Nuitée!C39)","v":0},{"$f":"COUNTIFS(Tableau1[Date Arrivée],Stat_Nuitée!$Q$2,Tableau1[Nat],Stat_Nuitée!C39)","v":0},{"$f":"COUNTIFS(Tableau1[Date Arrivée],Stat_Nuitée!$R$2,Tableau1[Nat],Stat_Nuitée!C39)","v":0},{"$f":"COUNTIFS(Tableau1[Date Arrivée],Stat_Nuitée!$S$2,Tableau1[Nat],Stat_Nuitée!C39)","v":0},{"$f":"COUNTIFS(Tableau1[Date Arrivée],Stat_Nuitée!$T$2,Tableau1[Nat],Stat_Nuitée!C39)","v":0},{"$f":"COUNTIFS(Tableau1[Date Arrivée],Stat_Nuitée!$U$2,Tableau1[Nat],Stat_Nuitée!C39)","v":0},{"$f":"COUNTIFS(Tableau1[Date Arrivée],Stat_Nuitée!$V$2,Tableau1[Nat],Stat_Nuitée!C39)","v":0},{"$f":"COUNTIFS(Tableau1[Date Arrivée],Stat_Nuitée!$W$2,Tableau1[Nat],Stat_Nuitée!C39)","v":0},{"$f":"COUNTIFS(Tableau1[Date Arrivée],Stat_Nuitée!$X$2,Tableau1[Nat],Stat_Nuitée!C39)","v":0},{"$f":"COUNTIFS(Tableau1[Date Arrivée],Stat_Nuitée!$Y$2,Tableau1[Nat],Stat_Nuitée!C39)","v":0},{"$f":"COUNTIFS(Tableau1[Date Arrivée],Stat_Nuitée!$Z$2,Tableau1[Nat],Stat_Nuitée!C39)","v":0},{"$f":"COUNTIFS(Tableau1[Date Arrivée],Stat_Nuitée!$AA$2,Tableau1[Nat],Stat_Nuitée!C39)","v":0},{"$f":"COUNTIFS(Tableau1[Date Arrivée],Stat_Nuitée!$AB$2,Tableau1[Nat],Stat_Nuitée!C39)","v":0},{"$f":"COUNTIFS(Tableau1[Date Arrivée],Stat_Nuitée!$AC$2,Tableau1[Nat],Stat_Nuitée!C39)","v":0},{"$f":"COUNTIFS(Tableau1[Date Arrivée],Stat_Nuitée!$AD$2,Tableau1[Nat],Stat_Nuitée!C39)","v":0},{"$f":"COUNTIFS(Tableau1[Date Arrivée],Stat_Nuitée!$AE$2,Tableau1[Nat],Stat_Nuitée!C39)","v":0},{"$f":"COUNTIFS(Tableau1[Date Arrivée],Stat_Nuitée!$AF$2,Tableau1[Nat],Stat_Nuitée!C39)","v":0},{"$f":"COUNTIFS(Tableau1[Date Arrivée],Stat_Nuitée!$AG$2,Tableau1[Nat],Stat_Nuitée!C39)","v":0},{"$f":"COUNTIFS(Tableau1[Date Arrivée],Stat_Nuitée!$AH$2,Tableau1[Nat],Stat_Nuitée!C39)","v":0}]
[null,"Afrique","AF",{"$f":"COUNTIFS(Tableau1[Date Arrivée],Stat_Nuitée!$D$2,Tableau1[Nat],Stat_Nuitée!C40)","v":0},{"$f":"COUNTIFS(Tableau1[Date Arrivée],Stat_Nuitée!$E$2,Tableau1[Nat],Stat_Nuitée!C40)","v":0},{"$f":"COUNTIFS(Tableau1[Date Arrivée],Stat_Nuitée!$F$2,Tableau1[Nat],Stat_Nuitée!C40)","v":0},{"$f":"COUNTIFS(Tableau1[Date Arrivée],Stat_Nuitée!$G$2,Tableau1[Nat],Stat_Nuitée!C40)","v":0},{"$f":"COUNTIFS(Tableau1[Date Arrivée],Stat_Nuitée!$H$2,Tableau1[Nat],Stat_Nuitée!C40)","v":0},{"$f":"COUNTIFS(Tableau1[Date Arrivée],Stat_Nuitée!$I$2,Tableau1[Nat],Stat_Nuitée!C40)","v":0},{"$f":"COUNTIFS(Tableau1[Date Arrivée],Stat_Nuitée!$J$2,Tableau1[Nat],Stat_Nuitée!C40)","v":0},{"$f":"COUNTIFS(Tableau1[Date Arrivée],Stat_Nuitée!$K$2,Tableau1[Nat],Stat_Nuitée!C40)","v":0},{"$f":"COUNTIFS(Tableau1[Date Arrivée],Stat_Nuitée!$L$2,Tableau1[Nat],Stat_Nuitée!C40)","v":0},{"$f":"COUNTIFS(Tableau1[Date Arrivée],Stat_Nuitée!$M$2,Tableau1[Nat],Stat_Nuitée!C40)","v":0},{"$f":"COUNTIFS(Tableau1[Date Arrivée],Stat_Nuitée!$N$2,Tableau1[Nat],Stat_Nuitée!C40)","v":0},{"$f":"COUNTIFS(Tableau1[Date Arrivée],Stat_Nuitée!$O$2,Tableau1[Nat],Stat_Nuitée!C40)","v":0},{"$f":"COUNTIFS(Tableau1[Date Arrivée],Stat_Nuitée!$P$2,Tableau1[Nat],Stat_Nuitée!C40)","v":0},{"$f":"COUNTIFS(Tableau1[Date Arrivée],Stat_Nuitée!$Q$2,Tableau1[Nat],Stat_Nuitée!C40)","v":0},{"$f":"COUNTIFS(Tableau1[Date Arrivée],Stat_Nuitée!$R$2,Tableau1[Nat],Stat_Nuitée!C40)","v":0},{"$f":"COUNTIFS(Tableau1[Date Arrivée],Stat_Nuitée!$S$2,Tableau1[Nat],Stat_Nuitée!C40)","v":0},{"$f":"COUNTIFS(Tableau1[Date Arrivée],Stat_Nuitée!$T$2,Tableau1[Nat],Stat_Nuitée!C40)","v":0},{"$f":"COUNTIFS(Tableau1[Date Arrivée],Stat_Nuitée!$U$2,Tableau1[Nat],Stat_Nuitée!C40)","v":0},{"$f":"COUNTIFS(Tableau1[Date Arrivée],Stat_Nuitée!$V$2,Tableau1[Nat],Stat_Nuitée!C40)","v":0},{"$f":"COUNTIFS(Tableau1[Date Arrivée],Stat_Nuitée!$W$2,Tableau1[Nat],Stat_Nuitée!C40)","v":0},{"$f":"COUNTIFS(Tableau1[Date Arrivée],Stat_Nuitée!$X$2,Tableau1[Nat],Stat_Nuitée!C40)","v":0},{"$f":"COUNTIFS(Tableau1[Date Arrivée],Stat_Nuitée!$Y$2,Tableau1[Nat],Stat_Nuitée!C40)","v":0},{"$f":"COUNTIFS(Tableau1[Date Arrivée],Stat_Nuitée!$Z$2,Tableau1[Nat],Stat_Nuitée!C40)","v":0},{"$f":"COUNTIFS(Tableau1[Date Arrivée],Stat_Nuitée!$AA$2,Tableau1[Nat],Stat_Nuitée!C40)","v":0},{"$f":"COUNTIFS(Tableau1[Date Arrivée],Stat_Nuitée!$AB$2,Tableau1[Nat],Stat_Nuitée!C40)","v":0},{"$f":"COUNTIFS(Tableau1[Date Arrivée],Stat_Nuitée!$AC$2,Tableau1[Nat],Stat_Nuitée!C40)","v":0},{"$f":"COUNTIFS(Tableau1[Date Arrivée],Stat_Nuitée!$AD$2,Tableau1[Nat],Stat_Nuitée!C40)","v":0},{"$f":"COUNTIFS(Tableau1[Date Arrivée],Stat_Nuitée!$AE$2,Tableau1[Nat],Stat_Nuitée!C40)","v":0},{"$f":"COUNTIFS(Tableau1[Date Arrivée],Stat_Nuitée!$AF$2,Tableau1[Nat],Stat_Nuitée!C40)","v":0},{"$f":"COUNTIFS(Tableau1[Date Arrivée],Stat_Nuitée!$AG$2,Tableau1[Nat],Stat_Nuitée!C40)","v":0},{"$f":"COUNTIFS(Tableau1[Date Arrivée],Stat_Nuitée!$AH$2,Tableau1[Nat],Stat_Nuitée!C40)","v":0}]
[null,"Brésil","BR",{"$f":"COUNTIFS(Tableau1[Date Arrivée],Stat_Nuitée!$D$2,Tableau1[Nat],Stat_Nuitée!C41)","v":0},{"$f":"COUNTIFS(Tableau1[Date Arrivée],Stat_Nuitée!$E$2,Tableau1[Nat],Stat_Nuitée!C41)","v":0},{"$f":"COUNTIFS(Tableau1[Date Arrivée],Stat_Nuitée!$F$2,Tableau1[Nat],Stat_Nuitée!C41)","v":1},{"$f":"COUNTIFS(Tableau1[Date Arrivée],Stat_Nuitée!$G$2,Tableau1[Nat],Stat_Nuitée!C41)","v":0},{"$f":"COUNTIFS(Tableau1[Date Arrivée],Stat_Nuitée!$H$2,Tableau1[Nat],Stat_Nuitée!C41)","v":0},{"$f":"COUNTIFS(Tableau1[Date Arrivée],Stat_Nuitée!$I$2,Tableau1[Nat],Stat_Nuitée!C41)","v":0},{"$f":"COUNTIFS(Tableau1[Date Arrivée],Stat_Nuitée!$J$2,Tableau1[Nat],Stat_Nuitée!C41)","v":0},{"$f":"COUNTIFS(Tableau1[Date Arrivée],Stat_Nuitée!$K$2,Tableau1[Nat],Stat_Nuitée!C41)","v":0},{"$f":"COUNTIFS(Tableau1[Date Arrivée],Stat_Nuitée!$L$2,Tableau1[Nat],Stat_Nuitée!C41)","v":0},{"$f":"COUNTIFS(Tableau1[Date Arrivée],Stat_Nuitée!$M$2,Tableau1[Nat],Stat_Nuitée!C41)","v":0},{"$f":"COUNTIFS(Tableau1[Date Arrivée],Stat_Nuitée!$N$2,Tableau1[Nat],Stat_Nuitée!C41)","v":0},{"$f":"COUNTIFS(Tableau1[Date Arrivée],Stat_Nuitée!$O$2,Tableau1[Nat],Stat_Nuitée!C41)","v":0},{"$f":"COUNTIFS(Tableau1[Date Arrivée],Stat_Nuitée!$P$2,Tableau1[Nat],Stat_Nuitée!C41)","v":0},{"$f":"COUNTIFS(Tableau1[Date Arrivée],Stat_Nuitée!$Q$2,Tableau1[Nat],Stat_Nuitée!C41)","v":0},{"$f":"COUNTIFS(Tableau1[Date Arrivée],Stat_Nuitée!$R$2,Tableau1[Nat],Stat_Nuitée!C41)","v":0},{"$f":"COUNTIFS(Tableau1[Date Arrivée],Stat_Nuitée!$S$2,Tableau1[Nat],Stat_Nuitée!C41)","v":0},{"$f":"COUNTIFS(Tableau1[Date Arrivée],Stat_Nuitée!$T$2,Tableau1[Nat],Stat_Nuitée!C41)","v":0},{"$f":"COUNTIFS(Tableau1[Date Arrivée],Stat_Nuitée!$U$2,Tableau1[Nat],Stat_Nuitée!C41)","v":0},{"$f":"COUNTIFS(Tableau1[Date Arrivée],Stat_Nuitée!$V$2,Tableau1[Nat],Stat_Nuitée!C41)","v":0},{"$f":"COUNTIFS(Tableau1[Date Arrivée],Stat_Nuitée!$W$2,Tableau1[Nat],Stat_Nuitée!C41)","v":0},{"$f":"COUNTIFS(Tableau1[Date Arrivée],Stat_Nuitée!$X$2,Tableau1[Nat],Stat_Nuitée!C41)","v":0},{"$f":"COUNTIFS(Tableau1[Date Arrivée],Stat_Nuitée!$Y$2,Tableau1[Nat],Stat_Nuitée!C41)","v":0},{"$f":"COUNTIFS(Tableau1[Date Arrivée],Stat_Nuitée!$Z$2,Tableau1[Nat],Stat_Nuitée!C41)","v":0},{"$f":"COUNTIFS(Tableau1[Date Arrivée],Stat_Nuitée!$AA$2,Tableau1[Nat],Stat_Nuitée!C41)","v":0},{"$f":"COUNTIFS(Tableau1[Date Arrivée],Stat_Nuitée!$AB$2,Tableau1[Nat],Stat_Nuitée!C41)","v":0},{"$f":"COUNTIFS(Tableau1[Date Arrivée],Stat_Nuitée!$AC$2,Tableau1[Nat],Stat_Nuitée!C41)","v":0},{"$f":"COUNTIFS(Tableau1[Date Arrivée],Stat_Nuitée!$AD$2,Tableau1[Nat],Stat_Nuitée!C41)","v":0},{"$f":"COUNTIFS(Tableau1[Date Arrivée],Stat_Nuitée!$AE$2,Tableau1[Nat],Stat_Nuitée!C41)","v":0},{"$f":"COUNTIFS(Tableau1[Date Arrivée],Stat_Nuitée!$AF$2,Tableau1[Nat],Stat_Nuitée!C41)","v":0},{"$f":"COUNTIFS(Tableau1[Date Arrivée],Stat_Nuitée!$AG$2,Tableau1[Nat],Stat_Nuitée!C41)","v":0},{"$f":"COUNTIFS(Tableau1[Date Arrivée],Stat_Nuitée!$AH$2,Tableau1[Nat],Stat_Nuitée!C41)","v":0}]
[null,"Total Arrivée Mensuel",null,{"$f":"IFERROR(SUM(D3:D41),\"\")","v":1},{"$f":"IFERROR(SUM(E3:E41),\"\")","v":0},{"$f":"IFERROR(SUM(F3:F41),\"\")","v":3},0,1,0,0,0,0,0,1,0,0,0,0,0,0,0,0,0,0,0,0,1,0,0,0,0,0,0,0]
[null,"Chambre Occupées",null,{"$f":"IFERROR(SUM(IF(Liste<>\"\",1/COUNTIF(Liste,Liste))),\"\")","v":2},{"$f":"IFERROR(SUM(IF(Liste<>\"\",1/COUNTIF(Liste,Liste))),\"\")","v":""},{"$f":"IFERROR(SUM(IF(Liste<>\"\",1/COUNTIF(Liste,Liste))),\"\")","v":2},{"$f":"IFERROR(SUM(IF(Liste<>\"\",1/COUNTIF(Liste,Liste))),\"\")","v":""},{"$f":"IFERROR(SUM(IF(Liste<>\"\",1/COUNTIF(Liste,Liste))),\"\")","v":1},{"$f":"IFERROR(SUM(IF(Liste<>\"\",1/COUNTIF(Liste,Liste))),\"\")","v":""},{"$f":"IFERROR(SUM(IF(Liste<>\"\",1/COUNTIF(Liste,Liste))),\"\")","v":""},{"$f":"IFERROR(SUM(IF(Liste<>\"\",1/COUNTIF(Liste,Liste))),\"\")","v":""},{"$f":"IFERROR(SUM(IF(Liste<>\"\",1/COUNTIF(Liste,Liste))),\"\")","v":""},{"$f":"IFERROR(SUM(IF(Liste<>\"\",1/COUNTIF(Liste,Liste))),\"\")","v":""},{"$f":"IFERROR(SUM(IF(Liste<>\"\",1/COUNTIF(Liste,Liste))),\"\")","v":1},{"$f":"IFERROR(SUM(IF(Liste<>\"\",1/COUNTIF(Liste,Liste))),\"\")","v":""},{"$f":"IFERROR(SUM(IF(Liste<>\"\",1/COUNTIF(Liste,Liste))),\"\")","v":""},{"$f":"IFERROR(SUM(IF(Liste<>\"\",1/COUNTIF(Liste,Liste))),\"\")","v":""},{"$f":"IFERROR(SUM(IF(Liste<>\"\",1/COUNTIF(Liste,Liste))),\"\")","v":""},{"$f":"IFERROR(SUM(IF(Liste<>\"\",1/COUNTIF(Liste,Liste))),\"\")","v":""},{"$f":"IFERROR(SUM(IF(Liste<>\"\",1/COUNTIF(Liste,Liste))),\"\")","v":""},{"$f":"IFERROR(SUM(IF(Liste<>\"\",1/COUNTIF(Liste,Liste))),\"\")","v":""},{"$f":"IFERROR(SUM(IF(Liste<>\"\",1/COUNTIF(Liste,Liste))),\"\")","v":""},{"$f":"IFERROR(SUM(IF(Liste<>\"\",1/COUNTIF(Liste,Liste))),\"\")","v":""},{"$f":"IFERROR(SUM(IF(Liste<>\"\",1/COUNTIF(Liste,Liste))),\"\")","v":""},{"$f":"IFERROR(SUM(IF(Liste<>\"\",1/COUNTIF(Liste,Liste))),\"\")","v":""},{"$f":"IFERROR(SUM(IF(Liste<>\"\",1/COUNTIF(Liste,Liste))),\"\")","v":""},{"$f":"IFERROR(SUM(IF(Liste<>\"\",1/COUNTIF(Liste,Liste))),\"\")","v":1},{"$f":"IFERROR(SUM(IF(Liste<>\"\",1/COUNTIF(Liste,Liste))),\"\")","v":""},{"$f":"IFERROR(SUM(IF(Liste<>\"\",1/COUNTIF(Liste,Liste))),\"\")","v":""},{"$f":"IFERROR(SUM(IF(Liste<>\"\",1/COUNTIF(Liste,Liste))),\"\")","v":""},{"$f":"IFERROR(SUM(IF(Liste<>\"\",1/COUNTIF(Liste,Liste))),\"\")","v":""},{"$f":"IFERROR(SUM(IF(Liste<>\"\",1/COUNTIF(Liste,Liste))),\"\")","v":""},{"$f":"IFERROR(SUM(IF(Liste<>\"\",1/COUNTIF(Liste,Liste))),\"\")","v":""},{"$f":"IFERROR(SUM(IF(Liste<>\"\",1/COUNTIF(Liste,Liste))),\"\")","v":""}]